Workbook

Sheet Table of Contents
A1: =CONCATENATE("Independent School District ",District!A7," - ",District!B7) -> Independent School District 720 - Shakopee Public School District
A2: ='Specific LLC Information'!A3 -> LLC Updated 10-02-17 Worksheet Update 10-30-17
B6: Tab Name | C6: Notes
B8: Table of Contents
B9: Property Tax Impact Static | C9: Allows user to pick 9 homestead residential values and compare impacts from year to year for same value
B10: Property Tax Impact Value Chg | C10: Allows user to pick 9 homestead residential values and compare impacts from year to year using a growth factor from Tax Calculator tab
B11: Property Tax Impact Val Chg 2 | C11: Allows user to pick 9 homestead residential values and compare impacts from year to year using a 5.5% growth factor
B12: Specific LLC Information | C12: Using levy limitation and certification report enter in last two years of data to see year by year comparison
B13: Scott Co Prelim Data | C13: Unique Taxing Area Pay 2018 RMV and NTC tax base information
B14: 720 | C14: Updated tax base data from Scott County for ISD 720
B15: Tax Calculator | C15: Use this to input growth assumptions and compare tax impact information
B16: RMV History | C16: Use this tab to keep track of referendum market value history
B17: NTC History | C17: Use this tab to keep track of net tax capacity value history
B18: District | C18: Specifically shows District's Pay 2017 School Tax Report
B19: Ag2School Tax Impact | C19: Shows impact of Ag2School Tax Credit if it would have been available in Pay 2017 | N19: VBA code for inserting all worksheet names in cells
B20: 2017 Neighbor Comparison Graph | C20: Input ISD #'s and allows user to input homestead residential value to see comparison of school portion of taxes
B21: 2017 Neighbor Comp Ag Graph | C21: Utilizes previous tabs ISD #'s and allows user to input value of 1-acre of land to see comparison of school portion of taxes | N21: Sub SheetNames()
B22: Disclosure | C22: Baird Disclosure language | N22: For i = 1 To Sheets.Count
N23: Cells(i + 7, 2) = Sheets(i).Name
N24: Next i
N25: End Sub

Sheet Property Tax Impact Static
A1: ='Specific LLC Information'!A1 -> Independent School District 720 - Shakopee Public School District
A2: Information for TnT Presentation - No Change in Valuation
Q6: Pay 2017 MV Exclusion | Y6: Pay 2018 MV Exclusion
B7: Type of Property | C7: 2016 Estimated Market Value | D7: Actual Pay 2017 School Portion of Taxes | E7: 2017 Estimated Market Value | F7: Est. Pay 2018 School Portion of Taxes | H7: Estimated Tax Increase / (Decrease) | I7: Estimated Percent Change | M7: Pay 2017 NTC of Properties to the left | N7: Pay 2018 NTC of Properties to the left | O7: Chk Figure | Q7: Market Value | X7: MV Exclusion | Y7: Market Value | AF7: MV Exclusion
B8: Residential Homestead | C8: 100000 | D8: =(C8*$M$19)+(M8*$M$20) -> 468.61476 | E8: =C8 -> 100000 | F8: =(E8*$M$22)+(N8*$M$23) -> 502.46868 | H8: =F8-D8 -> 33.85392 | I8: =H8/D8 -> 0.07224253884 | M8: =ROUND((0.01*MIN(500000,C8)+0.0125*MAX(C8-500000,0))-X8,0) -> 718 | N8: =ROUND((0.01*MIN(500000,E8)+0.0125*MAX(E8-500000,0))-AF8,0) -> 718 | O8: =H8-'Tax Calculator'!N52 -> -19.1429 | Q8: =C8 -> 100000 | R8: 0.4 | S8: =MIN(Q8*R8,30400) -> 30400 | T8: =IF(Q8>76000,Q8-76000,0) -> 24000 | U8: 0.09 | V8: =T8*U8 -> 2160 | W8: =MAX(S8-V8,0) -> 28240 | X8: =ROUND((0.01*MIN(500000,W8)+0.0125*MAX(W8-500000,0)), 0) -> 282 | Y8: =E8 -> 100000 | Z8: 0.4 | AA8: =MIN(Y8*Z8,30400) -> 30400 | AB8: =IF(Y8>76000,Y8-76000,0) -> 24000 | AC8: 0.09 | AD8: =AB8*AC8 -> 2160 | AE8: =MAX(AA8-AD8,0) -> 28240 | AF8: =ROUND((0.01*MIN(500000,AE8)+0.0125*MAX(AE8-500000,0)), 0) -> 282
C9: =C8+50000 -> 150000 | D9: 794.58666 | E9: =C9 -> 150000 | F9: 850.28538 | H9: 55.69872 | I9: 0.07009772855 | M9: 1263 | N9: 1263 | O9: =H9-'Tax Calculator'!N54 -> -28.19509 | Q9: 150000 | R9: 0.4 | S9: 30400 | T9: 74000 | U9: 0.09 | V9: 6660 | W9: 23740 | X9: 237 | Y9: 150000 | Z9: 0.4 | AA9: 30400 | AB9: 74000 | AC9: 0.09 | AD9: 6660 | AE9: 23740 | AF9: 237
C10: =C9+50000 -> 200000 | D10: 1120.55856 | E10: 200000 | F10: 1198.10208 | H10: 77.54352 | I10: 0.0692007743 | M10: 1808 | N10: 1808 | O10: =H10-'Tax Calculator'!N56 -> -38.2858 | Q10: 200000 | R10: 0.4 | S10: 30400 | T10: 124000 | U10: 0.09 | V10: 11160 | W10: 19240 | X10: 192 | Y10: 200000 | Z10: 0.4 | AA10: 30400 | AB10: 124000 | AC10: 0.09 | AD10: 11160 | AE10: 19240 | AF10: 192
C11: =C10+25000 -> 225000 | D11: 1283.2981 | E11: 225000 | F11: 1371.7508 | H11: 88.4527 | I11: 0.06892607415 | M11: 2080 | N11: 2080 | O11: =H11-'Tax Calculator'!N57 -> -43.331155 | Q11: 225000 | R11: 0.4 | S11: 30400 | T11: 149000 | U11: 0.09 | V11: 13410 | W11: 16990 | X11: 170 | Y11: 225000 | Z11: 0.4 | AA11: 30400 | AB11: 149000 | AC11: 0.09 | AD11: 13410 | AE11: 16990 | AF11: 170
C12: =C11+25000 -> 250000 | D12: 1446.53046 | E12: 250000 | F12: 1545.91878 | H12: 99.38832 | I12: 0.06870807269 | M12: 2353 | N12: 2353 | O12: =H12-'Tax Calculator'!N58 -> -47.85725 | Q12: 250000 | R12: 0.4 | S12: 30400 | T12: 174000 | U12: 0.09 | V12: 15660 | W12: 14740 | X12: 147 | Y12: 250000 | Z12: 0.4 | AA12: 30400 | AB12: 174000 | AC12: 0.09 | AD12: 15660 | AE12: 14740 | AF12: 147
C13: =C12+50000 -> 300000 | D13: 1772.50236 | E13: 300000 | F13: 1893.73548 | H13: 121.23312 | I13: 0.06839659158 | M13: 2898 | N13: 2898 | O13: =H13-'Tax Calculator'!N60 -> -57.4287 | Q13: 300000 | R13: 0.4 | S13: 30400 | T13: 224000 | U13: 0.09 | V13: 20160 | W13: 10240 | X13: 102 | Y13: 300000 | Z13: 0.4 | AA13: 30400 | AB13: 224000 | AC13: 0.09 | AD13: 20160 | AE13: 10240 | AF13: 102
C14: 350000 | D14: 2098.47426 | E14: 350000 | F14: 2241.55218 | H14: 143.07792 | I14: 0.06818187991 | M14: 3443 | N14: 3443 | O14: =H14-'Tax Calculator'!N62 -> -66.48089 | Q14: 350000 | R14: 0.4 | S14: 30400 | T14: 274000 | U14: 0.09 | V14: 24660 | W14: 5740 | X14: 57 | Y14: 350000 | Z14: 0.4 | AA14: 30400 | AB14: 274000 | AC14: 0.09 | AD14: 24660 | AE14: 5740 | AF14: 57
C15: 400000 | D15: 2424.44616 | E15: 400000 | F15: 2589.36888 | H15: 164.92272 | I15: 0.06802490512 | M15: 3988 | N15: 3988 | Q15: 400000 | R15: 0.4 | S15: 30400 | T15: 324000 | U15: 0.09 | V15: 29160 | W15: 1240 | X15: 12 | Y15: 400000 | Z15: 0.4 | AA15: 30400 | AB15: 324000 | AC15: 0.09 | AD15: 29160 | AE15: 1240 | AF15: 12
C16: =C15+100000 -> 500000 | D16: 3037.95 | E16: 500000 | F16: 3244.5 | H16: 206.55 | I16: 0.06798992742 | M16: 5000 | N16: 5000 | O16: =H16-'Tax Calculator'!N63 -> -107.13822 | Q16: 500000 | R16: 0.4 | S16: 30400 | T16: 424000 | U16: 0.09 | V16: 38160 | W16: 0 | X16: 0 | Y16: 500000 | Z16: 0.4 | AA16: 30400 | AB16: 424000 | AC16: 0.09 | AD16: 38160 | AE16: 0 | AF16: 0
M19: ='Tax Calculator'!F21 -> 0.0011477 | N19: Pay 17 RMV Rate
M20: ='Tax Calculator'!H49 -> 0.49282 | N20: Pay 17 NTC Rate
M22: ='Tax Calculator'!J21 -> 0.0012964 | N22: Pay 18 RMV Rate
M23: ='Tax Calculator'!L49 -> 0.51926 | N23: Pay 18 NTC Rate

Sheet Property Tax Impact Value Chg
A1: ='Specific LLC Information'!A1 -> Independent School District 720 - Shakopee Public School District
A2: =CONCATENATE("Information for TnT Presentation - ",TEXT(M2,"0.00%")," change in Assessed Valuation") -> Information for TnT Presentation - 2.75% change in Assessed Valuation | M2: ='Tax Calculator'!L8 -> 0.0275 | N2: Enter Change in Valuation (Title to left will automatically update)
Q6: Pay 2017 MV Exclusion | Y6: Pay 2018 MV Exclusion
B7: Type of Property | C7: 2016 Estimated Market Value | D7: Actual Pay 2017 School Portion of Taxes | E7: 2017 Estimated Market Value | F7: Est. Pay 2018 School Portion of Taxes | H7: Estimated Tax Increase / (Decrease) | I7: Estimated Percent Change | M7: Pay 2017 NTC of Properties to the left | N7: Pay 2018 NTC of Properties to the left | O7: Chk Figure | Q7: Market Value | X7: MV Exclusion | Y7: Market Value | AF7: MV Exclusion
B8: Residential Homestead | C8: 100000 | D8: =(C8*$M$19)+(M8*$M$20) -> 468.61476 | E8: =C8*(1+$M$2) -> 102750 | F8: =(E8*$M$22)+(N8*$M$23) -> 521.61158 | H8: =F8-D8 -> 52.99682 | I8: =H8/D8 -> 0.1130925112 | M8: =ROUND((0.01*MIN(500000,C8)+0.0125*MAX(C8-500000,0))-X8,0) -> 718 | N8: =ROUND((0.01*MIN(500000,E8)+0.0125*MAX(E8-500000,0))-AF8,0) -> 748 | O8: =H8-'Tax Calculator'!N52 -> 0 | Q8: =C8 -> 100000 | R8: 0.4 | S8: =MIN(Q8*R8,30400) -> 30400 | T8: =IF(Q8>76000,Q8-76000,0) -> 24000 | U8: 0.09 | V8: =T8*U8 -> 2160 | W8: =MAX(S8-V8,0) -> 28240 | X8: =ROUND((0.01*MIN(500000,W8)+0.0125*MAX(W8-500000,0)), 0) -> 282 | Y8: =E8 -> 102750 | Z8: 0.4 | AA8: =MIN(Y8*Z8,30400) -> 30400 | AB8: =IF(Y8>76000,Y8-76000,0) -> 26750 | AC8: 0.09 | AD8: =AB8*AC8 -> 2407.5 | AE8: =MAX(AA8-AD8,0) -> 27992.5 | AF8: =ROUND((0.01*MIN(500000,AE8)+0.0125*MAX(AE8-500000,0)), 0) -> 280
C9: =C8+50000 -> 150000 | D9: 794.58666 | E9: =C9*(1+$M$2) -> 154125 | F9: 878.48047 | H9: 83.89381 | I9: 0.1055816995 | M9: 1263 | N9: 1307 | O9: =H9-'Tax Calculator'!N54 -> 0 | Q9: 150000 | R9: 0.4 | S9: 30400 | T9: 74000 | U9: 0.09 | V9: 6660 | W9: 23740 | X9: 237 | Y9: 154125 | Z9: 0.4 | AA9: 30400 | AB9: 78125 | AC9: 0.09 | AD9: 7031.25 | AE9: 23368.75 | AF9: 234
C10: =C9+50000 -> 200000 | D10: 1120.55856 | E10: 205500 | F10: 1236.38788 | H10: 115.82932 | I10: 0.1033674849 | M10: 1808 | N10: 1868 | O10: =H10-'Tax Calculator'!N56 -> 0 | Q10: 200000 | R10: 0.4 | S10: 30400 | T10: 124000 | U10: 0.09 | V10: 11160 | W10: 19240 | X10: 192 | Y10: 205500 | Z10: 0.4 | AA10: 30400 | AB10: 129500 | AC10: 0.09 | AD10: 11655 | AE10: 18745 | AF10: 187
C11: =C10+25000 -> 225000 | D11: 1283.2981 | E11: 231187.5 | F11: 1415.081955 | H11: 131.783855 | I11: 0.1026915375 | M11: 2080 | N11: 2148 | O11: =H11-'Tax Calculator'!N57 -> 0 | Q11: 225000 | R11: 0.4 | S11: 30400 | T11: 149000 | U11: 0.09 | V11: 13410 | W11: 16990 | X11: 170 | Y11: 231187.5 | Z11: 0.4 | AA11: 30400 | AB11: 155187.5 | AC11: 0.09 | AD11: 13966.875 | AE11: 16433.125 | AF11: 164
C12: =C11+25000 -> 250000 | D12: 1446.53046 | E12: 256875 | F12: 1593.77603 | H12: 147.24557 | I12: 0.101792236 | M12: 2353 | N12: 2428 | O12: =H12-'Tax Calculator'!N58 -> 0 | Q12: 250000 | R12: 0.4 | S12: 30400 | T12: 174000 | U12: 0.09 | V12: 15660 | W12: 14740 | X12: 147 | Y12: 256875 | Z12: 0.4 | AA12: 30400 | AB12: 180875 | AC12: 0.09 | AD12: 16278.75 | AE12: 14121.25 | AF12: 141
C13: =C12+50000 -> 300000 | D13: 1772.50236 | E13: 308250 | F13: 1951.16418 | H13: 178.66182 | I13: 0.1007963792 | M13: 2898 | N13: 2988 | O13: =H13-'Tax Calculator'!N60 -> 0 | Q13: 300000 | R13: 0.4 | S13: 30400 | T13: 224000 | U13: 0.09 | V13: 20160 | W13: 10240 | X13: 102 | Y13: 308250 | Z13: 0.4 | AA13: 30400 | AB13: 232250 | AC13: 0.09 | AD13: 20902.5 | AE13: 9497.5 | AF13: 95
C14: 350000 | D14: 2098.47426 | E14: 359625 | F14: 2308.03307 | H14: 209.55881 | I14: 0.09986246388 | M14: 3443 | N14: 3547 | O14: =H14-'Tax Calculator'!N62 -> 0 | Q14: 350000 | R14: 0.4 | S14: 30400 | T14: 274000 | U14: 0.09 | V14: 24660 | W14: 5740 | X14: 57 | Y14: 359625 | Z14: 0.4 | AA14: 30400 | AB14: 283625 | AC14: 0.09 | AD14: 25526.25 | AE14: 4873.75 | AF14: 49
C15: 400000 | D15: 2424.44616 | E15: 411000 | F15: 2665.94048 | H15: 241.49432 | I15: 0.09960803584 | M15: 3988 | N15: 4108 | Q15: 400000 | R15: 0.4 | S15: 30400 | T15: 324000 | U15: 0.09 | V15: 29160 | W15: 1240 | X15: 12 | Y15: 411000 | Z15: 0.4 | AA15: 30400 | AB15: 335000 | AC15: 0.09 | AD15: 30150 | AE15: 250 | AF15: 2
C16: =C15+100000 -> 500000 | D16: 3037.95 | E16: 513750 | F16: 3351.63822 | H16: 313.68822 | I16: 0.1032565447 | M16: 5000 | N16: 5172 | O16: =H16-'Tax Calculator'!N63 -> 0 | Q16: 500000 | R16: 0.4 | S16: 30400 | T16: 424000 | U16: 0.09 | V16: 38160 | W16: 0 | X16: 0 | Y16: 513750 | Z16: 0.4 | AA16: 30400 | AB16: 437750 | AC16: 0.09 | AD16: 39397.5 | AE16: 0 | AF16: 0
M19: ='Property Tax Impact Static'!M19 -> 0.0011477 | N19: Pay 17 RMV Rate
M20: ='Property Tax Impact Static'!M20 -> 0.49282 | N20: Pay 17 NTC Rate
M22: ='Property Tax Impact Static'!M22 -> 0.0012964 | N22: Pay 18 RMV Rate
M23: ='Property Tax Impact Static'!M23 -> 0.51926 | N23: Pay 18 NTC Rate

Sheet Property Tax Impact Val Chg 2
A1: ='Specific LLC Information'!A1 -> Independent School District 720 - Shakopee Public School District
A2: =CONCATENATE("Information for TnT Presentation - ",TEXT(M2,"0.00%")," change in Assessed Valuation") -> Information for TnT Presentation - 5.50% change in Assessed Valuation | M2: =0.0275*2 -> 0.055 | N2: Enter Change in Valuation (Title to left will automatically update)
Q6: Pay 2017 MV Exclusion | Y6: Pay 2018 MV Exclusion
B7: Type of Property | C7: 2016 Estimated Market Value | D7: Actual Pay 2017 School Portion of Taxes | E7: 2017 Estimated Market Value | F7: Est. Pay 2018 School Portion of Taxes | H7: Estimated Tax Increase / (Decrease) | I7: Estimated Percent Change | M7: Pay 2017 NTC of Properties to the left | N7: Pay 2018 NTC of Properties to the left | O7: Chk Figure | Q7: Market Value | X7: MV Exclusion | Y7: Market Value | AF7: MV Exclusion
B8: Residential Homestead | C8: 100000 | D8: =(C8*$M$19)+(M8*$M$20) -> 468.61476 | E8: =C8*(1+$M$2) -> 105500 | F8: =(E8*$M$22)+(N8*$M$23) -> 540.75448 | H8: =F8-D8 -> 72.13972 | I8: =H8/D8 -> 0.1539424836 | M8: =ROUND((0.01*MIN(500000,C8)+0.0125*MAX(C8-500000,0))-X8,0) -> 718 | N8: =ROUND((0.01*MIN(500000,E8)+0.0125*MAX(E8-500000,0))-AF8,0) -> 778 | O8: =H8-'Tax Calculator'!N52 -> 19.1429 | Q8: =C8 -> 100000 | R8: 0.4 | S8: =MIN(Q8*R8,30400) -> 30400 | T8: =IF(Q8>76000,Q8-76000,0) -> 24000 | U8: 0.09 | V8: =T8*U8 -> 2160 | W8: =MAX(S8-V8,0) -> 28240 | X8: =ROUND((0.01*MIN(500000,W8)+0.0125*MAX(W8-500000,0)), 0) -> 282 | Y8: =E8 -> 105500 | Z8: 0.4 | AA8: =MIN(Y8*Z8,30400) -> 30400 | AB8: =IF(Y8>76000,Y8-76000,0) -> 29500 | AC8: 0.09 | AD8: =AB8*AC8 -> 2655 | AE8: =MAX(AA8-AD8,0) -> 27745 | AF8: =ROUND((0.01*MIN(500000,AE8)+0.0125*MAX(AE8-500000,0)), 0) -> 277
C9: =C8+50000 -> 150000 | D9: 794.58666 | E9: =C9*(1+$M$2) -> 158250 | F9: 907.71408 | H9: 113.12742 | I9: 0.1423726645 | M9: 1263 | N9: 1353 | O9: =H9-'Tax Calculator'!N54 -> 29.23361 | Q9: 150000 | R9: 0.4 | S9: 30400 | T9: 74000 | U9: 0.09 | V9: 6660 | W9: 23740 | X9: 237 | Y9: 158250 | Z9: 0.4 | AA9: 30400 | AB9: 82250 | AC9: 0.09 | AD9: 7402.5 | AE9: 22997.5 | AF9: 230
C10: =C9+50000 -> 200000 | D10: 1120.55856 | E10: 211000 | F10: 1274.15442 | H10: 153.59586 | I10: 0.1370708015 | M10: 1808 | N10: 1927 | O10: =H10-'Tax Calculator'!N56 -> 37.76654 | Q10: 200000 | R10: 0.4 | S10: 30400 | T10: 124000 | U10: 0.09 | V10: 11160 | W10: 19240 | X10: 192 | Y10: 211000 | Z10: 0.4 | AA10: 30400 | AB10: 135000 | AC10: 0.09 | AD10: 12150 | AE10: 18250 | AF10: 183
C11: =C10+25000 -> 225000 | D11: 1283.2981 | E11: 237375 | F11: 1457.89385 | H11: 174.59575 | I11: 0.1360523716 | M11: 2080 | N11: 2215 | O11: =H11-'Tax Calculator'!N57 -> 42.811895 | Q11: 225000 | R11: 0.4 | S11: 30400 | T11: 149000 | U11: 0.09 | V11: 13410 | W11: 16990 | X11: 170 | Y11: 237375 | Z11: 0.4 | AA11: 30400 | AB11: 161375 | AC11: 0.09 | AD11: 14523.75 | AE11: 15876.25 | AF11: 159
C12: =C11+25000 -> 250000 | D12: 1446.53046 | E12: 263750 | F12: 1641.63328 | H12: 195.10282 | I12: 0.1348763994 | M12: 2353 | N12: 2503 | O12: =H12-'Tax Calculator'!N58 -> 47.85725 | Q12: 250000 | R12: 0.4 | S12: 30400 | T12: 174000 | U12: 0.09 | V12: 15660 | W12: 14740 | X12: 147 | Y12: 263750 | Z12: 0.4 | AA12: 30400 | AB12: 187750 | AC12: 0.09 | AD12: 16897.5 | AE12: 13502.5 | AF12: 135
C13: =C12+50000 -> 300000 | D13: 1772.50236 | E13: 316500 | F13: 2008.07362 | H13: 235.57126 | I13: 0.1329032137 | M13: 2898 | N13: 3077 | O13: =H13-'Tax Calculator'!N60 -> 56.90944 | Q13: 300000 | R13: 0.4 | S13: 30400 | T13: 224000 | U13: 0.09 | V13: 20160 | W13: 10240 | X13: 102 | Y13: 316500 | Z13: 0.4 | AA13: 30400 | AB13: 240500 | AC13: 0.09 | AD13: 21645 | AE13: 8755 | AF13: 88
C14: 350000 | D14: 2098.47426 | E14: 369250 | F14: 2375.55248 | H14: 277.07822 | I14: 0.1320379407 | M14: 3443 | N14: 3653 | O14: =H14-'Tax Calculator'!N62 -> 67.51941 | Q14: 350000 | R14: 0.4 | S14: 30400 | T14: 274000 | U14: 0.09 | V14: 24660 | W14: 5740 | X14: 57 | Y14: 369250 | Z14: 0.4 | AA14: 30400 | AB14: 293250 | AC14: 0.09 | AD14: 26392.5 | AE14: 4007.5 | AF14: 40
C15: 400000 | D15: 2424.44616 | E15: 422000 | F15: 2738.358 | H15: 313.91184 | I15: 0.1294777526 | M15: 3988 | N15: 4220 | Q15: 400000 | R15: 0.4 | S15: 30400 | T15: 324000 | U15: 0.09 | V15: 29160 | W15: 1240 | X15: 12 | Y15: 422000 | Z15: 0.4 | AA15: 30400 | AB15: 346000 | AC15: 0.09 | AD15: 31140 | AE15: 0 | AF15: 0
C16: =C15+100000 -> 500000 | D16: 3037.95 | E16: 527500 | F16: 3458.77644 | H16: 420.82644 | I16: 0.138523162 | M16: 5000 | N16: 5344 | O16: =H16-'Tax Calculator'!N63 -> 107.13822 | Q16: 500000 | R16: 0.4 | S16: 30400 | T16: 424000 | U16: 0.09 | V16: 38160 | W16: 0 | X16: 0 | Y16: 527500 | Z16: 0.4 | AA16: 30400 | AB16: 451500 | AC16: 0.09 | AD16: 40635 | AE16: 0 | AF16: 0
M19: ='Property Tax Impact Static'!M19 -> 0.0011477 | N19: Pay 17 RMV Rate
M20: ='Property Tax Impact Static'!M20 -> 0.49282 | N20: Pay 17 NTC Rate
M22: ='Property Tax Impact Static'!M22 -> 0.0012964 | N22: Pay 18 RMV Rate
M23: ='Property Tax Impact Static'!M23 -> 0.51926 | N23: Pay 18 NTC Rate

Sheet Specific LLC Information
A1: =CONCATENATE("Independent School District ",District!A7," - ",District!B7) -> Independent School District 720 - Shakopee Public School District
A2: Pay 2017 versus Pay 2018 - Comparison
A3: LLC Updated 10-02-17 Worksheet Update 10-30-17
C6: (FY18) 2016 Payable 2017 Final Levy | F6: (FY19) 2017 Payable 2018 Proposed Levy | L6: NEED TO UPDATE THE BELOW INFORMATION!!!!
C7: Local Levy | D7: Estimated State Revenue | F7: Local Levy | G7: Estimated State Revenue | I7: Total Levy Change | J7: Total Revenue Change | K7: Notes 1 | L7: ADDITIONAL CALCULATIONS
A9: General RMV - Voter-Approved-JOBZ Exempt | B9: 1st Tier RMV Ref | I9: =F9-C9 -> 0 | J9: =G9-D9 -> 0 | N9: Est. Taxes Payable 16 | O9: Est. Taxes Payable 17 | U9: 590220 | V9: Pay 17 First Tier Op Levy Rev
B10: 2nd Tier RMV Ref | I10: =F10-C10 -> 0 | J10: 0 | L10: OPERATING REFERENDUM | M10: Est. Adj. PU | N10: 9026.4 | O10: 9162 | U10: 0.72519815 | V10: Pay 16 Levy Ratio
B11: 3rd Tier RMV Ref | I11: 0 | J11: 0 | M11: Est. Res. PU | N11: 9740.4 | O11: 10044 | U11: =U9*U10 -> 428026.4521
B12: Unequalized Ref | I12: 0 | J12: 0 | N12: 4197166500 | O12: =N13 -> 967451278
B13: Adjustments | I13: 0 | J13: 0 | M13: Est. RMV | N13: 967451278 | O13: ='RMV History'!C11 -> 4895294300 | U13: =U11-F9 -> 428026.4521
B14: Other Offsets | I14: 0 | J14: 0 | M14: Authority per Pupil Unit | N14: 300 | O14: 300
B15: Total | C15: =SUM(C9:C14) -> 0 | F15: =SUM(F9:F14) -> 0 | I15: 0 | J15: 0 | M15: Est. Revenue | N15: =N10*N14 -> 2707920 | O15: =O10*O14 -> 2748600
M16: Est. Aid | N16: =N15-(MIN(N14,300)*N10*MIN((($N12/N11)/880000),1)+IF(N14>760,(N14-760)*N10*MIN((($N12/N11)/290000),1),0)+MIN(760-300,N14-300)*N10*MIN((($N12/N11)/510000),1)) -> 1381953.465 | O16: =O15-(MIN(O14,300)*O10*MIN((($O12/O11)/880000),1)+IF(O14>760,(O14-760)*O10*MIN((($O12/O11)/290000),1),0)+MIN(760-300,O14-300)*O10*MIN((($O12/O11)/510000),1)) -> 2447749.132
A17: General RMV - Other -JOBZ Exempt | B17: Local Optional | C17: 3340000.59 | F17: 3534835.45 | I17: =F17-C17 -> 194834.86 | J17: =G17-D17 -> 0 | M17: Enter Hold Harmless Aid | N17: 0 | O17: 0
B18: Equity | C18: 1319457.78 | F18: 1387047.75 | I18: =F18-C18 -> 67589.97 | J18: 0 | M18: Levy | N18: =N15-MAX(N16,N17) -> 1325966.535 | O18: =O15-MAX(O16,O17) -> 300850.8679
B19: Transition | C19: 148488.23 | F19: 157150.11 | I19: 8661.88 | J19: 0 | M19: RMV % | N19: =ROUND(N18/N13,7) -> 0.0013706 | O19: =ROUND(O18/O13,7) -> 6.15e-05
B20: 1st Tier Board Approved | C20: 1369586.43 | F20: 1449479.58 | I20: 79893.15 | J20: 0
B21: Adjustments | C21: =-35006.07-23353.23-1708.81-14354.44-56172.82-30032.05-2655.07-23033.98 -> -186316.47 | F21: =354326.16+129846.65+15752.48+145293.48-85018.45-40538.79-3917.75-34862.29 -> 480881.49 | I21: 667197.96 | J21: 0 | L21: LOR | M21: LOR per Pupil Unit | N21: 424 | O21: 424
B22: Other Offsets | I22: 0 | J22: 0 | M22: Est. Revenue | N22: =N10*N21 -> 3827193.6 | O22: =O10*O21 -> 3884688
B23: Total | C23: =SUM(C17:C22) -> 5991216.56 | F23: =SUM(F17:F22) -> 7009394.38 | I23: 1018177.82 | J23: 0 | M23: Est. Aid | N23: =N22-(N22*MIN(((N12/N11)/510000),1)) -> 593568.5431 | O23: =O22-(O22*MIN(((O12/O11)/510000),1)) -> 3151005.152
M24: Levy | N24: =N22-N23 -> 3233625.057 | O24: =O22-O23 -> 733682.8485
B25: Total RMV | C25: =C15+C23 -> 5991216.56 | F25: =F15+F23 -> 7009394.38 | I25: 1018177.82
A27: Gen NTC VA - JOBZ Exempt | B27: Capital Project Referendum | C27: 3011717.06 | F27: 3206596.1 | I27: =F27-C27 -> 194879.04
B28: Other NTC Voter Adj | I28: =F28-C28 -> 0
B29: Other Offsets | I29: =F29-C29 -> 0
B30: Total | C30: =SUM(C27:C29) -> 3011717.06 | F30: =SUM(F27:F29) -> 3206596.1 | I30: =F30-C30 -> 194879.04
A32: Gen NTC Other Gen Ed - JOBZ Exempt | B32: Student Achievement | C32: 74895.22 | F32: 0 | I32: =F32-C32 -> -74895.22
B33: Other Adjustments | I33: 0
B34: Other Offsets | I34: 0
B35: Total | C35: =SUM(C32:C34) -> 74895.22 | F35: =SUM(F32:F34) -> 0 | I35: -74895.22
A37: General NTC Other JOBZ Exempt | B37: Operating Capital | C37: 568523.48 | F37: 520376.76 | I37: -48146.72
B38: Alt Teacher Comp | I38: 0
B39: Achievement & Integration | C39: 394027.71 | F39: 406131.53 | I39: 12103.82
B40: Reemployment Ins | C40: 35000 | F40: 40000 | I40: 5000
B41: Safe Schools | C41: 329832 | F41: 334260 | I41: 4428
B42: Safe Schools Intermediate | I42: 0
B43: Judgment | I43: 0
B44: Ice Arena | I44: 0
B45: Career Technical | C45: 198920.52 | F45: 234803.02 | I45: 35882.5
B46: Annual OPEB | C46: 250000 | F46: 150000 | I46: -100000
B47: LT Fac Equal | C47: 1323400.66 | F47: 1919588.8 | I47: 596188.14
B48: LT Fac Unequal | C48: 38820 | F48: 48535.87 | I48: 9715.87
B49: Disabled Access | I49: 0
B50: Building / Land Lease | C50: 1586818.82 | F50: 1622044.82 | I50: 35226
B51: Coop Building Repair | I51: 0
B52: Other Capital (Memo) | I52: 0
B53: Consolidation / Transition | I53: 0
B54: Reorg Operating Debt | I54: 0
B55: Health Benefits | I55: 0
B56: Health Ins (Mpls) | I56: 0
B57: Additional Retirement | I57: 0
B58: Severance | I58: 0
B59: Adminstrative District | I59: 0
B60: Swimming Pool | I60: 0
B61: Tree Growth | I61: 0
B62: Consolidation / Retirement | I62: 0
B63: Economic Dev Abate | I63: 0
B64: Other General (Memo) | I64: 0
B65: Subtotal | C65: =SUM(C37:C64) -> 4725343.19 | F65: =SUM(F37:F64) -> 5275740.8 | I65: 550397.61
B66: Other Adjustments | C66: =-171718.62+972.19-52.12 -> -170798.55 | F66: =48904.5+98564.14-F67 -> 87655.38 | I66: 258453.93
B67: Abatement Adjustments | C67: =78896.89+11098.31 -> 89995.2 | F67: =36828.52+22984.74 -> 59813.26 | I67: -30181.94
B68: Total | C68: =SUM(C65:C67) -> 4644539.84 | F68: =SUM(F65:F67) -> 5423209.44 | I68: 778669.6
A70: Community Service JOBZ Exempt | B70: Basic Community Educ | C70: 336903.5 | F70: 340047.65 | I70: =F70-C70 -> 3144.15
B71: Early Child Family | C71: 175258.03 | F71: 183863.15 | I71: =F71-C71 -> 8605.12
B72: Home Visitiing | C72: 4167.49 | F72: 3961.31 | I72: -206.18
B73: Adults with Disabilities | I73: 0
B74: School-Age Care | C74: 60000 | F74: 60000 | I74: 0
B75: Other Adjustments | C75: =702.4+3376.29 -> 4078.69 | F75: =-163.7-607.54 -> -771.24 | I75: =F75-C75 -> -4849.93
B76: Abatement Adjustments | C76: =4968.03+667.44 -> 5635.47 | F76: =2353.82+1369.49 -> 3723.31 | I76: -1912.16
B77: Total | C77: =SUM(C70:C76) -> 586043.18 | F77: =SUM(F70:F76) -> 590824.18 | I77: 4781
L78: Debt Aid Calc
A79: Debt Service Voter-Approved JOBZ Non-Exempt | B79: Initial Debt Service | C79: 20155971.88 | F79: 21393904.35 | I79: =F79-C79 -> 1237932.47
B80: Reduction for Debt Excess | C80: -1179816.34 | F80: =-1100000.03 -> -1100000.03 | I80: 79816.31
B81: Other Adjust (Memo) | I81: 0
B82: Abatement Adjustments | C82: =13289.73+15221.64-0.04 -> 28511.33 | F82: =12853.02+34446.09 -> 47299.11 | I82: 18787.78
B83: Other Adjustments | I83: 0
B84: Total | C84: =SUM(C79:C83) -> 19004666.87 | F84: =SUM(F79:F83) -> 20341203.43 | I84: 1336536.56
A86: Debt Service Other JOBZ Non-Exempt | B86: Debt Service-Aid Elig | I86: =F86-C86 -> 0
B87: Debt Service-Aid InElig
B88: LT Facilities Debt Service | I88: 0
B89: LTFM Debt Service Adjust | I89: 0
B90: Reduction for Debt Excess | C90: -0.04 | I90: 0.04
B91: Other Adjust (Memo) | I91: 0
B92: Abatement Adjustments | I92: 0
B93: Other Adjustments | C93: 0.04 | I93: -0.04
B94: Total | C94: =SUM(C86:C93) -> 0 | F94: =SUM(F86:F93) -> 0 | I94: 0
A96: OPEB / Pension Debt Service VA JOBZ Non-Exempt | B96: Initial Debt Service | I96: =F96-C96 -> 0
B97: Reduction for Debt Excess | I97: 0
B98: Other Adjust (Memo) | I98: 0
B99: Abatement Adjustments | I99: 0
B100: Other Adjustments | I100: 0
B101: Total | C101: =SUM(C96:C100) -> 0 | F101: =SUM(F96:F100) -> 0 | I101: 0
A103: OPEB / Pension Debt Service Other JOBZ Non-Exempt | B103: Initial Debt Service | I103: =F103-C103 -> 0
B104: Reduction for Debt Excess | I104: 0
B105: Other Adjust (Memo) | I105: 0
B106: Abatement Adjustments | I106: 0
B107: Other Adjustments | I107: 0
B108: Total | C108: =SUM(C103:C107) -> 0 | F108: =SUM(F103:F107) -> 0 | I108: 0
B110: Total NTC | C110: =C30+C35+C68+C77+C84+C94+C101+C108 -> 27321862.17 | F110: =F30+F35+F68+F77+F84+F94+F101+F108 -> 29561833.15 | I110: =F110-C110 -> 2239970.98
B111: Total NTC JOBZ Exempt | C111: =C110-C112 -> 8317195.3 | F111: =F110-F112 -> 9220629.72 | I111: 903434.42
B112: Total NTC JOBZ Non-Exempt | C112: =C84+C94+C101+C108 -> 19004666.87 | F112: =F84+F94+F101+F108 -> 20341203.43 | I112: 1336536.56
K113: % Change
A114: TOTAL LEVY SUMMARY | B114: RMV | C114: =C25 -> 5991216.56 | F114: =F25 -> 7009394.38 | I114: =F114-C114 -> 1018177.82 | K114: =I114/C114 -> 0.1699450871
B115: NTC | C115: =C110 -> 27321862.17 | F115: =F110 -> 29561833.15 | I115: =F115-C115 -> 2239970.98 | K115: =I115/C115 -> 0.08198456482
B116: Total Spread Levy | C116: =C114+C115 -> 33313078.73 | F116: =F114+F115 -> 36571227.53 | I116: =F116-C116 -> 3258148.8 | K116: =I116/C116 -> 0.09780389337

Sheet Scott Co Prelim Data
A3: School District | B3: Unique Taxing Area | C3: NTC or RMV | D3: Classification Type | E3: Value
A4: 720 | B4: TAG: 0801/JKSN TWP/ISD 720 | C4: Net Tax Capacity | D4: 100 Res 1 unit | E4: 756178
A5: 720 | B5: TAG: 0801/JKSN TWP/ISD 720 | C5: Net Tax Capacity | D5: 140 Res V Land | E5: 26750
A6: 720 | B6: TAG: 0801/JKSN TWP/ISD 720 | C6: Net Tax Capacity | D6: 200 Agricultural | E6: 98925
A7: 720 | B7: TAG: 0801/JKSN TWP/ISD 720 | C7: Net Tax Capacity | D7: 300 Commercial | E7: 157050
A8: 720 | B8: TAG: 0801/JKSN TWP/ISD 720 | C8: Net Tax Capacity | D8: 305 Industrial | E8: 45500
A9: 720 | B9: TAG: 0801/JKSN TWP/ISD 720 | C9: Net Tax Capacity | D9: 320 Q Golf Course | E9: 5815
A10: 720 | B10: TAG: 0801/JKSN TWP/ISD 720 | C10: Net Tax Capacity | D10: 350 MH Park | E10: 12619
A11: 720 | B11: TAG: 0801/JKSN TWP/ISD 720 | C11: Net Tax Capacity | D11: 431 PP Tools & Mach | E11: 204 | I11: School District Number | J11: Fiscal Disparity NTC Levy Adjustments | K11: Fiscal Disparity RMV Levy Adjustments
A12: 720 | B12: TAG: 0801/JKSN TWP/ISD 720 | C12: Net Tax Capacity | D12: 211 Rural Vacant Land | E12: 3980 | I12: ISD 716 | J12: 495,187* | K12: 123,761*
A13: 720 | B13: TAG: 0801/JKSN TWP/ISD 720 | C13: Net Tax Capacity | D13: 459 PP SA Gas Distrib Utility | E13: 63492 | I13: ISD 717 | J13: 495050 | K13: 161752
A14: 720 | B14: TAG: 0801/JKSN TWP/ISD 720 | C14: Net Tax Capacity | D14: 455 PP SA Gas Trans Pipeline | E14: 66 | I14: ISD 720 | J14: 3026162 | K14: 663305
A15: 720 | B15: TAG: 0801/JKSN TWP/ISD 720 | C15: Net Tax Capacity | D15: 453 PP Leased L/B | E15: 3600
A16: 720 | B16: TAG: 0802/JKSN TWP/ISD 720/LOW MN | C16: Net Tax Capacity | D16: 100 Res 1 unit | E16: 38610
A17: 720 | B17: TAG: 0802/JKSN TWP/ISD 720/LOW MN | C17: Net Tax Capacity | D17: 105 Res 2-3 units | E17: 3620
A18: 720 | B18: TAG: 0802/JKSN TWP/ISD 720/LOW MN | C18: Net Tax Capacity | D18: 140 Res V Land | E18: 142
A19: 720 | B19: TAG: 0802/JKSN TWP/ISD 720/LOW MN | C19: Net Tax Capacity | D19: 200 Agricultural | E19: 10469
A20: 720 | B20: TAG: 0802/JKSN TWP/ISD 720/LOW MN | C20: Net Tax Capacity | D20: 300 Commercial | E20: 165280
A21: 720 | B21: TAG: 0802/JKSN TWP/ISD 720/LOW MN | C21: Net Tax Capacity | D21: 305 Industrial | E21: 194704
A22: 720 | B22: TAG: 0802/JKSN TWP/ISD 720/LOW MN | C22: Net Tax Capacity | D22: 350 MH Park | E22: 58146
A23: 720 | B23: TAG: 0802/JKSN TWP/ISD 720/LOW MN | C23: Net Tax Capacity | D23: 355 Pub Util L & S | E23: 16102
A24: 720 | B24: TAG: 0802/JKSN TWP/ISD 720/LOW MN | C24: Net Tax Capacity | D24: 360 Pub Util RR | E24: 15638
A25: 720 | B25: TAG: 0802/JKSN TWP/ISD 720/LOW MN | C25: Net Tax Capacity | D25: 211 Rural Vacant Land | E25: 7254
A26: 720 | B26: TAG: 0802/JKSN TWP/ISD 720/LOW MN | C26: Net Tax Capacity | D26: 443 PP SA Elec Trans >= 69KV | E26: 89054
A27: 720 | B27: TAG: 0802/JKSN TWP/ISD 720/LOW MN | C27: Net Tax Capacity | D27: 459 PP SA Gas Distrib Utility | E27: 9918
A28: 720 | B28: TAG: 0802/JKSN TWP/ISD 720/LOW MN | C28: Net Tax Capacity | D28: 365 Pub Util Mach | E28: 266968
A29: 720 | B29: TAG: 0904/LSVL TWP/ISD 720 | C29: Net Tax Capacity | D29: 100 Res 1 unit | E29: 1605084
A30: 720 | B30: TAG: 0904/LSVL TWP/ISD 720 | C30: Net Tax Capacity | D30: 105 Res 2-3 units | E30: 4495
A31: 720 | B31: TAG: 0904/LSVL TWP/ISD 720 | C31: Net Tax Capacity | D31: 110 Apt 4+ units | E31: 3574
A32: 720 | B32: TAG: 0904/LSVL TWP/ISD 720 | C32: Net Tax Capacity | D32: 140 Res V Land | E32: 63201
A33: 720 | B33: TAG: 0904/LSVL TWP/ISD 720 | C33: Net Tax Capacity | D33: 200 Agricultural | E33: 142318
A34: 720 | B34: TAG: 0904/LSVL TWP/ISD 720 | C34: Net Tax Capacity | D34: 431 PP Tools & Mach | E34: 1488
A35: 720 | B35: TAG: 0904/LSVL TWP/ISD 720 | C35: Net Tax Capacity | D35: 300 Commercial | E35: 156523
A36: 720 | B36: TAG: 0904/LSVL TWP/ISD 720 | C36: Net Tax Capacity | D36: 305 Industrial | E36: 211579
A37: 720 | B37: TAG: 0904/LSVL TWP/ISD 720 | C37: Net Tax Capacity | D37: 455 PP SA Gas Trans Pipeline | E37: 66
A38: 720 | B38: TAG: 0904/LSVL TWP/ISD 720 | C38: Net Tax Capacity | D38: 451 PP Urban Bldg | E38: 1800
A39: 720 | B39: TAG: 0904/LSVL TWP/ISD 720 | C39: Net Tax Capacity | D39: 252 Managed Forest Land | E39: 827
A40: 720 | B40: TAG: 0904/LSVL TWP/ISD 720 | C40: Net Tax Capacity | D40: 211 Rural Vacant Land | E40: 23706
A41: 720 | B41: TAG: 0904/LSVL TWP/ISD 720 | C41: Net Tax Capacity | D41: 459 PP SA Gas Distrib Utility | E41: 32764
A42: 720 | B42: TAG: 0906/LSVL TWP/ISD 720/LOW MN | C42: Net Tax Capacity | D42: 100 Res 1 unit | E42: 1373
A43: 720 | B43: TAG: 0906/LSVL TWP/ISD 720/LOW MN | C43: Net Tax Capacity | D43: 200 Agricultural | E43: 25709
A44: 720 | B44: TAG: 0906/LSVL TWP/ISD 720/LOW MN | C44: Net Tax Capacity | D44: 300 Commercial | E44: 204212
A45: 720 | B45: TAG: 0906/LSVL TWP/ISD 720/LOW MN | C45: Net Tax Capacity | D45: 305 Industrial | E45: 45821
A46: 720 | B46: TAG: 0906/LSVL TWP/ISD 720/LOW MN | C46: Net Tax Capacity | D46: 350 MH Park | E46: 5104
A47: 720 | B47: TAG: 0906/LSVL TWP/ISD 720/LOW MN | C47: Net Tax Capacity | D47: 355 Pub Util L & S | E47: 180
A48: 720 | B48: TAG: 0906/LSVL TWP/ISD 720/LOW MN | C48: Net Tax Capacity | D48: 360 Pub Util RR | E48: 26778
A49: 720 | B49: TAG: 0906/LSVL TWP/ISD 720/LOW MN | C49: Net Tax Capacity | D49: 211 Rural Vacant Land | E49: 17939
A50: 720 | B50: TAG: 0906/LSVL TWP/ISD 720/LOW MN | C50: Net Tax Capacity | D50: 443 PP SA Elec Trans >= 69KV | E50: 22194
A51: 720 | B51: TAG: 0906/LSVL TWP/ISD 720/LOW MN | C51: Net Tax Capacity | D51: 459 PP SA Gas Distrib Utility | E51: 15716
A52: 720 | B52: TAG: 0906/LSVL TWP/ISD 720/LOW MN | C52: Net Tax Capacity | D52: 365 Pub Util Mach | E52: 8952
A53: 720 | B53: TAG: 1204/SC TWP/ISD 720/JDN FIRE | C53: Net Tax Capacity | D53: 100 Res 1 unit | E53: 111583
A54: 720 | B54: TAG: 1204/SC TWP/ISD 720/JDN FIRE | C54: Net Tax Capacity | D54: 105 Res 2-3 units | E54: 1843
A55: 720 | B55: TAG: 1204/SC TWP/ISD 720/JDN FIRE | C55: Net Tax Capacity | D55: 200 Agricultural | E55: 158749
A56: 720 | B56: TAG: 1204/SC TWP/ISD 720/JDN FIRE | C56: Net Tax Capacity | D56: 300 Commercial | E56: 929
A57: 720 | B57: TAG: 1204/SC TWP/ISD 720/JDN FIRE | C57: Net Tax Capacity | D57: 455 PP SA Gas Trans Pipeline | E57: 36
A58: 720 | B58: TAG: 1204/SC TWP/ISD 720/JDN FIRE | C58: Net Tax Capacity | D58: 431 PP Tools & Mach | E58: 6548
A59: 720 | B59: TAG: 1204/SC TWP/ISD 720/JDN FIRE | C59: Net Tax Capacity | D59: 252 Managed Forest Land | E59: 1697
A60: 720 | B60: TAG: 1204/SC TWP/ISD 720/JDN FIRE | C60: Net Tax Capacity | D60: 211 Rural Vacant Land | E60: 2682
A61: 720 | B61: TAG: 1204/SC TWP/ISD 720/JDN FIRE | C61: Net Tax Capacity | D61: 459 PP SA Gas Distrib Utility | E61: 17452
A62: 720 | B62: TAG: 1205/SC TWP/ISD 720/JDN FIRE | C62: Net Tax Capacity | D62: 200 Agricultural | E62: 3672
A63: 720 | B63: TAG: 2007/PL CITY/ISD 720/PLSPL WMO | C63: Net Tax Capacity | D63: 100 Res 1 unit | E63: 279773
A64: 720 | B64: TAG: 2007/PL CITY/ISD 720/PLSPL WMO | C64: Net Tax Capacity | D64: 140 Res V Land | E64: 75184
A65: 720 | B65: TAG: 2007/PL CITY/ISD 720/PLSPL WMO | C65: Net Tax Capacity | D65: 200 Agricultural | E65: 31188
A66: 720 | B66: TAG: 2007/PL CITY/ISD 720/PLSPL WMO | C66: Net Tax Capacity | D66: 427 PP Elec Dist | E66: 138
A67: 720 | B67: TAG: 2007/PL CITY/ISD 720/PLSPL WMO | C67: Net Tax Capacity | D67: 431 PP Tools & Mach | E67: 14228
A68: 720 | B68: TAG: 2007/PL CITY/ISD 720/PLSPL WMO | C68: Net Tax Capacity | D68: 211 Rural Vacant Land | E68: 5155
A69: 720 | B69: TAG: 2007/PL CITY/ISD 720/PLSPL WMO | C69: Net Tax Capacity | D69: 443 PP SA Elec Trans >= 69KV | E69: 3972
A70: 720 | B70: TAG: 2007/PL CITY/ISD 720/PLSPL WMO | C70: Net Tax Capacity | D70: 459 PP SA Gas Distrib Utility | E70: 19822
A71: 720 | B71: TAG: 2007/PL CITY/ISD 720/PLSPL WMO | C71: Net Tax Capacity | D71: 451 PP Urban Bldg | E71: 1918
A72: 720 | B72: TAG: 2010/PL CITY/ISD 720 | C72: Net Tax Capacity | D72: 100 Res 1 unit | E72: 278907
A73: 720 | B73: TAG: 2010/PL CITY/ISD 720 | C73: Net Tax Capacity | D73: 140 Res V Land | E73: 39992
A74: 720 | B74: TAG: 2010/PL CITY/ISD 720 | C74: Net Tax Capacity | D74: 211 Rural Vacant Land | E74: 53564
A75: 720 | B75: TAG: 2010/PL CITY/ISD 720 | C75: Net Tax Capacity | D75: 200 Agricultural | E75: 29309
A76: 720 | B76: TAG: 2011/PL CITY/ISD 720 | C76: Net Tax Capacity | D76: 100 Res 1 unit | E76: 37110
A77: 720 | B77: TAG: 2011/PL CITY/ISD 720 | C77: Net Tax Capacity | D77: 140 Res V Land | E77: 1336
A78: 720 | B78: TAG: 2011/PL CITY/ISD 720 | C78: Net Tax Capacity | D78: 200 Agricultural | E78: 570
A79: 720 | B79: TAG: 2109/SVG CITY/ISD 720/LOW MN | C79: Net Tax Capacity | D79: 100 Res 1 unit | E79: 1022283
A80: 720 | B80: TAG: 2109/SVG CITY/ISD 720/LOW MN | C80: Net Tax Capacity | D80: 140 Res V Land | E80: 19
A81: 720 | B81: TAG: 2109/SVG CITY/ISD 720/LOW MN | C81: Net Tax Capacity | D81: 305 Industrial | E81: 279250
A82: 720 | B82: TAG: 2109/SVG CITY/ISD 720/LOW MN | C82: Net Tax Capacity | D82: 443 PP SA Elec Trans >= 69KV | E82: 1356
A83: 720 | B83: TAG: 2109/SVG CITY/ISD 720/LOW MN | C83: Net Tax Capacity | D83: 459 PP SA Gas Distrib Utility | E83: 9368
A84: 720 | B84: TAG: 2109/SVG CITY/ISD 720/LOW MN | C84: Net Tax Capacity | D84: 427 PP Elec Dist | E84: 68
A85: 720 | B85: TAG: 2110/SVG CITY/ISD 720/PLSPL WM | C85: Net Tax Capacity | D85: 100 Res 1 unit | E85: 926174
A86: 720 | B86: TAG: 2110/SVG CITY/ISD 720/PLSPL WM | C86: Net Tax Capacity | D86: 140 Res V Land | E86: 375
A87: 720 | B87: TAG: 2110/SVG CITY/ISD 720/PLSPL WM | C87: Net Tax Capacity | D87: 453 PP Leased L/B | E87: 5700
A88: 720 | B88: TAG: 2204/SHK CITY/ISD 720/LOW MN | C88: Net Tax Capacity | D88: 100 Res 1 unit | E88: 15842510
A89: 720 | B89: TAG: 2204/SHK CITY/ISD 720/LOW MN | C89: Net Tax Capacity | D89: 105 Res 2-3 units | E89: 97186
A90: 720 | B90: TAG: 2204/SHK CITY/ISD 720/LOW MN | C90: Net Tax Capacity | D90: 110 Apt 4+ units | E90: 2215628
A91: 720 | B91: TAG: 2204/SHK CITY/ISD 720/LOW MN | C91: Net Tax Capacity | D91: 140 Res V Land | E91: 68170
A92: 720 | B92: TAG: 2204/SHK CITY/ISD 720/LOW MN | C92: Net Tax Capacity | D92: 200 Agricultural | E92: 155202
A93: 720 | B93: TAG: 2204/SHK CITY/ISD 720/LOW MN | C93: Net Tax Capacity | D93: 300 Commercial | E93: 7907318
A94: 720 | B94: TAG: 2204/SHK CITY/ISD 720/LOW MN | C94: Net Tax Capacity | D94: 305 Industrial | E94: 12127434
A95: 720 | B95: TAG: 2204/SHK CITY/ISD 720/LOW MN | C95: Net Tax Capacity | D95: 335 Comm Services-Non Revenue | E95: 959
A96: 720 | B96: TAG: 2204/SHK CITY/ISD 720/LOW MN | C96: Net Tax Capacity | D96: 350 MH Park | E96: 7670
A97: 720 | B97: TAG: 2204/SHK CITY/ISD 720/LOW MN | C97: Net Tax Capacity | D97: 355 Pub Util L & S | E97: 16574
A98: 720 | B98: TAG: 2204/SHK CITY/ISD 720/LOW MN | C98: Net Tax Capacity | D98: 360 Pub Util RR | E98: 206185
A99: 720 | B99: TAG: 2204/SHK CITY/ISD 720/LOW MN | C99: Net Tax Capacity | D99: 365 Pub Util Mach | E99: 33424
A100: 720 | B100: TAG: 2204/SHK CITY/ISD 720/LOW MN | C100: Net Tax Capacity | D100: 370 Pub Util El Gen Mach | E100: 236522
A101: 720 | B101: TAG: 2204/SHK CITY/ISD 720/LOW MN | C101: Net Tax Capacity | D101: 431 PP Tools & Mach | E101: 2954
A102: 720 | B102: TAG: 2204/SHK CITY/ISD 720/LOW MN | C102: Net Tax Capacity | D102: 427 PP Elec Dist | E102: 21442
A103: 720 | B103: TAG: 2204/SHK CITY/ISD 720/LOW MN | C103: Net Tax Capacity | D103: 455 PP SA Gas Trans Pipeline | E103: 33
A104: 720 | B104: TAG: 2204/SHK CITY/ISD 720/LOW MN | C104: Net Tax Capacity | D104: 438 PP Comm Bldg | E104: 49000
A105: 720 | B105: TAG: 2204/SHK CITY/ISD 720/LOW MN | C105: Net Tax Capacity | D105: 451 PP Urban Bldg | E105: 2120
A106: 720 | B106: TAG: 2204/SHK CITY/ISD 720/LOW MN | C106: Net Tax Capacity | D106: 336 Comm Services-Donations | E106: 1695
A107: 720 | B107: TAG: 2204/SHK CITY/ISD 720/LOW MN | C107: Net Tax Capacity | D107: 453 PP Leased L/B | E107: 2850
A108: 720 | B108: TAG: 2204/SHK CITY/ISD 720/LOW MN | C108: Net Tax Capacity | D108: 211 Rural Vacant Land | E108: 9980
A109: 720 | B109: TAG: 2204/SHK CITY/ISD 720/LOW MN | C109: Net Tax Capacity | D109: 443 PP SA Elec Trans >= 69KV | E109: 65096
A110: 720 | B110: TAG: 2204/SHK CITY/ISD 720/LOW MN | C110: Net Tax Capacity | D110: 459 PP SA Gas Distrib Utility | E110: 348340
A111: 720 | B111: TAG: 2206/SHK CITY/ISD 720 | C111: Net Tax Capacity | D111: 100 Res 1 unit | E111: 10778616
A112: 720 | B112: TAG: 2206/SHK CITY/ISD 720 | C112: Net Tax Capacity | D112: 105 Res 2-3 units | E112: 14401
A113: 720 | B113: TAG: 2206/SHK CITY/ISD 720 | C113: Net Tax Capacity | D113: 110 Apt 4+ units | E113: 143125
A114: 720 | B114: TAG: 2206/SHK CITY/ISD 720 | C114: Net Tax Capacity | D114: 140 Res V Land | E114: 97986
A115: 720 | B115: TAG: 2206/SHK CITY/ISD 720 | C115: Net Tax Capacity | D115: 200 Agricultural | E115: 313649
A116: 720 | B116: TAG: 2206/SHK CITY/ISD 720 | C116: Net Tax Capacity | D116: 431 PP Tools & Mach | E116: 2
A117: 720 | B117: TAG: 2206/SHK CITY/ISD 720 | C117: Net Tax Capacity | D117: 211 Rural Vacant Land | E117: 51915
A118: 720 | B118: TAG: 2206/SHK CITY/ISD 720 | C118: Net Tax Capacity | D118: 300 Commercial | E118: 1213262
A119: 720 | B119: TAG: 2206/SHK CITY/ISD 720 | C119: Net Tax Capacity | D119: 305 Industrial | E119: 73938
A120: 720 | B120: TAG: 2206/SHK CITY/ISD 720 | C120: Net Tax Capacity | D120: 320 Q Golf Course | E120: 23155
A121: 720 | B121: TAG: 2208/SHK CITY/ISD 720/PLSPL WM | C121: Net Tax Capacity | D121: 100 Res 1 unit | E121: 794236
A122: 720 | B122: TAG: 2208/SHK CITY/ISD 720/PLSPL WM | C122: Net Tax Capacity | D122: 140 Res V Land | E122: 1876
A123: 720 | B123: TAG: 2208/SHK CITY/ISD 720/PLSPL WM | C123: Net Tax Capacity | D123: 200 Agricultural | E123: 47098
A124: 720 | B124: TAG: 2208/SHK CITY/ISD 720/PLSPL WM | C124: Net Tax Capacity | D124: 211 Rural Vacant Land | E124: 181
E125: =SUM(E4:E124) -> 61065169
A128: 720 | B128: TAG: 0801/JKSN TWP/ISD 720 | C128: RMV | D128: 453 PP Leased L/B | E128: 240000
A129: 720 | B129: TAG: 0801/JKSN TWP/ISD 720 | C129: RMV | D129: 455 PP SA Gas Trans Pipeline | E129: 4400
A130: 720 | B130: TAG: 0801/JKSN TWP/ISD 720 | C130: RMV | D130: 459 PP SA Gas Distrib Utility | E130: 3174600
A131: 720 | B131: TAG: 0801/JKSN TWP/ISD 720 | C131: RMV | D131: 431 PP Tools & Mach | E131: 10200
A132: 720 | B132: TAG: 0801/JKSN TWP/ISD 720 | C132: RMV | D132: 350 MH Park | E132: 1009500
A133: 720 | B133: TAG: 0801/JKSN TWP/ISD 720 | C133: RMV | D133: 320 Q Golf Course | E133: 465000
A134: 720 | B134: TAG: 0801/JKSN TWP/ISD 720 | C134: RMV | D134: 305 Industrial | E134: 2350000
A135: 720 | B135: TAG: 0801/JKSN TWP/ISD 720 | C135: RMV | D135: 300 Commercial | E135: 8342100
A136: 720 | B136: TAG: 0801/JKSN TWP/ISD 720 | C136: RMV | D136: 200 Agricultural | E136: 2467500
A137: 720 | B137: TAG: 0801/JKSN TWP/ISD 720 | C137: RMV | D137: 140 Res V Land | E137: 2139800
A138: 720 | B138: TAG: 0801/JKSN TWP/ISD 720 | C138: RMV | D138: 100 Res 1 unit | E138: 75717300
A139: 720 | B139: TAG: 0802/JKSN TWP/ISD 720/LOW MN | C139: RMV | D139: 365 Pub Util Mach | E139: 13348400
A140: 720 | B140: TAG: 0802/JKSN TWP/ISD 720/LOW MN | C140: RMV | D140: 459 PP SA Gas Distrib Utility | E140: 495900
A141: 720 | B141: TAG: 0802/JKSN TWP/ISD 720/LOW MN | C141: RMV | D141: 443 PP SA Elec Trans >= 69KV | E141: 4452700
A142: 720 | B142: TAG: 0802/JKSN TWP/ISD 720/LOW MN | C142: RMV | D142: 360 Pub Util RR | E142: 781900
A143: 720 | B143: TAG: 0802/JKSN TWP/ISD 720/LOW MN | C143: RMV | D143: 355 Pub Util L & S | E143: 805100
A144: 720 | B144: TAG: 0802/JKSN TWP/ISD 720/LOW MN | C144: RMV | D144: 350 MH Park | E144: 4651600
A145: 720 | B145: TAG: 0802/JKSN TWP/ISD 720/LOW MN | C145: RMV | D145: 305 Industrial | E145: 10544700
A146: 720 | B146: TAG: 0802/JKSN TWP/ISD 720/LOW MN | C146: RMV | D146: 300 Commercial | E146: 8680700
A147: 720 | B147: TAG: 0802/JKSN TWP/ISD 720/LOW MN | C147: RMV | D147: 200 Agricultural | E147: 153700
A148: 720 | B148: TAG: 0802/JKSN TWP/ISD 720/LOW MN | C148: RMV | D148: 140 Res V Land | E148: 11300
A149: 720 | B149: TAG: 0802/JKSN TWP/ISD 720/LOW MN | C149: RMV | D149: 105 Res 2-3 units | E149: 289600
A150: 720 | B150: TAG: 0802/JKSN TWP/ISD 720/LOW MN | C150: RMV | D150: 100 Res 1 unit | E150: 3942900
A151: 720 | B151: TAG: 0904/LSVL TWP/ISD 720 | C151: RMV | D151: 459 PP SA Gas Distrib Utility | E151: 1638200
A152: 720 | B152: TAG: 0904/LSVL TWP/ISD 720 | C152: RMV | D152: 451 PP Urban Bldg | E152: 90000
A153: 720 | B153: TAG: 0904/LSVL TWP/ISD 720 | C153: RMV | D153: 455 PP SA Gas Trans Pipeline | E153: 4400
A154: 720 | B154: TAG: 0904/LSVL TWP/ISD 720 | C154: RMV | D154: 305 Industrial | E154: 10890200
A155: 720 | B155: TAG: 0904/LSVL TWP/ISD 720 | C155: RMV | D155: 300 Commercial | E155: 8373700
A156: 720 | B156: TAG: 0904/LSVL TWP/ISD 720 | C156: RMV | D156: 431 PP Tools & Mach | E156: 74400
A157: 720 | B157: TAG: 0904/LSVL TWP/ISD 720 | C157: RMV | D157: 200 Agricultural | E157: 1896600
A158: 720 | B158: TAG: 0904/LSVL TWP/ISD 720 | C158: RMV | D158: 140 Res V Land | E158: 5056100
A159: 720 | B159: TAG: 0904/LSVL TWP/ISD 720 | C159: RMV | D159: 110 Apt 4+ units | E159: 323100
A160: 720 | B160: TAG: 0904/LSVL TWP/ISD 720 | C160: RMV | D160: 105 Res 2-3 units | E160: 449500
A161: 720 | B161: TAG: 0904/LSVL TWP/ISD 720 | C161: RMV | D161: 100 Res 1 unit | E161: 158839700
A162: 720 | B162: TAG: 0906/LSVL TWP/ISD 720/LOW MN | C162: RMV | D162: 365 Pub Util Mach | E162: 447600
A163: 720 | B163: TAG: 0906/LSVL TWP/ISD 720/LOW MN | C163: RMV | D163: 459 PP SA Gas Distrib Utility | E163: 785800
A164: 720 | B164: TAG: 0906/LSVL TWP/ISD 720/LOW MN | C164: RMV | D164: 443 PP SA Elec Trans >= 69KV | E164: 1109700
A165: 720 | B165: TAG: 0906/LSVL TWP/ISD 720/LOW MN | C165: RMV | D165: 360 Pub Util RR | E165: 1338900
A166: 720 | B166: TAG: 0906/LSVL TWP/ISD 720/LOW MN | C166: RMV | D166: 355 Pub Util L & S | E166: 9000
A167: 720 | B167: TAG: 0906/LSVL TWP/ISD 720/LOW MN | C167: RMV | D167: 350 MH Park | E167: 408300
A168: 720 | B168: TAG: 0906/LSVL TWP/ISD 720/LOW MN | C168: RMV | D168: 305 Industrial | E168: 2464900
A169: 720 | B169: TAG: 0906/LSVL TWP/ISD 720/LOW MN | C169: RMV | D169: 300 Commercial | E169: 10549500
A170: 720 | B170: TAG: 0906/LSVL TWP/ISD 720/LOW MN | C170: RMV | D170: 200 Agricultural | E170: 272400
A171: 720 | B171: TAG: 0906/LSVL TWP/ISD 720/LOW MN | C171: RMV | D171: 100 Res 1 unit | E171: 137300
A172: 720 | B172: TAG: 1204/SC TWP/ISD 720/JDN FIRE | C172: RMV | D172: 459 PP SA Gas Distrib Utility | E172: 872600
A173: 720 | B173: TAG: 1204/SC TWP/ISD 720/JDN FIRE | C173: RMV | D173: 431 PP Tools & Mach | E173: 327400
A174: 720 | B174: TAG: 1204/SC TWP/ISD 720/JDN FIRE | C174: RMV | D174: 455 PP SA Gas Trans Pipeline | E174: 2400
A175: 720 | B175: TAG: 1204/SC TWP/ISD 720/JDN FIRE | C175: RMV | D175: 300 Commercial | E175: 61900
A176: 720 | B176: TAG: 1204/SC TWP/ISD 720/JDN FIRE | C176: RMV | D176: 200 Agricultural | E176: 4497600
A177: 720 | B177: TAG: 1204/SC TWP/ISD 720/JDN FIRE | C177: RMV | D177: 105 Res 2-3 units | E177: 147400
A178: 720 | B178: TAG: 1204/SC TWP/ISD 720/JDN FIRE | C178: RMV | D178: 100 Res 1 unit | E178: 11333400
A179: 720 | B179: TAG: 2007/PL CITY/ISD 720/PLSPL WMO | C179: RMV | D179: 451 PP Urban Bldg | E179: 95900
A180: 720 | B180: TAG: 2007/PL CITY/ISD 720/PLSPL WMO | C180: RMV | D180: 459 PP SA Gas Distrib Utility | E180: 991100
A181: 720 | B181: TAG: 2007/PL CITY/ISD 720/PLSPL WMO | C181: RMV | D181: 443 PP SA Elec Trans >= 69KV | E181: 198600
A182: 720 | B182: TAG: 2007/PL CITY/ISD 720/PLSPL WMO | C182: RMV | D182: 431 PP Tools & Mach | E182: 711400
A183: 720 | B183: TAG: 2007/PL CITY/ISD 720/PLSPL WMO | C183: RMV | D183: 427 PP Elec Dist | E183: 6900
A184: 720 | B184: TAG: 2007/PL CITY/ISD 720/PLSPL WMO | C184: RMV | D184: 140 Res V Land | E184: 6013600
A185: 720 | B185: TAG: 2007/PL CITY/ISD 720/PLSPL WMO | C185: RMV | D185: 100 Res 1 unit | E185: 27927900
A186: 720 | B186: TAG: 2010/PL CITY/ISD 720 | C186: RMV | D186: 200 Agricultural | E186: 203300
A187: 720 | B187: TAG: 2010/PL CITY/ISD 720 | C187: RMV | D187: 140 Res V Land | E187: 3199400
A188: 720 | B188: TAG: 2010/PL CITY/ISD 720 | C188: RMV | D188: 100 Res 1 unit | E188: 29348900
A189: 720 | B189: TAG: 2011/PL CITY/ISD 720 | C189: RMV | D189: 140 Res V Land | E189: 106900
A190: 720 | B190: TAG: 2011/PL CITY/ISD 720 | C190: RMV | D190: 100 Res 1 unit | E190: 3710700
A191: 720 | B191: TAG: 2109/SVG CITY/ISD 720/LOW MN | C191: RMV | D191: 427 PP Elec Dist | E191: 3400
A192: 720 | B192: TAG: 2109/SVG CITY/ISD 720/LOW MN | C192: RMV | D192: 459 PP SA Gas Distrib Utility | E192: 468400
A193: 720 | B193: TAG: 2109/SVG CITY/ISD 720/LOW MN | C193: RMV | D193: 443 PP SA Elec Trans >= 69KV | E193: 67800
A194: 720 | B194: TAG: 2109/SVG CITY/ISD 720/LOW MN | C194: RMV | D194: 305 Industrial | E194: 14000000
A195: 720 | B195: TAG: 2109/SVG CITY/ISD 720/LOW MN | C195: RMV | D195: 140 Res V Land | E195: 1500
A196: 720 | B196: TAG: 2109/SVG CITY/ISD 720/LOW MN | C196: RMV | D196: 100 Res 1 unit | E196: 105513100
A197: 720 | B197: TAG: 2110/SVG CITY/ISD 720/PLSPL WM | C197: RMV | D197: 453 PP Leased L/B | E197: 360000
A198: 720 | B198: TAG: 2110/SVG CITY/ISD 720/PLSPL WM | C198: RMV | D198: 140 Res V Land | E198: 30000
A199: 720 | B199: TAG: 2110/SVG CITY/ISD 720/PLSPL WM | C199: RMV | D199: 100 Res 1 unit | E199: 93694500
A200: 720 | B200: TAG: 2204/SHK CITY/ISD 720/LOW MN | C200: RMV | D200: 459 PP SA Gas Distrib Utility | E200: 17417000
A201: 720 | B201: TAG: 2204/SHK CITY/ISD 720/LOW MN | C201: RMV | D201: 443 PP SA Elec Trans >= 69KV | E201: 3254800
A202: 720 | B202: TAG: 2204/SHK CITY/ISD 720/LOW MN | C202: RMV | D202: 453 PP Leased L/B | E202: 180000
A203: 720 | B203: TAG: 2204/SHK CITY/ISD 720/LOW MN | C203: RMV | D203: 336 Comm Services-Donations | E203: 113000
A204: 720 | B204: TAG: 2204/SHK CITY/ISD 720/LOW MN | C204: RMV | D204: 451 PP Urban Bldg | E204: 141000
... 30 more rows

Sheet 720
A1: WHAT IF TAX COMPARISON PAY 2018 vs Pay 2017- ISD 720
A3: FISCAL YEAR 2017 | I3: MARKET VALUE TAX
A5: 57005238 | B5: TAX CAPACITY | E5: 27321862 | F5: FINAL CERTIFIED LEVY | I5: 4606879600 | J5: Referendum Market Value
A6: -827765 | B6: TIF (-) | I6: 5991217 | J6: CERTIFIED LEVY
A7: -7230486 | B7: FISCAL DISPARITY (-) | E7: -3200015 | F7: FISCAL DISPARITY (-) | I7: -703983 | J7: FISCAL DISPARITY (-)
A8: =SUM(A5:A7) -> 48946987 | B8: NET TAX CAPACITY | E8: =SUM(E5:E7) -> 24121847 | F8: TAX LEVY OR SPREAD LEVY | I8: =I7+I6 -> 5287234 | J8: Tax Levy or Spread Levy
D10: Tax Rate | E10: =E8/A8 -> 0.4928157682 | I10: =I8/I5 -> 0.001147682262 | J10: Tax Rate
A12: FISCAL YEAR 2018 | I12: MARKET VALUE TAX
A14: 61060558 | B14: TAX CAPACITY | E14: 29561834 | F14: PROPOSED LEVY OR CERTIFIED LEVY
A15: -1334699 | B15: TIF (-) | I15: 4895294300 | J15: Referendum Market Value | S15: =(I15-I5)/I5 -> 0.06260521764
A16: -8622977 | B16: FISCAL DISPARITY (-) | E16: -3026162 | F16: FISCAL DISPARITY (-) | I16: 7009394 | J16: CERTIFIED LEVY
A17: =SUM(A14:A16) -> 51102882 | B17: NET TAX CAPACITY | E17: =SUM(E14:E16) -> 26535672 | F17: TAX LEVY OR SPREAD LEVY | I17: -663305 | J17: FISCAL DISPARITY (-)
I18: =I16+I17 -> 6346089 | J18: Tax Levy or Spread Levy | S18: =(A17-A8)/A8 -> 0.04404550989
D21: Tax Rate | E21: =E17/A17 -> 0.5192597944 | I21: =I18/I15 -> 0.001296365164 | J21: Tax Rate
A23: RESIDENTIAL IMPACTS
B24: All townships and cities that fall within the boundaries of ISD 720 are shown below. To gauge the impact of the levy, input the proposed Levy Amounts in the red highlighted fields in the Fiscal Year 2018 section above. ***Fiscal Year 2018 tax capacity and values are current as of 10/27/17.
R26: Pay 2017 | S26: Pay 2017 | T26: Pay 2017 | U26: Pay 2018 | V26: Pay 2018 | W26: Pay 2018 | Z26: Median & Average Values
E27: Average | F27: Average | G27: Value | H27: Taxable | I27: Value | J27: Taxable | L27: Net Tax Capacity | O27: Net Tax Capacity | R27: Net | S27: MV Tax | T27: Net | U27: Net | V27: MV Tax | W27: Net | X27: Net | Y27: Net | Z27: 2017 | AA27: 2018 | AB27: 2018 | AC27: 2018
B28: % Value Range | D28: # of affected | E28: Market Value | F28: Market Value | G28: Exclusion | H28: Market Value | I28: Exclusion | J28: Market Value | K28: Taxable % | L28: 2017 | M28: 2017 | N28: Total | O28: 2018 | P28: 2018 | Q28: Total | R28: Payable | S28: Payable | T28: Payable | U28: Payable | V28: Payable | W28: Payable | X28: Inc/Dec | Y28: Difference | Z28: Median | AA28: Median | AB28: Average | AC28: Value
B29: Inc/Dec | D29: Properties | E29: 2017 | F29: 2018 | G29: 2017 | H29: 2017 | I29: 2018 | J29: 2018 | K29: Chg 17-18 | L29: 0.01 | M29: 0.0125 | N29: 2017 | O29: 0.01 | P29: 0.0125 | Q29: 2018 | R29: 2017 | S29: 2017 | T29: 2017 | U29: 2018 | V29: 2018 | W29: 2018 | X29: 17 vs 18 | Y29: % Change | Z29: Values | AA29: Values | AB29: Values | AC29: % Change
A30: Jackson | B30: +15.01+% | C30: A | D30: 9 | E30: 359300 | F30: =E30*1.15 -> 413195 | G30: =IF(E30<413800,(30400-((E30-76000)*9%)),0) -> 4903 | H30: =E30-G30 -> 354397 | I30: =IF(F30<413800,(30400-((F30-76000)*9%)),0) -> 52.45 | J30: =F30-I30 -> 413142.55 | K30: =((J30-H30)/H30) -> 0.1657619844 | L30: =IF(H30>500000,(500000*L$29),(H30*L$29)) -> 3543.97 | M30: =IF(E30<500000,0,(E30-500000)*M$29) -> 0 | N30: =SUM(L30:M30) -> 3543.97 | O30: =IF(J30>500000,(500000*O$29),(J30*O$29)) -> 4131.4255 | P30: =IF(J30<500000,0,(J30-500000)*P$29) -> 0 | Q30: =SUM(O30:P30) -> 4131.4255 | R30: =N30*$E$10 -> 1746.524298 | S30: =E30*I10 -> 412.3622367 | T30: =SUM(R30:S30) -> 2158.886535 | U30: =Q30*$E$21 -> 2145.283156 | V30: =F30*I21 -> 535.6516041 | W30: =SUM(U30:V30) -> 2680.93476 | X30: =U30-R30 -> 398.7588576 | Y30: =X30/R30 -> 0.2283156656 | Z30: 328000 | AA30: 321000 | AB30: 347400 | AC30: =((AA30-Z30)/Z30) -> -0.02134146341
A31: =SUM(D30:D38) -> 225 | B31: +10.01-15.00% | C31: B | D31: 1 | E31: =E30 -> 359300 | F31: =E31*1.125 -> 404212.5 | G31: 4903 | H31: 354397 | I31: 860.875 | J31: 403351.625 | K31: 0.138134987 | L31: 3543.97 | M31: 0 | N31: 3543.97 | O31: 4033.51625 | P31: 0 | Q31: 4033.51625 | R31: 1746.524298 | S31: =E31*$I$10 -> 412.3622367 | T31: =SUM(R31:S31) -> 2158.886535 | U31: 2094.442819 | V31: =F31*$I$21 -> 524.007004 | W31: =SUM(U31:V31) -> 2618.449823 | X31: =U31-R31 -> 347.9185206 | Y31: 0.1992062297
B32: +5.01-10.00% | C32: C | D32: 13 | E32: =E31 -> 359300 | F32: =E32*1.075 -> 386247.5 | G32: 4903 | H32: 354397 | I32: 2477.725 | J32: 383769.775 | K32: 0.08288099222 | L32: 3543.97 | M32: 0 | N32: 3543.97 | O32: 3837.69775 | P32: 0 | Q32: 3837.69775 | R32: 1746.524298 | S32: =E32*$I$10 -> 412.3622367 | T32: 2158.886535 | U32: 1992.762145 | V32: =F32*$I$21 -> 500.7178038 | W32: 2493.479948 | X32: 246.2378465 | Y32: 0.140987358
B33: +0.01-5.00% | C33: D | D33: 57 | E33: 359300 | F33: =E33*1.02 -> 366486 | G33: 4903 | H33: 354397 | I33: 4256.26 | J33: 362229.74 | K33: 0.02210159793 | L33: 3543.97 | M33: 0 | N33: 3543.97 | O33: 3622.2974 | P33: 0 | Q33: 3622.2974 | R33: 1746.524298 | S33: 412.3622367 | T33: 2158.886535 | U33: 1880.913403 | V33: 475.0996836 | W33: 2356.013087 | X33: 134.3891051 | Y33: 0.07694659915
B34: No Change | C34: E | D34: 24 | E34: 359300 | F34: =E34 -> 359300 | G34: 4903 | H34: 354397 | I34: 4903 | J34: 354397 | K34: 0 | L34: 3543.97 | M34: 0 | N34: 3543.97 | O34: 3543.97 | P34: 0 | Q34: 3543.97 | R34: 1746.524298 | S34: 412.3622367 | T34: 2158.886535 | U34: 1840.241134 | V34: 465.7840036 | W34: 2306.025137 | X34: 93.71683546 | Y34: 0.05365905047
B35: -0.01-5.00% | C35: F | D35: 94 | E35: 359300 | F35: =((E35-(E35*2.5%))) -> 350317.5 | G35: 4903 | H35: 354397 | I35: 5711.425 | J35: 344606.075 | K35: -0.02762699741 | L35: 3543.97 | M35: 0 | N35: 3543.97 | O35: 3446.06075 | P35: 0 | Q35: 3446.06075 | R35: 1746.524298 | S35: 412.3622367 | T35: 2158.886535 | U35: 1789.400796 | V35: 454.1394035 | W35: 2243.5402 | X35: 42.87649843 | Y35: 0.02454961461
B36: -5.01-10% | C36: F | D36: 27 | E36: 359300 | F36: =((E36-(E36*7.5%))) -> 332352.5 | G36: 4903 | H36: 354397 | I36: 7328.275 | J36: 325024.225 | K36: -0.08288099222 | L36: 3543.97 | M36: 0 | N36: 3543.97 | O36: 3250.24225 | P36: 0 | Q36: 3250.24225 | R36: 1746.524298 | S36: 412.3622367 | T36: 2158.886535 | U36: 1687.720122 | V36: 430.8502033 | W36: 2118.570326 | X36: -58.80417562 | Y36: -0.0336692571
B37: -10.01-15% | C37: G | D37: 0 | E37: 359300 | F37: =((E37-(E37*12.5%))) -> 314387.5 | G37: 4903 | H37: 354397 | I37: 8945.125 | J37: 305442.375 | K37: -0.138134987 | L37: 3543.97 | M37: 0 | N37: 3543.97 | O37: 3054.42375 | P37: 0 | Q37: 3054.42375 | R37: 1746.524298 | S37: 412.3622367 | T37: 2158.886535 | U37: 1586.039448 | V37: 407.5610031 | W37: 1993.600452 | X37: -160.4848497 | Y37: -0.09188812881
B38: -15.01+ | C38: G | D38: 0 | E38: 359300 | F38: =((E38-(E38*15%))) -> 305405 | G38: 4903 | H38: 354397 | I38: 9753.55 | J38: 295651.45 | K38: -0.1657619844 | L38: 3543.97 | M38: 0 | N38: 3543.97 | O38: 2956.5145 | P38: 0 | Q38: 2956.5145 | R38: 1746.524298 | S38: 412.3622367 | T38: 2158.886535 | U38: 1535.199111 | V38: 395.916403 | W38: 1931.115514 | X38: -211.3251867 | Y38: -0.1209975647
A40: Louisville | B40: +15.01+% | C40: A | D40: 11 | E40: 419100 | F40: =E40*1.15 -> 481965 | G40: 0 | H40: 419100 | I40: =IF(F40<413800,(30400-((F40-76000)*9%)),0) -> 0 | J40: 481965 | K40: 0.15 | L40: 4191 | M40: 0 | N40: 4191 | O40: 4819.65 | P40: 0 | Q40: 4819.65 | R40: 2065.390885 | S40: 480.993636 | T40: 2546.384521 | U40: =Q40*$E$21 -> 2502.650468 | V40: 624.8026365 | W40: 3127.453104 | X40: 437.2595835 | Y40: 0.211707908 | Z40: 407800 | AA40: 400800 | AB40: 412400 | AC40: =((AA40-Z40)/Z40) -> -0.0171652771
A41: =SUM(D40:D48) -> 404 | B41: +10.01-15.00% | C41: B | D41: 25 | E41: =E40 -> 419100 | F41: =E41*1.125 -> 471487.5 | G41: 0 | H41: 419100 | I41: 0 | J41: 471487.5 | K41: 0.125 | L41: 4191 | M41: 0 | N41: 4191 | O41: 4714.875 | P41: 0 | Q41: 4714.875 | R41: 2065.390885 | S41: 480.993636 | T41: 2546.384521 | U41: 2448.245023 | V41: 611.2199704 | W41: 3059.464994 | X41: 382.8541385 | Y41: 0.1853664318
B42: +5.01-10.00% | C42: C | D42: 68 | E42: =E40 -> 419100 | F42: =E42*1.075 -> 450532.5 | G42: 0 | H42: 419100 | I42: 0 | J42: 450532.5 | K42: 0.075 | L42: 4191 | M42: 0 | N42: 4191 | O42: 4505.325 | P42: 0 | Q42: 4505.325 | R42: 2065.390885 | S42: 480.993636 | T42: 2546.384521 | U42: 2339.434133 | V42: 584.0546384 | W42: 2923.488772 | X42: 274.0432486 | Y42: 0.1326834793
B43: +0.01-5.00% | C43: D | D43: 35 | E43: =E40 -> 419100 | F43: =E43*1.02 -> 427482 | G43: 0 | H43: 419100 | I43: 0 | J43: 427482 | K43: 0.02 | L43: 4191 | M43: 0 | N43: 4191 | O43: 4274.82 | P43: 0 | Q43: 4274.82 | R43: 2065.390885 | S43: 480.993636 | T43: 2546.384521 | U43: 2219.742154 | V43: 554.1727732 | W43: 2773.914927 | X43: 154.3512697 | Y43: 0.07473223148
B44: No Change | C44: E | D44: 1 | E44: =E40 -> 419100 | F44: =E44 -> 419100 | G44: 0 | H44: 419100 | I44: 0 | J44: 419100 | K44: 0 | L44: 4191 | M44: 0 | N44: 4191 | O44: 4191 | P44: 0 | Q44: 4191 | R44: 2065.390885 | S44: 480.993636 | T44: 2546.384521 | U44: 2176.217798 | V44: 543.3066404 | W44: 2719.524439 | X44: 110.8269137 | Y44: 0.05365905047
B45: -0.01-5.00% | C45: F | D45: 131 | E45: =E40 -> 419100 | F45: =((E45-(E45*2.5%))) -> 408622.5 | G45: 0 | H45: 419100 | I45: 463.975 | J45: 408158.525 | K45: -0.02610707468 | L45: 4191 | M45: 0 | N45: 4191 | O45: 4081.58525 | P45: 0 | Q45: 4081.58525 | R45: 2065.390885 | S45: 480.993636 | T45: 2546.384521 | U45: 2119.403118 | V45: 529.7239744 | W45: 2649.127092 | X45: 54.01223313 | Y45: 0.02615109495
B46: -5.01-10% | C46: G | D46: 107 | E46: =E40 -> 419100 | F46: =((E46-(E46*7.5%))) -> 387667.5 | G46: 0 | H46: 419100 | I46: 2349.925 | J46: 385317.575 | K46: -0.08060707468 | L46: 4191 | M46: 0 | N46: 4191 | O46: 3853.17575 | P46: 0 | Q46: 3853.17575 | R46: 2065.390885 | S46: 480.993636 | T46: 2546.384521 | U46: 2000.799248 | V46: 502.5586424 | W46: 2503.35789 | X46: -64.59163688 | Y46: -0.0312733233
B47: -10.01-15% | C47: G | D47: 19 | E47: =E40 -> 419100 | F47: =((E47-(E47*12.5%))) -> 366712.5 | G47: 0 | H47: 419100 | I47: 4235.875 | J47: 362476.625 | K47: -0.1351070747 | L47: 4191 | M47: 0 | N47: 4191 | O47: 3624.76625 | P47: 0 | Q47: 3624.76625 | R47: 2065.390885 | S47: 480.993636 | T47: 2546.384521 | U47: 1882.195378 | V47: 475.3933103 | W47: 2357.588688 | X47: -183.1955069 | Y47: -0.08869774155
B48: -15.01+ | C48: H | D48: 7 | E48: =E40 -> 419100 | F48: =((E48-(E48*15%))) -> 356235 | G48: 0 | H48: 419100 | I48: 5178.85 | J48: 351056.15 | K48: -0.1623570747 | L48: 4191 | M48: 0 | N48: 4191 | O48: 3510.5615 | P48: 0 | Q48: 3510.5615 | R48: 2065.390885 | S48: 480.993636 | T48: 2546.384521 | U48: 1822.893443 | V48: 461.8106443 | W48: 2284.704087 | X48: -242.4974419 | Y48: -0.1174099507
A50: Prior Lake | B50: +15.01+% | C50: A | D50: 1988 | E50: 307300 | F50: =E50*1.15 -> 353395 | G50: =IF(E50<413800,(30400-((E50-76000)*9%)),0) -> 9583 | H50: =E50-G50 -> 297717 | I50: =IF(F50<413800,(30400-((F50-76000)*9%)),0) -> 5434.45 | J50: =F50-I50 -> 347960.55 | K50: =((J50-H50)/H50) -> 0.1687627848 | L50: =IF(H50>500000,(500000*L$29),(H50*L$29)) -> 2977.17 | M50: =IF(E50<500000,0,(E50-500000)*M$29) -> 0 | N50: =SUM(L50:M50) -> 2977.17 | O50: =IF(J50>500000,(500000*O$29),(J50*O$29)) -> 3479.6055 | P50: =IF(J50<500000,0,(J50-500000)*P$29) -> 0 | Q50: =SUM(O50:P50) -> 3479.6055 | R50: =N50*$E$10 -> 1467.196321 | S50: 352.6827591 | T50: 1819.87908 | U50: =Q50*$E$21 -> 1806.819236 | V50: 458.1289673 | W50: 2264.948204 | X50: =U50-R50 -> 339.6229158 | Y50: =X50/R50 -> 0.231477486 | Z50: 266900 | AA50: 285400 | AB50: 338100 | AC50: =((AA50-Z50)/Z50) -> 0.06931434994
A51: =SUM(D50:D58) -> 8918 | B51: +10.01-15.00% | C51: B | D51: 819 | E51: =E50 -> 307300 | F51: =E51*1.125 -> 345712.5 | G51: 9583 | H51: 297717 | I51: 6125.875 | J51: 339586.625 | K51: 0.140635654 | L51: 2977.17 | M51: 0 | N51: 2977.17 | O51: 3395.86625 | P51: 0 | Q51: 3395.86625 | R51: 1467.196321 | S51: 352.6827591 | T51: 1819.87908 | U51: 1763.336811 | V51: 448.1696419 | W51: 2211.506453 | X51: 296.1404901 | Y51: 0.2018410801
B52: +5.01-10.00% | C52: C | D52: 2148 | E52: =E51 -> 307300 | F52: =E52*1.075 -> 330347.5 | G52: 9583 | H52: 297717 | I52: 7508.725 | J52: 322838.775 | K52: 0.0843813924 | L52: 2977.17 | M52: 0 | N52: 2977.17 | O52: 3228.38775 | P52: 0 | Q52: 3228.38775 | R52: 1467.196321 | S52: 352.6827591 | T52: 1819.87908 | U52: 1676.371959 | V52: 428.2509911 | W52: 2104.62295 | X52: 209.1756386 | Y52: 0.1425682683
B53: +0.01-5.00% | C53: D | D53: 3621 | E53: 307300 | F53: =E53*1.02 -> 313446 | G53: 9583 | H53: 297717 | I53: 9029.86 | J53: 304416.14 | K53: 0.02250170464 | L53: 2977.17 | M53: 0 | N53: 2977.17 | O53: 3044.1614 | P53: 0 | Q53: 3044.1614 | R53: 1467.196321 | S53: 352.6827591 | T53: 1819.87908 | U53: 1580.710623 | V53: 406.3404753 | W53: 1987.051098 | X53: 113.514302 | Y53: 0.07736817521
B54: No Change | C54: E | D54: 2 | E54: 307300 | F54: =E54 -> 307300 | G54: 9583 | H54: 297717 | I54: 9583 | J54: 297717 | K54: 0 | L54: 2977.17 | M54: 0 | N54: 2977.17 | O54: 2977.17 | P54: 0 | Q54: 2977.17 | R54: 1467.196321 | S54: 352.6827591 | T54: 1819.87908 | U54: 1545.924682 | V54: 398.373015 | W54: 1944.297697 | X54: 78.72836142 | Y54: 0.05365905047
B55: -0.01-5.00% | C55: F | D55: 162 | E55: 307300 | F55: =((E55-(E55*2.5%))) -> 299617.5 | G55: 9583 | H55: 297717 | I55: 10274.425 | J55: 289343.075 | K55: -0.0281271308 | L55: 2977.17 | M55: 0 | N55: 2977.17 | O55: 2893.43075 | P55: 0 | Q55: 2893.43075 | R55: 1467.196321 | S55: 352.6827591 | T55: 1819.87908 | U55: 1502.442256 | V55: 388.4136896 | W55: 1890.855946 | X55: 35.24593568 | Y55: 0.02402264454
B56: -5.01-10% | C56: F | D56: 125 | E56: 307300 | F56: =((E56-(E56*7.5%))) -> 284252.5 | G56: 9583 | H56: 297717 | I56: 11657.275 | J56: 272595.225 | K56: -0.0843813924 | L56: 2977.17 | M56: 0 | N56: 2977.17 | O56: 2725.95225 | P56: 0 | Q56: 2725.95225 | R56: 1467.196321 | S56: 352.6827591 | T56: 1819.87908 | U56: 1415.477405 | V56: 368.4950389 | W56: 1783.972444 | X56: -51.71891579 | Y56: -0.03525016732
B57: -10.01-15% | C57: G | D57: 49 | E57: 307300 | F57: =((E57-(E57*12.5%))) -> 268887.5 | G57: 9583 | H57: 297717 | I57: 13040.125 | J57: 255847.375 | K57: -0.140635654 | L57: 2977.17 | M57: 0 | N57: 2977.17 | O57: 2558.47375 | P57: 0 | Q57: 2558.47375 | R57: 1467.196321 | S57: 352.6827591 | T57: 1819.87908 | U57: 1328.512553 | V57: 348.5763881 | W57: 1677.088942 | X57: -138.6837673 | Y57: -0.09452297918
B58: -15.01+ | C58: G | D58: 4 | E58: 307300 | F58: =((E58-(E58*15%))) -> 261205 | G58: 9583 | H58: 297717 | I58: 13731.55 | J58: 247473.45 | K58: -0.1687627848 | L58: 2977.17 | M58: 0 | N58: 2977.17 | O58: 2474.7345 | P58: 0 | Q58: 2474.7345 | R58: 1467.196321 | S58: 352.6827591 | T58: 1819.87908 | U58: 1285.030128 | V58: 338.6170628 | W58: 1623.64719 | X58: -182.166193 | Y58: -0.1241593851
A60: Sand Creek | B60: +15.01+% | C60: A | D60: 13 | E60: 327200 | F60: =E60*1.15 -> 376280 | G60: =IF(E60<413800,(30400-((E60-76000)*9%)),0) -> 7792 | H60: =E60-G60 -> 319408 | I60: =IF(F60<413800,(30400-((F60-76000)*9%)),0) -> 3374.8 | J60: =F60-I60 -> 372905.2 | K60: =((J60-H60)/H60) -> 0.1674886039 | L60: =IF(H60>500000,(500000*L$29),(H60*L$29)) -> 3194.08 | M60: =IF(E60<500000,0,(E60-500000)*M$29) -> 0 | N60: =SUM(L60:M60) -> 3194.08 | O60: =IF(J60>500000,(500000*O$29),(J60*O$29)) -> 3729.052 | P60: =IF(J60<500000,0,(J60-500000)*P$29) -> 0 | Q60: =SUM(O60:P60) -> 3729.052 | R60: =N60*$E$10 -> 1574.092989 | S60: 375.5216361 | T60: 1949.614625 | U60: =Q60*$E$21 -> 1936.346775 | V60: 487.7962841 | W60: 2424.143059 | X60: 362.2537859 | Y60: 0.2301349338 | Z60: 302500 | AA60: 327400 | AB60: 354200 | AC60: =((AA60-Z60)/Z60) -> 0.08231404959
A61: =SUM(D60:D68) -> 386 | B61: +10.01-15.00% | C61: B | D61: 56 | E61: =E60 -> 327200 | F61: =E61*1.125 -> 368100 | G61: 7792 | H61: 319408 | I61: 4111 | J61: 363989 | K61: 0.1395738366 | L61: 3194.08 | M61: 0 | N61: 3194.08 | O61: 3639.89 | P61: 0 | Q61: 3639.89 | R61: 1574.092989 | S61: 375.5216361 | T61: 1949.614625 | U61: 1890.048533 | V61: 477.192017 | W61: 2367.24055 | X61: 315.9555441 | Y61: 0.2007222866
B62: +5.01-10.00% | C62: C | D62: 151 | E62: =E61 -> 327200 | F62: =E62*1.075 -> 351740 | G62: 7792 | H62: 319408 | I62: 5583.4 | J62: 346156.6 | K62: 0.08374430196 | L62: 3194.08 | M62: 0 | N62: 3194.08 | O62: 3461.566 | P62: 0 | Q62: 3461.566 | R62: 1574.092989 | S62: 375.5216361 | T62: 1949.614625 | U62: 1797.452049 | V62: 455.9834829 | W62: 2253.435532 | X62: 223.3590605 | Y62: 0.1418969922
B63: +0.01-5.00% | C63: D | D63: 154 | E63: 327200 | F63: =E63*1.02 -> 333744 | G63: 7792 | H63: 319408 | I63: 7203.04 | J63: 326540.96 | K63: 0.02233181386 | L63: 3194.08 | M63: 0 | N63: 3194.08 | O63: 3265.4096 | P63: 0 | Q63: 3265.4096 | R63: 1574.092989 | S63: 375.5216361 | T63: 1949.614625 | U63: 1695.595917 | V63: 432.6540954 | W63: 2128.250013 | X63: 121.5029286 | Y63: 0.07718916825
B64: No Change | C64: E | D64: 3 | E64: 327200 | F64: =E64 -> 327200 | G64: 7792 | H64: 319408 | I64: 7792 | J64: 319408 | K64: 0 | L64: 3194.08 | M64: 0 | N64: 3194.08 | O64: 3194.08 | P64: 0 | Q64: 3194.08 | R64: 1574.092989 | S64: 375.5216361 | T64: 1949.614625 | U64: 1658.557324 | V64: 424.1706818 | W64: 2082.728006 | X64: 84.46433514 | Y64: 0.05365905047
B65: -0.01-5.00% | C65: F | D65: 5 | E65: 327200 | F65: =((E65-(E65*2.5%))) -> 319020 | G65: 7792 | H65: 319408 | I65: 8528.2 | J65: 310491.8 | K65: -0.02791476732 | L65: 3194.08 | M65: 0 | N65: 3194.08 | O65: 3104.918 | P65: 0 | Q65: 3104.918 | R65: 1574.092989 | S65: 375.5216361 | T65: 1949.614625 | U65: 1612.259082 | V65: 413.5664147 | W65: 2025.825497 | X65: 38.16609335 | Y65: 0.02424640324
B66: -5.01-10% | C66: G | D66: 4 | E66: 327200 | F66: =((E66-(E66*7.5%))) -> 302660 | G66: 7792 | H66: 319408 | I66: 10000.6 | J66: 292659.4 | K66: -0.08374430196 | L66: 3194.08 | M66: 0 | N66: 3194.08 | O66: 2926.594 | P66: 0 | Q66: 2926.594 | R66: 1574.092989 | S66: 375.5216361 | T66: 1949.614625 | U66: 1519.662599 | V66: 392.3578807 | W66: 1912.020479 | X66: -54.43039023 | Y66: -0.03457889122
B67: -10.01-15% | C67: G | D67: 0 | E67: 327200 | F67: =((E67-(E67*12.5%))) -> 286300 | G67: 7792 | H67: 319408 | I67: 11473 | J67: 274827 | K67: -0.1395738366 | L67: 3194.08 | M67: 0 | N67: 3194.08 | O67: 2748.27 | P67: 0 | Q67: 2748.27 | R67: 1574.092989 | S67: 375.5216361 | T67: 1949.614625 | U67: 1427.066115 | V67: 371.1493466 | W67: 1798.215462 | X67: -147.0268738 | Y67: -0.09340418567
B68: -15.01+ | C68: H | D68: 0 | E68: 327200 | F68: =((E68-(E68*15%))) -> 278120 | G68: 7792 | H68: 319408 | I68: 12209.2 | J68: 265910.8 | K68: -0.1674886039 | L68: 3194.08 | M68: 0 | N68: 3194.08 | O68: 2659.108 | P68: 0 | Q68: 2659.108 | R68: 1574.092989 | S68: 375.5216361 | T68: 1949.614625 | U68: 1380.767873 | V68: 360.5450795 | W68: 1741.312953 | X68: -193.3251156 | Y68: -0.1228168329
A70: Savage | B70: +15.01+% | C70: A | D70: 149 | E70: 265400 | F70: =E70*1.15 -> 305210 | G70: 13354 | H70: 252046 | I70: =IF(F70<413800,(30400-((F70-76000)*9%)),0) -> 9771.1 | J70: 295438.9 | K70: 0.1721626211 | L70: 2520.46 | M70: 0 | N70: 2520.46 | O70: 2954.389 | P70: 0 | Q70: 2954.389 | R70: 1242.122431 | S70: 304.5948723 | T70: 1546.717303 | U70: =Q70*$E$21 -> 1534.095425 | V70: 395.6636118 | W70: 1929.759037 | X70: 291.9729935 | Y70: 0.2350597544 | Z70: 248800 | AA70: 255400 | AB70: 274200 | AC70: =((AA70-Z70)/Z70) -> 0.02652733119
A71: =SUM(D70:D78) -> 9356 | B71: +10.01-15.00% | C71: B | D71: 170 | E71: =E70 -> 265400 | F71: =E71*1.125 -> 298575 | G71: 13354 | H71: 252046 | I71: 10368.25 | J71: 288206.75 | K71: 0.1434688509 | L71: 2520.46 | M71: 0 | N71: 2520.46 | O71: 2882.0675 | P71: 0 | Q71: 2882.0675 | R71: 1242.122431 | S71: 304.5948723 | T71: 1546.717303 | U71: 1496.541777 | V71: 387.062229 | W71: 1883.604006 | X71: 254.4193463 | Y71: 0.2048263037
B72: +5.01-10.00% | C72: C | D72: 2244 | E72: =E71 -> 265400 | F72: =E72*1.075 -> 285305 | G72: 13354 | H72: 252046 | I72: 11562.55 | J72: 273742.45 | K72: 0.08608131055 | L72: 2520.46 | M72: 0 | N72: 2520.46 | O72: 2737.4245 | P72: 0 | Q72: 2737.4245 | R72: 1242.122431 | S72: 304.5948723 | T72: 1546.717303 | U72: 1421.434483 | V72: 369.8594632 | W72: 1791.293946 | X72: 179.3120519 | Y72: 0.1443594024
B73: +0.01-5.00% | C73: D | D73: 4873 | E73: 265400 | F73: =E73*1.02 -> 270708 | G73: 13354 | H73: 252046 | I73: 12876.28 | J73: 257831.72 | K73: 0.02295501615 | L73: 2520.46 | M73: 0 | N73: 2520.46 | O73: 2578.3172 | P73: 0 | Q73: 2578.3172 | R73: 1242.122431 | S73: 304.5948723 | T73: 1546.717303 | U73: 1338.816459 | V73: 350.9364209 | W73: 1689.75288 | X73: 96.694028 | Y73: 0.07784581099
B74: No Change | C74: E | D74: 13 | E74: 265400 | F74: =E74 -> 265400 | G74: 13354 | H74: 252046 | I74: 13354 | J74: 252046 | K74: 0 | L74: 2520.46 | M74: 0 | N74: 2520.46 | O74: 2520.46 | P74: 0 | Q74: 2520.46 | R74: 1242.122431 | S74: 304.5948723 | T74: 1546.717303 | U74: 1308.773541 | V74: 344.0553146 | W74: 1652.828856 | X74: 66.65111022 | Y74: 0.05365905047
B75: -0.01-5.00% | C75: F | D75: 1753 | E75: 265400 | F75: =((E75-(E75*2.5%))) -> 258765 | G75: 13354 | H75: 252046 | I75: 13951.15 | J75: 244813.85 | K75: -0.02869377018 | L75: 2520.46 | M75: 0 | N75: 2520.46 | O75: 2448.1385 | P75: 0 | Q75: 2448.1385 | R75: 1242.122431 | S75: 304.5948723 | T75: 1546.717303 | U75: 1271.219894 | V75: 335.4539318 | W75: 1606.673826 | X75: 29.097463 | Y75: 0.02342559982
B76: -5.01-10% | C76: F | D76: 145 | E76: 265400 | F76: =((E76-(E76*7.5%))) -> 245495 | G76: 13354 | H76: 252046 | I76: 15145.45 | J76: 230349.55 | K76: -0.08608131055 | L76: 2520.46 | M76: 0 | N76: 2520.46 | O76: 2303.4955 | P76: 0 | Q76: 2303.4955 | R76: 1242.122431 | S76: 304.5948723 | T76: 1546.717303 | U76: 1196.1126 | V76: 318.251166 | W76: 1514.363766 | X76: -46.00983144 | Y76: -0.03704130147
B77: -10.01-15% | C77: G | D77: 4 | E77: 265400 | F77: =((E77-(E77*12.5%))) -> 232225 | G77: 13354 | H77: 252046 | I77: 16339.75 | J77: 215885.25 | K77: -0.1434688509 | L77: 2520.46 | M77: 0 | N77: 2520.46 | O77: 2158.8525 | P77: 0 | Q77: 2158.8525 | R77: 1242.122431 | S77: 304.5948723 | T77: 1546.717303 | U77: 1121.005305 | V77: 301.0484003 | W77: 1422.053706 | X77: -121.1171259 | Y77: -0.09750820277
B78: -15.01+ | C78: H | D78: 5 | E78: 265400 | F78: =((E78-(E78*15%))) -> 225590 | G78: 13354 | H78: 252046 | I78: 16936.9 | J78: 208653.1 | K78: -0.1721626211 | L78: 2520.46 | M78: 0 | N78: 2520.46 | O78: 2086.531 | P78: 0 | Q78: 2086.531 | R78: 1242.122431 | S78: 304.5948723 | T78: 1546.717303 | U78: 1083.451658 | V78: 292.4470174 | W78: 1375.898675 | X78: -158.6707731 | Y78: -0.1277416534
A80: Shakopee | B80: +15.01+% | C80: A | D80: 149 | E80: 229100 | F80: =E80*1.15 -> 263465 | G80: 16621 | H80: 212479 | I80: =IF(F80<413800,(30400-((F80-76000)*9%)),0) -> 13528.15 | J80: 249936.85 | K80: 0.1762896569 | L80: 2124.79 | M80: 0 | N80: 2124.79 | O80: 2499.3685 | P80: 0 | Q80: 2499.3685 | R80: 1047.130016 | S80: 262.9340062 | T80: 1310.064022 | U80: =Q80*$E$21 -> 1297.821573 | V80: 341.546848 | W80: 1639.368421 | X80: 250.6915573 | Y80: 0.2394082429 | Z80: 207700 | AA80: 220200 | AB80: 242100 | AC80: =((AA80-Z80)/Z80) -> 0.06018295619
A81: =SUM(D80:D88) -> 11990 | B81: +10.01-15.00% | C81: B | D81: 646 | E81: =E80 -> 229100 | F81: =E81*1.125 -> 257737.5 | G81: 16621 | H81: 212479 | I81: 14043.625 | J81: 243693.875 | K81: 0.1469080474 | L81: 2124.79 | M81: 0 | N81: 2124.79 | O81: 2436.93875 | P81: 0 | Q81: 2436.93875 | R81: 1047.130016 | S81: 262.9340062 | T81: 1310.064022 | U81: 1265.404314 | V81: 334.1219166 | W81: 1599.526231 | X81: 218.2742981 | Y81: 0.2084500442
B82: +5.01-10.00% | C82: C | D82: 7067 | E82: =E81 -> 229100 | F82: =E82*1.075 -> 246282.5 | G82: 16621 | H82: 212479 | I82: 15074.575 | J82: 231207.925 | K82: 0.08814482843 | L82: 2124.79 | M82: 0 | N82: 2124.79 | O82: 2312.07925 | P82: 0 | Q82: 2312.07925 | R82: 1047.130016 | S82: 262.9340062 | T82: 1310.064022 | U82: 1200.569796 | V82: 319.2720536 | W82: 1519.84185 | X82: 153.4397798 | Y82: 0.1465336467
B83: +0.01-5.00% | C83: D | D83: 2661 | E83: 229100 | F83: =E83*1.02 -> 233682 | G83: 16621 | H83: 212479 | I83: 16208.62 | J83: 217473.38 | K83: 0.02350528758 | L83: 2124.79 | M83: 0 | N83: 2124.79 | O83: 2174.7338 | P83: 0 | Q83: 2174.7338 | R83: 1047.130016 | S83: 262.9340062 | T83: 1310.064022 | U83: 1129.251826 | V83: 302.9372043 | W83: 1432.18903 | X83: 82.1218097 | Y83: 0.07842560946
B84: No Change | C84: E | D84: 29 | E84: 229100 | F84: =E84 -> 229100 | G84: 16621 | H84: 212479 | I84: 16621 | J84: 212479 | K84: 0 | L84: 2124.79 | M84: 0 | N84: 2124.79 | O84: 2124.79 | P84: 0 | Q84: 2124.79 | R84: 1047.130016 | S84: 262.9340062 | T84: 1310.064022 | U84: 1103.318019 | V84: 296.9972592 | W84: 1400.315278 | X84: 56.18800238 | Y84: 0.05365905047
B85: -0.01-5.00% | C85: F | D85: 1414 | E85: 229100 | F85: =((E85-(E85*2.5%))) -> 223372.5 | G85: 16621 | H85: 212479 | I85: 17136.475 | J85: 206236.025 | K85: -0.02938160948 | L85: 2124.79 | M85: 0 | N85: 2124.79 | O85: 2062.36025 | P85: 0 | Q85: 2062.36025 | R85: 1047.130016 | S85: 262.9340062 | T85: 1310.064022 | U85: 1070.900759 | V85: 289.5723277 | W85: 1360.473087 | X85: 23.77074323 | Y85: 0.02270085173
B86: -5.01-10% | C86: G | D86: 14 | E86: 229100 | F86: =((E86-(E86*7.5%))) -> 211917.5 | G86: 16621 | H86: 212479 | I86: 18167.425 | J86: 193750.075 | K86: -0.08814482843 | L86: 2124.79 | M86: 0 | N86: 2124.79 | O86: 1937.50075 | P86: 0 | Q86: 1937.50075 | R86: 1047.130016 | S86: 262.9340062 | T86: 1310.064022 | U86: 1006.066241 | V86: 274.7224647 | W86: 1280.788706 | X86: -41.06377506 | Y86: -0.03921554576
B87: -10.01-15% | C87: G | D87: 6 | E87: 229100 | F87: =((E87-(E87*12.5%))) -> 200462.5 | G87: 16621 | H87: 212479 | I87: 19198.375 | J87: 181264.125 | K87: -0.1469080474 | L87: 2124.79 | M87: 0 | N87: 2124.79 | O87: 1812.64125 | P87: 0 | Q87: 1812.64125 | R87: 1047.130016 | S87: 262.9340062 | T87: 1310.064022 | U87: 941.2317228 | V87: 259.8726018 | W87: 1201.104325 | X87: -105.8982934 | Y87: -0.1011319432
B88: -15.01+ | C88: H | D88: 4 | E88: 229100 | F88: =((E88-(E88*15%))) -> 194735 | G88: 16621 | H88: 212479 | I88: 19713.85 | J88: 175021.15 | K88: -0.1762896569 | L88: 2124.79 | M88: 0 | N88: 2124.79 | O88: 1750.2115 | P88: 0 | Q88: 1750.2115 | R88: 1047.130016 | S88: 262.9340062 | T88: 1310.064022 | U88: 908.8144636 | V88: 252.4476703 | W88: 1161.262134 | X88: -138.3155525 | Y88: -0.132090142
D89: =SUM(D80:D88) -> 11990
D90: =D82/D89 -> 0.5894078399
D91: =D83/D89 -> 0.2219349458
D92: =SUM(D90:D91) -> 0.8113427857

Sheet Tax Calculator
A1: ='Specific LLC Information'!A1 -> Independent School District 720 - Shakopee Public School District
A2: ='Specific LLC Information'!A3 -> LLC Updated 10-02-17 Worksheet Update 10-30-17
J6: RMV Tax Base Appreciation | L6: ='720'!S15 -> 0.06260521764
J7: NTC Tax Base Appreciation | L7: ='720'!S18 -> 0.04404550989
J8: Enter in Property Valuation Appreciation | L8: 0.0275
A9: Est. Change in the School Portion of Property Taxes from Pay 2017 to Pay 2018
F10: RMV Pay 2017 | H10: NTC Pay 2017 | J10: Est RMV Pay 2018 | L10: Est NTC Pay 2018 | N10: Difference
C11: Categorical RMV Levy Items
C12: General RMV - Voter-Approved-JOBZ Exempt | F12: ='Specific LLC Information'!C15 -> 0 | J12: ='Specific LLC Information'!F15 -> 0 | N12: =J12-F12 -> 0
C13: General RMV - Other-JOBZ Exempt | F13: ='Specific LLC Information'!C23 -> 5991216.56 | J13: ='Specific LLC Information'!F23 -> 7009394.38 | N13: 1018177.82
C14: Input Desired Adjustment | F14: 0 | J14: 0 | N14: 0
C15: Initial RMV Levy | F15: =SUM(F12:F14) -> 5991216.56 | J15: =SUM(J12:J14) -> 7009394.38 | N15: 1018177.82
C16: Less: Fiscal Disparity Offsets | F16: =District!E45 -> -703983 | J16: -663305 | N16: 40678
C17: Final RMV Levy | F17: =F15+F16 -> 5287233.56 | J17: =J15+J16 -> 6346089.38 | N17: 1058855.82
C19: RMV | F19: =District!K19 -> 4606879600 | J19: =F19*(1+$L$6) -> 4895294300
C21: RMV Tax Rate | F21: =ROUND(F17/F19,7) -> 0.0011477 | J21: =ROUND(J17/J19,7) -> 0.0012964
C23: Categorical NTC Levy Items
C24: Gen NTC VA - JOBZ Exempt | H24: ='Specific LLC Information'!C30 -> 3011717.06 | L24: ='Specific LLC Information'!F30 -> 3206596.1 | N24: =L24-H24 -> 194879.04
C25: Gen NTC Other Gen Ed - JOBZ Exempt | H25: ='Specific LLC Information'!C35 -> 74895.22 | L25: ='Specific LLC Information'!F35 -> 0 | N25: =L25-H25 -> -74895.22
C26: General NTC Other JOBZ Exempt | H26: ='Specific LLC Information'!C68 -> 4644539.84 | L26: ='Specific LLC Information'!F68 -> 5423209.44 | N26: =L26-H26 -> 778669.6
C27: Community Service JOBZ Exempt | H27: ='Specific LLC Information'!C77 -> 586043.18 | L27: ='Specific LLC Information'!F77 -> 590824.18 | N27: =L27-H27 -> 4781
C28: Debt Service Voter-Approved JOBZ Non-Exempt | H28: ='Specific LLC Information'!C84 -> 19004666.87 | L28: ='Specific LLC Information'!F84 -> 20341203.43 | N28: =L28-H28 -> 1336536.56
C29: Debt Service Other JOBZ Non-Exempt | H29: ='Specific LLC Information'!C94 -> 0 | L29: ='Specific LLC Information'!F94 -> 0 | N29: 0
C30: OPEB / Pension Debt Service VA JOBZ Non-Exempt | H30: ='Specific LLC Information'!C101 -> 0 | L30: ='Specific LLC Information'!F101 -> 0 | N30: 0
C31: OPEB / Pension Debt Service Other JOBZ Non-Exempt | H31: ='Specific LLC Information'!C108 -> 0 | L31: ='Specific LLC Information'!F108 -> 0 | N31: 0
C32: Input Desired Adjustment | H32: 0 | L32: 0 | N32: 0
C33: Initial NTC Subtotal | H33: =SUM(H24:H32) -> 27321862.17 | L33: =SUM(L24:L32) -> 29561833.15 | N33: 2239970.98
C34: Less: Fiscal Disparity Offsets | H34: =District!E55 -> -3200015 | L34: -3026162 | N34: 173853
C35: Final NTC Levy | H35: =H33+H34 -> 24121847.17 | L35: =L33+L34 -> 26535671.15 | N35: 2413823.98
C37: NTC - JOBZ Exempt Less Fiscal Disparities | H37: =SUM(H24:H27)+((SUM(H24:H27)/H33)*H34) -> 7343061.489 | L37: =SUM(L24:L27)+((SUM(L24:L27)/L33)*L34) -> 8276739.7 | N37: 933678.2112
C38: NTC - JOBZ Non-Exempt Less Fiscal Disparities Ag2School | H38: =SUM(H28:H29)+((SUM(H28:H29)/H33)*H34) -> 16778785.68 | L38: =SUM(L28:L29)+((SUM(L28:L29)/L33)*L34) -> 18258931.45 | N38: =L38-H38 -> 1480145.769
C39: NTC - JOBZ Non-Exempt Less Fiscal Disparities Non Ag2School | H39: =SUM(H30:H31)+((SUM(H30:H31)/H33)*H34) -> 0 | L39: =SUM(L30:L31)+((SUM(L30:L31)/L33)*L34) -> 0 | N39: 0
C40: Final NTC Levy | H40: =SUM(H37:H39) -> 24121847.17 | L40: =SUM(L37:L39) -> 26535671.15 | N40: 2413823.98
C42: NTC Excluding JOBZ | H42: =District!H19 -> 48946987 | L42: =H42*(1+L7) -> 51102882 | N42: 2155895 | AO42: 90090.09091
C43: NTC JOBZ | H43: =District!J32 -> 0 | L43: =H43 -> 0 | N43: 0 | AO43: 0.11
C44: Total NTC with JOBZ | H44: =H42+H43 -> 48946987 | L44: =L42+L43 -> 51102882 | N44: 2155895 | AO44: =AO42*(1+AO43) -> 100000.0009 | AQ44: =AO44/AO42 -> 1.11
C46: Total NTC Tax Rate | H46: =ROUND((H37/H42)+(H38/H44)+(H39/H44),5) -> 0.49282 | L46: =ROUND((L37/L42)+(L38/L44)+(L39/L44),5) -> 0.51926
C47: Ag2School NTC Tax Rate | H47: NA | L47: =ROUND((L38/L44),5) -> 0.3573
C49: Total Tax Rates | F49: =F21 -> 0.0011477 | H49: =H46 -> 0.49282 | J49: =J21 -> 0.0012964 | L49: =L46 -> 0.51926 | AO49: =L8 -> 0.0275 | AP49: Enter Tax Base Appreciation (do not include new construction)
T50: MV Exclusion Data | AO50: MV Exclusion Data
A51: Types of Property | C51: Pay 2018 Est. Value | D51: Pay 2017 Est. Value | F51: =F10 -> RMV Pay 2017 | H51: =H10 -> NTC Pay 2017 | J51: =J10 -> Est RMV Pay 2018 | L51: =L10 -> Est NTC Pay 2018 | N51: =N10 -> Difference | Q51: NTC of Properties to the left | T51: EMV and RMV | AL51: Pay 2016 NTC of Properties to the left | AO51: EMV and RMV
A52: Residential Homestead | C52: =D52*(1+$L$8) -> 102750 | D52: 100000 | F52: =$AO52*F$21 -> 114.77 | H52: =$AL52*H$49 -> 353.84476 | J52: =$T52*J$21 -> 133.2051 | L52: =$Q52*L$49 -> 388.40648 | N52: =(J52+L52)-(F52+H52) -> 52.99682 | Q52: =ROUND((0.01*MIN(500000,C52)+0.0125*MAX(C52-500000,0))-AC52,0) -> 748 | T52: =C52 -> 102750 | W52: 0.4 | X52: =MIN(T52*W52,30400) -> 30400 | Y52: =IF(T52>76000,T52-76000,0) -> 26750 | Z52: 0.09 | AA52: =Y52*Z52 -> 2407.5 | AB52: =MAX(X52-AA52,0) -> 27992.5 | AC52: =ROUND((0.01*MIN(500000,AB52)+0.0125*MAX(AB52-500000,0)),0) -> 280 | AL52: =ROUND((0.01*MIN(500000,D52)+0.0125*MAX(D52-500000,0))-AV52,0) -> 718 | AO52: =D52 -> 100000 | AP52: 0.4 | AQ52: =MIN(AO52*AP52,30400) -> 30400 | AR52: =IF(AO52>76000,AO52-76000,0) -> 24000 | AS52: 0.09 | AT52: =AR52*AS52 -> 2160 | AU52: =MAX(AQ52-AT52,0) -> 28240 | AV52: =ROUND((0.01*MIN(500000,AU52)+0.0125*MAX(AU52-500000,0)),0) -> 282
C53: =D53*(1+$L$8) -> 128437.5 | D53: 125000 | F53: =$AO53*F$21 -> 143.4625 | H53: 487.8918 | J53: =$T53*J$21 -> 166.506375 | L53: =$Q53*L$49 -> 533.28002 | N53: =(J53+L53)-(F53+H53) -> 68.432095 | Q53: 1027 | T53: =C53 -> 128437.5 | W53: 0.4 | X53: 30400 | Y53: 52437.5 | Z53: 0.09 | AA53: 4719.375 | AB53: 25680.625 | AC53: =ROUND((0.01*MIN(500000,AB53)+0.0125*MAX(AB53-500000,0)),0) -> 257 | AL53: 990 | AO53: =D53 -> 125000 | AP53: 0.4 | AQ53: 30400 | AR53: 49000 | AS53: 0.09 | AT53: 4410 | AU53: 25990 | AV53: =ROUND((0.01*MIN(500000,AU53)+0.0125*MAX(AU53-500000,0)),0) -> 260
C54: 154125 | D54: 150000 | F54: 172.155 | H54: 622.43166 | J54: 199.80765 | L54: =$Q54*L$49 -> 678.67282 | N54: 83.89381 | Q54: 1307 | T54: 154125 | W54: 0.4 | X54: 30400 | Y54: 78125 | Z54: 0.09 | AA54: 7031.25 | AB54: 23368.75 | AC54: 234 | AL54: 1263 | AO54: 150000 | AP54: 0.4 | AQ54: 30400 | AR54: 74000 | AS54: 0.09 | AT54: 6660 | AU54: 23740 | AV54: 237
C55: 179812.5 | D55: 175000 | F55: 200.8475 | H55: 756.4787 | J55: 233.108925 | L55: 824.06562 | N55: 99.848345 | Q55: 1587 | T55: 179812.5 | W55: 0.4 | X55: 30400 | Y55: 103812.5 | Z55: 0.09 | AA55: 9343.125 | AB55: 21056.875 | AC55: 211 | AL55: 1535 | AO55: 175000 | AP55: 0.4 | AQ55: 30400 | AR55: 99000 | AS55: 0.09 | AT55: 8910 | AU55: 21490 | AV55: 215
C56: 205500 | D56: 200000 | F56: 229.54 | H56: 891.01856 | J56: 266.4102 | L56: 969.97768 | N56: 115.82932 | Q56: 1868 | T56: 205500 | W56: 0.4 | X56: 30400 | Y56: 129500 | Z56: 0.09 | AA56: 11655 | AB56: 18745 | AC56: 187 | AL56: 1808 | AO56: 200000 | AP56: 0.4 | AQ56: 30400 | AR56: 124000 | AS56: 0.09 | AT56: 11160 | AU56: 19240 | AV56: 192
C57: 231187.5 | D57: 225000 | F57: 258.2325 | H57: 1025.0656 | J57: 299.711475 | L57: =$Q57*L$49 -> 1115.37048 | N57: =(J57+L57)-(F57+H57) -> 131.783855 | Q57: 2148 | T57: 231187.5 | W57: 0.4 | X57: 30400 | Y57: 155187.5 | Z57: 0.09 | AA57: 13966.875 | AB57: 16433.125 | AC57: 164 | AL57: 2080 | AO57: 225000 | AP57: 0.4 | AQ57: 30400 | AR57: 149000 | AS57: 0.09 | AT57: 13410 | AU57: 16990 | AV57: 170
C58: 256875 | D58: 250000 | F58: 286.925 | H58: 1159.60546 | J58: 333.01275 | L58: 1260.76328 | N58: 147.24557 | Q58: 2428 | T58: 256875 | W58: 0.4 | X58: 30400 | Y58: 180875 | Z58: 0.09 | AA58: 16278.75 | AB58: 14121.25 | AC58: 141 | AL58: 2353 | AO58: 250000 | AP58: 0.4 | AQ58: 30400 | AR58: 174000 | AS58: 0.09 | AT58: 15660 | AU58: 14740 | AV58: 147
C59: 282562.5 | D59: 275000 | F59: 315.6175 | H59: 1293.6525 | J59: 366.314025 | L59: 1406.15608 | N59: =(J59+L59)-(F59+H59) -> 163.200105 | Q59: 2708 | T59: =C59 -> 282562.5 | W59: 0.4 | X59: =MIN(T59*W59,30400) -> 30400 | Y59: =IF(T59>76000,T59-76000,0) -> 206562.5 | Z59: 0.09 | AA59: =Y59*Z59 -> 18590.625 | AB59: =MAX(X59-AA59,0) -> 11809.375 | AC59: =ROUND((0.01*MIN(500000,AB59)+0.0125*MAX(AB59-500000,0)),0) -> 118 | AL59: 2625 | AO59: 275000 | AP59: 0.4 | AQ59: 30400 | AR59: 199000 | AS59: 0.09 | AT59: 17910 | AU59: 12490 | AV59: 125
C60: 308250 | D60: 300000 | F60: 344.31 | H60: 1428.19236 | J60: 399.6153 | L60: 1551.54888 | N60: =(J60+L60)-(F60+H60) -> 178.66182 | Q60: 2988 | T60: =C60 -> 308250 | W60: 0.4 | X60: =MIN(T60*W60,30400) -> 30400 | Y60: =IF(T60>76000,T60-76000,0) -> 232250 | Z60: 0.09 | AA60: =Y60*Z60 -> 20902.5 | AB60: =MAX(X60-AA60,0) -> 9497.5 | AC60: =ROUND((0.01*MIN(500000,AB60)+0.0125*MAX(AB60-500000,0)),0) -> 95 | AL60: 2898 | AO60: 300000 | AP60: 0.4 | AQ60: 30400 | AR60: 224000 | AS60: 0.09 | AT60: 20160 | AU60: 10240 | AV60: 102
C61: 333937.5 | D61: 325000 | F61: 373.0025 | H61: 1562.2394 | J61: 432.916575 | L61: 1696.42242 | N61: =(J61+L61)-(F61+H61) -> 194.097095 | Q61: 3267 | T61: =C61 -> 333937.5 | W61: 0.4 | X61: =MIN(T61*W61,30400) -> 30400 | Y61: =IF(T61>76000,T61-76000,0) -> 257937.5 | Z61: 0.09 | AA61: =Y61*Z61 -> 23214.375 | AB61: =MAX(X61-AA61,0) -> 7185.625 | AC61: =ROUND((0.01*MIN(500000,AB61)+0.0125*MAX(AB61-500000,0)),0) -> 72 | AL61: 3170 | AO61: 325000 | AP61: 0.4 | AQ61: 30400 | AR61: 249000 | AS61: 0.09 | AT61: 22410 | AU61: 7990 | AV61: 80
C62: 359625 | D62: 350000 | F62: 401.695 | H62: 1696.77926 | J62: 466.21785 | L62: 1841.81522 | N62: 209.55881 | Q62: 3547 | T62: 359625 | W62: 0.4 | X62: 30400 | Y62: 283625 | Z62: 0.09 | AA62: 25526.25 | AB62: 4873.75 | AC62: 49 | AL62: 3443 | AO62: 350000 | AP62: 0.4 | AQ62: 30400 | AR62: 274000 | AS62: 0.09 | AT62: 24660 | AU62: 5740 | AV62: 57
C63: 513750 | D63: 500000 | F63: 573.85 | H63: 2464.1 | J63: 666.0255 | L63: 2685.61272 | N63: =(J63+L63)-(F63+H63) -> 313.68822 | Q63: 5172 | T63: =C63 -> 513750 | W63: 0.4 | X63: =MIN(T63*W63,30400) -> 30400 | Y63: =IF(T63>76000,T63-76000,0) -> 437750 | Z63: 0.09 | AA63: =Y63*Z63 -> 39397.5 | AB63: =MAX(X63-AA63,0) -> 0 | AC63: =ROUND((0.01*MIN(500000,AB63)+0.0125*MAX(AB63-500000,0)),0) -> 0 | AL63: 5000 | AO63: 500000 | AP63: 0.4 | AQ63: 30400 | AR63: 424000 | AS63: 0.09 | AT63: 38160 | AU63: 0 | AV63: 0
C64: 1027500 | D64: 1000000 | F64: 1147.7 | H64: 5544.225 | J64: 1332.051 | L64: 6020.30044 | N64: 660.42644 | Q64: 11594 | T64: 1027500 | W64: 0.4 | X64: 30400 | Y64: 951500 | Z64: 0.09 | AA64: 85635 | AB64: 0 | AC64: 0 | AL64: 11250 | AO64: 1000000 | AP64: 0.4 | AQ64: 30400 | AR64: 924000 | AS64: 0.09 | AT64: 83160 | AU64: 0 | AV64: 0
A65: Commercial / Industrial | C65: 102750 | D65: 100000 | F65: 114.77 | H65: 739.23 | J65: 133.2051 | L65: 800.309475 | N65: 79.514575 | Q65: =(0.015*MIN(150000,C65)+0.02*MAX(C65-150000,0)) -> 1541.25 | T65: 102750 | AL65: =(0.015*MIN(150000,D65)+0.02*MAX(D65-150000,0)) -> 1500 | AO65: 100000
C66: 256875 | D66: 250000 | F66: 286.925 | H66: 2094.485 | J66: 333.01275 | L66: 2278.25325 | N66: =(J66+L66)-(F66+H66) -> 229.856 | Q66: 4387.5 | T66: =C66 -> 256875 | AL66: =(0.015*MIN(150000,D66)+0.02*MAX(D66-150000,0)) -> 4250 | AO66: 250000
C67: 513750 | D67: 500000 | F67: 573.85 | H67: 4558.585 | J67: 666.0255 | L67: 4945.9515 | N67: =(J67+L67)-(F67+H67) -> 479.542 | Q67: 9525 | T67: =C67 -> 513750 | AL67: 9250 | AO67: 500000
C68: 770625 | D68: 750000 | F68: 860.775 | H68: 7022.685 | J68: 999.03825 | L68: 7613.64975 | N68: =(J68+L68)-(F68+H68) -> 729.228 | Q68: 14662.5 | T68: =C68 -> 770625 | AL68: 14250 | AO68: 750000
C69: 1027500 | D69: 1000000 | F69: 1147.7 | H69: 9486.785 | J69: 1332.051 | L69: 10281.348 | N69: 978.914 | Q69: 19800 | T69: 1027500 | AL69: 19250 | AO69: 1000000
C70: 1284375 | D70: 1250000 | F70: 1434.625 | H70: 11950.885 | J70: 1665.06375 | L70: 12949.04625 | N70: 1228.6 | Q70: 24937.5 | T70: 1284375 | AL70: 24250 | AO70: 1250000
C71: 1541250 | D71: 1500000 | F71: 1721.55 | H71: 14414.985 | J71: 1998.0765 | L71: 15616.7445 | N71: 1478.286 | Q71: 30075 | T71: 1541250 | AL71: 29250 | AO71: 1500000 | AY71: # of acres | AZ71: MV
R72: Home & Garage | S72: $ per Acre | T72: Dwelling Value | U72: NTC of Dwelling | V72: NTC of Ag. Land | AF72: # of acres | AM72: Home & Garage | AN72: $ per Acre | AO72: Dwelling Value
A73: Agricultural Homestead | B73: =CONCATENATE(TEXT(AF73,"0")," acres") -> 40 acres | C73: 665000 | D73: =AZ73 -> 647201.9465 | F73: 307.1703163 | H73: =$AL73*H$49 -> 2189.20956 | J73: =$T73*J$49 -> 356.51 | L73: =((L$46-L$47)*$Q73)+((L$47*$V73)*0.6)+(L$47*$U73) -> 2096.9205 | N73: -42.94937679 | Q73: =0.01*MIN(500000,$T73)+0.0125*MAX($T73-500000,0)+0.01*MAX($C73-$T73-1940000,0)+0.005*MIN(1940000,$C73-$T73)-AD73 -> 4575 | R73: =275000-10000 -> 265000 | S73: 10000 | T73: =R73+S73 -> 275000 | U73: =ROUND((0.01*MIN(500000,T73)+0.0125*MAX(T73-500000,0))-AD73,0) -> 2625 | V73: =Q73-U73 -> 1950 | W73: =T73 -> 275000 | X73: 0.4 | Y73: =MIN(W73*X73,30400) -> 30400 | Z73: =IF(W73>76000,W73-76000,0) -> 199000 | AA73: 0.09 | AB73: =Z73*AA73 -> 17910 | AC73: =MAX(Y73-AB73,0) -> 12490 | AD73: =ROUND((0.01*MIN(500000,AC73)+0.0125*MAX(AC73-500000,0)),0) -> 125 | AF73: 40 | AG73: =((AF73-1)*S73)+T73 -> 665000 | AL73: =0.01*MIN(500000,$AO73)+0.0125*MAX($AO73-500000,0)+0.01*MAX($D73-$AO73-2050000,0)+0.005*MIN(2050000,$D73-$AO73)-AW73 -> 4442.209246 | AM73: =(R73/(1+$AO$49)) -> 257907.5426 | AN73: =(S73/(1+$AO$49)) -> 9732.360097 | AO73: =AM73+AN73 -> 267639.9027 | AP73: =AO73 -> 267639.9027 | AQ73: 0.4 | AR73: =MIN(AP73*AQ73,30400) -> 30400 | AS73: =IF(AP73>76000,AP73-76000,0) -> 191639.9027 | AT73: 0.09 | AU73: =AS73*AT73 -> 17247.59124 | AV73: =MAX(AR73-AU73,0) -> 13152.40876 | AW73: =ROUND((0.01*MIN(500000,AV73)+0.0125*MAX(AV73-500000,0)),0) -> 132 | AY73: =AF73 -> 40 | AZ73: =((AY73-1)*AN73)+AO73 -> 647201.9465
A74: =CONCATENATE("(assume dwelling value is ",TEXT(T73,"$0,000")) -> (assume dwelling value is $275,000 | B74: =CONCATENATE(TEXT(AF74,"0")," acres") -> 80 acres | C74: 1065000 | D74: =AZ74 -> 1036496.35 | F74: 307.1703163 | H74: 3148.469901 | J74: =$T74*J$49 -> 356.51 | L74: =((L$46-L$47)*$Q74)+((L$47*$V74)*0.6)+(L$47*$U74) -> 2849.6005 | N74: -249.5297174 | Q74: =0.01*MIN(500000,$T74)+0.0125*MAX($T74-500000,0)+0.01*MAX($C74-$T74-1940000,0)+0.005*MIN(1940000,$C74-$T74)-AD74 -> 6575 | R74: =R73 -> 265000 | S74: 10000 | T74: =R74+S74 -> 275000 | U74: =ROUND((0.01*MIN(500000,T74)+0.0125*MAX(T74-500000,0))-AD74,0) -> 2625 | V74: =Q74-U74 -> 3950 | W74: =T74 -> 275000 | X74: 0.4 | Y74: =MIN(W74*X74,30400) -> 30400 | Z74: =IF(W74>76000,W74-76000,0) -> 199000 | AA74: 0.09 | AB74: =Z74*AA74 -> 17910 | AC74: =MAX(Y74-AB74,0) -> 12490 | AD74: =ROUND((0.01*MIN(500000,AC74)+0.0125*MAX(AC74-500000,0)),0) -> 125 | AF74: 80 | AG74: =((AF74-1)*S74)+T74 -> 1065000 | AL74: =0.01*MIN(500000,$AO74)+0.0125*MAX($AO74-500000,0)+0.01*MAX($D74-$AO74-2050000,0)+0.005*MIN(2050000,$D74-$AO74)-AW74 -> 6388.681265 | AM74: =AM73 -> 257907.5426 | AN74: 9732.360097 | AO74: =AM74+AN74 -> 267639.9027 | AP74: =AO74 -> 267639.9027 | AQ74: 0.4 | AR74: =MIN(AP74*AQ74,30400) -> 30400 | AS74: =IF(AP74>76000,AP74-76000,0) -> 191639.9027 | AT74: 0.09 | AU74: =AS74*AT74 -> 17247.59124 | AV74: =MAX(AR74-AU74,0) -> 13152.40876 | AW74: =ROUND((0.01*MIN(500000,AV74)+0.0125*MAX(AV74-500000,0)),0) -> 132 | AY74: =AF74 -> 80 | AZ74: =((AY74-1)*AN74)+AO74 -> 1036496.35
A75: =CONCATENATE("and acreage assessed at ",TEXT(S73,"$0,000"),")") -> and acreage assessed at $10,000) | B75: =CONCATENATE(TEXT(AF75,"0")," acres") -> 160 acres | C75: 1865000 | D75: =AZ75 -> 1815085.158 | F75: 307.1703163 | H75: 5066.990582 | J75: =$T75*J$49 -> 356.51 | L75: 4354.9605 | N75: -662.6903987 | Q75: =0.01*MIN(500000,$T75)+0.0125*MAX($T75-500000,0)+0.01*MAX($C75-$T75-1940000,0)+0.005*MIN(1940000,$C75-$T75)-AD75 -> 10575 | R75: 265000 | S75: 10000 | T75: =R75+S75 -> 275000 | U75: 2625 | V75: 7950 | W75: =T75 -> 275000 | X75: 0.4 | Y75: =MIN(W75*X75,30400) -> 30400 | Z75: =IF(W75>76000,W75-76000,0) -> 199000 | AA75: 0.09 | AB75: =Z75*AA75 -> 17910 | AC75: =MAX(Y75-AB75,0) -> 12490 | AD75: 125 | AF75: 160 | AG75: =((AF75-1)*S75)+T75 -> 1865000 | AL75: 10281.6253 | AM75: 257907.5426 | AN75: 9732.360097 | AO75: =AM75+AN75 -> 267639.9027 | AP75: =AO75 -> 267639.9027 | AQ75: 0.4 | AR75: =MIN(AP75*AQ75,30400) -> 30400 | AS75: =IF(AP75>76000,AP75-76000,0) -> 191639.9027 | AT75: 0.09 | AU75: =AS75*AT75 -> 17247.59124 | AV75: =MAX(AR75-AU75,0) -> 13152.40876 | AW75: 132 | AY75: =AF75 -> 160 | AZ75: =((AY75-1)*AN75)+AO75 -> 1815085.158
B76: =CONCATENATE(TEXT(AF76,"0")," acres") -> 320 acres | C76: 3465000 | D76: 3372262.774 | F76: 307.1703163 | H76: 11502.72816 | J76: =$T76*J$49 -> 356.51 | L76: 9717.8055 | N76: -1735.582978 | Q76: =0.01*MIN(500000,$T76)+0.0125*MAX($T76-500000,0)+0.01*MAX($C76-$T76-1940000,0)+0.005*MIN(1940000,$C76-$T76)-AD76 -> 24825 | R76: 265000 | S76: 10000 | T76: =R76+S76 -> 275000 | U76: 2625 | V76: 22200 | W76: =T76 -> 275000 | X76: 0.4 | Y76: =MIN(W76*X76,30400) -> 30400 | Z76: =IF(W76>76000,W76-76000,0) -> 199000 | AA76: 0.09 | AB76: =Z76*AA76 -> 17910 | AC76: =MAX(Y76-AB76,0) -> 12490 | AD76: 125 | AF76: 320 | AG76: =((AF76-1)*S76)+T76 -> 3465000 | AL76: 23340.62774 | AM76: 257907.5426 | AN76: 9732.360097 | AO76: =AM76+AN76 -> 267639.9027 | AP76: =AO76 -> 267639.9027 | AQ76: 0.4 | AR76: =MIN(AP76*AQ76,30400) -> 30400 | AS76: =IF(AP76>76000,AP76-76000,0) -> 191639.9027 | AT76: 0.09 | AU76: =AS76*AT76 -> 17247.59124 | AV76: =MAX(AR76-AU76,0) -> 13152.40876 | AW76: 132 | AY76: =AF76 -> 320 | AZ76: =((AY76-1)*AN76)+AO76 -> 3372262.774
A77: Agricultural Non-Homestead | C77: 5137.5 | D77: 5000 | H77: 24.641 | L77: =((L$46-L$47)*$Q77)+((L$47*$Q77)*0.6) -> 19.3344675 | N77: -5.3065325 | Q77: =C77*0.01 -> 51.375 | T77: =C77 -> 5137.5 | AL77: =AO77*0.01 -> 50 | AO77: =D77 -> 5000
A78: (dollars per acre) | C78: 6165 | D78: 6000 | H78: 29.5692 | L78: =((L$46-L$47)*$Q78)+((L$47*$Q78)*0.6) -> 23.201361 | N78: =(J78+L78)-(F78+H78) -> -6.367839 | Q78: =C78*0.01 -> 61.65 | T78: =C78 -> 6165 | AL78: =AO78*0.01 -> 60 | AO78: =D78 -> 6000
C79: 7706.25 | D79: 7500 | H79: 36.9615 | L79: =((L$46-L$47)*$Q79)+((L$47*$Q79)*0.6) -> 29.00170125 | N79: -7.95979875 | Q79: =C79*0.01 -> 77.0625 | T79: =C79 -> 7706.25 | AL79: =AO79*0.01 -> 75 | AO79: =D79 -> 7500
C80: 9247.5 | D80: 9000 | H80: 44.3538 | L80: 34.8020415 | N80: -9.5517585 | Q80: =C80*0.01 -> 92.475 | T80: =C80 -> 9247.5 | AL80: =AO80*0.01 -> 90 | AO80: =D80 -> 9000
C81: 10275 | D81: 10000 | H81: 49.282 | L81: 38.668935 | N81: -10.613065 | Q81: =C81*0.01 -> 102.75 | T81: =C81 -> 10275 | AL81: =AO81*0.01 -> 100 | AO81: =D81 -> 10000

Sheet RMV History
A1: Updated 09-25-17
A2: ='Tax Calculator'!A1 -> Independent School District 720 - Shakopee Public School District
C4: RMV | D4: % Change
B5: 2011 for Pay 2012 | C5: 3938023100
B6: 2012 for Pay 2013 | C6: 3634462300 | D6: =(C6-C5)/C5 -> -0.0770845656
B7: 2013 for Pay 2014 | C7: 3771087200 | D7: 0.03759150288
B8: 2014 for Pay 2015 | C8: 4197222200 | D8: 0.1130005692
B9: 2015 for Pay 2016 | C9: 4404202500 | D9: 0.04931363891
B10: 2016 for Pay 2017 | C10: =District!K19 -> 4606879600 | D10: 0.04601902388
B11: Est. 2017 for Pay 2018 | C11: =C10*(1+'Tax Calculator'!$L$6) -> 4895294300 | D11: 0.06260521764 | I11: ='Scott Co Prelim Data'!E235 -> 4895229400 | K11: =I11-C10 -> 288349800 | L11: =K11/C10 -> 0.06259113001
B12: 6-year Average | D12: =AVERAGE(D6:D11) -> 0.03857423115

Sheet NTC History
A1: ='RMV History'!A1 -> Updated 09-25-17
A2: ='Tax Calculator'!A1 -> Independent School District 720 - Shakopee Public School District
C4: NTC | D4: % Change
B5: 2011 for Pay 2012 | C5: 40240611
B6: 2012 for Pay 2013 | C6: 37001721 | D6: =(C6-C5)/C5 -> -0.08048809199
B7: 2013 for Pay 2014 | C7: 38876125 | D7: =(C7-C6)/C6 -> 0.05065721132
B8: 2014 for Pay 2015 | C8: 43710245 | D8: 0.1243467552
B9: 2015 for Pay 2016 | C9: 46059927 | D9: 0.05375586433 | I9: ='Scott Co Prelim Data'!E125 -> 61065169
B10: 2016 for Pay 2017 | C10: =District!H19 -> 48946987 | D10: 0.06268051619 | I10: =District!I19 -> 5983205
B11: Est. 2017 for Pay 2018 | C11: =C10*(1+'Tax Calculator'!$L$7) -> 51102882 | D11: 0.04404550989 | I11: =I9-I10 -> 55081964 | K11: =I11-C10 -> 6134977 | L11: =K11/C10 -> 0.1253392165
B12: 6-year Average | D12: =AVERAGE(D6:D11) -> 0.0424996275

Sheet District
C1: Division of School Finance | E1: S C H O O L T A X R E P O R T - 2 0 1 6 P A Y A B L E 2 0 1 7 | K1: ED-00119-40
C2: 1500 Highway 36 West | K2: DUE: 04/01/2016
C3: Roseville, MN 55113-4266
A4: GENERAL INSTRUCTIONS AND INFORMATION: Please read the INSTRUCTIONS FOR COMPLETION on the Instructions tab before completing this report.
A5: I D E N T I F I C A T I O N A N D G E N E R A L I N F O R M A T I O N
A6: District Number and Name | D6: County Auditor's Office Contact Person | G6: Telephone Number | I6: County Name | K6: Date
A7: 720 | B7: =VLOOKUP(A7,Counties!C:F,4,FALSE) -> Shakopee Public School District | I7: =VLOOKUP(A7,Counties!C:J,8,FALSE) -> Scott Co
A9: Valuation Excluding JOBZ
B10: (1) | C10: (2) | D10: (3) | E10: (4)** | F10: (5)** | G10: (6)** | H10: (7) | I10: (8) | J10: (9) | K10: (10)
A11: CO. NO. | B11: REAL AGRIC NET TAX CAPACITY | C11: REAL NON AGRIC NET TAX CAPACITY | D11: PERSONAL NET TAX CAPACITY | E11: TAX INCREMENT NET TAX CAPACITY | F11: 10% OF 200KV TRANSLINES | G11: FINAL CONTRIBUTION NET TAX CAPACITY | H11: INITIAL TAX RATE DETERMINATION VALUE | I11: FINAL DISTRIBUTION NET TAX CAPACITY | J11: TOTAL TAXABLE NET TAX CAPACITY | K11: SCHOOL DISTRICT REFERENDUM MARKET VALUE ("SD Ref MV")
B12: (Dollars Only) | C12: (Dollars Only) | D12: (Dollars Only) | E12: (Dollars Only) | F12: (Dollars Only) | G12: (Dollars Only) | H12: (Sum Cols. 1-6) | I12: (Dollars Only) | J12: (Columns 7 + 8) | K12: (Dollars Only)
B13: Item #60 | C13: Item #70 | D13: Items #80+90 | E13: Item #120 | F13: Item #110 | G13: Item #130 | H13: Item #140 | I13: Item #150 | K13: Item #1925
A19: TOTAL | B19: =VLOOKUP(A7,'Page 1'!$A$3:$O$527,3,FALSE) -> 1225349 | C19: =VLOOKUP(A7,'Page 1'!$A$3:$O$527,4,FALSE) -> 55003162 | D19: =VLOOKUP(A7,'Page 1'!$A$3:$O$527,5,FALSE) -> 776727 | E19: =VLOOKUP(A7,'Page 1'!$A$3:$O$527,6,FALSE) -> -827765 | F19: =VLOOKUP(A7,'Page 1'!$A$3:$O$527,7,FALSE) -> 0 | G19: =VLOOKUP(A7,'Page 1'!$A$3:$O$527,8,FALSE) -> -7230486 | H19: =VLOOKUP(A7,'Page 1'!$A$3:$O$527,9,FALSE) -> 48946987 | I19: =VLOOKUP(A7,'Page 1'!$A$3:$O$527,10,FALSE) -> 5983205 | J19: =VLOOKUP(A7,'Page 1'!$A$3:$O$527,11,FALSE) -> 54930192 | K19: =VLOOKUP(A7,'Page 1'!$A$3:$O$527,12,FALSE) -> 4606879600
E21: Pay 2018 Prelim Info | J21: ='Scott Co Prelim Data'!$E$125 -> 61065169 | K21: ='Scott Co Prelim Data'!E235 -> 4895229400
A22: JOBZ Valuation
B23: (11) | C23: (12) | D23: (13) | E23: (14) | F23: (15) | G23: (16) | H23: (17) | I23: (18) | J23: (19) | K23: (20)
A24: CO. NO. | B24: REAL AGRIC NET TAX CAPACITY | C24: REAL NON AGRIC NET TAX CAPACITY | D24: PERSONAL NET TAX CAPACITY | E24: TAX INCREMENT NET TAX CAPACITY | F24: 10% OF 200KV TRANSLINES | G24: FINAL CONTRIBUTION NET TAX CAPACITY | H24: INITIAL TAX RATE DETERMINATION VALUE | I24: FINAL DISTRIBUTION NET TAX CAPACITY | J24: TOTAL TAXABLE NET TAX CAPACITY | K24: SCHOOL DISTRICT REFERENDUM MARKET VALUE ("SD Ref MV")
B25: (Dollars Only) | C25: (Dollars Only) | D25: (Dollars Only) | E25: (Dollars Only) | F25: (Dollars Only) | G25: (Dollars Only) | H25: (Sum Cols. 11-16) | I25: (Dollars Only) | J25: (Cols. 17+18) | K25: (Dollars Only)
C26: Item #75 | D26: Item #95 | H26: Item #105 | K26: Item #1926
A32: TOTAL | J32: =VLOOKUP(A7,'Page 1'!$A$3:$O$527,13,FALSE) -> 0 | K32: =VLOOKUP(A7,'Page 1'!$A$3:$O$527,14,FALSE) -> 0
A34: S C H O O L T A X R E P O R T 2 0 1 6 - 2 0 1 7 ( C O N T I N U E D ) | K34: ED-00119-40
K35: Page 2
A36: District Number and Name | D36: County Auditor's Office Contact Person | G36: Telephone Number | I36: County Name | K36: Date
C39: (21) | D39: (22) | E39: (23)** | F39: (24) | G39: (25) | I39: (26) | J39: (27)
A40: TYPE OF SCHOOL PROPERTY TAX LEVY | C40: CERTIFIED LEVY | D40: COUNTY AUDITOR ADJUSTMENT | E40: FISCAL DISPARITIES ADJUSTMENT | F40: ADJUSTED LEVY | G40: INITIAL TAX RATE | H40: 2011 ABSTRACT OF TAX LISTS | I40: COMPUTED LEVY | J40: DIFFERENCE
C41: (Dollars & Cents) | D41: (Dollars & Cents) | E41: (Dollars & Cents) | F41: (Col. 21 + 22 + 23) | H41: ITEM # | I41: (Dollars & Cents) | J41: (Dollars & Cents)
A43: 1) GENERAL RMV VOTER JOBZ Exempt | C43: =VLOOKUP(A7,'Page 2 Top'!$A$3:$U$527,4,FALSE) -> 0 | D43: =VLOOKUP(A7,'Page 2 Top'!$A$3:$U$527,5,FALSE) -> 0 | E43: =VLOOKUP(A7,'Page 2 Top'!$A$3:$U$527,6,FALSE) -> 0 | F43: =VLOOKUP(A7,'Page 2 Top'!$A$3:$U$527,7,FALSE) -> 0 | G43: =VLOOKUP(A7,'Page 2 Top'!$A$3:$U$527,8,FALSE) -> 0 | H43: 2000 | I43: =VLOOKUP(A7,'Page 2 Top'!$A$3:$U$527,9,FALSE) -> 0 | J43: =IF(ABS(($K$19*G43/100)-F43)>ABS($K$19*0.0000001),($K$19*G43/100)-F43,0) -> 0 | K43: (Col. 10 x Col. 25) - Col. 24
A44: 2) GENERAL RMV OTHER JOBZ Exempt | C44: =VLOOKUP(A7,'Page 2 Top'!$A$3:$U$527,10,FALSE) -> 5991217 | D44: =VLOOKUP(A7,'Page 2 Top'!$A$3:$U$527,11,FALSE) -> 0 | E44: =VLOOKUP(A7,'Page 2 Top'!$A$3:$U$527,12,FALSE) -> -703983 | F44: =VLOOKUP(A7,'Page 2 Top'!$A$3:$U$527,13,FALSE) -> 5287234 | G44: =VLOOKUP(A7,'Page 2 Top'!$A$3:$U$527,14,FALSE) -> 0.11477 | H44: 2005 | I44: =VLOOKUP(A7,'Page 2 Top'!$A$3:$U$527,15,FALSE) -> 5287233.71 | J44: =IF(ABS(($K$19*G44/100)-F44)>ABS($K$19*0.0000001),($K$19*G44/100)-F44,0) -> 0 | K44: (Col. 10 x Col. 25) - Col. 24
A45: SUBTOTAL (Spread on SD Ref MV) | C45: =VLOOKUP(A7,'Page 2 Top'!$A$3:$U$527,16,FALSE) -> 5991217 | D45: =VLOOKUP(A7,'Page 2 Top'!$A$3:$U$527,17,FALSE) -> 0 | E45: =VLOOKUP(A7,'Page 2 Top'!$A$3:$U$527,18,FALSE) -> -703983 | F45: =VLOOKUP(A7,'Page 2 Top'!$A$3:$U$527,19,FALSE) -> 5287234 | G45: =VLOOKUP(A7,'Page 2 Top'!$A$3:$U$527,20,FALSE) -> 0.11477 | H45: 2010 | I45: =VLOOKUP(A7,'Page 2 Top'!$A$3:$U$527,21,FALSE) -> 5287233.71 | J45: =SUM(J43:J44) -> 0 | N45: =G45/100*'2017 Neighbor Comparison Graph'!M40 -> 229.54
A47: 3) GENERAL NTC VOTER JOBZ Exempt | C47: =VLOOKUP(A7,'Page 2 Middle'!$A$3:$AA$527,4,FALSE) -> 3011717 | D47: =VLOOKUP(A7,'Page 2 Middle'!$A$3:$AA$527,5,FALSE) -> 0 | E47: =VLOOKUP(A7,'Page 2 Middle'!$A$3:$AA$527,6,FALSE) -> -352741 | F47: =VLOOKUP(A7,'Page 2 Middle'!$A$3:$AA$527,7,FALSE) -> 2658976 | G47: =VLOOKUP(A7,'Page 2 Middle'!$A$3:$AA$527,8,FALSE) -> 5.432 | H47: 720 | I47: =VLOOKUP(A7,'Page 2 Middle'!$A$3:$AA$527,9,FALSE) -> 2658976 | J47: =IF(ABS(($H$19*G47/100)-F47)>ABS($H$19*0.00001),($H$19*G47/100)-F47,0) -> 0 | K47: (Col. 7 x Col. 25) - Col. 24
A48: 4) GENERAL NTC OTHER JOBZ Exempt | C48: =VLOOKUP(A7,'Page 2 Middle'!$A$3:$AA$527,10,FALSE) -> 74895 | D48: =VLOOKUP(A7,'Page 2 Middle'!$A$3:$AA$527,11,FALSE) -> 0 | E48: =VLOOKUP(A7,'Page 2 Middle'!$A$3:$AA$527,12,FALSE) -> -8772 | F48: =VLOOKUP(A7,'Page 2 Middle'!$A$3:$AA$527,13,FALSE) -> 66123 | G48: =VLOOKUP(A7,'Page 2 Middle'!$A$3:$AA$527,14,FALSE) -> 0.135 | H48: 722 | I48: =VLOOKUP(A7,'Page 2 Middle'!$A$3:$AA$527,15,FALSE) -> 66123 | J48: =IF(ABS(($H$19*G48/100)-F48)>ABS($H$19*0.00001),($H$19*G48/100)-F48,0) -> 0 | K48: (Col. 7 x Col. 25) - Col. 24
A49: 5) GENERAL NTC OTHER JOBZ Exempt | C49: =VLOOKUP(A7,'Page 2 Middle'!$A$3:$AA$527,16,FALSE) -> 4644540 | D49: =VLOOKUP(A7,'Page 2 Middle'!$A$3:$AA$527,17,FALSE) -> 0 | E49: =VLOOKUP(A7,'Page 2 Middle'!$A$3:$AA$527,18,FALSE) -> -543982 | F49: =VLOOKUP(A7,'Page 2 Middle'!$A$3:$AA$527,19,FALSE) -> 4100558 | G49: =VLOOKUP(A7,'Page 2 Middle'!$A$3:$AA$527,20,FALSE) -> 8.378 | H49: 725 | I49: =VLOOKUP(A7,'Page 2 Middle'!$A$3:$AA$527,21,FALSE) -> 4100558 | J49: =IF(ABS(($H$19*G49/100)-F49)>ABS($H$19*0.00001),($H$19*G49/100)-F49,0) -> 0 | K49: (Col. 7 x Col. 25) - Col. 24
A50: 6) COMMUNITY SERV NTC OTHER JOBZ Exempt | C50: =VLOOKUP(A7,'Page 2 Middle'!$A$3:$AA$527,22,FALSE) -> 586043 | D50: =VLOOKUP(A7,'Page 2 Middle'!$A$3:$AA$527,23,FALSE) -> 0 | E50: =VLOOKUP(A7,'Page 2 Middle'!$A$3:$AA$527,24,FALSE) -> -68639 | F50: =VLOOKUP(A7,'Page 2 Middle'!$A$3:$AA$527,25,FALSE) -> 517404 | G50: =VLOOKUP(A7,'Page 2 Middle'!$A$3:$AA$527,26,FALSE) -> 1.057 | H50: 740 | I50: =VLOOKUP(A7,'Page 2 Middle'!$A$3:$AA$527,27,FALSE) -> 517404 | J50: =IF(ABS(($H$19*G50/100)-F50)>ABS($H$19*0.00001),($H$19*G50/100)-F50,0) -> 0 | K50: (Col. 7 x Col. 25) - Col. 24
A51: 7) GENERAL DEBT SERV VOTER APPROVED JOBZ Non-Exempt | C51: =VLOOKUP(A7,'Page 2 Bottom'!$A$3:$W$527,4,FALSE) -> 19004667 | D51: =VLOOKUP(A7,'Page 2 Bottom'!$A$3:$W$527,5,FALSE) -> 0 | E51: =VLOOKUP(A7,'Page 2 Bottom'!$A$3:$W$527,6,FALSE) -> -2225881 | F51: =VLOOKUP(A7,'Page 2 Bottom'!$A$3:$W$527,7,FALSE) -> 16778786 | G51: =VLOOKUP(A7,'Page 2 Bottom'!$A$3:$W$527,8,FALSE) -> 34.28 | H51: 745 | I51: =VLOOKUP(A7,'Page 2 Bottom'!$A$3:$W$527,9,FALSE) -> 16778786 | J51: =IF(ABS((($H$19+$J$32)*G51/100)-F51)>ABS(($H$19+$J$32)*0.00001),(($H$19+$J$32)*G51/100)-F51,0) -> 0 | K51: [(Col. 7 + 17) x Col. 25] - Col. 24
A52: 8) GENERAL DEBT SERV OTHER JOBZ Non-Exempt | C52: =VLOOKUP(A7,'Page 2 Bottom'!$A$3:$W$527,10,FALSE) -> 0 | D52: =VLOOKUP(A7,'Page 2 Bottom'!$A$3:$W$527,11,FALSE) -> 0 | E52: =VLOOKUP(A7,'Page 2 Bottom'!$A$3:$W$527,12,FALSE) -> 0 | F52: =VLOOKUP(A7,'Page 2 Bottom'!$A$3:$W$527,13,FALSE) -> 0 | G52: =VLOOKUP(A7,'Page 2 Bottom'!$A$3:$W$527,14,FALSE) -> 0 | H52: 755 | I52: =VLOOKUP(A7,'Page 2 Bottom'!$A$3:$W$527,15,FALSE) -> 0 | J52: =IF(ABS((($H$19+$J$32)*G52/100)-F52)>ABS(($H$19+$J$32)*0.00001),(($H$19+$J$32)*G52/100)-F52,0) -> 0 | K52: [(Col. 7 + 17) x Col. 25] - Col. 24
A53: 9) OPEB/PENSION DEBT VOTER APPROVED JOBZ Non-Exempt | C53: =VLOOKUP(A7,'Page 2 OPEB'!$A$3:$O$527,4,FALSE) -> 0 | D53: =VLOOKUP(A7,'Page 2 OPEB'!$A$3:$O$527,5,FALSE) -> 0 | E53: =VLOOKUP(A7,'Page 2 OPEB'!$A$3:$O$527,6,FALSE) -> 0 | F53: =VLOOKUP(A7,'Page 2 OPEB'!$A$3:$O$527,7,FALSE) -> 0 | G53: =VLOOKUP(A7,'Page 2 OPEB'!$A$3:$O$527,8,FALSE) -> 0 | H53: 757 | I53: =VLOOKUP(A7,'Page 2 OPEB'!$A$3:$O$527,9,FALSE) -> 0 | J53: =IF(ABS((($H$19+$J$32)*G53/100)-F53)>ABS(($H$19+$J$32)*0.00001),(($H$19+$J$32)*G53/100)-F53,0) -> 0 | K53: [(Col. 7 + 17) x Col. 25] - Col. 24
A54: 10) OPEB/PENSION DEBT OTHER JOBZ Non-Exempt | C54: =VLOOKUP(A7,'Page 2 OPEB'!$A$3:$O$527,10,FALSE) -> 0 | D54: =VLOOKUP(A7,'Page 2 OPEB'!$A$3:$O$527,11,FALSE) -> 0 | E54: =VLOOKUP(A7,'Page 2 OPEB'!$A$3:$O$527,12,FALSE) -> 0 | F54: =VLOOKUP(A7,'Page 2 OPEB'!$A$3:$O$527,13,FALSE) -> 0 | G54: =VLOOKUP(A7,'Page 2 OPEB'!$A$3:$O$527,14,FALSE) -> 0 | H54: 760 | I54: =VLOOKUP(A7,'Page 2 OPEB'!$A$3:$O$527,15,FALSE) -> 0 | J54: =IF(ABS((($H$19+$J$32)*G54/100)-F54)>ABS(($H$19+$J$32)*0.00001),(($H$19+$J$32)*G54/100)-F54,0) -> 0 | K54: [(Col. 7 + 17) x Col. 25] - Col. 24
A55: SUBTOTAL (Spread on NTC) | C55: =VLOOKUP(A7,'Page 2 Bottom'!$A$3:$W$527,16,FALSE) -> 27321862 | D55: =VLOOKUP(A7,'Page 2 Bottom'!$A$3:$W$527,17,FALSE) -> 0 | E55: =VLOOKUP(A7,'Page 2 Bottom'!$A$3:$W$527,18,FALSE) -> -3200015 | F55: =VLOOKUP(A7,'Page 2 Bottom'!$A$3:$W$527,19,FALSE) -> 24121847 | G55: =VLOOKUP(A7,'Page 2 Bottom'!$A$3:$W$527,20,FALSE) -> 49.282 | H55: 770 | I55: =VLOOKUP(A7,'Page 2 Bottom'!$A$3:$W$527,21,FALSE) -> 24121847 | J55: =SUM(J47:J54) -> 0 | N55: =G55/100*'2017 Neighbor Comparison Graph'!J40 -> 891.01856
A56: TOTAL FOR ALL LEVIES | C56: =C45+C55 -> 33313079 | D56: =D45+D55 -> 0 | E56: =E45+E55 -> -3903998 | F56: =F45+F55 -> 29409081 | I56: =I55+I45 -> 29409080.71 | J56: =J45+J55 -> 0 | N56: =N55+N45 -> 1120.55856
G57: Total Disparity Aid** | I57: =VLOOKUP(A7,'Page 2 Bottom'!$A$3:$W$527,22,FALSE)*-1 -> -280
A58: **Enter as a negative amount. | H58: Total Spread Levy | I58: =VLOOKUP(A7,'Page 2 Bottom'!$A$3:$W$527,23,FALSE) -> 29408800.71
A60: Explanation of differences:

Sheet Ag2School Tax Impact
A1: =CONCATENATE("ISD ",District!A7," - ",District!B7) -> ISD 720 - Shakopee Public School District
A3: Date prepared: June 15, 2017
E6: Total School Portion of Taxes | F6: Est. AG Tax Credit Changes (based on Pay 2017 figures) | G6: Net Impact if Ag2School would have been available Last Year | J6: Voter Approved Bonds | K6: Other Debt Service
A7: Type of Property | B7: Estimated Market Value | C7: Referendum Market Value | D7: Net Tax Capacity | E7: Pay 2017 | F7: Potential Change | G7: Net Hypothetical | J7: Pay 2017 | K7: Pay 2017 | Q7: NTC | T7: RMV
A9: Residential Homestead | B9: 75000 | C9: =T9 -> 75000 | D9: =Q9 -> 450 | E9: =($C9*E$42)+($D9*E$43) -> 307.8465 | F9: NOT APPLICABLE | G9: =E9 -> 307.8465 | J9: =($C9*J$42)+($D9*J$43) -> 154.26 | K9: 0 | Q9: =ROUND((0.01*MIN(500000,B9)+0.0125*MAX(B9-500000,0))-AA9,0) -> 450 | T9: =B9 -> 75000 | U9: 0.4 | V9: =MIN(T9*U9,30400) -> 30000 | W9: =IF(T9>76000,T9-76000,0) -> 0 | X9: 0.09 | Y9: =W9*X9 -> 0 | Z9: =MAX(V9-Y9,0) -> 30000 | AA9: =ROUND((0.01*MIN(500000,Z9)+0.0125*MAX(Z9-500000,0)),0) -> 300
B10: =B9+25000 -> 100000 | C10: =T10 -> 100000 | D10: =Q10 -> 718 | E10: 468.61476 | G10: =E10 -> 468.61476 | J10: 246.1304 | K10: 0 | Q10: 718 | T10: 100000 | U10: 0.4 | V10: =MIN(T10*U10,30400) -> 30400 | W10: =IF(T10>76000,T10-76000,0) -> 24000 | X10: 0.09 | Y10: =W10*X10 -> 2160 | Z10: =MAX(V10-Y10,0) -> 28240 | AA10: =ROUND((0.01*MIN(500000,Z10)+0.0125*MAX(Z10-500000,0)),0) -> 282
B11: =B10+25000 -> 125000 | C11: 125000 | D11: 990 | E11: 631.3543 | G11: 631.3543 | J11: 339.372 | K11: 0 | Q11: 990 | T11: 125000 | U11: 0.4 | V11: 30400 | W11: 49000 | X11: 0.09 | Y11: 4410 | Z11: 25990 | AA11: 260
B12: 150000 | C12: 150000 | D12: 1263 | E12: 794.58666 | G12: 794.58666 | J12: 432.9564 | K12: 0 | Q12: 1263 | T12: 150000 | U12: 0.4 | V12: 30400 | W12: 74000 | X12: 0.09 | Y12: 6660 | Z12: 23740 | AA12: 237
B13: 175000 | C13: 175000 | D13: 1535 | E13: 957.3262 | G13: 957.3262 | J13: 526.198 | K13: 0 | Q13: 1535 | T13: 175000 | U13: 0.4 | V13: 30400 | W13: 99000 | X13: 0.09 | Y13: 8910 | Z13: 21490 | AA13: 215
B14: 200000 | C14: 200000 | D14: 1808 | E14: 1120.55856 | G14: 1120.55856 | J14: 619.7824 | K14: 0 | Q14: 1808 | T14: 200000 | U14: 0.4 | V14: 30400 | W14: 124000 | X14: 0.09 | Y14: 11160 | Z14: 19240 | AA14: 192
B15: =B14+50000 -> 250000 | C15: 250000 | D15: 2353 | E15: 1446.53046 | G15: 1446.53046 | J15: 806.6084 | K15: 0 | Q15: 2353 | T15: 250000 | U15: 0.4 | V15: 30400 | W15: 174000 | X15: 0.09 | Y15: 15660 | Z15: 14740 | AA15: 147
B16: =B15+50000 -> 300000 | C16: 300000 | D16: 2898 | E16: 1772.50236 | G16: 1772.50236 | J16: 993.4344 | K16: 0 | Q16: 2898 | T16: 300000 | U16: 0.4 | V16: 30400 | W16: 224000 | X16: 0.09 | Y16: 20160 | Z16: 10240 | AA16: 102
B17: =B16+50000 -> 350000 | C17: 350000 | D17: 3443 | E17: 2098.47426 | G17: 2098.47426 | J17: 1180.2604 | K17: 0 | Q17: 3443 | T17: 350000 | U17: 0.4 | V17: 30400 | W17: 274000 | X17: 0.09 | Y17: 24660 | Z17: 5740 | AA17: 57
B18: =B17+50000 -> 400000 | C18: =T18 -> 400000 | D18: =Q18 -> 3988 | E18: 2424.44616 | G18: 2424.44616 | J18: 1367.0864 | K18: 0 | Q18: 3988 | T18: 400000 | U18: 0.4 | V18: =MIN(T18*U18,30400) -> 30400 | W18: =IF(T18>76000,T18-76000,0) -> 324000 | X18: 0.09 | Y18: =W18*X18 -> 29160 | Z18: =MAX(V18-Y18,0) -> 1240 | AA18: =ROUND((0.01*MIN(500000,Z18)+0.0125*MAX(Z18-500000,0)),0) -> 12
B19: 500000 | C19: =T19 -> 500000 | D19: =Q19 -> 5000 | E19: 3037.95 | G19: 3037.95 | J19: 1714 | K19: 0 | Q19: 5000 | T19: 500000 | U19: 0.4 | V19: =MIN(T19*U19,30400) -> 30400 | W19: =IF(T19>76000,T19-76000,0) -> 424000 | X19: 0.09 | Y19: =W19*X19 -> 38160 | Z19: =MAX(V19-Y19,0) -> 0 | AA19: =ROUND((0.01*MIN(500000,Z19)+0.0125*MAX(Z19-500000,0)),0) -> 0
A21: Commercial Industrial | B21: 250000 | C21: =T21 -> 250000 | D21: =Q21 -> 4250 | E21: =($C21*E$42)+($D21*E$43) -> 2381.41 | F21: N / A | G21: =E21 -> 2381.41 | J21: =($C21*J$42)+($D21*J$43) -> 1456.9 | K21: =($C21*K$42)+($D21*K$43) -> 0 | Q21: =(0.015*MIN(150000,B21)+0.02*MAX(B21-150000,0)) -> 4250 | T21: =B21 -> 250000
B22: 500000 | C22: =T22 -> 500000 | D22: =Q22 -> 9250 | E22: 5132.435 | G22: =E22 -> 5132.435 | J22: =($C22*J$42)+($D22*J$43) -> 3170.9 | K22: 0 | Q22: =(0.015*MIN(150000,B22)+0.02*MAX(B22-150000,0)) -> 9250 | T22: =B22 -> 500000
B23: 1000000 | C23: =T23 -> 1000000 | D23: =Q23 -> 19250 | E23: 10634.485 | G23: 10634.485 | J23: 6598.9 | K23: 0 | Q23: =(0.015*MIN(150000,B23)+0.02*MAX(B23-150000,0)) -> 19250 | T23: =B23 -> 1000000
A25: Agricultural Homestead * | B25: =(P25*S25)+R25 -> 1104000 | C25: =T25 -> 150000 | D25: =Q25 -> 6033 | E25: =($C25*E$42)+($D25*E$43) -> 3145.33806 | F25: =F37 -> -654.0624 | G25: =E25+F25 -> 2491.27566 | J25: =($C25*J$42)+($D25*J$43) -> 2068.1124 | K25: =($C25*K$42)+($D25*K$43) -> 0 | P25: 160 | Q25: =0.01*MIN(500000,$T25)+0.0125*MAX($T25-500000,0)+0.01*MAX($B25-$T25-2050000,0)+0.005*MIN(2050000,$B25-$T25)-AB25 -> 6033 | R25: 144000 | S25: 6000 | T25: =R25+S25 -> 150000 | U25: =T25 -> 150000 | V25: 0.4 | W25: =MIN(U25*V25,30400) -> 30400 | X25: =IF(U25>76000,U25-76000,0) -> 74000 | Y25: 0.09 | Z25: =X25*Y25 -> 6660 | AA25: =MAX(W25-Z25,0) -> 23740 | AB25: =ROUND((0.01*MIN(500000,AA25)+0.0125*MAX(AA25-500000,0)),0) -> 237
A26: =CONCATENATE("* - Property value assumes ",TEXT(P25,"000")," acres with a dwelling value of ",TEXT(T25,"$0,000")," (house, garage and one acre) at an assessed value of ",TEXT(S25,"$0,000")," per acre") -> * - Property value assumes 160 acres with a dwelling value of $150,000 (house, garage and one acre) at an assessed value of $6,000 per acre
A28: Agricultural Homestead ** | B28: =(P28*S28)+R28 -> 2064000 | C28: =T28 -> 150000 | D28: =Q28 -> 10833 | E28: =($C28*E$42)+($D28*E$43) -> 5510.87406 | F28: =F38 -> -1312.2384 | G28: =E28+F28 -> 4198.63566 | J28: =($C28*J$42)+($D28*J$43) -> 3713.5524 | K28: =($C28*K$42)+($D28*K$43) -> 0 | P28: 320 | Q28: =0.01*MIN(500000,$T28)+0.0125*MAX($T28-500000,0)+0.01*MAX($B28-$T28-2050000,0)+0.005*MIN(2050000,$B28-$T28)-AB28 -> 10833 | R28: =R25 -> 144000 | S28: =S25 -> 6000 | T28: =R28+S28 -> 150000 | U28: =T28 -> 150000 | V28: 0.4 | W28: =MIN(U28*V28,30400) -> 30400 | X28: =IF(U28>76000,U28-76000,0) -> 74000 | Y28: 0.09 | Z28: =X28*Y28 -> 6660 | AA28: =MAX(W28-Z28,0) -> 23740 | AB28: =ROUND((0.01*MIN(500000,AA28)+0.0125*MAX(AA28-500000,0)),0) -> 237
A29: =CONCATENATE("** - Property value assumes ",TEXT(P28,"000")," acres with a dwelling value of ",TEXT(T28,"$0,000")," (house, garage and one acre) at an assessed value of ",TEXT(S28,"$0,000")," per acre") -> ** - Property value assumes 320 acres with a dwelling value of $150,000 (house, garage and one acre) at an assessed value of $6,000 per acre
A31: Non-homestead Agricultural | B31: =S28 -> 6000 | C31: =T31 -> 0 | D31: =Q31 -> 60 | E31: =($C31*E$42)+($D31*E$43) -> 29.5692 | F31: =F39 -> -8.2272 | G31: =E31+F31 -> 21.342 | J31: =($C31*J$42)+($D31*J$43) -> 20.568 | K31: =($C31*K$42)+($D31*K$43) -> 0 | Q31: =B31*0.01 -> 60 | T31: =B31*0 -> 0
A33: TAX IMPACT ESTIMATES with 40% AGRICULTURAL CREDIT shown in turquoise shade
A34: Agricultural Homestead * | B34: =B25 -> 1104000 | C34: =C25 -> 150000 | D34: =D25 -> 6033 | J34: =(($D34-$Q34)*J$43*0.6)+($Q34*J$43) -> 1414.05 | K34: =(($D34-$Q34)*K$43*0.6)+($Q34*K$43) -> 0 | Q34: =ROUND((0.01*MIN(500000,T34)+0.0125*MAX(T34-500000,0))-AA34,0) -> 1263 | T34: =T25 -> 150000 | U34: 0.4 | V34: =MIN(T34*U34,30400) -> 30400 | W34: =IF(T34>76000,T34-76000,0) -> 74000 | X34: 0.09 | Y34: =W34*X34 -> 6660 | Z34: =MAX(V34-Y34,0) -> 23740 | AA34: =ROUND((0.01*MIN(500000,Z34)+0.0125*MAX(Z34-500000,0)),0) -> 237
A35: Agricultural Homestead ** | B35: =B28 -> 2064000 | C35: =C28 -> 150000 | D35: =D28 -> 10833 | J35: =(($D35-$Q35)*J$43*0.6)+($Q35*J$43) -> 2401.314 | K35: =(($D35-$Q35)*K$43*0.6)+($Q35*K$43) -> 0 | Q35: =ROUND((0.01*MIN(500000,T35)+0.0125*MAX(T35-500000,0))-AA35,0) -> 1263 | T35: =T28 -> 150000 | U35: 0.4 | V35: =MIN(T35*U35,30400) -> 30400 | W35: =IF(T35>76000,T35-76000,0) -> 74000 | X35: 0.09 | Y35: =W35*X35 -> 6660 | Z35: =MAX(V35-Y35,0) -> 23740 | AA35: =ROUND((0.01*MIN(500000,Z35)+0.0125*MAX(Z35-500000,0)),0) -> 237
A36: Non-homestead Agricultural | B36: =B31 -> 6000 | C36: 0 | D36: =B36*0.01 -> 60 | J36: =(($D36-$Q36)*J$43*0.6)+($Q36*J$43) -> 12.3408 | K36: 0
A37: Estimated Ag Credit Difference | B37: Hmstd Ag#1 | F37: =J37+K37 -> -654.0624 | J37: =J34-J25 -> -654.0624 | K37: =K34-K25 -> 0
B38: Hmstd Ag#2 | F38: =J38+K38 -> -1312.2384 | J38: =J35-J28 -> -1312.2384 | K38: =K35-K28 -> 0
B39: NonHmstd Ag | F39: =J39+K39 -> -8.2272 | J39: =J36-J31 -> -8.2272 | K39: =K36-K31 -> 0
D42: RMV | E42: =District!G45/100 -> 0.0011477
D43: NTC | E43: =District!G55/100 -> 0.49282 | F43: =J43+K43 -> 0.3428 | J43: =District!G51/100 -> 0.3428 | K43: =District!G52/100 -> 0

Sheet 2017 Neighbor Comparison Graph
B2: District # | C2: District Name
B3: =District!A7 -> 720 | C3: =District!B7 -> Shakopee Public School District
A5: PAY 2017 SCHOOL DISTRICT NEIGHBOR COMPARISON GRAPH
L7: =CONCATENATE("School Portion of Property Taxes Payable in 2017 on a ",TEXT(M40,"$0,000")," Homestead Residential Property") -> School Portion of Property Taxes Payable in 2017 on a $200,000 Homestead Residential Property
B39: Enter District # Below | C39: District Name | D39: RMV Rate | E39: NTC Rate | F39: RMV Portion of Property Tax | G39: NTC Portion of Property Tax | H39: Total Property Tax* | J39: NTC of Property | M39: Market Value | T39: MV Exclusion
C40: AVG STATE OF MN | D40: ='Page 2 Top'!T535/100 -> 0.002196063444 | E40: ='Page 2 Bottom'!T535/100 -> 0.2068154381 | F40: =ROUND(D40*M40,2) -> 439.21 | G40: =ROUND(E40*J40,2) -> 373.92 | H40: =F40+G40 -> 813.13 | J40: =ROUND((0.01*MIN(500000,M40)+0.0125*MAX(M40-500000,0))-T40,0) -> 1808 | M40: 200000 | N40: 0.4 | O40: =MIN(M40*N40,30400) -> 30400 | P40: =IF(M40>76000,M40-76000,0) -> 124000 | Q40: 0.09 | R40: =P40*Q40 -> 11160 | S40: =MAX(O40-R40,0) -> 19240 | T40: =ROUND((0.01*MIN(500000,S40)+0.0125*MAX(S40-500000,0)),0) -> 192
B41: 272 | C41: =VLOOKUP(B41,Counties!C:F,4,FALSE) -> Eden Prairie Public School District | D41: =VLOOKUP(B41,'Page 2 Top'!$A$3:$U$527,20,FALSE)/100 -> 0.0022013 | E41: =VLOOKUP(B41,'Page 2 Bottom'!$A$3:$W$527,20,FALSE)/100 -> 0.21865 | F41: 440.26 | G41: 395.32 | H41: 835.58 | J41: 1808 | M41: =$M$40 -> 200000 | N41: 0.4 | O41: 30400 | P41: 124000 | Q41: 0.09 | R41: 11160 | S41: 19240 | T41: 192
B42: 717 | C42: =VLOOKUP(B42,Counties!C:F,4,FALSE) -> Jordan Public School District | D42: =VLOOKUP(B42,'Page 2 Top'!$A$3:$U$527,20,FALSE)/100 -> 0.0012452 | E42: =VLOOKUP(B42,'Page 2 Bottom'!$A$3:$W$527,20,FALSE)/100 -> 0.33805 | F42: 249.04 | G42: 611.19 | H42: 860.23 | J42: 1808 | M42: 200000 | N42: 0.4 | O42: 30400 | P42: 124000 | Q42: 0.09 | R42: 11160 | S42: 19240 | T42: 192
B43: 191 | C43: =VLOOKUP(B43,Counties!C:F,4,FALSE) -> Burnsville Public School District | D43: =VLOOKUP(B43,'Page 2 Top'!$A$3:$U$527,20,FALSE)/100 -> 0.0023336 | E43: =VLOOKUP(B43,'Page 2 Bottom'!$A$3:$W$527,20,FALSE)/100 -> 0.27529 | F43: 466.72 | G43: 497.72 | H43: 964.44 | J43: 1808 | M43: 200000 | N43: 0.4 | O43: 30400 | P43: 124000 | Q43: 0.09 | R43: 11160 | S43: 19240 | T43: 192
B44: 719 | C44: =VLOOKUP(B44,Counties!C:F,4,FALSE) -> Prior Lake-Savage Area Schools | D44: =VLOOKUP(B44,'Page 2 Top'!$A$3:$U$527,20,FALSE)/100 -> 0.0020431 | E44: =VLOOKUP(B44,'Page 2 Bottom'!$A$3:$W$527,20,FALSE)/100 -> 0.30664 | F44: 408.62 | G44: 554.41 | H44: 963.03 | J44: 1808 | M44: 200000 | N44: 0.4 | O44: 30400 | P44: 124000 | Q44: 0.09 | R44: 11160 | S44: 19240 | T44: 192
B45: 196 | C45: =VLOOKUP(B45,Counties!C:F,4,FALSE) -> Rosemount-Apple Valley-Eagan | D45: =VLOOKUP(B45,'Page 2 Top'!$A$3:$U$527,20,FALSE)/100 -> 0.002738 | E45: =VLOOKUP(B45,'Page 2 Bottom'!$A$3:$W$527,20,FALSE)/100 -> 0.23336 | F45: 547.6 | G45: 421.91 | H45: 969.51 | J45: 1808 | M45: 200000 | N45: 0.4 | O45: 30400 | P45: 124000 | Q45: 0.09 | R45: 11160 | S45: 19240 | T45: 192
B46: 276 | C46: =VLOOKUP(B46,Counties!C:F,4,FALSE) -> Minnetonka Public School District | D46: =VLOOKUP(B46,'Page 2 Top'!$A$3:$U$527,20,FALSE)/100 -> 0.0029966 | E46: =VLOOKUP(B46,'Page 2 Bottom'!$A$3:$W$527,20,FALSE)/100 -> 0.2277 | F46: 599.32 | G46: 411.68 | H46: 1011 | J46: 1808 | M46: 200000 | N46: 0.4 | O46: 30400 | P46: 124000 | Q46: 0.09 | R46: 11160 | S46: 19240 | T46: 192
B47: 194 | C47: =VLOOKUP(B47,Counties!C:F,4,FALSE) -> Lakeville Public School District | D47: =VLOOKUP(B47,'Page 2 Top'!$A$3:$U$527,20,FALSE)/100 -> 0.0025441 | E47: =VLOOKUP(B47,'Page 2 Bottom'!$A$3:$W$527,20,FALSE)/100 -> 0.32914 | F47: 508.82 | G47: 595.09 | H47: 1103.91 | J47: 1808 | M47: 200000 | N47: 0.4 | O47: 30400 | P47: 124000 | Q47: 0.09 | R47: 11160 | S47: 19240 | T47: 192
B48: 720 | C48: =VLOOKUP(B48,Counties!C:F,4,FALSE) -> Shakopee Public School District | D48: =VLOOKUP(B48,'Page 2 Top'!$A$3:$U$527,20,FALSE)/100 -> 0.0011477 | E48: =VLOOKUP(B48,'Page 2 Bottom'!$A$3:$W$527,20,FALSE)/100 -> 0.49282 | F48: 229.54 | G48: 891.02 | H48: 1120.56 | J48: 1808 | M48: 200000 | N48: 0.4 | O48: 30400 | P48: 124000 | Q48: 0.09 | R48: 11160 | S48: 19240 | T48: 192
B49: 112 | C49: =VLOOKUP(B49,Counties!C:F,4,FALSE) -> Eastern Carver County Public School | D49: =VLOOKUP(B49,'Page 2 Top'!$A$3:$U$527,20,FALSE)/100 -> 0.0023815 | E49: =VLOOKUP(B49,'Page 2 Bottom'!$A$3:$W$527,20,FALSE)/100 -> 0.37007 | F49: 476.3 | G49: 669.09 | H49: 1145.39 | J49: 1808 | M49: 200000 | N49: 0.4 | O49: 30400 | P49: 124000 | Q49: 0.09 | R49: 11160 | S49: 19240 | T49: 192
B51: * - School Portion of Property Tax prior to any available Disparity Aid or Taconite Hmstd. Adjustments

Sheet 2017 Neighbor Comp Ag Graph
B2: District # | C2: District Name
B3: =District!A7 -> 720 | C3: =District!B7 -> Shakopee Public School District
A5: PAY 2017 SCHOOL DISTRICT NEIGHBOR COMPARISON GRAPH
L7: =CONCATENATE("School Portion of Property Taxes Payable in 2017 on a 1-acre Non-homestead Agricultural Property valued at ",TEXT(M40,"$0,000")) -> School Portion of Property Taxes Payable in 2017 on a 1-acre Non-homestead Agricultural Property valued at $12,000
B39: Enter District # Below | C39: District Name | D39: RMV Rate | E39: NTC Rate | F39: RMV Portion of Property Tax | G39: NTC Portion of Property Tax | H39: Total Property Tax* | J39: NTC of Property | M39: Market Value | Q39: Ag NTC | R39: Total NTC
C40: AVG STATE OF MN | D40: ='Page 2 Top'!T535/100 -> 0.002196063444 | E40: ='Page 2 Bottom'!T535/100 -> 0.2068154381 | F40: =ROUND(D40*M40*0,2) -> 0 | G40: =ROUND(E40*J40,2) -> 24.82 | H40: =F40+G40 -> 24.82 | J40: =M40*0.01 -> 120 | M40: 12000
B41: ='2017 Neighbor Comparison Graph'!B41 -> 272 | C41: =VLOOKUP(B41,Counties!C:F,4,FALSE) -> Eden Prairie Public School District | D41: =VLOOKUP(B41,'Page 2 Top'!$A$3:$U$527,20,FALSE)/100 -> 0.0022013 | E41: =VLOOKUP(B41,'Page 2 Bottom'!$A$3:$W$527,20,FALSE)/100 -> 0.21865 | F41: 0 | G41: 26.24 | H41: 26.24 | J41: 120 | M41: =$M$40 -> 12000 | Q41: =VLOOKUP(B41,'Page 1'!$A$3:$O$527,3,FALSE) -> 44200 | R41: =VLOOKUP(B41,'Page 1'!$A$3:$O$527,9,FALSE) -> 96069697 | S41: =Q41/R41 -> 0.0004600826419
B42: ='2017 Neighbor Comparison Graph'!B42 -> 717 | C42: =VLOOKUP(B42,Counties!C:F,4,FALSE) -> Jordan Public School District | D42: =VLOOKUP(B42,'Page 2 Top'!$A$3:$U$527,20,FALSE)/100 -> 0.0012452 | E42: =VLOOKUP(B42,'Page 2 Bottom'!$A$3:$W$527,20,FALSE)/100 -> 0.33805 | F42: 0 | G42: 40.57 | H42: 40.57 | J42: 120 | M42: 12000 | Q42: =VLOOKUP(B42,'Page 1'!$A$3:$O$527,3,FALSE) -> 1695776 | R42: =VLOOKUP(B42,'Page 1'!$A$3:$O$527,9,FALSE) -> 10623689 | S42: =Q42/R42 -> 0.1596221426
B43: ='2017 Neighbor Comparison Graph'!B43 -> 191 | C43: =VLOOKUP(B43,Counties!C:F,4,FALSE) -> Burnsville Public School District | D43: =VLOOKUP(B43,'Page 2 Top'!$A$3:$U$527,20,FALSE)/100 -> 0.0023336 | E43: =VLOOKUP(B43,'Page 2 Bottom'!$A$3:$W$527,20,FALSE)/100 -> 0.27529 | F43: 0 | G43: 33.03 | H43: 33.03 | J43: 120 | M43: 12000 | Q43: =VLOOKUP(B43,'Page 1'!$A$3:$O$527,3,FALSE) -> 37415 | R43: =VLOOKUP(B43,'Page 1'!$A$3:$O$527,9,FALSE) -> 65110228 | S43: =Q43/R43 -> 0.0005746408997
B44: ='2017 Neighbor Comparison Graph'!B44 -> 719 | C44: =VLOOKUP(B44,Counties!C:F,4,FALSE) -> Prior Lake-Savage Area Schools | D44: =VLOOKUP(B44,'Page 2 Top'!$A$3:$U$527,20,FALSE)/100 -> 0.0020431 | E44: =VLOOKUP(B44,'Page 2 Bottom'!$A$3:$W$527,20,FALSE)/100 -> 0.30664 | F44: 0 | G44: 36.8 | H44: 36.8 | J44: 120 | M44: 12000 | Q44: =VLOOKUP(B44,'Page 1'!$A$3:$O$527,3,FALSE) -> 601261 | R44: =VLOOKUP(B44,'Page 1'!$A$3:$O$527,9,FALSE) -> 49608304 | S44: =Q44/R44 -> 0.01212016843
B45: ='2017 Neighbor Comparison Graph'!B45 -> 196 | C45: =VLOOKUP(B45,Counties!C:F,4,FALSE) -> Rosemount-Apple Valley-Eagan | D45: =VLOOKUP(B45,'Page 2 Top'!$A$3:$U$527,20,FALSE)/100 -> 0.002738 | E45: =VLOOKUP(B45,'Page 2 Bottom'!$A$3:$W$527,20,FALSE)/100 -> 0.23336 | F45: 0 | G45: 28 | H45: 28 | J45: 120 | M45: 12000 | Q45: =VLOOKUP(B45,'Page 1'!$A$3:$O$527,3,FALSE) -> 1185200 | R45: =VLOOKUP(B45,'Page 1'!$A$3:$O$527,9,FALSE) -> 155699714 | S45: =Q45/R45 -> 0.007612088485
B46: ='2017 Neighbor Comparison Graph'!B46 -> 276 | C46: =VLOOKUP(B46,Counties!C:F,4,FALSE) -> Minnetonka Public School District | D46: =VLOOKUP(B46,'Page 2 Top'!$A$3:$U$527,20,FALSE)/100 -> 0.0029966 | E46: =VLOOKUP(B46,'Page 2 Bottom'!$A$3:$W$527,20,FALSE)/100 -> 0.2277 | F46: 0 | G46: 27.32 | H46: 27.32 | J46: 120 | M46: 12000 | Q46: =VLOOKUP(B46,'Page 1'!$A$3:$O$527,3,FALSE) -> 12061 | R46: =VLOOKUP(B46,'Page 1'!$A$3:$O$527,9,FALSE) -> 86610313 | S46: 0.0001392559336
B47: ='2017 Neighbor Comparison Graph'!B47 -> 194 | C47: =VLOOKUP(B47,Counties!C:F,4,FALSE) -> Lakeville Public School District | D47: =VLOOKUP(B47,'Page 2 Top'!$A$3:$U$527,20,FALSE)/100 -> 0.0025441 | E47: =VLOOKUP(B47,'Page 2 Bottom'!$A$3:$W$527,20,FALSE)/100 -> 0.32914 | F47: 0 | G47: 39.5 | H47: 39.5 | J47: 120 | M47: 12000 | Q47: =VLOOKUP(B47,'Page 1'!$A$3:$O$527,3,FALSE) -> 1735230 | R47: =VLOOKUP(B47,'Page 1'!$A$3:$O$527,9,FALSE) -> 67569767 | S47: 0.02568056806
B48: ='2017 Neighbor Comparison Graph'!B48 -> 720 | C48: =VLOOKUP(B48,Counties!C:F,4,FALSE) -> Shakopee Public School District | D48: =VLOOKUP(B48,'Page 2 Top'!$A$3:$U$527,20,FALSE)/100 -> 0.0011477 | E48: =VLOOKUP(B48,'Page 2 Bottom'!$A$3:$W$527,20,FALSE)/100 -> 0.49282 | F48: 0 | G48: 59.14 | H48: 59.14 | J48: 120 | M48: 12000 | Q48: =VLOOKUP(B48,'Page 1'!$A$3:$O$527,3,FALSE) -> 1225349 | R48: =VLOOKUP(B48,'Page 1'!$A$3:$O$527,9,FALSE) -> 48946987 | S48: 0.02503420691
B49: ='2017 Neighbor Comparison Graph'!B49 -> 112 | C49: =VLOOKUP(B49,Counties!C:F,4,FALSE) -> Eastern Carver County Public School | D49: =VLOOKUP(B49,'Page 2 Top'!$A$3:$U$527,20,FALSE)/100 -> 0.0023815 | E49: =VLOOKUP(B49,'Page 2 Bottom'!$A$3:$W$527,20,FALSE)/100 -> 0.37007 | F49: 0 | G49: 44.41 | H49: 44.41 | J49: 120 | M49: 12000 | Q49: =VLOOKUP(B49,'Page 1'!$A$3:$O$527,3,FALSE) -> 1665522 | R49: =VLOOKUP(B49,'Page 1'!$A$3:$O$527,9,FALSE) -> 70429593 | S49: 0.02364804238
B50: ='2017 Neighbor Comparison Graph'!B50 -> 0 | C50: =VLOOKUP(B50,Counties!C:F,4,FALSE) ->  | D50: =VLOOKUP(B50,'Page 2 Top'!$A$3:$U$527,20,FALSE)/100 ->  | E50: =VLOOKUP(B50,'Page 2 Bottom'!$A$3:$W$527,20,FALSE)/100 ->  | J50: 120 | M50: 12000 | Q50: =VLOOKUP(B50,'Page 1'!$A$3:$O$527,3,FALSE) ->  | R50: =VLOOKUP(B50,'Page 1'!$A$3:$O$527,9,FALSE) -> 
B52: * - School Portion of Property Tax prior to any available Disparity Aid or Taconite Hmstd. Adjustments

Sheet Disclosure
A3: ='Specific LLC Information'!A3 -> LLC Updated 10-02-17 Worksheet Update 10-30-17
A6: Disclosure Information
A7: Robert W. Baird & Co. Incorporated (“Baird”) is not recommending that you take or not take any action. Baird is not acting as financial advisor or municipal advisor to you and does not owe a fiduciary duty pursuant to Section 15B of the Securities Exchange Act of 1934 to you with respect to the information contained herein and/or accompanying materials (collectively, the “Materials”). Baird is acting for its own interests. You should discuss the Materials with any and all internal or external advisors and experts that you deem appropriate before acting on the Materials.
A9: Baird seeks to serve as underwriter (or placement agent) in connection with a possible issuance of municipal securities you may be considering and not as financial advisor or municipal advisor. Baird is providing the Materials for discussion purposes only, in anticipation of being engaged to serve as underwriter (or placement agent).
A11: The role of an underwriter includes the following: Municipal Securities Rulemaking Board Rule G-17 requires an underwriter to deal fairly at all times with both municipal issuers and investors. An underwriter’s primary role is to purchase the proposed securities to be issued with a view to distribution in an arm’s length commercial transaction with the issuer. An underwriter has financial and other interests that differ from those of the issuer. An underwriter may provide advice to the issuer concerning the structure, timing, terms, and other similar matters for an issuance of municipal securities. Any such advice, however, would be provided in the context of serving as an underwriter and not as municipal advisor, financial advisor or fiduciary. Unlike a municipal advisor, an underwriter does not have a fiduciary duty to the issuer under the federal securities laws and is therefore not required by federal law to act in the best interests of the issuer without regard to its own financial or other interests. An underwriter has a duty to purchase securities from the issuer at a fair and reasonable price but must balance that duty with its duty to sell those securities to investors at prices that are fair and reasonable. An underwriter will review the official statement (if any) applicable to the proposed issuance in accordance with, and as part of, its responsibilities to investors under the federal securities laws, as applied to the facts and circumstances of the proposed issuance.
A13: The Materials do not include any proposals, recommendations or suggestions that you take or refrain from taking any action with regard to an issuance of municipal securities and are not intended to be and should not be construed as ''advice'' within the meaning of Section 15B of the Securities Exchange Act of 1934 or Rule 15Ba1-1 thereunder. The Materials are intended to provide information of a factual, objective or educational nature, as well as general information about Baird (including its Public Finance unit) and its experience, qualifications and capabilities.
A15: Any information or estimates contained in the Materials are based on publicly available data, including information about recent transactions believed to be comparable, and Baird’s experience, and are subject to change without notice. Baird has not independently verified the accuracy of such data. Interested parties are advised to contact Baird for more information.
A17: If you have any questions or concerns about the above disclosures, please contact Baird Public Finance.
A19: If you have further questions or need additional information, please do not hesitate to call or email us.
A21: Michael R. Hoheisel Matt Rantapaa
A22: Managing Director Vice President
A23: Public Finance Public Finance
A24: Robert W. Baird & Co. Robert W. Baird & Co.
A26: Office Phone - (651) 426-8533 ext 2 Office Phone - (651) 426-8533 ext 3
A27: Mobile Phone - (651) 260-6451 Mobile Phone - (612) 499-6680
A28: Email: mhoheisel@rwbaird.com Email: mrantapaa@rwbaird.com

Sheet Page 1 (hidden)
A1: 1 | B1: 2 | C1: 3 | D1: 4 | E1: 5 | F1: 6 | G1: 7 | H1: 8 | I1: 9 | J1: 10 | K1: 11 | L1: 12 | M1: 13 | N1: 14 | O1: 15
C2: 1 | D2: 2 | E2: 3 | F2: 4 | G2: 5 | H2: 6 | I2: 7 | J2: 8 | K2: 9 | L2: 10 | M2: 11 | N2: 19 | O2: 20
A3: dst_num | B3: dst_tye | C3: rls_agc_asd_vlu | D3: rls_nag_asd_vlu | E3: prs_asd_vlu | F3: tax_icr_vlu | G3: trs_adj_vlu | H3: ctr_vlu | I3: mil_dtr_vlu | J3: dis_vlu | K3: tot_tax_vlu | L3: mkt_vlu_2 | M3: mil_dtr_vlu_job | N3: mkt_vlu_2_job | O3: dst_act_sts
A4: 1.2 | B4: 3 | C4: 15230 | D4: 540831224 | E4: 9074806 | F4: -46716798 | G4: 0 | H4: -62272973 | I4: 440931489 | J4: 52548027 | K4: 493479516 | L4: 43733641575 | M4: 0 | N4: 0 | O4: 1
A5: 1 | B5: 1 | C5: 2997912 | D5: 13601700 | E5: 95396 | F5: -164557 | G5: -230 | H5: -340096 | I5: 16190125 | J5: 337465 | K5: 16527590 | L5: 761843223 | M5: 0 | N5: 0 | O5: 1
A6: 2 | B6: 1 | C6: 478759 | D6: 875658 | E6: 38210 | F6: 0 | G6: -393 | H6: 0 | I6: 1392234 | J6: 0 | K6: 1392234 | L6: 73800245 | M6: 0 | N6: 0 | O6: 1
A7: 4 | B7: 1 | C7: 1777501 | D7: 6666099 | E7: 38151 | F7: -12541 | G7: -530 | H7: 0 | I7: 8468680 | J7: 0 | K7: 8468680 | L7: 291062031 | M7: 0 | N7: 0 | O7: 1
A8: 6 | B8: 3 | C8: 0 | D8: 14665644 | E8: 547530 | F8: -1732491 | G8: 0 | H8: -1166149 | I8: 12314534 | J8: 3902814 | K8: 16217348 | L8: 1394111550 | M8: 0 | N8: 0 | O8: 1
A9: 11 | B9: 1 | C9: 938097 | D9: 201436068 | E9: 3321065 | F9: -2276641 | G9: 0 | H9: -17137351 | I9: 186281238 | J9: 37330578 | K9: 223611816 | L9: 19129003568 | M9: 0 | N9: 0 | O9: 1
A10: 12 | B10: 1 | C10: 159401 | D10: 30664922 | E10: 440138 | F10: -335582 | G10: 0 | H10: -2562669 | I10: 28366210 | J10: 4806595 | K10: 33172805 | L10: 2880559100 | M10: 0 | N10: 0 | O10: 1
A11: 13 | B11: 1 | C11: 0 | D11: 19631243 | E11: 274429 | F11: -2080383 | G11: 0 | H11: -2133282 | I11: 15692007 | J11: 5770268 | K11: 21462275 | L11: 1775647200 | M11: 0 | N11: 0 | O11: 1
A12: 14 | B12: 1 | C12: 0 | D12: 12977882 | E12: 244136 | F12: -369072 | G12: 0 | H12: -1414203 | I12: 11438743 | J12: 2889579 | K12: 14328322 | L12: 1154599300 | M12: 0 | N12: 0 | O12: 1
A13: 15 | B13: 1 | C13: 1537125 | D13: 23849295 | E13: 596028 | F13: -69957 | G13: 0 | H13: -890485 | I13: 25022006 | J13: 4668763 | K13: 29690769 | L13: 2537745700 | M13: 0 | N13: 0 | O13: 1
A14: 16 | B14: 1 | C14: 0 | D14: 40185093 | E14: 1076296 | F14: -293661 | G14: 0 | H14: -6130284 | I14: 34837444 | J14: 5222127 | K14: 40059571 | L14: 3308834800 | M14: 0 | N14: 0 | O14: 1
A15: 21 | B15: 1 | C15: 0 | D15: 0 | E15: 0 | F15: 0 | G15: 0 | H15: 0 | I15: 0 | J15: 0 | K15: 0 | L15: 0 | M15: 0 | N15: 0 | O15: 0
A16: 22 | B16: 1 | C16: 1994621 | D16: 21890838 | E16: 185183 | F16: -518803 | G16: -134 | H16: 0 | I16: 23551705 | J16: 0 | K16: 23551705 | L16: 1491284900 | M16: 0 | N16: 0 | O16: 1
A17: 23 | B17: 1 | C17: 1899667 | D17: 5722188 | E17: 109011 | F17: -68566 | G17: -197 | H17: 0 | I17: 7662103 | J17: 0 | K17: 7662103 | L17: 453106077 | M17: 0 | N17: 0 | O17: 1
A18: 24 | B18: 1 | C18: 0 | D18: 0 | E18: 0 | F18: 0 | G18: 0 | H18: 0 | I18: 0 | J18: 0 | K18: 0 | L18: 0 | M18: 0 | N18: 0 | O18: 0
A19: 25 | B19: 1 | C19: 0 | D19: 0 | E19: 0 | F19: 0 | G19: 0 | H19: 0 | I19: 0 | J19: 0 | K19: 0 | L19: 0 | M19: 0 | N19: 0 | O19: 1
A20: 31 | B20: 1 | C20: 2769002 | D20: 26420712 | E20: 4270468 | F20: -305373 | G20: 0 | H20: 0 | I20: 33154809 | J20: 0 | K20: 33154809 | L20: 2484019284 | M20: 0 | N20: 0 | O20: 1
A21: 32 | B21: 1 | C21: 1018485 | D21: 2038152 | E21: 25320 | F21: -17288 | G21: 0 | H21: 0 | I21: 3064669 | J21: 0 | K21: 3064669 | L21: 183854615 | M21: 0 | N21: 0 | O21: 1
A22: 36 | B22: 1 | C22: 534727 | D22: 567581 | E22: 17203 | F22: 0 | G22: 0 | H22: 0 | I22: 1119511 | J22: 0 | K22: 1119511 | L22: 40570890 | M22: 0 | N22: 0 | O22: 1
A23: 38 | B23: 1 | C23: 0 | D23: 1985 | E23: 14062 | F23: 0 | G23: 0 | H23: 0 | I23: 16047 | J23: 0 | K23: 16047 | L23: 908800 | M23: 0 | N23: 0 | O23: 1
A24: 47 | B24: 1 | C24: 1816103 | D24: 15622558 | E24: 414549 | F24: -240093 | G24: -1238 | H24: 0 | I24: 17611879 | J24: 0 | K24: 17611879 | L24: 1508058955 | M24: 0 | N24: 0 | O24: 1
A25: 51 | B25: 1 | C25: 3497422 | D25: 3413964 | E25: 222695 | F25: -1208 | G25: -4655 | H25: 0 | I25: 7128218 | J25: 0 | K25: 7128218 | L25: 511907025 | M25: 0 | N25: 0 | O25: 1
A26: 55 | B26: 1 | C26: 0 | D26: 0 | E26: 0 | F26: 0 | G26: 0 | H26: 0 | I26: 0 | J26: 0 | K26: 0 | L26: 0 | M26: 0 | N26: 0 | O26: 0
A27: 57 | B27: 1 | C27: 0 | D27: 0 | E27: 0 | F27: 0 | G27: 0 | H27: 0 | I27: 0 | J27: 0 | K27: 0 | L27: 0 | M27: 0 | N27: 0 | O27: 0
A28: 58 | B28: 1 | C28: 0 | D28: 0 | E28: 0 | F28: 0 | G28: 0 | H28: 0 | I28: 0 | J28: 0 | K28: 0 | L28: 0 | M28: 0 | N28: 0 | O28: 0
A29: 60 | B29: 1 | C29: 0 | D29: 0 | E29: 0 | F29: 0 | G29: 0 | H29: 0 | I29: 0 | J29: 0 | K29: 0 | L29: 0 | M29: 0 | N29: 0 | O29: 0
A30: 62 | B30: 1 | C30: 0 | D30: 0 | E30: 0 | F30: 0 | G30: 0 | H30: 0 | I30: 0 | J30: 0 | K30: 0 | L30: 0 | M30: 0 | N30: 0 | O30: 0
A31: 70 | B31: 1 | C31: 0 | D31: 0 | E31: 0 | F31: 0 | G31: 0 | H31: 0 | I31: 0 | J31: 0 | K31: 0 | L31: 0 | M31: 0 | N31: 0 | O31: 0
A32: 72 | B32: 1 | C32: 0 | D32: 0 | E32: 0 | F32: 0 | G32: 0 | H32: 0 | I32: 0 | J32: 0 | K32: 0 | L32: 0 | M32: 0 | N32: 0 | O32: 0
A33: 75 | B33: 1 | C33: 2478354 | D33: 1637236 | E33: 183027 | F33: 0 | G33: 0 | H33: 0 | I33: 4298617 | J33: 0 | K33: 4298617 | L33: 210449300 | M33: 0 | N33: 0 | O33: 1
A34: 77 | B34: 1 | C34: 3325880 | D34: 61482633 | E34: 1617206 | F34: -1322099 | G34: 0 | H34: 0 | I34: 65103620 | J34: 0 | K34: 65103620 | L34: 5166583900 | M34: 0 | N34: 0 | O34: 1
A35: 78 | B35: 1 | C35: 0 | D35: 0 | E35: 0 | F35: 0 | G35: 0 | H35: 0 | I35: 0 | J35: 0 | K35: 0 | L35: 0 | M35: 0 | N35: 0 | O35: 0
A36: 79 | B36: 1 | C36: 0 | D36: 0 | E36: 0 | F36: 0 | G36: 0 | H36: 0 | I36: 0 | J36: 0 | K36: 0 | L36: 0 | M36: 0 | N36: 0 | O36: 0
A37: 81 | B37: 1 | C37: 4160060 | D37: 272050 | E37: 22516 | F37: 0 | G37: 0 | H37: 0 | I37: 4454626 | J37: 0 | K37: 4454626 | L37: 43228575 | M37: 0 | N37: 0 | O37: 1
A38: 84 | B38: 1 | C38: 7000166 | D38: 2234786 | E38: 92651 | F38: -55730 | G38: 0 | H38: 0 | I38: 9271873 | J38: 0 | K38: 9271873 | L38: 274292190 | M38: 0 | N38: 0 | O38: 1
A39: 85 | B39: 1 | C39: 5209520 | D39: 1270380 | E39: 66069 | F39: -12821 | G39: 0 | H39: 0 | I39: 6533148 | J39: 0 | K39: 6533148 | L39: 145569235 | M39: 0 | N39: 0 | O39: 1
A40: 88 | B40: 1 | C40: 9870102 | D40: 11978205 | E40: 179095 | F40: -165526 | G40: 0 | H40: 0 | I40: 21861876 | J40: 0 | K40: 21861876 | L40: 1232187840 | M40: 0 | N40: 0 | O40: 1
A41: 91 | B41: 1 | C41: 926782 | D41: 2091538 | E41: 103064 | F41: 0 | G41: -1467 | H41: 0 | I41: 3119917 | J41: 0 | K41: 3119917 | L41: 218631425 | M41: 0 | N41: 0 | O41: 1
A42: 93 | B42: 1 | C42: 464797 | D42: 3059605 | E42: 1166784 | F42: -14028 | G42: -370 | H42: 0 | I42: 4676788 | J42: 0 | K42: 4676788 | L42: 352284145 | M42: 0 | N42: 0 | O42: 1
A43: 94 | B43: 1 | C43: 247278 | D43: 9186526 | E43: 966582 | F43: -64952 | G43: -649 | H43: 0 | I43: 10334785 | J43: 0 | K43: 10334785 | L43: 899291080 | M43: 0 | N43: 0 | O43: 1
A44: 95 | B44: 1 | C44: 561943 | D44: 1344793 | E44: 155458 | F44: -32544 | G44: -4925 | H44: 0 | I44: 2024725 | J44: 0 | K44: 2024725 | L44: 110255775 | M44: 0 | N44: 0 | O44: 1
A45: 97 | B45: 1 | C45: 728839 | D45: 3464235 | E45: 91011 | F45: -18704 | G45: -2667 | H45: 0 | I45: 4262714 | J45: 0 | K45: 4262714 | L45: 273572121 | M45: 0 | N45: 0 | O45: 1
A46: 99 | B46: 1 | C46: 239514 | D46: 4972226 | E46: 53324 | F46: 0 | G46: -338 | H46: 0 | I46: 5264726 | J46: 0 | K46: 5264726 | L46: 464065548 | M46: 0 | N46: 0 | O46: 1
A47: 100 | B47: 1 | C47: 465270 | D47: 1540082 | E47: 1310498 | F47: 0 | G47: 0 | H47: 0 | I47: 3315850 | J47: 0 | K47: 3315850 | L47: 196593300 | M47: 0 | N47: 0 | O47: 1
A48: 108 | B48: 1 | C48: 2854510 | D48: 6074859 | E48: 487517 | F48: -139593 | G48: 0 | H48: -610628 | I48: 8666665 | J48: 1265745 | K48: 9932410 | L48: 665055000 | M48: 0 | N48: 0 | O48: 1
A49: 110 | B49: 1 | C49: 2189162 | D49: 23061834 | E49: 559156 | F49: -299378 | G49: 0 | H49: -1712803 | I49: 23797971 | J49: 2313327 | K49: 26111298 | L49: 2223889450 | M49: 0 | N49: 0 | O49: 1
A50: 111 | B50: 1 | C50: 2556216 | D50: 8120802 | E50: 315777 | F50: 0 | G50: 0 | H50: -373177 | I50: 10619618 | J50: 1354314 | K50: 11973932 | L50: 890008900 | M50: 0 | N50: 0 | O50: 1
A51: 112 | B51: 1 | C51: 1665522 | D51: 75489578 | E51: 1334344 | F51: -964777 | G51: 0 | H51: -7095074 | I51: 70429593 | J51: 5805777 | K51: 76235370 | L51: 6818536200 | M51: 0 | N51: 0 | O51: 1
A52: 113 | B52: 1 | C52: 1620067 | D52: 18029913 | E52: 253539 | F52: -214971 | G52: -119 | H52: 0 | I52: 19688429 | J52: 0 | K52: 19688429 | L52: 783495775 | M52: 0 | N52: 0 | O52: 1
A53: 114 | B53: 1 | C53: 0 | D53: 0 | E53: 0 | F53: 0 | G53: 0 | H53: 0 | I53: 0 | J53: 0 | K53: 0 | L53: 0 | M53: 0 | N53: 0 | O53: 0
A54: 115 | B54: 1 | C54: 411408 | D54: 3760030 | E54: 4399160 | F54: -3299 | G54: -23201 | H54: 0 | I54: 8544098 | J54: 0 | K54: 8544098 | L54: 415880005 | M54: 0 | N54: 0 | O54: 1
A55: 116 | B55: 1 | C55: 1040760 | D55: 8686725 | E55: 278587 | F55: -21896 | G55: 0 | H55: 0 | I55: 9984176 | J55: 0 | K55: 9984176 | L55: 482760540 | M55: 0 | N55: 0 | O55: 1
A56: 117 | B56: 1 | C56: 0 | D56: 0 | E56: 0 | F56: 0 | G56: 0 | H56: 0 | I56: 0 | J56: 0 | K56: 0 | L56: 0 | M56: 0 | N56: 0 | O56: 0
A57: 118 | B57: 1 | C57: 1384787 | D57: 13073074 | E57: 784815 | F57: -4908 | G57: -1224 | H57: 0 | I57: 15236544 | J57: 0 | K57: 15236544 | L57: 469769375 | M57: 0 | N57: 0 | O57: 1
A58: 119 | B58: 1 | C58: 0 | D58: 0 | E58: 0 | F58: 0 | G58: 0 | H58: 0 | I58: 0 | J58: 0 | K58: 0 | L58: 0 | M58: 0 | N58: 0 | O58: 0
A59: 126 | B59: 1 | C59: 0 | D59: 0 | E59: 0 | F59: 0 | G59: 0 | H59: 0 | I59: 0 | J59: 0 | K59: 0 | L59: 0 | M59: 0 | N59: 0 | O59: 0
A60: 127 | B60: 1 | C60: 0 | D60: 0 | E60: 0 | F60: 0 | G60: 0 | H60: 0 | I60: 0 | J60: 0 | K60: 0 | L60: 0 | M60: 0 | N60: 0 | O60: 0
A61: 128 | B61: 1 | C61: 0 | D61: 0 | E61: 0 | F61: 0 | G61: 0 | H61: 0 | I61: 0 | J61: 0 | K61: 0 | L61: 0 | M61: 0 | N61: 0 | O61: 0
A62: 129 | B62: 1 | C62: 4849015 | D62: 3370831 | E62: 120943 | F62: -15058 | G62: 0 | H62: 0 | I62: 8325731 | J62: 0 | K62: 8325731 | L62: 356180470 | M62: 0 | N62: 0 | O62: 1
A63: 138 | B63: 1 | C63: 2046571 | D63: 14364395 | E63: 418609 | F63: -360617 | G63: -2917 | H63: 0 | I63: 16466041 | J63: 0 | K63: 16466041 | L63: 1490713100 | M63: 0 | N63: 0 | O63: 1
A64: 139 | B64: 1 | C64: 957207 | D64: 3585916 | E64: 191391 | F64: -41228 | G64: -2361 | H64: 0 | I64: 4690925 | J64: 0 | K64: 4690925 | L64: 381477700 | M64: 0 | N64: 0 | O64: 1
A65: 140 | B65: 1 | C65: 0 | D65: 0 | E65: 0 | F65: 0 | G65: 0 | H65: 0 | I65: 0 | J65: 0 | K65: 0 | L65: 0 | M65: 0 | N65: 0 | O65: 0
A66: 141 | B66: 1 | C66: 0 | D66: 0 | E66: 0 | F66: 0 | G66: 0 | H66: 0 | I66: 0 | J66: 0 | K66: 0 | L66: 0 | M66: 0 | N66: 0 | O66: 0
A67: 145 | B67: 1 | C67: 0 | D67: 0 | E67: 0 | F67: 0 | G67: 0 | H67: 0 | I67: 0 | J67: 0 | K67: 0 | L67: 0 | M67: 0 | N67: 0 | O67: 0
A68: 146 | B68: 1 | C68: 5377646 | D68: 2402960 | E68: 646776 | F68: -138958 | G68: -45778 | H68: 0 | I68: 8242646 | J68: 0 | K68: 8242646 | L68: 317140200 | M68: 0 | N68: 0 | O68: 1
A69: 147 | B69: 1 | C69: 0 | D69: 0 | E69: 0 | F69: 0 | G69: 0 | H69: 0 | I69: 0 | J69: 0 | K69: 0 | L69: 0 | M69: 0 | N69: 0 | O69: 0
A70: 150 | B70: 1 | C70: 1879987 | D70: 3244232 | E70: 94973 | F70: -241222 | G70: 0 | H70: 0 | I70: 4977970 | J70: 0 | K70: 4977970 | L70: 336794100 | M70: 0 | N70: 0 | O70: 1
A71: 152 | B71: 1 | C71: 4634366 | D71: 35045361 | E71: 398329 | F71: -971266 | G71: -8508 | H71: 0 | I71: 39098282 | J71: 0 | K71: 39098282 | L71: 3181299900 | M71: 0 | N71: 0 | O71: 1
A72: 158 | B72: 1 | C72: 0 | D72: 0 | E72: 0 | F72: 0 | G72: 0 | H72: 0 | I72: 0 | J72: 0 | K72: 0 | L72: 0 | M72: 0 | N72: 0 | O72: 0
A73: 161 | B73: 1 | C73: 0 | D73: 0 | E73: 0 | F73: 0 | G73: 0 | H73: 0 | I73: 0 | J73: 0 | K73: 0 | L73: 0 | M73: 0 | N73: 0 | O73: 0
A74: 162 | B74: 1 | C74: 1653474 | D74: 2279897 | E74: 828676 | F74: -53776 | G74: 0 | H74: 0 | I74: 4708271 | J74: 0 | K74: 4708271 | L74: 276058600 | M74: 0 | N74: 0 | O74: 1
A75: 166 | B75: 1 | C75: 1529509 | D75: 14769197 | E75: 267245 | F75: 0 | G75: 0 | H75: -520879 | I75: 16045072 | J75: 86631 | K75: 16131703 | L75: 630122113 | M75: 0 | N75: 0 | O75: 1
A76: 173 | B76: 1 | C76: 5909774 | D76: 1058665 | E76: 169837 | F76: -103761 | G76: 0 | H76: 0 | I76: 7034515 | J76: 0 | K76: 7034515 | L76: 128854600 | M76: 0 | N76: 0 | O76: 1
A77: 175 | B77: 1 | C77: 0 | D77: 0 | E77: 0 | F77: 0 | G77: 0 | H77: 0 | I77: 0 | J77: 0 | K77: 0 | L77: 0 | M77: 0 | N77: 0 | O77: 0
A78: 177 | B78: 1 | C78: 6414330 | D78: 3641252 | E78: 521975 | F78: -472200 | G78: 0 | H78: 0 | I78: 10105357 | J78: 0 | K78: 10105357 | L78: 372002900 | M78: 0 | N78: 0 | O78: 1
A79: 178 | B79: 1 | C79: 0 | D79: 0 | E79: 0 | F79: 0 | G79: 0 | H79: 0 | I79: 0 | J79: 0 | K79: 0 | L79: 0 | M79: 0 | N79: 0 | O79: 0
A80: 181 | B80: 1 | C80: 2890521 | D80: 53343422 | E80: 673873 | F80: -816195 | G80: -495 | H80: 0 | I80: 56091126 | J80: 0 | K80: 56091126 | L80: 3753340495 | M80: 0 | N80: 0 | O80: 1
A81: 182 | B81: 1 | C81: 1283336 | D81: 17889490 | E81: 324171 | F81: -166529 | G81: 0 | H81: -305218 | I81: 19025250 | J81: 510549 | K81: 19535799 | L81: 941627249 | M81: 0 | N81: 0 | O81: 1
A82: 186 | B82: 1 | C82: 652576 | D82: 30926184 | E82: 229149 | F82: -59936 | G82: 0 | H82: 0 | I82: 31747973 | J82: 0 | K82: 31747973 | L82: 1264954923 | M82: 0 | N82: 0 | O82: 1
A83: 191 | B83: 1 | C83: 37415 | D83: 79641686 | E83: 1326830 | F83: -3516222 | G83: 0 | H83: -12379481 | I83: 65110228 | J83: 8280802 | K83: 73391030 | L83: 6621350810 | M83: 0 | N83: 0 | O83: 1
A84: 192 | B84: 1 | C84: 2369738 | D84: 26876262 | E84: 1629262 | F84: -197793 | G84: 0 | H84: -1743707 | I84: 28933762 | J84: 4618592 | K84: 33552354 | L84: 2795558853 | M84: 0 | N84: 0 | O84: 1
A85: 194 | B85: 1 | C85: 1735230 | D85: 70441968 | E85: 1528529 | F85: -516923 | G85: -9677 | H85: -5609360 | I85: 67569767 | J85: 7006076 | K85: 74575843 | L85: 6542908725 | M85: 0 | N85: 0 | O85: 1
A86: 195 | B86: 1 | C86: 2123672 | D86: 2775639 | E86: 302200 | F86: 0 | G86: 0 | H86: -223587 | I86: 4977924 | J86: 176444 | K86: 5154368 | L86: 304769685 | M86: 0 | N86: 0 | O86: 1
A87: 196 | B87: 1 | C87: 1185200 | D87: 168946979 | E87: 3422727 | F87: -2471521 | G87: 0 | H87: -15383671 | I87: 155699714 | J87: 19311063 | K87: 175010777 | L87: 15593078470 | M87: 0 | N87: 0 | O87: 1
A88: 197 | B88: 1 | C88: 17100 | D88: 69132199 | E88: 1086942 | F88: -1169377 | G88: 0 | H88: -11397427 | I88: 57669437 | J88: 5459243 | K88: 63128680 | L88: 5507775025 | M88: 0 | N88: 0 | O88: 1
A89: 199 | B89: 1 | C89: 96474 | D89: 30948126 | E89: 611907 | F89: -1855640 | G89: 0 | H89: -3917829 | I89: 25883038 | J89: 3471670 | K89: 29354708 | L89: 2719753074 | M89: 0 | N89: 0 | O89: 1
A90: 200 | B90: 1 | C90: 4737094 | D90: 28284140 | E90: 837518 | F90: -35076 | G90: -1995 | H90: -2147819 | I90: 31673862 | J90: 4713531 | K90: 36387393 | L90: 2825969272 | M90: 0 | N90: 0 | O90: 1
A91: 201 | B91: 1 | C91: 0 | D91: 0 | E91: 0 | F91: 0 | G91: 0 | H91: 0 | I91: 0 | J91: 0 | K91: 0 | L91: 0 | M91: 0 | N91: 0 | O91: 0
A92: 202 | B92: 1 | C92: 0 | D92: 0 | E92: 0 | F92: 0 | G92: 0 | H92: 0 | I92: 0 | J92: 0 | K92: 0 | L92: 0 | M92: 0 | N92: 0 | O92: 0
A93: 203 | B93: 1 | C93: 6534761 | D93: 1965982 | E93: 487362 | F93: -11274 | G93: 0 | H93: 0 | I93: 8976831 | J93: 0 | K93: 8976831 | L93: 275570800 | M93: 0 | N93: 0 | O93: 1
A94: 204 | B94: 1 | C94: 2820694 | D94: 5880675 | E94: 201541 | F94: -75479 | G94: 0 | H94: 0 | I94: 8827431 | J94: 0 | K94: 8827431 | L94: 666469025 | M94: 0 | N94: 0 | O94: 1
A95: 205 | B95: 1 | C95: 0 | D95: 0 | E95: 0 | F95: 0 | G95: 0 | H95: 0 | I95: 0 | J95: 0 | K95: 0 | L95: 0 | M95: 0 | N95: 0 | O95: 0
A96: 206 | B96: 1 | C96: 3624971 | D96: 40626378 | E96: 936620 | F96: -1285627 | G96: -45165 | H96: 0 | I96: 43857177 | J96: 0 | K96: 43857177 | L96: 3017288900 | M96: 0 | N96: 0 | O96: 1
A97: 207 | B97: 1 | C97: 0 | D97: 0 | E97: 0 | F97: 0 | G97: 0 | H97: 0 | I97: 0 | J97: 0 | K97: 0 | L97: 0 | M97: 0 | N97: 0 | O97: 0
A98: 208 | B98: 1 | C98: 0 | D98: 0 | E98: 0 | F98: 0 | G98: 0 | H98: 0 | I98: 0 | J98: 0 | K98: 0 | L98: 0 | M98: 0 | N98: 0 | O98: 0
A99: 209 | B99: 1 | C99: 0 | D99: 0 | E99: 0 | F99: 0 | G99: 0 | H99: 0 | I99: 0 | J99: 0 | K99: 0 | L99: 0 | M99: 0 | N99: 0 | O99: 0
A100: 213 | B100: 1 | C100: 1677911 | D100: 2657520 | E100: 381619 | F100: -65844 | G100: -25984 | H100: 0 | I100: 4625222 | J100: 0 | K100: 4625222 | L100: 240562400 | M100: 0 | N100: 0 | O100: 1
A101: 217 | B101: 1 | C101: 0 | D101: 0 | E101: 0 | F101: 0 | G101: 0 | H101: 0 | I101: 0 | J101: 0 | K101: 0 | L101: 0 | M101: 0 | N101: 0 | O101: 0
A102: 218 | B102: 1 | C102: 0 | D102: 0 | E102: 0 | F102: 0 | G102: 0 | H102: 0 | I102: 0 | J102: 0 | K102: 0 | L102: 0 | M102: 0 | N102: 0 | O102: 0
A103: 219 | B103: 1 | C103: 0 | D103: 0 | E103: 0 | F103: 0 | G103: 0 | H103: 0 | I103: 0 | J103: 0 | K103: 0 | L103: 0 | M103: 0 | N103: 0 | O103: 0
A104: 222 | B104: 1 | C104: 0 | D104: 0 | E104: 0 | F104: 0 | G104: 0 | H104: 0 | I104: 0 | J104: 0 | K104: 0 | L104: 0 | M104: 0 | N104: 0 | O104: 0
A105: 223 | B105: 1 | C105: 0 | D105: 0 | E105: 0 | F105: 0 | G105: 0 | H105: 0 | I105: 0 | J105: 0 | K105: 0 | L105: 0 | M105: 0 | N105: 0 | O105: 0
A106: 224 | B106: 1 | C106: 0 | D106: 0 | E106: 0 | F106: 0 | G106: 0 | H106: 0 | I106: 0 | J106: 0 | K106: 0 | L106: 0 | M106: 0 | N106: 0 | O106: 0
A107: 225 | B107: 1 | C107: 0 | D107: 0 | E107: 0 | F107: 0 | G107: 0 | H107: 0 | I107: 0 | J107: 0 | K107: 0 | L107: 0 | M107: 0 | N107: 0 | O107: 0
A108: 227 | B108: 1 | C108: 3859950 | D108: 2759566 | E108: 207580 | F108: -83734 | G108: 0 | H108: 0 | I108: 6743362 | J108: 0 | K108: 6743362 | L108: 353855325 | M108: 0 | N108: 0 | O108: 1
A109: 228 | B109: 1 | C109: 0 | D109: 0 | E109: 0 | F109: 0 | G109: 0 | H109: 0 | I109: 0 | J109: 0 | K109: 0 | L109: 0 | M109: 0 | N109: 0 | O109: 0
A110: 229 | B110: 1 | C110: 1923781 | D110: 1000901 | E110: 57082 | F110: -20993 | G110: 0 | H110: 0 | I110: 2960771 | J110: 0 | K110: 2960771 | L110: 115066075 | M110: 0 | N110: 0 | O110: 1
A111: 232 | B111: 1 | C111: 0 | D111: 0 | E111: 0 | F111: 0 | G111: 0 | H111: 0 | I111: 0 | J111: 0 | K111: 0 | L111: 0 | M111: 0 | N111: 0 | O111: 0
A112: 233 | B112: 1 | C112: 0 | D112: 0 | E112: 0 | F112: 0 | G112: 0 | H112: 0 | I112: 0 | J112: 0 | K112: 0 | L112: 0 | M112: 0 | N112: 0 | O112: 0
A113: 234 | B113: 1 | C113: 0 | D113: 0 | E113: 0 | F113: 0 | G113: 0 | H113: 0 | I113: 0 | J113: 0 | K113: 0 | L113: 0 | M113: 0 | N113: 0 | O113: 0
A114: 236 | B114: 1 | C114: 0 | D114: 0 | E114: 0 | F114: 0 | G114: 0 | H114: 0 | I114: 0 | J114: 0 | K114: 0 | L114: 0 | M114: 0 | N114: 0 | O114: 0
A115: 237 | B115: 1 | C115: 0 | D115: 0 | E115: 0 | F115: 0 | G115: 0 | H115: 0 | I115: 0 | J115: 0 | K115: 0 | L115: 0 | M115: 0 | N115: 0 | O115: 0
A116: 238 | B116: 1 | C116: 2655987 | D116: 701750 | E116: 158190 | F116: -4077 | G116: 0 | H116: 0 | I116: 3511850 | J116: 0 | K116: 3511850 | L116: 98397715 | M116: 0 | N116: 0 | O116: 1
A117: 239 | B117: 1 | C117: 3045970 | D117: 2019369 | E117: 119839 | F117: -10418 | G117: 0 | H117: 0 | I117: 5174760 | J117: 0 | K117: 5174760 | L117: 238443725 | M117: 0 | N117: 0 | O117: 1
A118: 240 | B118: 1 | C118: 0 | D118: 0 | E118: 0 | F118: 0 | G118: 0 | H118: 0 | I118: 0 | J118: 0 | K118: 0 | L118: 0 | M118: 0 | N118: 0 | O118: 0
A119: 241 | B119: 1 | C119: 5693136 | D119: 12489835 | E119: 1559258 | F119: -276169 | G119: 0 | H119: 0 | I119: 19466060 | J119: 0 | K119: 19466060 | L119: 1279243040 | M119: 0 | N119: 0 | O119: 1
A120: 242 | B120: 1 | C120: 2791773 | D120: 478576 | E120: 131468 | F120: -13232 | G120: 0 | H120: 0 | I120: 3388585 | J120: 0 | K120: 3388585 | L120: 79021565 | M120: 0 | N120: 0 | O120: 1
A121: 243 | B121: 1 | C121: 0 | D121: 0 | E121: 0 | F121: 0 | G121: 0 | H121: 0 | I121: 0 | J121: 0 | K121: 0 | L121: 0 | M121: 0 | N121: 0 | O121: 0
A122: 244 | B122: 1 | C122: 0 | D122: 0 | E122: 0 | F122: 0 | G122: 0 | H122: 0 | I122: 0 | J122: 0 | K122: 0 | L122: 0 | M122: 0 | N122: 0 | O122: 0
A123: 245 | B123: 1 | C123: 0 | D123: 0 | E123: 0 | F123: 0 | G123: 0 | H123: 0 | I123: 0 | J123: 0 | K123: 0 | L123: 0 | M123: 0 | N123: 0 | O123: 0
A124: 252 | B124: 1 | C124: 3352473 | D124: 6641559 | E124: 382684 | F124: 0 | G124: -25465 | H124: -21536 | I124: 10329715 | J124: 9681 | K124: 10339396 | L124: 721960700 | M124: 0 | N124: 0 | O124: 1
A125: 253 | B125: 1 | C125: 3206113 | D125: 1475509 | E125: 60247 | F125: -55033 | G125: 0 | H125: 0 | I125: 4686836 | J125: 0 | K125: 4686836 | L125: 203469250 | M125: 0 | N125: 0 | O125: 1
A126: 254 | B126: 1 | C126: 0 | D126: 0 | E126: 0 | F126: 0 | G126: 0 | H126: 0 | I126: 0 | J126: 0 | K126: 0 | L126: 0 | M126: 0 | N126: 0 | O126: 0
A127: 255 | B127: 1 | C127: 2513748 | D127: 4455755 | E127: 735293 | F127: -42823 | G127: -23374 | H127: 0 | I127: 7638599 | J127: 0 | K127: 7638599 | L127: 546214700 | M127: 0 | N127: 0 | O127: 1
A128: 256 | B128: 1 | C128: 2787600 | D128: 33544888 | E128: 566171 | F128: -101060 | G128: 0 | H128: 0 | I128: 36797599 | J128: 0 | K128: 36797599 | L128: 2438457700 | M128: 0 | N128: 0 | O128: 1
A129: 258 | B129: 1 | C129: 0 | D129: 0 | E129: 0 | F129: 0 | G129: 0 | H129: 0 | I129: 0 | J129: 0 | K129: 0 | L129: 0 | M129: 0 | N129: 0 | O129: 0
A130: 260 | B130: 1 | C130: 0 | D130: 0 | E130: 0 | F130: 0 | G130: 0 | H130: 0 | I130: 0 | J130: 0 | K130: 0 | L130: 0 | M130: 0 | N130: 0 | O130: 0
A131: 261 | B131: 1 | C131: 1124491 | D131: 1082987 | E131: 263322 | F131: -9919 | G131: -23246 | H131: 0 | I131: 2437635 | J131: 0 | K131: 2437635 | L131: 100511500 | M131: 0 | N131: 0 | O131: 1
A132: 262 | B132: 1 | C132: 0 | D132: 0 | E132: 0 | F132: 0 | G132: 0 | H132: 0 | I132: 0 | J132: 0 | K132: 0 | L132: 0 | M132: 0 | N132: 0 | O132: 0
A133: 263 | B133: 1 | C133: 0 | D133: 0 | E133: 0 | F133: 0 | G133: 0 | H133: 0 | I133: 0 | J133: 0 | K133: 0 | L133: 0 | M133: 0 | N133: 0 | O133: 0
A134: 264 | B134: 1 | C134: 4575548 | D134: 346178 | E134: 217346 | F134: 0 | G134: -5345 | H134: 0 | I134: 5133727 | J134: 0 | K134: 5133727 | L134: 52608200 | M134: 0 | N134: 0 | O134: 1
A135: 265 | B135: 1 | C135: 0 | D135: 0 | E135: 0 | F135: 0 | G135: 0 | H135: 0 | I135: 0 | J135: 0 | K135: 0 | L135: 0 | M135: 0 | N135: 0 | O135: 0
A136: 270 | B136: 1 | C136: 0 | D136: 132941977 | E136: 1170835 | F136: -4922164 | G136: 0 | H136: -21492472 | I136: 107698176 | J136: 6438546 | K136: 114136722 | L136: 10221031275 | M136: 0 | N136: 0 | O136: 1
A137: 271 | B137: 1 | C137: 3655 | D137: 158717809 | E137: 1449016 | F137: -12708652 | G137: 0 | H137: -21724062 | I137: 125737766 | J137: 8433402 | K137: 134171168 | L137: 11851068700 | M137: 0 | N137: 0 | O137: 1
A138: 272 | B138: 1 | C138: 44200 | D138: 112695904 | E138: 1813017 | F138: -3209405 | G138: 0 | H138: -15274019 | I138: 96069697 | J138: 4903173 | K138: 100972870 | L138: 9255347675 | M138: 0 | N138: 0 | O138: 1
A139: 273 | B139: 1 | C139: 0 | D139: 106144123 | E139: 434354 | F139: -1837358 | G139: 0 | H139: -7725787 | I139: 97015332 | J139: 2539122 | K139: 99554454 | L139: 8997851250 | M139: 0 | N139: 0 | O139: 1
A140: 276 | B140: 1 | C140: 12061 | D140: 88690042 | E140: 651305 | F140: -106294 | G140: 0 | H140: -2636801 | I140: 86610313 | J140: 2870275 | K140: 89480588 | L140: 7797460600 | M140: 0 | N140: 0 | O140: 1
A141: 277 | B141: 1 | C141: 213923 | D141: 37316809 | E141: 428391 | F141: -650684 | G141: 0 | H141: -757398 | I141: 36551041 | J141: 1437650 | K141: 37988691 | L141: 3333355750 | M141: 0 | N141: 0 | O141: 1
A142: 278 | B142: 1 | C142: 675974 | D142: 38093922 | E142: 347527 | F142: -160004 | G142: 0 | H142: -1239845 | I142: 37717574 | J142: 840335 | K142: 38557909 | L142: 3182404550 | M142: 0 | N142: 0 | O142: 1
A143: 279 | B143: 1 | C143: 923629 | D143: 169619505 | E143: 2686218 | F143: -3216834 | G143: -5094 | H143: -22001896 | I143: 148005528 | J143: 19576883 | K143: 167582411 | L143: 14521359705 | M143: 0 | N143: 0 | O143: 1
A144: 280 | B144: 1 | C144: 0 | D144: 53381745 | E144: 495368 | F144: -5498277 | G144: 0 | H144: -8342402 | I144: 40036434 | J144: 6063378 | K144: 46099812 | L144: 4236913179 | M144: 0 | N144: 0 | O144: 1
A145: 281 | B145: 1 | C145: 444 | D145: 94470567 | E145: 1430075 | F145: -2804981 | G145: 0 | H145: -9078698 | I145: 84017407 | J145: 15883569 | K145: 99900976 | L145: 8497124725 | M145: 0 | N145: 0 | O145: 1
A146: 282 | B146: 1 | C146: 0 | D146: 11172693 | E146: 187652 | F146: -1303995 | G146: 0 | H146: -689985 | I146: 9366365 | J146: 1440971 | K146: 10807336 | L146: 1021079100 | M146: 0 | N146: 0 | O146: 1
A147: 283 | B147: 1 | C147: 0 | D147: 73099263 | E147: 608494 | F147: -8211886 | G147: 0 | H147: -8334158 | I147: 57161713 | J147: 4839060 | K147: 62000773 | L147: 6028721350 | M147: 0 | N147: 0 | O147: 1
A148: 284 | B148: 1 | C148: 270129 | D148: 151013068 | E148: 1798257 | F148: -3919143 | G148: 0 | H148: -18138351 | I148: 131023960 | J148: 6041163 | K148: 137065123 | L148: 12122349125 | M148: 0 | N148: 0 | O148: 1
A149: 286 | B149: 1 | C149: 0 | D149: 7595371 | E149: 146093 | F149: -1204717 | G149: 0 | H149: -1331651 | I149: 5205096 | J149: 2052852 | K149: 7257948 | L149: 599403133 | M149: 0 | N149: 0 | O149: 1
A150: 287 | B150: 6 | C150: 0 | D150: 0 | E150: 0 | F150: 0 | G150: 0 | H150: 0 | I150: 0 | J150: 0 | K150: 0 | L150: 0 | M150: 0 | N150: 0 | O150: 0
A151: 288 | B151: 6 | C151: 0 | D151: 0 | E151: 0 | F151: 0 | G151: 0 | H151: 0 | I151: 0 | J151: 0 | K151: 0 | L151: 0 | M151: 0 | N151: 0 | O151: 0
A152: 294 | B152: 1 | C152: 1928528 | D152: 1187553 | E152: 98901 | F152: -8312 | G152: 0 | H152: 0 | I152: 3206670 | J152: 0 | K152: 3206670 | L152: 161120010 | M152: 0 | N152: 0 | O152: 1
A153: 297 | B153: 1 | C153: 1614144 | D153: 762659 | E153: 54294 | F153: -24302 | G153: 0 | H153: 0 | I153: 2406795 | J153: 0 | K153: 2406795 | L153: 104678725 | M153: 0 | N153: 0 | O153: 1
A154: 299 | B154: 1 | C154: 2887840 | D154: 2789780 | E154: 54058 | F154: -15145 | G154: 0 | H154: 0 | I154: 5716533 | J154: 0 | K154: 5716533 | L154: 331027700 | M154: 0 | N154: 0 | O154: 1
A155: 300 | B155: 1 | C155: 893951 | D155: 6195340 | E155: 174307 | F155: -60566 | G155: 0 | H155: 0 | I155: 7203032 | J155: 0 | K155: 7203032 | L155: 648093450 | M155: 0 | N155: 0 | O155: 1
A156: 301 | B156: 1 | C156: 0 | D156: 0 | E156: 0 | F156: 0 | G156: 0 | H156: 0 | I156: 0 | J156: 0 | K156: 0 | L156: 0 | M156: 0 | N156: 0 | O156: 0
A157: 306 | B157: 1 | C157: 418264 | D157: 2111994 | E157: 19295 | F157: 0 | G157: 0 | H157: 0 | I157: 2549553 | J157: 0 | K157: 2549553 | L157: 119288000 | M157: 0 | N157: 0 | O157: 1
A158: 308 | B158: 1 | C158: 560514 | D158: 5371600 | E158: 50590 | F158: 0 | G158: -368 | H158: 0 | I158: 5982336 | J158: 0 | K158: 5982336 | L158: 236594150 | M158: 0 | N158: 0 | O158: 1
A159: 309 | B159: 1 | C159: 3145593 | D159: 16845795 | E159: 1192537 | F159: -164437 | G159: -386 | H159: 0 | I159: 21019102 | J159: 0 | K159: 21019102 | L159: 1042755065 | M159: 0 | N159: 0 | O159: 1
A160: 314 | B160: 1 | C160: 1383710 | D160: 2705052 | E160: 44412 | F160: -40791 | G160: 0 | H160: 0 | I160: 4092383 | J160: 0 | K160: 4092383 | L160: 335609270 | M160: 0 | N160: 0 | O160: 1
A161: 316 | B161: 1 | C161: 881602 | D161: 4981664 | E161: 1445326 | F161: -202194 | G161: -18179 | H161: -679382 | I161: 6408837 | J161: 624592 | K161: 7033429 | L161: 544150586 | M161: 0 | N161: 0 | O161: 1
A162: 317 | B162: 1 | C162: 1024058 | D162: 6176059 | E162: 1170144 | F162: -5776 | G162: -6180 | H162: 0 | I162: 8358305 | J162: 0 | K162: 8358305 | L162: 421638851 | M162: 0 | N162: 0 | O162: 1
A163: 318 | B163: 1 | C163: 5139544 | D163: 36072214 | E163: 4983244 | F163: -328674 | G163: -20244 | H163: -3591608 | I163: 42254476 | J163: 1203026 | K163: 43457502 | L163: 2760698083 | M163: 0 | N163: 0 | O163: 1
A164: 319 | B164: 1 | C164: 866908 | D164: 2507547 | E164: 195161 | F164: 0 | G164: -1739 | H164: -99100 | I164: 3468777 | J164: 334415 | K164: 3803192 | L164: 213115283 | M164: 0 | N164: 0 | O164: 1
A165: 323 | B165: 2 | C165: 67876 | D165: 233077 | E165: 0 | F165: 0 | G165: 0 | H165: 0 | I165: 300953 | J165: 0 | K165: 300953 | L165: 26732900 | M165: 0 | N165: 0 | O165: 1
A166: 324 | B166: 1 | C166: 0 | D166: 0 | E166: 0 | F166: 0 | G166: 0 | H166: 0 | I166: 0 | J166: 0 | K166: 0 | L166: 0 | M166: 0 | N166: 0 | O166: 0
A167: 325 | B167: 1 | C167: 0 | D167: 0 | E167: 0 | F167: 0 | G167: 0 | H167: 0 | I167: 0 | J167: 0 | K167: 0 | L167: 0 | M167: 0 | N167: 0 | O167: 0
A168: 328 | B168: 1 | C168: 0 | D168: 0 | E168: 0 | F168: 0 | G168: 0 | H168: 0 | I168: 0 | J168: 0 | K168: 0 | L168: 0 | M168: 0 | N168: 0 | O168: 0
A169: 330 | B169: 1 | C169: 5187300 | D169: 737969 | E169: 547120 | F169: 0 | G169: 0 | H169: 0 | I169: 6472389 | J169: 0 | K169: 6472389 | L169: 109303800 | M169: 0 | N169: 0 | O169: 1
A170: 332 | B170: 1 | C170: 1919039 | D170: 5210501 | E170: 39686 | F170: -77805 | G170: 0 | H170: 0 | I170: 7091421 | J170: 0 | K170: 7091421 | L170: 555615575 | M170: 0 | N170: 0 | O170: 1
A171: 333 | B171: 1 | C171: 946743 | D171: 1193472 | E171: 27759 | F171: -3224 | G171: 0 | H171: 0 | I171: 2164750 | J171: 0 | K171: 2164750 | L171: 154609170 | M171: 0 | N171: 0 | O171: 1
A172: 341 | B172: 1 | C172: 0 | D172: 0 | E172: 0 | F172: 0 | G172: 0 | H172: 0 | I172: 0 | J172: 0 | K172: 0 | L172: 0 | M172: 0 | N172: 0 | O172: 0
A173: 345 | B173: 1 | C173: 1693141 | D173: 12124035 | E173: 139401 | F173: -98159 | G173: -103 | H173: 0 | I173: 13858315 | J173: 0 | K173: 13858315 | L173: 892767800 | M173: 0 | N173: 0 | O173: 1
A174: 346 | B174: 1 | C174: 0 | D174: 0 | E174: 0 | F174: 0 | G174: 0 | H174: 0 | I174: 0 | J174: 0 | K174: 0 | L174: 0 | M174: 0 | N174: 0 | O174: 0
A175: 347 | B175: 1 | C175: 5480261 | D175: 17537275 | E175: 683910 | F175: -43820 | G175: -2801 | H175: 0 | I175: 23654825 | J175: 0 | K175: 23654825 | L175: 1578900100 | M175: 0 | N175: 0 | O175: 1
A176: 351 | B176: 1 | C176: 0 | D176: 0 | E176: 0 | F176: 0 | G176: 0 | H176: 0 | I176: 0 | J176: 0 | K176: 0 | L176: 0 | M176: 0 | N176: 0 | O176: 0
A177: 352 | B177: 1 | C177: 0 | D177: 0 | E177: 0 | F177: 0 | G177: 0 | H177: 0 | I177: 0 | J177: 0 | K177: 0 | L177: 0 | M177: 0 | N177: 0 | O177: 0
A178: 353 | B178: 1 | C178: 0 | D178: 0 | E178: 0 | F178: 0 | G178: 0 | H178: 0 | I178: 0 | J178: 0 | K178: 0 | L178: 0 | M178: 0 | N178: 0 | O178: 0
A179: 354 | B179: 1 | C179: 0 | D179: 0 | E179: 0 | F179: 0 | G179: 0 | H179: 0 | I179: 0 | J179: 0 | K179: 0 | L179: 0 | M179: 0 | N179: 0 | O179: 0
A180: 356 | B180: 1 | C180: 1026373 | D180: 193087 | E180: 101430 | F180: 0 | G180: 0 | H180: 0 | I180: 1320890 | J180: 0 | K180: 1320890 | L180: 27525095 | M180: 0 | N180: 0 | O180: 1
A181: 361 | B181: 1 | C181: 731433 | D181: 6630968 | E181: 128366 | F181: 0 | G181: 0 | H181: 0 | I181: 7490767 | J181: 0 | K181: 7490767 | L181: 533280853 | M181: 0 | N181: 0 | O181: 1
A182: 362 | B182: 1 | C182: 707892 | D182: 538009 | E182: 104059 | F182: 0 | G182: 0 | H182: 0 | I182: 1349960 | J182: 0 | K182: 1349960 | L182: 62005965 | M182: 0 | N182: 0 | O182: 1
A183: 363 | B183: 1 | C183: 1054570 | D183: 545352 | E183: 30527 | F183: 0 | G183: 0 | H183: 0 | I183: 1630449 | J183: 0 | K183: 1630449 | L183: 48008220 | M183: 0 | N183: 0 | O183: 1
A184: 371 | B184: 1 | C184: 0 | D184: 0 | E184: 0 | F184: 0 | G184: 0 | H184: 0 | I184: 0 | J184: 0 | K184: 0 | L184: 0 | M184: 0 | N184: 0 | O184: 0
A185: 376 | B185: 1 | C185: 0 | D185: 0 | E185: 0 | F185: 0 | G185: 0 | H185: 0 | I185: 0 | J185: 0 | K185: 0 | L185: 0 | M185: 0 | N185: 0 | O185: 0
A186: 377 | B186: 1 | C186: 0 | D186: 0 | E186: 0 | F186: 0 | G186: 0 | H186: 0 | I186: 0 | J186: 0 | K186: 0 | L186: 0 | M186: 0 | N186: 0 | O186: 0
A187: 378 | B187: 1 | C187: 6343413 | D187: 982153 | E187: 147696 | F187: -4917 | G187: 0 | H187: 0 | I187: 7468345 | J187: 0 | K187: 7468345 | L187: 125113635 | M187: 0 | N187: 0 | O187: 1
A188: 381 | B188: 1 | C188: 3322173 | D188: 18461348 | E188: 272920 | F188: 0 | G188: 0 | H188: -908924 | I188: 21147517 | J188: 619585 | K188: 21767102 | L188: 1208570103 | M188: 0 | N188: 0 | O188: 1
A189: 390 | B189: 1 | C189: 1223107 | D189: 3467561 | E189: 168745 | F189: -25726 | G189: -14595 | H189: 0 | I189: 4819092 | J189: 0 | K189: 4819092 | L189: 240320700 | M189: 0 | N189: 0 | O189: 1
A190: 391 | B190: 1 | C190: 1806468 | D190: 3080323 | E190: 72661 | F190: 0 | G190: 0 | H190: 0 | I190: 4959452 | J190: 0 | K190: 4959452 | L190: 251468800 | M190: 0 | N190: 0 | O190: 1
A191: 392 | B191: 1 | C191: 0 | D191: 0 | E191: 0 | F191: 0 | G191: 0 | H191: 0 | I191: 0 | J191: 0 | K191: 0 | L191: 0 | M191: 0 | N191: 0 | O191: 0
A192: 393 | B192: 1 | C192: 0 | D192: 0 | E192: 0 | F192: 0 | G192: 0 | H192: 0 | I192: 0 | J192: 0 | K192: 0 | L192: 0 | M192: 0 | N192: 0 | O192: 0
A193: 394 | B193: 1 | C193: 0 | D193: 0 | E193: 0 | F193: 0 | G193: 0 | H193: 0 | I193: 0 | J193: 0 | K193: 0 | L193: 0 | M193: 0 | N193: 0 | O193: 0
A194: 395 | B194: 1 | C194: 0 | D194: 0 | E194: 0 | F194: 0 | G194: 0 | H194: 0 | I194: 0 | J194: 0 | K194: 0 | L194: 0 | M194: 0 | N194: 0 | O194: 0
A195: 402 | B195: 1 | C195: 2179130 | D195: 476756 | E195: 296966 | F195: -39399 | G195: -15693 | H195: 0 | I195: 2897760 | J195: 0 | K195: 2897760 | L195: 63486200 | M195: 0 | N195: 0 | O195: 1
A196: 403 | B196: 1 | C196: 3626244 | D196: 324487 | E196: 369176 | F196: 0 | G196: -15275 | H196: 0 | I196: 4304632 | J196: 0 | K196: 4304632 | L196: 65905100 | M196: 0 | N196: 0 | O196: 1
A197: 404 | B197: 1 | C197: 4158041 | D197: 653387 | E197: 532295 | F197: -20470 | G197: 0 | H197: 0 | I197: 5323253 | J197: 0 | K197: 5323253 | L197: 88336000 | M197: 0 | N197: 0 | O197: 1
A198: 408 | B198: 1 | C198: 0 | D198: 0 | E198: 0 | F198: 0 | G198: 0 | H198: 0 | I198: 0 | J198: 0 | K198: 0 | L198: 0 | M198: 0 | N198: 0 | O198: 0
A199: 409 | B199: 1 | C199: 0 | D199: 0 | E199: 0 | F199: 0 | G199: 0 | H199: 0 | I199: 0 | J199: 0 | K199: 0 | L199: 0 | M199: 0 | N199: 0 | O199: 0
A200: 411 | B200: 1 | C200: 0 | D200: 0 | E200: 0 | F200: 0 | G200: 0 | H200: 0 | I200: 0 | J200: 0 | K200: 0 | L200: 0 | M200: 0 | N200: 0 | O200: 0
... 328 more rows

Sheet Page 2 Top (hidden)
A1: 1 | B1: 2 | C1: 3 | D1: 4 | E1: 5 | F1: 6 | G1: 7 | H1: 8 | I1: 9 | J1: 10 | K1: 11 | L1: 12 | M1: 13 | N1: 14 | O1: 15 | P1: 16 | Q1: 17 | R1: 18 | S1: 19 | T1: 20 | U1: 21
D2: 21-1 | E2: 22-1 | F2: 23-1 | G2: 24-1 | H2: 25-1 | I2: 26-1 | J2: 21-2 | K2: 22-2 | L2: 23-2 | M2: 24-2 | N2: 25-2 | O2: 26-2 | P2: 21-RMV sub | Q2: 22-RMV sub | R2: 23-RMV sub | S2: 24-RMV sub | T2: 25-RMV sub | U2: 26-RMV sub
A3: dst_num | B3: dst_tye | C3: dst_act_sts | D3: mnt_crt_tax_lvy_6 | E3: mnt_cua_tax_adj_6 | F3: mnt_fid_tax_adj_6 | G3: mnt_adj_tax_lvy_6 | H3: mnt_tax_rat_6 | I3: mnt_spd_tax_lvy_6 | J3: mnt_crt_tax_lvy_5 | K3: mnt_cua_tax_adj_5 | L3: mnt_fid_tax_adj_5 | M3: mnt_adj_tax_lvy_5 | N3: mnt_tax_rat_5 | O3: mnt_spd_tax_lvy_5 | P3: tot_aud_crt_lvy_2 | Q3: tot_aud_cou_adj_2 | R3: tot_aud_fiy_dip_2 | S3: tot_aud_adj_lvy_2 | T3: tot_aud_tax_rat_2 | U3: tot_aud_spr_lvy_2
A4: 1 | B4: 1 | C4: 1 | D4: 0 | E4: 0 | F4: 0 | G4: 0 | H4: 0 | I4: 0 | J4: 495469.91 | K4: 0 | L4: 0 | M4: 495469.91 | N4: 0.06504 | O4: 495502.83 | P4: 495469.91 | Q4: 0 | R4: 0 | S4: 495469.91 | T4: 0.06504 | U4: 495502.83
A5: 1.2 | B5: 3 | C5: 1 | D5: 64807021.29 | E5: 0 | F5: -7219215.71 | G5: 57587805.58 | H5: 0.13168 | I5: 57588459.23 | J5: 23999899.39 | K5: 0 | L5: -2673487.44 | M5: 21326411.95 | N5: 0.04877 | O5: 21328897 | P5: 88806920.68 | Q5: 0 | R5: -9892703.15 | S5: 78914217.53 | T5: 0.18045 | U5: 78917356.23
A6: 2 | B6: 1 | C6: 1 | D6: 0 | E6: 0 | F6: 0 | G6: 0 | H6: 0 | I6: 0 | J6: 103169.96 | K6: 0 | L6: 0 | M6: 103169.96 | N6: 0.1398 | O6: 103172.74 | P6: 103169.96 | Q6: 0 | R6: 0 | S6: 103169.96 | T6: 0.1398 | U6: 103172.74
A7: 4 | B7: 1 | C7: 1 | D7: 411.43 | E7: 0 | F7: 0 | G7: 411.43 | H7: 0.00014 | I7: 407.49 | J7: 121092.15 | K7: 0 | L7: 0 | M7: 121092.15 | N7: 0.0416 | O7: 121081.8 | P7: 121503.58 | Q7: 0 | R7: 0 | S7: 121503.58 | T7: 0.04174 | U7: 121489.29
A8: 6 | B8: 3 | C8: 1 | D8: 1319306 | E8: 0 | F8: -379199 | G8: 940107 | H8: 0.06743 | I8: 940049.42 | J8: 1563168 | K8: 0 | L8: -449290 | M8: 1113878 | N8: 0.07991 | O8: 1114034.54 | P8: 2882474 | Q8: 0 | R8: -828489 | S8: 2053985 | T8: 0.14734 | U8: 2054083.96
A9: 11 | B9: 1 | C9: 1 | D9: 27522906.93 | E9: 0 | F9: -5099730 | G9: 22423176.93 | H9: 0.11723 | I9: 22424930.88 | J9: 22218729.91 | K9: 0 | L9: -3400816 | M9: 18817913.91 | N9: 0.09838 | O9: 18819113.71 | P9: 49741636.84 | Q9: 0 | R9: -8500546 | S9: 41241090.84 | T9: 0.21561 | U9: 41244044.59
A10: 12 | B10: 1 | C10: 1 | D10: 1227521.24 | E10: 0 | F10: -152081 | G10: 1075440.24 | H10: 0.03734 | I10: 1075600.77 | J10: 4755957.75 | K10: 0 | L10: -792079 | M10: 3963878.75 | N10: 0.13761 | O10: 3963937.38 | P10: 5983478.99 | Q10: 0 | R10: -944160 | S10: 5039318.99 | T10: 0.17495 | U10: 5039538.15
A11: 13 | B11: 1 | C11: 1 | D11: 961548.86 | E11: 0 | F11: -259431 | G11: 702117.86 | H11: 0.03955 | I11: 702268.47 | J11: 2340583.15 | K11: 0 | L11: -663639 | M11: 1676944.15 | N11: 0.09445 | O11: 1677098.78 | P11: 3302132.01 | Q11: 0 | R11: -923070 | S11: 2379062.01 | T11: 0.134 | U11: 2379367.25
A12: 14 | B12: 1 | C12: 1 | D12: 590067.81 | E12: 0 | F12: -42014 | G12: 548053.81 | H12: 0.04747 | I12: 548088.29 | J12: 1898541.94 | K12: 0 | L12: -428236 | M12: 1470305.94 | N12: 0.12735 | O12: 1470382.21 | P12: 2488609.75 | Q12: 0 | R12: -470250 | S12: 2018359.75 | T12: 0.17482 | U12: 2018470.5
A13: 15 | B13: 1 | C13: 1 | D13: 0 | E13: 0 | F13: 0 | G13: 0 | H13: 0 | I13: 0 | J13: 3139478.83 | K13: 0 | L13: -511276 | M13: 2628202.83 | N13: 0.10357 | O13: 2628343.22 | P13: 3139478.83 | Q13: 0 | R13: -511276 | S13: 2628202.83 | T13: 0.10357 | U13: 2628343.22
A14: 16 | B14: 1 | C14: 1 | D14: 2569026.86 | E14: 0 | F14: -293901 | G14: 2275125.86 | H14: 0.06876 | I14: 2275154.81 | J14: 3613116.99 | K14: 0 | L14: -511768 | M14: 3101348.99 | N14: 0.09373 | O14: 3101370.86 | P14: 6182143.85 | Q14: 0 | R14: -805669 | S14: 5376474.85 | T14: 0.16249 | U14: 5376525.67
A15: 21 | B15: 1 | C15: 0 | D15: 0 | E15: 0 | F15: 0 | G15: 0 | H15: 0 | I15: 0 | J15: 0 | K15: 0 | L15: 0 | M15: 0 | N15: 0 | O15: 0 | P15: 0 | Q15: 0 | R15: 0 | S15: 0 | T15: 0 | U15: 0
A16: 22 | B16: 1 | C16: 1 | D16: 101255.96 | E16: 0 | F16: 0 | G16: 101255.96 | H16: 0 | I16: 0 | J16: 2279514.15 | K16: 0 | L16: 0 | M16: 2279514.15 | N16: 0.15965 | O16: 2380836.34 | P16: 2380770.11 | Q16: 0 | R16: 0 | S16: 2380770.11 | T16: 0.15965 | U16: 2380836.34
A17: 23 | B17: 1 | C17: 1 | D17: 228879.64 | E17: 0 | F17: 0 | G17: 228879.64 | H17: 0.05051 | I17: 228863.88 | J17: 416697.58 | K17: 0 | L17: 0 | M17: 416697.58 | N17: 0.09196 | O17: 416676.35 | P17: 645577.22 | Q17: 0 | R17: 0 | S17: 645577.22 | T17: 0.14247 | U17: 645540.23
A18: 24 | B18: 1 | C18: 0 | D18: 0 | E18: 0 | F18: 0 | G18: 0 | H18: 0 | I18: 0 | J18: 0 | K18: 0 | L18: 0 | M18: 0 | N18: 0 | O18: 0 | P18: 0 | Q18: 0 | R18: 0 | S18: 0 | T18: 0 | U18: 0
A19: 25 | B19: 1 | C19: 1 | D19: 0 | E19: 0 | F19: 0 | G19: 0 | H19: 0 | I19: 0 | J19: 0 | K19: 0 | L19: 0 | M19: 0 | N19: 0 | O19: 0 | P19: 0 | Q19: 0 | R19: 0 | S19: 0 | T19: 0 | U19: 0
A20: 31 | B20: 1 | C20: 1 | D20: 807941.26 | E20: 0 | F20: 0 | G20: 807941.26 | H20: 0.03253 | I20: 808051.47 | J20: 3238937.92 | K20: 0 | L20: 0 | M20: 3238937.92 | N20: 0.13039 | O20: 3238912.74 | P20: 4046879.18 | Q20: 0 | R20: 0 | S20: 4046879.18 | T20: 0.16292 | U20: 4046964.21
A21: 32 | B21: 1 | C21: 1 | D21: 0 | E21: 0 | F21: 0 | G21: 0 | H21: 0 | I21: 0 | J21: 261963.22 | K21: 0 | L21: 0 | M21: 261963.22 | N21: 0.14248 | O21: 261956.06 | P21: 261963.22 | Q21: 0 | R21: 0 | S21: 261963.22 | T21: 0.14248 | U21: 261956.06
A22: 36 | B22: 1 | C22: 1 | D22: 1028.23 | E22: 0 | F22: 0 | G22: 1028.23 | H22: 0.00253 | I22: 1026.44 | J22: 40718.8 | K22: 0 | L22: 0 | M22: 40718.8 | N22: 0.10037 | O22: 40721 | P22: 41747.03 | Q22: 0 | R22: 0 | S22: 41747.03 | T22: 0.1029 | U22: 41747.44
A23: 38 | B23: 1 | C23: 1 | D23: 1589.07 | E23: 0 | F23: 0 | G23: 1589.07 | H23: 0.17485 | I23: 1589.04 | J23: 1007.64 | K23: 0 | L23: 0 | M23: 1007.64 | N23: 0.11092 | O23: 1008.04 | P23: 2596.71 | Q23: 0 | R23: 0 | S23: 2596.71 | T23: 0.28577 | U23: 2597.08
A24: 47 | B24: 1 | C24: 1 | D24: 3757.3 | E24: 0 | F24: 0 | G24: 3757.3 | H24: 0.00025 | I24: 3770.15 | J24: 2397114.01 | K24: 0 | L24: 0 | M24: 2397114.01 | N24: 0.15895 | O24: 2397059.71 | P24: 2400871.31 | Q24: 0 | R24: 0 | S24: 2400871.31 | T24: 0.1592 | U24: 2400829.86
A25: 51 | B25: 1 | C25: 1 | D25: 95830.44 | E25: 0 | F25: 0 | G25: 95830.44 | H25: 0.01872 | I25: 95829 | J25: 457235.39 | K25: 0 | L25: 0 | M25: 457235.39 | N25: 0.08932 | O25: 457235.35 | P25: 553065.83 | Q25: 0 | R25: 0 | S25: 553065.83 | T25: 0.10804 | U25: 553064.35
A26: 55 | B26: 1 | C26: 0 | D26: 0 | E26: 0 | F26: 0 | G26: 0 | H26: 0 | I26: 0 | J26: 0 | K26: 0 | L26: 0 | M26: 0 | N26: 0 | O26: 0 | P26: 0 | Q26: 0 | R26: 0 | S26: 0 | T26: 0 | U26: 0
A27: 57 | B27: 1 | C27: 0 | D27: 0 | E27: 0 | F27: 0 | G27: 0 | H27: 0 | I27: 0 | J27: 0 | K27: 0 | L27: 0 | M27: 0 | N27: 0 | O27: 0 | P27: 0 | Q27: 0 | R27: 0 | S27: 0 | T27: 0 | U27: 0
A28: 58 | B28: 1 | C28: 0 | D28: 0 | E28: 0 | F28: 0 | G28: 0 | H28: 0 | I28: 0 | J28: 0 | K28: 0 | L28: 0 | M28: 0 | N28: 0 | O28: 0 | P28: 0 | Q28: 0 | R28: 0 | S28: 0 | T28: 0 | U28: 0
A29: 60 | B29: 1 | C29: 0 | D29: 0 | E29: 0 | F29: 0 | G29: 0 | H29: 0 | I29: 0 | J29: 0 | K29: 0 | L29: 0 | M29: 0 | N29: 0 | O29: 0 | P29: 0 | Q29: 0 | R29: 0 | S29: 0 | T29: 0 | U29: 0
A30: 62 | B30: 1 | C30: 0 | D30: 0 | E30: 0 | F30: 0 | G30: 0 | H30: 0 | I30: 0 | J30: 0 | K30: 0 | L30: 0 | M30: 0 | N30: 0 | O30: 0 | P30: 0 | Q30: 0 | R30: 0 | S30: 0 | T30: 0 | U30: 0
A31: 70 | B31: 1 | C31: 0 | D31: 0 | E31: 0 | F31: 0 | G31: 0 | H31: 0 | I31: 0 | J31: 0 | K31: 0 | L31: 0 | M31: 0 | N31: 0 | O31: 0 | P31: 0 | Q31: 0 | R31: 0 | S31: 0 | T31: 0 | U31: 0
A32: 72 | B32: 1 | C32: 0 | D32: 0 | E32: 0 | F32: 0 | G32: 0 | H32: 0 | I32: 0 | J32: 0 | K32: 0 | L32: 0 | M32: 0 | N32: 0 | O32: 0 | P32: 0 | Q32: 0 | R32: 0 | S32: 0 | T32: 0 | U32: 0
A33: 75 | B33: 1 | C33: 1 | D33: 0 | E33: 0 | F33: 0 | G33: 0 | H33: 0 | I33: 0 | J33: 467752.64 | K33: 0 | L33: 0 | M33: 467752.64 | N33: 0.22226 | O33: 467744.61 | P33: 467752.64 | Q33: 0 | R33: 0 | S33: 467752.64 | T33: 0.22226 | U33: 467744.61
A34: 77 | B34: 1 | C34: 1 | D34: 2867454.2 | E34: 0 | F34: 0 | G34: 2867454.2 | H34: 0.0555 | I34: 2867454.06 | J34: 5345797.19 | K34: 0 | L34: 0 | M34: 5345797.19 | N34: 0.10347 | O34: 5345864.36 | P34: 8213251.39 | Q34: 0 | R34: 0 | S34: 8213251.39 | T34: 0.15897 | U34: 8213318.42
A35: 78 | B35: 1 | C35: 0 | D35: 0 | E35: 0 | F35: 0 | G35: 0 | H35: 0 | I35: 0 | J35: 0 | K35: 0 | L35: 0 | M35: 0 | N35: 0 | O35: 0 | P35: 0 | Q35: 0 | R35: 0 | S35: 0 | T35: 0 | U35: 0
A36: 79 | B36: 1 | C36: 0 | D36: 0 | E36: 0 | F36: 0 | G36: 0 | H36: 0 | I36: 0 | J36: 0 | K36: 0 | L36: 0 | M36: 0 | N36: 0 | O36: 0 | P36: 0 | Q36: 0 | R36: 0 | S36: 0 | T36: 0 | U36: 0
A37: 81 | B37: 1 | C37: 1 | D37: 112842.04 | E37: 0 | F37: 0 | G37: 112842.04 | H37: 0.26104 | I37: 112843.87 | J37: 46173.76 | K37: 0 | L37: 0 | M37: 46173.76 | N37: 0.10681 | O37: 46172.44 | P37: 159015.8 | Q37: 0 | R37: 0 | S37: 159015.8 | T37: 0.36785 | U37: 159016.31
A38: 84 | B38: 1 | C38: 1 | D38: 0 | E38: 0 | F38: 0 | G38: 0 | H38: 0 | I38: 0 | J38: 386209.16 | K38: 0 | L38: 0 | M38: 386209.16 | N38: 0.1408 | O38: 386203.4 | P38: 386209.16 | Q38: 0 | R38: 0 | S38: 386209.16 | T38: 0.1408 | U38: 386203.4
A39: 85 | B39: 1 | C39: 1 | D39: 37097.25 | E39: 0 | F39: 0 | G39: 37097.25 | H39: 0.02548 | I39: 37091.04 | J39: 179880.75 | K39: 0 | L39: 0 | M39: 179880.75 | N39: 0.12357 | O39: 179879.9 | P39: 216978 | Q39: 0 | R39: 0 | S39: 216978 | T39: 0.14905 | U39: 216970.94
A40: 88 | B40: 1 | C40: 1 | D40: 2253779.65 | E40: 0 | F40: 0 | G40: 2253779.65 | H40: 0.18291 | I40: 2253794.78 | J40: 1222153.47 | K40: 0 | L40: 0 | M40: 1222153.47 | N40: 0.09919 | O40: 1222207.12 | P40: 3475933.12 | Q40: 0 | R40: 0 | S40: 3475933.12 | T40: 0.2821 | U40: 3476001.9
A41: 91 | B41: 1 | C41: 1 | D41: 0 | E41: 0 | F41: 0 | G41: 0 | H41: 0 | I41: 0 | J41: 358513.27 | K41: 0 | L41: 0 | M41: 358513.27 | N41: 0.16398 | O41: 358511.81 | P41: 358513.27 | Q41: 0 | R41: 0 | S41: 358513.27 | T41: 0.16398 | U41: 358511.81
A42: 93 | B42: 1 | C42: 1 | D42: 468276.06 | E42: 0 | F42: 0 | G42: 468276.06 | H42: 0.13293 | I42: 468291.31 | J42: 282813.19 | K42: 0 | L42: 0 | M42: 282813.19 | N42: 0.08028 | O42: 282813.71 | P42: 751089.25 | Q42: 0 | R42: 0 | S42: 751089.25 | T42: 0.21321 | U42: 751105.02
A43: 94 | B43: 1 | C43: 1 | D43: 0 | E43: 0 | F43: 0 | G43: 0 | H43: 0 | I43: 0 | J43: 1429995.79 | K43: 0 | L43: 0 | M43: 1429995.79 | N43: 0.15901 | O43: 1429962.75 | P43: 1429995.79 | Q43: 0 | R43: 0 | S43: 1429995.79 | T43: 0.15901 | U43: 1429962.75
A44: 95 | B44: 1 | C44: 1 | D44: 0 | E44: 0 | F44: 0 | G44: 0 | H44: 0 | I44: 0 | J44: 175539.83 | K44: 0 | L44: 0 | M44: 175539.83 | N44: 0.15921 | O44: 175538.22 | P44: 175539.83 | Q44: 0 | R44: 0 | S44: 175539.83 | T44: 0.15921 | U44: 175538.22
A45: 97 | B45: 1 | C45: 1 | D45: 186530.76 | E45: 0 | F45: 0 | G45: 186530.76 | H45: 0.06818 | I45: 186521.47 | J45: 74307.64 | K45: 0 | L45: 0 | M45: 74307.64 | N45: 0.02716 | O45: 74302.19 | P45: 260838.4 | Q45: 0 | R45: 0 | S45: 260838.4 | T45: 0.09534 | U45: 260823.66
A46: 99 | B46: 1 | C46: 1 | D46: 0 | E46: 0 | F46: 0 | G46: 0 | H46: 0 | I46: 0 | J46: 773868.99 | K46: 0 | L46: 0 | M46: 773868.99 | N46: 0.16676 | O46: 773875.71 | P46: 773868.99 | Q46: 0 | R46: 0 | S46: 773868.99 | T46: 0.16676 | U46: 773875.71
A47: 100 | B47: 1 | C47: 1 | D47: 39408.89 | E47: 0 | F47: 0 | G47: 39408.89 | H47: 0.02005 | I47: 39416.96 | J47: 284243.75 | K47: 0 | L47: 0 | M47: 284243.75 | N47: 0.14458 | O47: 284234.59 | P47: 323652.64 | Q47: 0 | R47: 0 | S47: 323652.64 | T47: 0.16463 | U47: 323651.55
A48: 108 | B48: 1 | C48: 1 | D48: 0 | E48: 0 | F48: 0 | G48: 0 | H48: 0 | I48: 0 | J48: 760462 | K48: 0 | L48: -98095 | M48: 662367 | N48: 0.0996 | O48: 662366.98 | P48: 760462 | Q48: 0 | R48: -98095 | S48: 662367 | T48: 0.0996 | U48: 662366.98
A49: 110 | B49: 1 | C49: 1 | D49: 0 | E49: 0 | F49: 0 | G49: 0 | H49: 0 | I49: 0 | J49: 3066287 | K49: 0 | L49: -272111 | M49: 2794176 | N49: 0.12564 | O49: 2794175.88 | P49: 3066287 | Q49: 0 | R49: -272111 | S49: 2794176 | T49: 0.12564 | U49: 2794175.88
A50: 111 | B50: 1 | C50: 1 | D50: 38867 | E50: 0 | F50: -4405 | G50: 34462 | H50: 0.00387 | I50: 34461.95 | J50: 1178483 | K50: 0 | L50: -133561 | M50: 1044922 | N50: 0.11741 | O50: 1044921.98 | P50: 1217350 | Q50: 0 | R50: -137966 | S50: 1079384 | T50: 0.12128 | U50: 1079383.93
A51: 112 | B51: 1 | C51: 1 | D51: 12323051 | E51: 0 | F51: -1008316 | G51: 11314735 | H51: 0.16594 | I51: 11314734.88 | J51: 5362436 | K51: 0 | L51: -438774 | M51: 4923662 | N51: 0.07221 | O51: 4923661.58 | P51: 17685487 | Q51: 0 | R51: -1447090 | S51: 16238397 | T51: 0.23815 | U51: 16238396.46
A52: 113 | B52: 1 | C52: 1 | D52: 0 | E52: 0 | F52: 0 | G52: 0 | H52: 0 | I52: 0 | J52: 684604.79 | K52: 0 | L52: 0 | M52: 684604.79 | N52: 0.08738 | O52: 684618.61 | P52: 684604.79 | Q52: 0 | R52: 0 | S52: 684604.79 | T52: 0.08738 | U52: 684618.61
A53: 114 | B53: 1 | C53: 0 | D53: 0 | E53: 0 | F53: 0 | G53: 0 | H53: 0 | I53: 0 | J53: 0 | K53: 0 | L53: 0 | M53: 0 | N53: 0 | O53: 0 | P53: 0 | Q53: 0 | R53: 0 | S53: 0 | T53: 0 | U53: 0
A54: 115 | B54: 1 | C54: 1 | D54: 0 | E54: 0 | F54: 0 | G54: 0 | H54: 0 | I54: 0 | J54: 724245.65 | K54: 0 | L54: 0 | M54: 724245.65 | N54: 0.17415 | O54: 724255.03 | P54: 724245.65 | Q54: 0 | R54: 0 | S54: 724245.65 | T54: 0.17415 | U54: 724255.03
A55: 116 | B55: 1 | C55: 1 | D55: 0 | E55: 0 | F55: 0 | G55: 0 | H55: 0 | I55: 0 | J55: 784856.9 | K55: 0 | L55: 0 | M55: 784856.9 | N55: 0.16258 | O55: 784872.09 | P55: 784856.9 | Q55: 0 | R55: 0 | S55: 784856.9 | T55: 0.16258 | U55: 784872.09
A56: 117 | B56: 1 | C56: 0 | D56: 0 | E56: 0 | F56: 0 | G56: 0 | H56: 0 | I56: 0 | J56: 0 | K56: 0 | L56: 0 | M56: 0 | N56: 0 | O56: 0 | P56: 0 | Q56: 0 | R56: 0 | S56: 0 | T56: 0 | U56: 0
A57: 118 | B57: 1 | C57: 1 | D57: 177294.47 | E57: 0 | F57: 0 | G57: 177294.47 | H57: 0.03774 | I57: 177290.96 | J57: 188683.96 | K57: 0 | L57: 0 | M57: 188683.96 | N57: 0.04017 | O57: 188706.36 | P57: 365978.43 | Q57: 0 | R57: 0 | S57: 365978.43 | T57: 0.07791 | U57: 365997.32
A58: 119 | B58: 1 | C58: 0 | D58: 0 | E58: 0 | F58: 0 | G58: 0 | H58: 0 | I58: 0 | J58: 0 | K58: 0 | L58: 0 | M58: 0 | N58: 0 | O58: 0 | P58: 0 | Q58: 0 | R58: 0 | S58: 0 | T58: 0 | U58: 0
A59: 126 | B59: 1 | C59: 0 | D59: 0 | E59: 0 | F59: 0 | G59: 0 | H59: 0 | I59: 0 | J59: 0 | K59: 0 | L59: 0 | M59: 0 | N59: 0 | O59: 0 | P59: 0 | Q59: 0 | R59: 0 | S59: 0 | T59: 0 | U59: 0
A60: 127 | B60: 1 | C60: 0 | D60: 0 | E60: 0 | F60: 0 | G60: 0 | H60: 0 | I60: 0 | J60: 0 | K60: 0 | L60: 0 | M60: 0 | N60: 0 | O60: 0 | P60: 0 | Q60: 0 | R60: 0 | S60: 0 | T60: 0 | U60: 0
A61: 128 | B61: 1 | C61: 0 | D61: 0 | E61: 0 | F61: 0 | G61: 0 | H61: 0 | I61: 0 | J61: 0 | K61: 0 | L61: 0 | M61: 0 | N61: 0 | O61: 0 | P61: 0 | Q61: 0 | R61: 0 | S61: 0 | T61: 0 | U61: 0
A62: 129 | B62: 1 | C62: 1 | D62: 111413.65 | E62: 0 | F62: 0 | G62: 111413.65 | H62: 0.03129 | I62: 111448.87 | J62: 594517.56 | K62: 0 | L62: 0 | M62: 594517.56 | N62: 0.16692 | O62: 594536.44 | P62: 705931.21 | Q62: 0 | R62: 0 | S62: 705931.21 | T62: 0.19821 | U62: 705985.31
A63: 138 | B63: 1 | C63: 1 | D63: 0 | E63: 0 | F63: 0 | G63: 0 | H63: 0 | I63: 0 | J63: 1848271.44 | K63: 0 | L63: 0 | M63: 1848271.44 | N63: 0.12399 | O63: 1848271.07 | P63: 1848271.44 | Q63: 0 | R63: 0 | S63: 1848271.44 | T63: 0.12399 | U63: 1848271.07
A64: 139 | B64: 1 | C64: 1 | D64: 0 | E64: 0 | F64: 0 | G64: 0 | H64: 0 | I64: 0 | J64: 507513.18 | K64: 0 | L64: 0 | M64: 507513.18 | N64: 0.13304 | O64: 507513.01 | P64: 507513.18 | Q64: 0 | R64: 0 | S64: 507513.18 | T64: 0.13304 | U64: 507513.01
A65: 140 | B65: 1 | C65: 0 | D65: 0 | E65: 0 | F65: 0 | G65: 0 | H65: 0 | I65: 0 | J65: 0 | K65: 0 | L65: 0 | M65: 0 | N65: 0 | O65: 0 | P65: 0 | Q65: 0 | R65: 0 | S65: 0 | T65: 0 | U65: 0
A66: 141 | B66: 1 | C66: 0 | D66: 0 | E66: 0 | F66: 0 | G66: 0 | H66: 0 | I66: 0 | J66: 0 | K66: 0 | L66: 0 | M66: 0 | N66: 0 | O66: 0 | P66: 0 | Q66: 0 | R66: 0 | S66: 0 | T66: 0 | U66: 0
A67: 145 | B67: 1 | C67: 0 | D67: 0 | E67: 0 | F67: 0 | G67: 0 | H67: 0 | I67: 0 | J67: 0 | K67: 0 | L67: 0 | M67: 0 | N67: 0 | O67: 0 | P67: 0 | Q67: 0 | R67: 0 | S67: 0 | T67: 0 | U67: 0
A68: 146 | B68: 1 | C68: 1 | D68: 272372.96 | E68: 0 | F68: 0 | G68: 272372.96 | H68: 0.08588 | I68: 272372.97 | J68: 364145.02 | K68: 0 | L68: 0 | M68: 364145.02 | N68: 0.11482 | O68: 364144.98 | P68: 636517.98 | Q68: 0 | R68: 0 | S68: 636517.98 | T68: 0.2007 | U68: 636517.95
A69: 147 | B69: 1 | C69: 0 | D69: 0 | E69: 0 | F69: 0 | G69: 0 | H69: 0 | I69: 0 | J69: 0 | K69: 0 | L69: 0 | M69: 0 | N69: 0 | O69: 0 | P69: 0 | Q69: 0 | R69: 0 | S69: 0 | T69: 0 | U69: 0
A70: 150 | B70: 1 | C70: 1 | D70: 229289.33 | E70: 0 | F70: 0 | G70: 229289.33 | H70: 0.06808 | I70: 229288.99 | J70: 87809.72 | K70: 0 | L70: 0 | M70: 87809.72 | N70: 0.02607 | O70: 87809.97 | P70: 317099.05 | Q70: 0 | R70: 0 | S70: 317099.05 | T70: 0.09415 | U70: 317098.96
A71: 152 | B71: 1 | C71: 1 | D71: 2453675.24 | E71: 0 | F71: 0 | G71: 2453675.24 | H71: 0.07713 | I71: 2453674.9 | J71: 3306721.14 | K71: 0 | L71: 0 | M71: 3306721.14 | N71: 0.10394 | O71: 3306720.74 | P71: 5760396.38 | Q71: 0 | R71: 0 | S71: 5760396.38 | T71: 0.18107 | U71: 5760395.64
A72: 158 | B72: 1 | C72: 0 | D72: 0 | E72: 0 | F72: 0 | G72: 0 | H72: 0 | I72: 0 | J72: 0 | K72: 0 | L72: 0 | M72: 0 | N72: 0 | O72: 0 | P72: 0 | Q72: 0 | R72: 0 | S72: 0 | T72: 0 | U72: 0
A73: 161 | B73: 1 | C73: 0 | D73: 0 | E73: 0 | F73: 0 | G73: 0 | H73: 0 | I73: 0 | J73: 0 | K73: 0 | L73: 0 | M73: 0 | N73: 0 | O73: 0 | P73: 0 | Q73: 0 | R73: 0 | S73: 0 | T73: 0 | U73: 0
A74: 162 | B74: 1 | C74: 1 | D74: 0 | E74: 0 | F74: 0 | G74: 0 | H74: 0 | I74: 0 | J74: 418024 | K74: 0 | L74: 0 | M74: 418024 | N74: 0.15143 | O74: 418035.54 | P74: 418024 | Q74: 0 | R74: 0 | S74: 418024 | T74: 0.15143 | U74: 418035.54
A75: 166 | B75: 1 | C75: 1 | D75: 392900.67 | E75: 0 | F75: 0 | G75: 392900.67 | H75: 0.06235 | I75: 392881.14 | J75: 440694.92 | K75: 0 | L75: 0 | M75: 440694.92 | N75: 0.06994 | O75: 440707.41 | P75: 833595.59 | Q75: 0 | R75: 0 | S75: 833595.59 | T75: 0.13229 | U75: 833588.55
A76: 173 | B76: 1 | C76: 1 | D76: 387184.34 | E76: -0.34 | F76: 0 | G76: 387184 | H76: 0.30049 | I76: 387195.19 | J76: 123385.87 | K76: 0.13 | L76: 0 | M76: 123386 | N76: 0.09576 | O76: 123391.16 | P76: 510570.21 | Q76: -0.21 | R76: 0 | S76: 510570 | T76: 0.39625 | U76: 510586.35
A77: 175 | B77: 1 | C77: 0 | D77: 0 | E77: 0 | F77: 0 | G77: 0 | H77: 0 | I77: 0 | J77: 0 | K77: 0 | L77: 0 | M77: 0 | N77: 0 | O77: 0 | P77: 0 | Q77: 0 | R77: 0 | S77: 0 | T77: 0 | U77: 0
A78: 177 | B78: 1 | C78: 1 | D78: 669719.36 | E78: -0.36 | F78: 0 | G78: 669719 | H78: 0.18004 | I78: 669754.02 | J78: 370035.58 | K78: 0.42 | L78: 0 | M78: 370036 | N78: 0.09948 | O78: 370068.48 | P78: 1039754.94 | Q78: 0.06 | R78: 0 | S78: 1039755 | T78: 0.27952 | U78: 1039822.5
A79: 178 | B79: 1 | C79: 0 | D79: 0 | E79: 0 | F79: 0 | G79: 0 | H79: 0 | I79: 0 | J79: 0 | K79: 0 | L79: 0 | M79: 0 | N79: 0 | O79: 0 | P79: 0 | Q79: 0 | R79: 0 | S79: 0 | T79: 0 | U79: 0
A80: 181 | B80: 1 | C80: 1 | D80: 0 | E80: 0 | F80: 0 | G80: 0 | H80: 0 | I80: 0 | J80: 5091754.28 | K80: 0 | L80: 0 | M80: 5091754.28 | N80: 0.13566 | O80: 5091781.72 | P80: 5091754.28 | Q80: 0 | R80: 0 | S80: 5091754.28 | T80: 0.13566 | U80: 5091781.72
A81: 182 | B81: 1 | C81: 1 | D81: 0 | E81: 0 | F81: 0 | G81: 0 | H81: 0 | I81: 0 | J81: 876443.84 | K81: 0 | L81: 0 | M81: 876443.84 | N81: 0.09308 | O81: 876466.64 | P81: 876443.84 | Q81: 0 | R81: 0 | S81: 876443.84 | T81: 0.09308 | U81: 876466.64
A82: 186 | B82: 1 | C82: 1 | D82: 0 | E82: 0 | F82: 0 | G82: 0 | H82: 0 | I82: 0 | J82: 1326475.11 | K82: 0 | L82: 0 | M82: 1326475.11 | N82: 0.10487 | O82: 1326558.23 | P82: 1326475.11 | Q82: 0 | R82: 0 | S82: 1326475.11 | T82: 0.10487 | U82: 1326558.23
A83: 191 | B83: 1 | C83: 1 | D83: 12748545 | E83: 0 | F83: -1516908 | G83: 11231637 | H83: 0.16964 | I83: 11232459.51 | J83: 4789229 | K83: 0 | L83: -569855 | M83: 4219374 | N83: 0.06372 | O83: 4219124.74 | P83: 17537774 | Q83: 0 | R83: -2086763 | S83: 15451011 | T83: 0.23336 | U83: 15451584.25
A84: 192 | B84: 1 | C84: 1 | D84: 3272050 | E84: 0 | F84: -460372 | G84: 2811678 | H84: 0.10059 | I84: 2812052.65 | J84: 2740060 | K84: 0 | L84: -385523 | M84: 2354537 | N84: 0.08422 | O84: 2354419.67 | P84: 6012110 | Q84: 0 | R84: -845895 | S84: 5166215 | T84: 0.18481 | U84: 5166472.32
A85: 194 | B85: 1 | C85: 1 | D85: 12279126 | E85: 0 | F85: -1258254 | G85: 11020872 | H85: 0.16845 | I85: 11021529.75 | J85: 6266605 | K85: 0 | L85: -642145 | M85: 5624460 | N85: 0.08596 | O85: 5624284.34 | P85: 18545731 | Q85: 0 | R85: -1900399 | S85: 16645332 | T85: 0.25441 | U85: 16645814.09
A86: 195 | B86: 1 | C86: 1 | D86: 0 | E86: 0 | F86: 0 | G86: 0 | H86: 0 | I86: 0 | J86: 439161 | K86: 0 | L86: -16351 | M86: 422810 | N86: 0.13873 | O86: 422806.98 | P86: 439161 | Q86: 0 | R86: -16351 | S86: 422810 | T86: 0.13873 | U86: 422806.98
A87: 196 | B87: 1 | C87: 1 | D87: 31153044 | E87: 0 | F87: -3394899 | G87: 27758145 | H87: 0.17802 | I87: 27758798.29 | J87: 16762236 | K87: 0 | L87: -1826665 | M87: 14935571 | N87: 0.09578 | O87: 14935050.56 | P87: 47915280 | Q87: 0 | R87: -5221564 | S87: 42693716 | T87: 0.2738 | U87: 42693848.85
A88: 197 | B88: 1 | C88: 1 | D88: 7504872 | E88: 0 | F88: -673322 | G88: 6831550 | H88: 0.12404 | I88: 6831844.14 | J88: 2753650 | K88: 0 | L88: -247052 | M88: 2506598 | N88: 0.04551 | O88: 2506588.41 | P88: 10258522 | Q88: 0 | R88: -920374 | S88: 9338148 | T88: 0.16955 | U88: 9338432.55
A89: 199 | B89: 1 | C89: 1 | D89: 1957341 | E89: 0 | F89: -227739 | G89: 1729602 | H89: 0.06359 | I89: 1729490.98 | J89: 2397882 | K89: 0 | L89: -278997 | M89: 2118885 | N89: 0.07792 | O89: 2119231.6 | P89: 4355223 | Q89: 0 | R89: -506736 | S89: 3848487 | T89: 0.14151 | U89: 3848722.58
A90: 200 | B90: 1 | C90: 1 | D90: 4737163 | E90: 0 | F90: -641475 | G90: 4095688 | H90: 0.14493 | I90: 4095677.27 | J90: 3340486 | K90: 0 | L90: -452347 | M90: 2888139 | N90: 0.1022 | O90: 2888140.6 | P90: 8077649 | Q90: 0 | R90: -1093822 | S90: 6983827 | T90: 0.24713 | U90: 6983817.87
A91: 201 | B91: 1 | C91: 0 | D91: 0 | E91: 0 | F91: 0 | G91: 0 | H91: 0 | I91: 0 | J91: 0 | K91: 0 | L91: 0 | M91: 0 | N91: 0 | O91: 0 | P91: 0 | Q91: 0 | R91: 0 | S91: 0 | T91: 0 | U91: 0
A92: 202 | B92: 1 | C92: 0 | D92: 0 | E92: 0 | F92: 0 | G92: 0 | H92: 0 | I92: 0 | J92: 0 | K92: 0 | L92: 0 | M92: 0 | N92: 0 | O92: 0 | P92: 0 | Q92: 0 | R92: 0 | S92: 0 | T92: 0 | U92: 0
A93: 203 | B93: 1 | C93: 1 | D93: 351762 | E93: 0 | F93: 0 | G93: 351762 | H93: 0.12765 | I93: 351766.13 | J93: 256292 | K93: 0 | L93: 0 | M93: 256292 | N93: 0.093 | O93: 256280.84 | P93: 608054 | Q93: 0 | R93: 0 | S93: 608054 | T93: 0.22065 | U93: 608046.97
A94: 204 | B94: 1 | C94: 1 | D94: 1189 | E94: 0 | F94: 0 | G94: 1189 | H94: 0.00018 | I94: 1199.64 | J94: 928737 | K94: 0 | L94: 0 | M94: 928737 | N94: 0.13935 | O94: 928724.59 | P94: 929926 | Q94: 0 | R94: 0 | S94: 929926 | T94: 0.13953 | U94: 929924.23
A95: 205 | B95: 1 | C95: 0 | D95: 0 | E95: 0 | F95: 0 | G95: 0 | H95: 0 | I95: 0 | J95: 0 | K95: 0 | L95: 0 | M95: 0 | N95: 0 | O95: 0 | P95: 0 | Q95: 0 | R95: 0 | S95: 0 | T95: 0 | U95: 0
A96: 206 | B96: 1 | C96: 1 | D96: 0 | E96: 0 | F96: 0 | G96: 0 | H96: 0 | I96: 0 | J96: 3659569.23 | K96: 0 | L96: 0 | M96: 3659569.23 | N96: 0.1213 | O96: 3659971.44 | P96: 3659569.23 | Q96: 0 | R96: 0 | S96: 3659569.23 | T96: 0.1213 | U96: 3659971.44
A97: 207 | B97: 1 | C97: 0 | D97: 0 | E97: 0 | F97: 0 | G97: 0 | H97: 0 | I97: 0 | J97: 0 | K97: 0 | L97: 0 | M97: 0 | N97: 0 | O97: 0 | P97: 0 | Q97: 0 | R97: 0 | S97: 0 | T97: 0 | U97: 0
A98: 208 | B98: 1 | C98: 0 | D98: 0 | E98: 0 | F98: 0 | G98: 0 | H98: 0 | I98: 0 | J98: 0 | K98: 0 | L98: 0 | M98: 0 | N98: 0 | O98: 0 | P98: 0 | Q98: 0 | R98: 0 | S98: 0 | T98: 0 | U98: 0
A99: 209 | B99: 1 | C99: 0 | D99: 0 | E99: 0 | F99: 0 | G99: 0 | H99: 0 | I99: 0 | J99: 0 | K99: 0 | L99: 0 | M99: 0 | N99: 0 | O99: 0 | P99: 0 | Q99: 0 | R99: 0 | S99: 0 | T99: 0 | U99: 0
A100: 213 | B100: 1 | C100: 1 | D100: 0 | E100: 0 | F100: 0 | G100: 0 | H100: 0 | I100: 0 | J100: 202565.71 | K100: 0 | L100: 0 | M100: 202565.71 | N100: 0.08422 | O100: 202601.65 | P100: 202565.71 | Q100: 0 | R100: 0 | S100: 202565.71 | T100: 0.08422 | U100: 202601.65
A101: 217 | B101: 1 | C101: 0 | D101: 0 | E101: 0 | F101: 0 | G101: 0 | H101: 0 | I101: 0 | J101: 0 | K101: 0 | L101: 0 | M101: 0 | N101: 0 | O101: 0 | P101: 0 | Q101: 0 | R101: 0 | S101: 0 | T101: 0 | U101: 0
A102: 218 | B102: 1 | C102: 0 | D102: 0 | E102: 0 | F102: 0 | G102: 0 | H102: 0 | I102: 0 | J102: 0 | K102: 0 | L102: 0 | M102: 0 | N102: 0 | O102: 0 | P102: 0 | Q102: 0 | R102: 0 | S102: 0 | T102: 0 | U102: 0
A103: 219 | B103: 1 | C103: 0 | D103: 0 | E103: 0 | F103: 0 | G103: 0 | H103: 0 | I103: 0 | J103: 0 | K103: 0 | L103: 0 | M103: 0 | N103: 0 | O103: 0 | P103: 0 | Q103: 0 | R103: 0 | S103: 0 | T103: 0 | U103: 0
A104: 222 | B104: 1 | C104: 0 | D104: 0 | E104: 0 | F104: 0 | G104: 0 | H104: 0 | I104: 0 | J104: 0 | K104: 0 | L104: 0 | M104: 0 | N104: 0 | O104: 0 | P104: 0 | Q104: 0 | R104: 0 | S104: 0 | T104: 0 | U104: 0
A105: 223 | B105: 1 | C105: 0 | D105: 0 | E105: 0 | F105: 0 | G105: 0 | H105: 0 | I105: 0 | J105: 0 | K105: 0 | L105: 0 | M105: 0 | N105: 0 | O105: 0 | P105: 0 | Q105: 0 | R105: 0 | S105: 0 | T105: 0 | U105: 0
A106: 224 | B106: 1 | C106: 0 | D106: 0 | E106: 0 | F106: 0 | G106: 0 | H106: 0 | I106: 0 | J106: 0 | K106: 0 | L106: 0 | M106: 0 | N106: 0 | O106: 0 | P106: 0 | Q106: 0 | R106: 0 | S106: 0 | T106: 0 | U106: 0
A107: 225 | B107: 1 | C107: 0 | D107: 0 | E107: 0 | F107: 0 | G107: 0 | H107: 0 | I107: 0 | J107: 0 | K107: 0 | L107: 0 | M107: 0 | N107: 0 | O107: 0 | P107: 0 | Q107: 0 | R107: 0 | S107: 0 | T107: 0 | U107: 0
A108: 227 | B108: 1 | C108: 1 | D108: 391364 | E108: 0 | F108: 0 | G108: 391364 | H108: 0.11061 | I108: 391399.37 | J108: 384974 | K108: 0 | L108: 0 | M108: 384974 | N108: 0.10879 | O108: 384959.21 | P108: 776338 | Q108: 0 | R108: 0 | S108: 776338 | T108: 0.2194 | U108: 776358.58
A109: 228 | B109: 1 | C109: 0 | D109: 0 | E109: 0 | F109: 0 | G109: 0 | H109: 0 | I109: 0 | J109: 0 | K109: 0 | L109: 0 | M109: 0 | N109: 0 | O109: 0 | P109: 0 | Q109: 0 | R109: 0 | S109: 0 | T109: 0 | U109: 0
A110: 229 | B110: 1 | C110: 1 | D110: 0 | E110: 0 | F110: 0 | G110: 0 | H110: 0 | I110: 0 | J110: 97806.78 | K110: 0 | L110: 0 | M110: 97806.78 | N110: 0.085 | O110: 97806.16 | P110: 97806.78 | Q110: 0 | R110: 0 | S110: 97806.78 | T110: 0.085 | U110: 97806.16
A111: 232 | B111: 1 | C111: 0 | D111: 0 | E111: 0 | F111: 0 | G111: 0 | H111: 0 | I111: 0 | J111: 0 | K111: 0 | L111: 0 | M111: 0 | N111: 0 | O111: 0 | P111: 0 | Q111: 0 | R111: 0 | S111: 0 | T111: 0 | U111: 0
A112: 233 | B112: 1 | C112: 0 | D112: 0 | E112: 0 | F112: 0 | G112: 0 | H112: 0 | I112: 0 | J112: 0 | K112: 0 | L112: 0 | M112: 0 | N112: 0 | O112: 0 | P112: 0 | Q112: 0 | R112: 0 | S112: 0 | T112: 0 | U112: 0
A113: 234 | B113: 1 | C113: 0 | D113: 0 | E113: 0 | F113: 0 | G113: 0 | H113: 0 | I113: 0 | J113: 0 | K113: 0 | L113: 0 | M113: 0 | N113: 0 | O113: 0 | P113: 0 | Q113: 0 | R113: 0 | S113: 0 | T113: 0 | U113: 0
A114: 236 | B114: 1 | C114: 0 | D114: 0 | E114: 0 | F114: 0 | G114: 0 | H114: 0 | I114: 0 | J114: 0 | K114: 0 | L114: 0 | M114: 0 | N114: 0 | O114: 0 | P114: 0 | Q114: 0 | R114: 0 | S114: 0 | T114: 0 | U114: 0
A115: 237 | B115: 1 | C115: 0 | D115: 0 | E115: 0 | F115: 0 | G115: 0 | H115: 0 | I115: 0 | J115: 0 | K115: 0 | L115: 0 | M115: 0 | N115: 0 | O115: 0 | P115: 0 | Q115: 0 | R115: 0 | S115: 0 | T115: 0 | U115: 0
A116: 238 | B116: 1 | C116: 1 | D116: 309381.49 | E116: 0 | F116: 0 | G116: 309381.49 | H116: 0.31442 | I116: 309382.1 | J116: 85370.28 | K116: 0 | L116: 0 | M116: 85370.28 | N116: 0.08676 | O116: 85369.86 | P116: 394751.77 | Q116: 0 | R116: 0 | S116: 394751.77 | T116: 0.40118 | U116: 394751.96
A117: 239 | B117: 1 | C117: 1 | D117: 274048.9 | E117: 0 | F117: 0 | G117: 274048.9 | H117: 0.11493 | I117: 274043.37 | J117: 275883.83 | K117: 0 | L117: 0 | M117: 275883.83 | N117: 0.1157 | O117: 275879.39 | P117: 549932.73 | Q117: 0 | R117: 0 | S117: 549932.73 | T117: 0.23063 | U117: 549922.76
A118: 240 | B118: 1 | C118: 0 | D118: 0 | E118: 0 | F118: 0 | G118: 0 | H118: 0 | I118: 0 | J118: 0 | K118: 0 | L118: 0 | M118: 0 | N118: 0 | O118: 0 | P118: 0 | Q118: 0 | R118: 0 | S118: 0 | T118: 0 | U118: 0
A119: 241 | B119: 1 | C119: 1 | D119: 1511664.03 | E119: 0 | F119: 0 | G119: 1511664.03 | H119: 0.11817 | I119: 1511681.5 | J119: 1352332.8 | K119: 0 | L119: 0 | M119: 1352332.8 | N119: 0.10571 | O119: 1352287.82 | P119: 2863996.83 | Q119: 0 | R119: 0 | S119: 2863996.83 | T119: 0.22388 | U119: 2863969.32
A120: 242 | B120: 1 | C120: 1 | D120: 142275.42 | E120: 0 | F120: 0 | G120: 142275.42 | H120: 0.18005 | I120: 142278.33 | J120: 186729.09 | K120: 0 | L120: 0 | M120: 186729.09 | N120: 0.2363 | O120: 186727.96 | P120: 329004.51 | Q120: 0 | R120: 0 | S120: 329004.51 | T120: 0.41635 | U120: 329006.29
A121: 243 | B121: 1 | C121: 0 | D121: 0 | E121: 0 | F121: 0 | G121: 0 | H121: 0 | I121: 0 | J121: 0 | K121: 0 | L121: 0 | M121: 0 | N121: 0 | O121: 0 | P121: 0 | Q121: 0 | R121: 0 | S121: 0 | T121: 0 | U121: 0
A122: 244 | B122: 1 | C122: 0 | D122: 0 | E122: 0 | F122: 0 | G122: 0 | H122: 0 | I122: 0 | J122: 0 | K122: 0 | L122: 0 | M122: 0 | N122: 0 | O122: 0 | P122: 0 | Q122: 0 | R122: 0 | S122: 0 | T122: 0 | U122: 0
A123: 245 | B123: 1 | C123: 0 | D123: 0 | E123: 0 | F123: 0 | G123: 0 | H123: 0 | I123: 0 | J123: 0 | K123: 0 | L123: 0 | M123: 0 | N123: 0 | O123: 0 | P123: 0 | Q123: 0 | R123: 0 | S123: 0 | T123: 0 | U123: 0
A124: 252 | B124: 1 | C124: 1 | D124: 619900 | E124: 0 | F124: -609.01 | G124: 619290.99 | H124: 0.08578 | I124: 619297.89 | J124: 907928.72 | K124: 0.28 | L124: -891.99 | M124: 907037.01 | N124: 0.12564 | O124: 907071.42 | P124: 1527828.72 | Q124: 0.28 | R124: -1501 | S124: 1526328 | T124: 0.21142 | U124: 1526369.31
A125: 253 | B125: 1 | C125: 1 | D125: 14519.28 | E125: -0.29 | F125: 0 | G125: 14518.99 | H125: 0.00714 | I125: 14527.7 | J125: 320488.94 | K125: 0.06 | L125: 0 | M125: 320489 | N125: 0.15751 | O125: 320484.42 | P125: 335008.22 | Q125: -0.23 | R125: 0 | S125: 335007.99 | T125: 0.16465 | U125: 335012.12
A126: 254 | B126: 1 | C126: 0 | D126: 0 | E126: 0 | F126: 0 | G126: 0 | H126: 0 | I126: 0 | J126: 0 | K126: 0 | L126: 0 | M126: 0 | N126: 0 | O126: 0 | P126: 0 | Q126: 0 | R126: 0 | S126: 0 | T126: 0 | U126: 0
A127: 255 | B127: 1 | C127: 1 | D127: 184377.24 | E127: -0.24 | F127: 0 | G127: 184377 | H127: 0.03376 | I127: 184402.08 | J127: 642465.57 | K127: 0.43 | L127: 0 | M127: 642466 | N127: 0.11762 | O127: 642457.73 | P127: 826842.81 | Q127: 0.19 | R127: 0 | S127: 826843 | T127: 0.15138 | U127: 826859.81
A128: 256 | B128: 1 | C128: 1 | D128: 2371097.75 | E128: 0.25 | F128: 0 | G128: 2371098 | H128: 0.09724 | I128: 2371156.27 | J128: 1575005.68 | K128: -0.68 | L128: 0 | M128: 1575005 | N128: 0.06459 | O128: 1574999.83 | P128: 3946103.43 | Q128: -0.43 | R128: 0 | S128: 3946103 | T128: 0.16183 | U128: 3946156.1
A129: 258 | B129: 1 | C129: 0 | D129: 0 | E129: 0 | F129: 0 | G129: 0 | H129: 0 | I129: 0 | J129: 0 | K129: 0 | L129: 0 | M129: 0 | N129: 0 | O129: 0 | P129: 0 | Q129: 0 | R129: 0 | S129: 0 | T129: 0 | U129: 0
A130: 260 | B130: 1 | C130: 0 | D130: 0 | E130: 0 | F130: 0 | G130: 0 | H130: 0 | I130: 0 | J130: 0 | K130: 0 | L130: 0 | M130: 0 | N130: 0 | O130: 0 | P130: 0 | Q130: 0 | R130: 0 | S130: 0 | T130: 0 | U130: 0
A131: 261 | B131: 1 | C131: 1 | D131: 189586.96 | E131: 0 | F131: 0 | G131: 189586.96 | H131: 0.18864 | I131: 189604.89 | J131: 146429.7 | K131: 0 | L131: 0 | M131: 146429.7 | N131: 0.14569 | O131: 146435.2 | P131: 336016.66 | Q131: 0 | R131: 0 | S131: 336016.66 | T131: 0.33433 | U131: 336040.09
A132: 262 | B132: 1 | C132: 0 | D132: 0 | E132: 0 | F132: 0 | G132: 0 | H132: 0 | I132: 0 | J132: 0 | K132: 0 | L132: 0 | M132: 0 | N132: 0 | O132: 0 | P132: 0 | Q132: 0 | R132: 0 | S132: 0 | T132: 0 | U132: 0
A133: 263 | B133: 1 | C133: 0 | D133: 0 | E133: 0 | F133: 0 | G133: 0 | H133: 0 | I133: 0 | J133: 0 | K133: 0 | L133: 0 | M133: 0 | N133: 0 | O133: 0 | P133: 0 | Q133: 0 | R133: 0 | S133: 0 | T133: 0 | U133: 0
A134: 264 | B134: 1 | C134: 1 | D134: 194156.34 | E134: 0 | F134: 0 | G134: 194156.34 | H134: 0.36908 | I134: 194166.34 | J134: 37040.82 | K134: 0 | L134: 0 | M134: 37040.82 | N134: 0.07041 | O134: 37041.43 | P134: 231197.16 | Q134: 0 | R134: 0 | S134: 231197.16 | T134: 0.43949 | U134: 231207.77
A135: 265 | B135: 1 | C135: 0 | D135: 0 | E135: 0 | F135: 0 | G135: 0 | H135: 0 | I135: 0 | J135: 0 | K135: 0 | L135: 0 | M135: 0 | N135: 0 | O135: 0 | P135: 0 | Q135: 0 | R135: 0 | S135: 0 | T135: 0 | U135: 0
A136: 270 | B136: 1 | C136: 1 | D136: 15894399.83 | E136: 0 | F136: -963916.02 | G136: 14930483.81 | H136: 0.14608 | I136: 14930882.49 | J136: 3716292.39 | K136: 0 | L136: -225373.56 | M136: 3490918.83 | N136: 0.03416 | O136: 3491504.28 | P136: 19610692.22 | Q136: 0 | R136: -1189289.58 | S136: 18421402.64 | T136: 0.18024 | U136: 18422386.77
A137: 271 | B137: 1 | C137: 1 | D137: 13997530.92 | E137: 0 | F137: -975309.52 | G137: 13022221.4 | H137: 0.10989 | I137: 13023139.39 | J137: 9674197.22 | K137: 0 | L137: -674073.28 | M137: 9000123.94 | N137: 0.07595 | O137: 9000886.68 | P137: 23671728.14 | Q137: 0 | R137: -1649382.8 | S137: 22022345.34 | T137: 0.18584 | U137: 22024026.07
A138: 272 | B138: 1 | C138: 1 | D138: 14181737.28 | E138: 0 | F138: -688375.09 | G138: 13493362.19 | H138: 0.14579 | I138: 13493371.38 | J138: 7231350 | K138: 0 | L138: -351007.59 | M138: 6880342.41 | N138: 0.07434 | O138: 6880425.46 | P138: 21413087.28 | Q138: 0 | R138: -1039382.68 | S138: 20373704.6 | T138: 0.22013 | U138: 20373796.84
A139: 273 | B139: 1 | C139: 1 | D139: 12505695.41 | E139: 0 | F139: -326314.92 | G139: 12179380.49 | H139: 0.13536 | I139: 12179491.45 | J139: 4825101.13 | K139: 0 | L139: -125903.13 | M139: 4699198 | N139: 0.05223 | O139: 4699577.71 | P139: 17330796.54 | Q139: 0 | R139: -452218.05 | S139: 16878578.49 | T139: 0.18759 | U139: 16879069.16
A140: 276 | B140: 1 | C140: 1 | D140: 18456472.26 | E140: 0 | F140: -596095.9 | G140: 17860376.36 | H140: 0.22906 | I140: 17860863.25 | J140: 5688512.97 | K140: 0 | L140: -183724.6 | M140: 5504788.37 | N140: 0.0706 | O140: 5505007.18 | P140: 24144985.23 | Q140: 0 | R140: -779820.5 | S140: 23365164.73 | T140: 0.29966 | U140: 23365870.43
A141: 277 | B141: 1 | C141: 1 | D141: 3739636.43 | E141: 0 | F141: -135860.89 | G141: 3603775.54 | H141: 0.10812 | I141: 3604024.24 | J141: 1379830.18 | K141: 0 | L141: -50129.13 | M141: 1329701.05 | N141: 0.0399 | O141: 1330008.94 | P141: 5119466.61 | Q141: 0 | R141: -185990.02 | S141: 4933476.59 | T141: 0.14802 | U141: 4934033.18
A142: 278 | B142: 1 | C142: 1 | D142: 5996856.52 | E142: 0 | F142: -125254.95 | G142: 5871601.57 | H142: 0.18451 | I142: 5871854.64 | J142: 1486202.47 | K142: 0 | L142: -31041.77 | M142: 1455160.7 | N142: 0.04573 | O142: 1455313.6 | P142: 7483058.99 | Q142: 0 | R142: -156296.72 | S142: 7326762.27 | T142: 0.23024 | U142: 7327168.24
A143: 279 | B143: 1 | C143: 1 | D143: 33991373.44 | E143: 0 | F143: -3964207.92 | G143: 30027165.52 | H143: 0.20678 | I143: 30027267.6 | J143: 11240458.49 | K143: 0 | L143: -1310905.32 | M143: 9929553.17 | N143: 0.06838 | O143: 9929705.77 | P143: 45231831.93 | Q143: 0 | R143: -5275113.24 | S143: 39956718.69 | T143: 0.27516 | U143: 39956973.37
A144: 280 | B144: 1 | C144: 1 | D144: 4025788.12 | E144: 0 | F144: -581851.25 | G144: 3443936.87 | H144: 0.08129 | I144: 3444186.72 | J144: 2253437.44 | K144: 0 | L144: -325690.86 | M144: 1927746.58 | N144: 0.0455 | O144: 1927795.5 | P144: 6279225.56 | Q144: 0 | R144: -907542.11 | S144: 5371683.45 | T144: 0.12679 | U144: 5371982.22
A145: 281 | B145: 1 | C145: 1 | D145: 18494827.67 | E145: 0 | F145: -3178250.39 | G145: 15316577.28 | H145: 0.18026 | I145: 15316917.03 | J145: 7112482.67 | K145: 0 | L145: -1222247.7 | M145: 5890234.97 | N145: 0.06933 | O145: 5891056.57 | P145: 25607310.34 | Q145: 0 | R145: -4400498.09 | S145: 21206812.25 | T145: 0.24959 | U145: 21207973.6
A146: 282 | B146: 1 | C146: 1 | D146: 2306849.23 | E146: 0 | F146: -309596.92 | G146: 1997252.31 | H146: 0.19561 | I146: 1997332.83 | J146: 1080037 | K146: 0 | L146: -144949.04 | M146: 935087.96 | N146: 0.09158 | O146: 935104.24 | P146: 3386886.23 | Q146: 0 | R146: -454545.96 | S146: 2932340.27 | T146: 0.28719 | U146: 2932437.07
A147: 283 | B147: 1 | C147: 1 | D147: 10009928.82 | E147: 0 | F147: -843917.99 | G147: 9166010.83 | H147: 0.15204 | I147: 9166067.94 | J147: 2582113.46 | K147: 0 | L147: -217692.23 | M147: 2364421.23 | N147: 0.03922 | O147: 2364464.51 | P147: 12592042.28 | Q147: 0 | R147: -1061610.22 | S147: 11530432.06 | T147: 0.19126 | U147: 11530532.45
A148: 284 | B148: 1 | C148: 1 | D148: 18490052.5 | E148: 0 | F148: -837467.23 | G148: 17652585.27 | H148: 0.14563 | I148: 17653777.03 | J148: 6302266.58 | K148: 0 | L148: -285447.87 | M148: 6016818.71 | N148: 0.04964 | O148: 6017534.11 | P148: 24792319.08 | Q148: 0 | R148: -1122915.1 | S148: 23669403.98 | T148: 0.19527 | U148: 23671311.14
A149: 286 | B149: 1 | C149: 1 | D149: 0 | E149: 0 | F149: 0 | G149: 0 | H149: 0 | I149: 0 | J149: 1101581.79 | K149: 0 | L149: -374153.73 | M149: 727428.06 | N149: 0.12136 | O149: 727435.64 | P149: 1101581.79 | Q149: 0 | R149: -374153.73 | S149: 727428.06 | T149: 0.12136 | U149: 727435.64
A150: 287 | B150: 6 | C150: 0 | D150: 0 | E150: 0 | F150: 0 | G150: 0 | H150: 0 | I150: 0 | J150: 0 | K150: 0 | L150: 0 | M150: 0 | N150: 0 | O150: 0 | P150: 0 | Q150: 0 | R150: 0 | S150: 0 | T150: 0 | U150: 0
A151: 288 | B151: 6 | C151: 0 | D151: 0 | E151: 0 | F151: 0 | G151: 0 | H151: 0 | I151: 0 | J151: 0 | K151: 0 | L151: 0 | M151: 0 | N151: 0 | O151: 0 | P151: 0 | Q151: 0 | R151: 0 | S151: 0 | T151: 0 | U151: 0
A152: 294 | B152: 1 | C152: 1 | D152: 93087 | E152: 0 | F152: 0 | G152: 93087 | H152: 0.05777 | I152: 93079.03 | J152: 728726 | K152: 0 | L152: 0 | M152: 728726 | N152: 0.45229 | O152: 728729.69 | P152: 821813 | Q152: 0 | R152: 0 | S152: 821813 | T152: 0.51006 | U152: 821808.72
A153: 297 | B153: 1 | C153: 1 | D153: 318146 | E153: 0 | F153: 0 | G153: 318146 | H153: 0.30393 | I153: 318150.05 | J153: 117181 | K153: 0 | L153: 0 | M153: 117181 | N153: 0.11194 | O153: 117177.36 | P153: 435327 | Q153: 0 | R153: 0 | S153: 435327 | T153: 0.41587 | U153: 435327.41
A154: 299 | B154: 1 | C154: 1 | D154: 164935 | E154: 0 | F154: 0 | G154: 164935 | H154: 0.04983 | I154: 164951.1 | J154: 350939 | K154: 0 | L154: 0 | M154: 350939 | N154: 0.10601 | O154: 350922.46 | P154: 515874 | Q154: 0 | R154: 0 | S154: 515874 | T154: 0.15584 | U154: 515873.56
A155: 300 | B155: 1 | C155: 1 | D155: 170470 | E155: 0 | F155: 0 | G155: 170470 | H155: 0.0263 | I155: 170448.58 | J155: 791293 | K155: 0 | L155: 0 | M155: 791293 | N155: 0.1221 | O155: 791322.1 | P155: 961763 | Q155: 0 | R155: 0 | S155: 961763 | T155: 0.1484 | U155: 961770.68
A156: 301 | B156: 1 | C156: 0 | D156: 0 | E156: 0 | F156: 0 | G156: 0 | H156: 0 | I156: 0 | J156: 0 | K156: 0 | L156: 0 | M156: 0 | N156: 0 | O156: 0 | P156: 0 | Q156: 0 | R156: 0 | S156: 0 | T156: 0 | U156: 0
A157: 306 | B157: 1 | C157: 1 | D157: 0 | E157: 0 | F157: 0 | G157: 0 | H157: 0 | I157: 0 | J157: 163810 | K157: 0 | L157: 0 | M157: 163810 | N157: 0.13732 | O157: 163806.28 | P157: 163810 | Q157: 0 | R157: 0 | S157: 163810 | T157: 0.13732 | U157: 163806.28
A158: 308 | B158: 1 | C158: 1 | D158: 11737 | E158: 0 | F158: 0 | G158: 11737 | H158: 0.00496 | I158: 11735.07 | J158: 488279 | K158: 0 | L158: 0 | M158: 488279 | N158: 0.20638 | O158: 488283.01 | P158: 500016 | Q158: 0 | R158: 0 | S158: 500016 | T158: 0.21134 | U158: 500018.08
A159: 309 | B159: 1 | C159: 1 | D159: 0 | E159: 0 | F159: 0 | G159: 0 | H159: 0 | I159: 0 | J159: 1321666 | K159: 0 | L159: 0 | M159: 1321666 | N159: 0.12675 | O159: 1321692.04 | P159: 1321666 | Q159: 0 | R159: 0 | S159: 1321666 | T159: 0.12675 | U159: 1321692.04
A160: 314 | B160: 1 | C160: 1 | D160: 3869 | E160: 0 | F160: 0 | G160: 3869 | H160: 0.00115 | I160: 3868.97 | J160: 334654 | K160: 0 | L160: 0 | M160: 334654 | N160: 0.09972 | O160: 334653.99 | P160: 338523 | Q160: 0 | R160: 0 | S160: 338523 | T160: 0.10087 | U160: 338522.96
A161: 316 | B161: 1 | C161: 1 | D161: 0 | E161: 0 | F161: 0 | G161: 0 | H161: 0 | I161: 0 | J161: 585519.7 | K161: 0 | L161: -52210.28 | M161: 533309.42 | N161: 0.09801 | O161: 533321.99 | P161: 585519.7 | Q161: 0 | R161: -52210.28 | S161: 533309.42 | T161: 0.09801 | U161: 533321.99
A162: 317 | B162: 1 | C162: 1 | D162: 0 | E162: 0 | F162: 0 | G162: 0 | H162: 0 | I162: 0 | J162: 603225.97 | K162: 0 | L162: 0 | M162: 603225.97 | N162: 0.14307 | O162: 603238.7 | P162: 603225.97 | Q162: 0 | R162: 0 | S162: 603225.97 | T162: 0.14307 | U162: 603238.7
A163: 318 | B163: 1 | C163: 1 | D163: 0 | E163: 0 | F163: 0 | G163: 0 | H163: 0 | I163: 0 | J163: 3543602.17 | K163: 0 | L163: -92094.85 | M163: 3451507.32 | N163: 0.12502 | O163: 3451424.74 | P163: 3543602.17 | Q163: 0 | R163: -92094.85 | S163: 3451507.32 | T163: 0.12502 | U163: 3451424.74
A164: 319 | B164: 1 | C164: 1 | D164: 1174.82 | E164: 0 | F164: -70.65 | G164: 1104.17 | H164: 0.00052 | I164: 1108.2 | J164: 330720.55 | K164: 0 | L164: -19889.67 | M164: 310830.88 | N164: 0.14585 | O164: 310828.64 | P164: 331895.37 | Q164: 0 | R164: -19960.32 | S164: 311935.05 | T164: 0.14637 | U164: 311936.84
A165: 323 | B165: 2 | C165: 1 | D165: 62709.66 | E165: 0 | F165: 0 | G165: 62709.66 | H165: 0.23458 | I165: 62710 | J165: 21316.27 | K165: 0 | L165: 0 | M165: 21316.27 | N165: 0.07974 | O165: 21316 | P165: 84025.93 | Q165: 0 | R165: 0 | S165: 84025.93 | T165: 0.31432 | U165: 84026
A166: 324 | B166: 1 | C166: 0 | D166: 0 | E166: 0 | F166: 0 | G166: 0 | H166: 0 | I166: 0 | J166: 0 | K166: 0 | L166: 0 | M166: 0 | N166: 0 | O166: 0 | P166: 0 | Q166: 0 | R166: 0 | S166: 0 | T166: 0 | U166: 0
A167: 325 | B167: 1 | C167: 0 | D167: 0 | E167: 0 | F167: 0 | G167: 0 | H167: 0 | I167: 0 | J167: 0 | K167: 0 | L167: 0 | M167: 0 | N167: 0 | O167: 0 | P167: 0 | Q167: 0 | R167: 0 | S167: 0 | T167: 0 | U167: 0
A168: 328 | B168: 1 | C168: 0 | D168: 0 | E168: 0 | F168: 0 | G168: 0 | H168: 0 | I168: 0 | J168: 0 | K168: 0 | L168: 0 | M168: 0 | N168: 0 | O168: 0 | P168: 0 | Q168: 0 | R168: 0 | S168: 0 | T168: 0 | U168: 0
A169: 330 | B169: 1 | C169: 1 | D169: 462963.02 | E169: -0.02 | F169: 0 | G169: 462963 | H169: 0.42356 | I169: 462967.18 | J169: 103319.06 | K169: -0.06 | L169: 0 | M169: 103319 | N169: 0.09452 | O169: 103313.95 | P169: 566282.08 | Q169: -0.08 | R169: 0 | S169: 566282 | T169: 0.51808 | U169: 566281.13
A170: 332 | B170: 1 | C170: 1 | D170: 0 | E170: 0 | F170: 0 | G170: 0 | H170: 0 | I170: 0 | J170: 800803.98 | K170: 0 | L170: 0 | M170: 800803.98 | N170: 0.14413 | O170: 800808.73 | P170: 800803.98 | Q170: 0 | R170: 0 | S170: 800803.98 | T170: 0.14413 | U170: 800808.73
A171: 333 | B171: 1 | C171: 1 | D171: 0 | E171: 0 | F171: 0 | G171: 0 | H171: 0 | I171: 0 | J171: 178660.29 | K171: 0 | L171: 0 | M171: 178660.29 | N171: 0.11556 | O171: 178666.36 | P171: 178660.29 | Q171: 0 | R171: 0 | S171: 178660.29 | T171: 0.11556 | U171: 178666.36
A172: 341 | B172: 1 | C172: 0 | D172: 0 | E172: 0 | F172: 0 | G172: 0 | H172: 0 | I172: 0 | J172: 0 | K172: 0 | L172: 0 | M172: 0 | N172: 0 | O172: 0 | P172: 0 | Q172: 0 | R172: 0 | S172: 0 | T172: 0 | U172: 0
A173: 345 | B173: 1 | C173: 1 | D173: 59049.1 | E173: 0 | F173: 0 | G173: 59049.1 | H173: 0.00662 | I173: 59101.23 | J173: 1285097.15 | K173: 0 | L173: 0 | M173: 1285097.15 | N173: 0.14396 | O173: 1285228.52 | P173: 1344146.25 | Q173: 0 | R173: 0 | S173: 1344146.25 | T173: 0.15058 | U173: 1344329.75
A174: 346 | B174: 1 | C174: 0 | D174: 0 | E174: 0 | F174: 0 | G174: 0 | H174: 0 | I174: 0 | J174: 0 | K174: 0 | L174: 0 | M174: 0 | N174: 0 | O174: 0 | P174: 0 | Q174: 0 | R174: 0 | S174: 0 | T174: 0 | U174: 0
A175: 347 | B175: 1 | C175: 1 | D175: 634455.77 | E175: 0 | F175: 0 | G175: 634455.77 | H175: 0.04019 | I175: 634559.95 | J175: 1669068.28 | K175: 0 | L175: 0 | M175: 1669068.28 | N175: 0.10574 | O175: 1669528.97 | P175: 2303524.05 | Q175: 0 | R175: 0 | S175: 2303524.05 | T175: 0.14593 | U175: 2304088.92
A176: 351 | B176: 1 | C176: 0 | D176: 0 | E176: 0 | F176: 0 | G176: 0 | H176: 0 | I176: 0 | J176: 0 | K176: 0 | L176: 0 | M176: 0 | N176: 0 | O176: 0 | P176: 0 | Q176: 0 | R176: 0 | S176: 0 | T176: 0 | U176: 0
A177: 352 | B177: 1 | C177: 0 | D177: 0 | E177: 0 | F177: 0 | G177: 0 | H177: 0 | I177: 0 | J177: 0 | K177: 0 | L177: 0 | M177: 0 | N177: 0 | O177: 0 | P177: 0 | Q177: 0 | R177: 0 | S177: 0 | T177: 0 | U177: 0
A178: 353 | B178: 1 | C178: 0 | D178: 0 | E178: 0 | F178: 0 | G178: 0 | H178: 0 | I178: 0 | J178: 0 | K178: 0 | L178: 0 | M178: 0 | N178: 0 | O178: 0 | P178: 0 | Q178: 0 | R178: 0 | S178: 0 | T178: 0 | U178: 0
A179: 354 | B179: 1 | C179: 0 | D179: 0 | E179: 0 | F179: 0 | G179: 0 | H179: 0 | I179: 0 | J179: 0 | K179: 0 | L179: 0 | M179: 0 | N179: 0 | O179: 0 | P179: 0 | Q179: 0 | R179: 0 | S179: 0 | T179: 0 | U179: 0
A180: 356 | B180: 1 | C180: 1 | D180: 332127 | E180: 0 | F180: 0 | G180: 332127 | H180: 1.20663 | I180: 332126.05 | J180: 26995 | K180: 0 | L180: 0 | M180: 26995 | N180: 0.09807 | O180: 26993.86 | P180: 359122 | Q180: 0 | R180: 0 | S180: 359122 | T180: 1.3047 | U180: 359119.91
A181: 361 | B181: 1 | C181: 1 | D181: 180440.52 | E181: 0 | F181: 0 | G181: 180440.52 | H181: 0.03384 | I181: 180462.24 | J181: 508670.53 | K181: 0 | L181: 0 | M181: 508670.53 | N181: 0.09539 | O181: 508696.61 | P181: 689111.05 | Q181: 0 | R181: 0 | S181: 689111.05 | T181: 0.12923 | U181: 689158.85
A182: 362 | B182: 1 | C182: 1 | D182: 7066.34 | E182: 0 | F182: 0 | G182: 7066.34 | H182: 0.0114 | I182: 7068.68 | J182: 63620.87 | K182: 0 | L182: 0 | M182: 63620.87 | N182: 0.1026 | O182: 63618.12 | P182: 70687.21 | Q182: 0 | R182: 0 | S182: 70687.21 | T182: 0.114 | U182: 70686.8
A183: 363 | B183: 1 | C183: 1 | D183: 9058.52 | E183: 0 | F183: 0 | G183: 9058.52 | H183: 0.01887 | I183: 9059.15 | J183: 0 | K183: 0 | L183: 0 | M183: 0 | N183: 0 | O183: 0 | P183: 9058.52 | Q183: 0 | R183: 0 | S183: 9058.52 | T183: 0.01887 | U183: 9059.15
A184: 371 | B184: 1 | C184: 0 | D184: 0 | E184: 0 | F184: 0 | G184: 0 | H184: 0 | I184: 0 | J184: 0 | K184: 0 | L184: 0 | M184: 0 | N184: 0 | O184: 0 | P184: 0 | Q184: 0 | R184: 0 | S184: 0 | T184: 0 | U184: 0
A185: 376 | B185: 1 | C185: 0 | D185: 0 | E185: 0 | F185: 0 | G185: 0 | H185: 0 | I185: 0 | J185: 0 | K185: 0 | L185: 0 | M185: 0 | N185: 0 | O185: 0 | P185: 0 | Q185: 0 | R185: 0 | S185: 0 | T185: 0 | U185: 0
A186: 377 | B186: 1 | C186: 0 | D186: 0 | E186: 0 | F186: 0 | G186: 0 | H186: 0 | I186: 0 | J186: 0 | K186: 0 | L186: 0 | M186: 0 | N186: 0 | O186: 0 | P186: 0 | Q186: 0 | R186: 0 | S186: 0 | T186: 0 | U186: 0
A187: 378 | B187: 1 | C187: 1 | D187: 109013 | E187: 0 | F187: 0 | G187: 109013 | H187: 0.08713 | I187: 109011.51 | J187: 155783 | K187: 0 | L187: 0 | M187: 155783 | N187: 0.12451 | O187: 155778.99 | P187: 264796 | Q187: 0 | R187: 0 | S187: 264796 | T187: 0.21164 | U187: 264790.5
A188: 381 | B188: 1 | C188: 1 | D188: 0 | E188: 0 | F188: 0 | G188: 0 | H188: 0 | I188: 0 | J188: 1176087.09 | K188: 0 | L188: 0 | M188: 1176087.09 | N188: 0.09731 | O188: 1176059.57 | P188: 1176087.09 | Q188: 0 | R188: 0 | S188: 1176087.09 | T188: 0.09731 | U188: 1176059.57
A189: 390 | B189: 1 | C189: 1 | D189: 93037 | E189: 0 | F189: 0 | G189: 93037 | H189: 0.03872 | I189: 93052.18 | J189: 271518 | K189: 0 | L189: 0 | M189: 271518 | N189: 0.113 | O189: 271562.39 | P189: 364555 | Q189: 0 | R189: 0 | S189: 364555 | T189: 0.15172 | U189: 364614.57
A190: 391 | B190: 1 | C190: 1 | D190: 344217.18 | E190: 0 | F190: 0 | G190: 344217.18 | H190: 0.13688 | I190: 344210.49 | J190: 441664.22 | K190: 0 | L190: 0 | M190: 441664.22 | N190: 0.17563 | O190: 441654.65 | P190: 785881.4 | Q190: 0 | R190: 0 | S190: 785881.4 | T190: 0.31251 | U190: 785865.14
A191: 392 | B191: 1 | C191: 0 | D191: 0 | E191: 0 | F191: 0 | G191: 0 | H191: 0 | I191: 0 | J191: 0 | K191: 0 | L191: 0 | M191: 0 | N191: 0 | O191: 0 | P191: 0 | Q191: 0 | R191: 0 | S191: 0 | T191: 0 | U191: 0
A192: 393 | B192: 1 | C192: 0 | D192: 0 | E192: 0 | F192: 0 | G192: 0 | H192: 0 | I192: 0 | J192: 0 | K192: 0 | L192: 0 | M192: 0 | N192: 0 | O192: 0 | P192: 0 | Q192: 0 | R192: 0 | S192: 0 | T192: 0 | U192: 0
A193: 394 | B193: 1 | C193: 0 | D193: 0 | E193: 0 | F193: 0 | G193: 0 | H193: 0 | I193: 0 | J193: 0 | K193: 0 | L193: 0 | M193: 0 | N193: 0 | O193: 0 | P193: 0 | Q193: 0 | R193: 0 | S193: 0 | T193: 0 | U193: 0
A194: 395 | B194: 1 | C194: 0 | D194: 0 | E194: 0 | F194: 0 | G194: 0 | H194: 0 | I194: 0 | J194: 0 | K194: 0 | L194: 0 | M194: 0 | N194: 0 | O194: 0 | P194: 0 | Q194: 0 | R194: 0 | S194: 0 | T194: 0 | U194: 0
A195: 402 | B195: 1 | C195: 1 | D195: 354297 | E195: 0 | F195: 0 | G195: 354297 | H195: 0.55808 | I195: 354303.78 | J195: 47115 | K195: 0 | L195: 0 | M195: 47115 | N195: 0.07422 | O195: 47119.46 | P195: 401412 | Q195: 0 | R195: 0 | S195: 401412 | T195: 0.6323 | U195: 401423.24
A196: 403 | B196: 1 | C196: 1 | D196: 175548 | E196: 0 | F196: 0 | G196: 175548 | H196: 0.26638 | I196: 175558.01 | J196: 36438 | K196: 0 | L196: 0 | M196: 36438 | N196: 0.05529 | O196: 36438.93 | P196: 211986 | Q196: 0 | R196: 0 | S196: 211986 | T196: 0.32167 | U196: 211996.94
A197: 404 | B197: 1 | C197: 1 | D197: 354717 | E197: 0 | F197: 0 | G197: 354717 | H197: 0.40157 | I197: 354733.28 | J197: 77061 | K197: 0 | L197: 0 | M197: 77061 | N197: 0.08724 | O197: 77064.85 | P197: 431778 | Q197: 0 | R197: 0 | S197: 431778 | T197: 0.48881 | U197: 431798.13
A198: 408 | B198: 1 | C198: 0 | D198: 0 | E198: 0 | F198: 0 | G198: 0 | H198: 0 | I198: 0 | J198: 0 | K198: 0 | L198: 0 | M198: 0 | N198: 0 | O198: 0 | P198: 0 | Q198: 0 | R198: 0 | S198: 0 | T198: 0 | U198: 0
A199: 409 | B199: 1 | C199: 0 | D199: 0 | E199: 0 | F199: 0 | G199: 0 | H199: 0 | I199: 0 | J199: 0 | K199: 0 | L199: 0 | M199: 0 | N199: 0 | O199: 0 | P199: 0 | Q199: 0 | R199: 0 | S199: 0 | T199: 0 | U199: 0
A200: 411 | B200: 1 | C200: 0 | D200: 0 | E200: 0 | F200: 0 | G200: 0 | H200: 0 | I200: 0 | J200: 0 | K200: 0 | L200: 0 | M200: 0 | N200: 0 | O200: 0 | P200: 0 | Q200: 0 | R200: 0 | S200: 0 | T200: 0 | U200: 0
... 333 more rows

Sheet Page 2 Middle (hidden)
A1: 1 | B1: 2 | C1: 3 | D1: 4 | E1: 5 | F1: 6 | G1: 7 | H1: 8 | I1: 9 | J1: 10 | K1: 11 | L1: 12 | M1: 13 | N1: 14 | O1: 15 | P1: 16 | Q1: 17 | R1: 18 | S1: 19 | T1: 20 | U1: 21 | V1: 22 | W1: 23 | X1: 24 | Y1: 25 | Z1: 26 | AA1: 27
D2: 21-3 | E2: 22-3 | F2: 23-3 | G2: 24-3 | H2: 25-3 | I2: 26-3 | J2: 21-4 | K2: 22-4 | L2: 23-4 | M2: 24-4 | N2: 25-4 | O2: 26-4 | P2: 21-5 | Q2: 22-5 | R2: 23-5 | S2: 24-5 | T2: 25-5 | U2: 26-5 | V2: 21-6 | W2: 22-6 | X2: 23-6 | Y2: 24-6 | Z2: 25-6 | AA2: 26-6
A3: dst_num | B3: dst_tye | C3: dst_act_sts | D3: mnt_crt_tax_lvy_3 | E3: mnt_cua_tax_adj_3 | F3: mnt_fid_tax_adj_3 | G3: mnt_adj_tax_lvy_3 | H3: mnt_tax_rat_3 | I3: mnt_spd_tax_lvy_3 | J3: mnt_crt_tax_lvy_7 | K3: mnt_cua_tax_adj_7 | L3: mnt_fid_tax_adj_7 | M3: mnt_adj_tax_lvy_7 | N3: mnt_tax_rat_7 | O3: mnt_spd_tax_lvy_7 | P3: mnt_crt_tax_lvy | Q3: mnt_cua_tax_adj | R3: mnt_fid_tax_adj | S3: mnt_adj_tax_lvy | T3: mnt_tax_mil_rat | U3: mnt_spd_tax_lvy | V3: cse_crt_tax_lvy | W3: cse_cua_tax_adj | X3: cse_fid_tax_adj | Y3: cse_adj_tax_lvy | Z3: cse_tax_mil_rat | AA3: cse_spd_tax_lvy
A4: 1 | B4: 1 | C4: 1 | D4: 0 | E4: 0 | F4: 0 | G4: 0 | H4: 0 | I4: 0 | J4: 23582.74 | K4: 0 | L4: -916.06 | M4: 22666.68 | N4: 0.14 | O4: 22666.18 | P4: 530245.86 | Q4: 0 | R4: -20597.84 | S4: 509648.02 | T4: 3.148 | U4: 509665.14 | V4: 0 | W4: 0 | X4: 0 | Y4: 0 | Z4: 0 | AA4: 0
A5: 1.2 | B5: 3 | C5: 1 | D5: 0 | E5: 0 | F5: 0 | G5: 0 | H5: 0 | I5: 0 | J5: 717563.47 | K5: 0 | L5: -79920.5 | M5: 637642.97 | N5: 0.145 | O5: 639350.66 | P5: 30260140.28 | Q5: 0 | R5: -3370845.89 | S5: 26889294.39 | T5: 6.099 | U5: 26892411.51 | V5: 5330747.45 | W5: 0 | X5: -593831.85 | Y5: 4736915.6 | Z5: 1.075 | AA5: 4740013.51
A6: 2 | B6: 1 | C6: 1 | D6: 0 | E6: 0 | F6: 0 | G6: 0 | H6: 0 | I6: 0 | J6: 1870.28 | K6: 0 | L6: 0 | M6: 1870.28 | N6: 0.134 | O6: 1865.59 | P6: 67990.76 | Q6: 0 | R6: 0 | S6: 67990.76 | T6: 4.884 | U6: 67996.71 | V6: 16950.6 | W6: 0 | X6: 0 | Y6: 16950.6 | Z6: 1.218 | AA6: 16957.41
A7: 4 | B7: 1 | C7: 1 | D7: 0 | E7: 0 | F7: 0 | G7: 0 | H7: 0 | I7: 0 | J7: 12239.94 | K7: 0 | L7: 0 | M7: 12239.94 | N7: 0.145 | O7: 12279.59 | P7: 282939.6 | Q7: 0 | R7: 0 | S7: 282939.6 | T7: 3.341 | U7: 282938.6 | V7: 56360.3 | W7: 0 | X7: 0 | Y7: 56360.3 | Z7: 0.666 | AA7: 56401.41
A8: 6 | B8: 3 | C8: 1 | D8: 566074 | E8: 0 | F8: -138673 | G8: 427401 | H8: 3.471 | I8: 427437.48 | J8: 23795 | K8: 0 | L8: -5830 | M8: 17965 | N8: 0.146 | O8: 17979.22 | P8: 1500064 | Q8: 0 | R8: -367475 | S8: 1132589 | T8: 9.198 | U8: 1132690.84 | V8: 511682 | W8: 0 | X8: -125348 | Y8: 386334 | Z8: 3.137 | AA8: 386306.93
A9: 11 | B9: 1 | C9: 1 | D9: 3260754.62 | E9: 0 | F9: -562572 | G9: 2698182.62 | H9: 1.449 | I9: 2699215.14 | J9: 313336.99 | K9: 0 | L9: -118711 | M9: 194625.99 | N9: 0.105 | O9: 195595.3 | P9: 25748809.74 | Q9: 0 | R9: -4774208 | S9: 20974601.74 | T9: 11.26 | U9: 20975267.4 | V9: 3456932.84 | W9: 0 | X9: -569291 | Y9: 2887641.84 | Z9: 1.551 | AA9: 2889222
A10: 12 | B10: 1 | C10: 1 | D10: 0 | E10: 0 | F10: 0 | G10: 0 | H10: 0 | I10: 0 | J10: 46091.53 | K10: 0 | L10: -15573 | M10: 30518.53 | N10: 0.108 | O10: 30635.51 | P10: 3464306.38 | Q10: 0 | R10: -586212 | S10: 2878094.38 | T10: 10.147 | U10: 2878319.33 | V10: 581435.2 | W10: 0 | X10: -66283 | Y10: 515152.2 | Z10: 1.817 | AA10: 515414.04
A11: 13 | B11: 1 | C11: 1 | D11: 1127233.37 | E11: 0 | F11: -293649 | G11: 833584.37 | H11: 5.313 | I11: 833716.33 | J11: 29879.45 | K11: 0 | L11: -20773 | M11: 9106.45 | N11: 0.059 | O11: 9258.28 | P11: 2458748.36 | Q11: 0 | R11: -648955 | S11: 1809793.36 | T11: 11.534 | U11: 1809916.09 | V11: 259678.35 | W11: 0 | X11: -148873 | Y11: 110805.35 | Z11: 0.707 | AA11: 110942.49
A12: 14 | B12: 1 | C12: 1 | D12: 717634.6 | E12: 0 | F12: -160458 | G12: 557176.6 | H12: 4.871 | I12: 557181.17 | J12: 19977.77 | K12: 0 | L12: -9565 | M12: 10412.77 | N12: 0.092 | O12: 10523.64 | P12: 2285767.85 | Q12: 0 | R12: -327852 | S12: 1957915.85 | T12: 17.117 | U12: 1957969.64 | V12: 329630.34 | W12: 0 | X12: -78048 | Y12: 251582.34 | Z12: 2.2 | AA12: 251652.35
A13: 15 | B13: 1 | C13: 1 | D13: 0 | E13: 0 | F13: 0 | G13: 0 | H13: 0 | I13: 0 | J13: 41529.67 | K13: 0 | L13: -14520 | M13: 27009.67 | N13: 0.108 | O13: 27023.77 | P13: 2155118.41 | Q13: 0 | R13: -243056 | S13: 1912062.41 | T13: 7.642 | U13: 1912181.7 | V13: 357315.7 | W13: 0 | X13: -59807 | Y13: 297508.7 | Z13: 1.189 | AA13: 297511.65
A14: 16 | B14: 1 | C14: 1 | D14: 1085968.23 | E14: 0 | F14: -153478 | G14: 932490.23 | H14: 2.677 | I14: 932598.38 | J14: 57634.78 | K14: 0 | L14: -16867 | M14: 40767.78 | N14: 0.118 | O14: 41108.18 | P14: 2931728.3 | Q14: 0 | R14: -424820 | S14: 2506908.3 | T14: 7.197 | U14: 2507250.84 | V14: 414944.83 | W14: 0 | X14: -69924 | Y14: 345020.83 | Z14: 0.991 | AA14: 345239.07
A15: 21 | B15: 1 | C15: 0 | D15: 0 | E15: 0 | F15: 0 | G15: 0 | H15: 0 | I15: 0 | J15: 0 | K15: 0 | L15: 0 | M15: 0 | N15: 0 | O15: 0 | P15: 0 | Q15: 0 | R15: 0 | S15: 0 | T15: 0 | U15: 0 | V15: 0 | W15: 0 | X15: 0 | Y15: 0 | Z15: 0 | AA15: 0
A16: 22 | B16: 1 | C16: 1 | D16: 0 | E16: 0 | F16: 0 | G16: 0 | H16: 0 | I16: 0 | J16: 34839.19 | K16: 0 | L16: 0 | M16: 34839.19 | N16: 0.148 | O16: 34840.04 | P16: 1900125.74 | Q16: 0 | R16: 0 | S16: 1900125.74 | T16: 8.068 | U16: 1900125.65 | V16: 210990.57 | W16: 0 | X16: 0 | Y16: 210990.57 | Z16: 0.896 | AA16: 210990.3
A17: 23 | B17: 1 | C17: 1 | D17: 0 | E17: 0 | F17: 0 | G17: 0 | H17: 0 | I17: 0 | J17: 11091.55 | K17: 0 | L17: 0 | M17: 11091.55 | N17: 0.145 | O17: 11091.66 | P17: 449388.31 | Q17: 0 | R17: 0 | S17: 449388.31 | T17: 5.865 | U17: 449387.7 | V17: 84092.69 | W17: 0 | X17: 0 | Y17: 84092.69 | Z17: 1.098 | AA17: 84093.11
A18: 24 | B18: 1 | C18: 0 | D18: 0 | E18: 0 | F18: 0 | G18: 0 | H18: 0 | I18: 0 | J18: 0 | K18: 0 | L18: 0 | M18: 0 | N18: 0 | O18: 0 | P18: 0 | Q18: 0 | R18: 0 | S18: 0 | T18: 0 | U18: 0 | V18: 0 | W18: 0 | X18: 0 | Y18: 0 | Z18: 0 | AA18: 0
A19: 25 | B19: 1 | C19: 1 | D19: 0 | E19: 0 | F19: 0 | G19: 0 | H19: 0 | I19: 0 | J19: 0 | K19: 0 | L19: 0 | M19: 0 | N19: 0 | O19: 0 | P19: 0 | Q19: 0 | R19: 0 | S19: 0 | T19: 0 | U19: 0 | V19: 0 | W19: 0 | X19: 0 | Y19: 0 | Z19: 0 | AA19: 0
A20: 31 | B20: 1 | C20: 1 | D20: 0 | E20: 0 | F20: 0 | G20: 0 | H20: 0 | I20: 0 | J20: 47096.28 | K20: 0 | L20: 0 | M20: 47096.28 | N20: 0.142 | O20: 47079.83 | P20: 2583497.2 | Q20: 0 | R20: 0 | S20: 2583497.2 | T20: 7.807 | U20: 2588395.94 | V20: 398860.84 | W20: 0 | X20: 0 | Y20: 398860.84 | Z20: 1.205 | AA20: 399515.45
A21: 32 | B21: 1 | C21: 1 | D21: 0 | E21: 0 | F21: 0 | G21: 0 | H21: 0 | I21: 0 | J21: 4364.37 | K21: 0 | L21: 0 | M21: 4364.37 | N21: 0.142 | O21: 4351.83 | P21: 254089.55 | Q21: 0 | R21: 0 | S21: 254089.55 | T21: 8.291 | U21: 254091.71 | V21: 31748 | W21: 0 | X21: 0 | Y21: 31748 | Z21: 1.036 | AA21: 31749.97
A22: 36 | B22: 1 | C22: 1 | D22: 0 | E22: 0 | F22: 0 | G22: 0 | H22: 0 | I22: 0 | J22: 1507.03 | K22: 0 | L22: 0 | M22: 1507.03 | N22: 0.135 | O22: 1511.34 | P22: 34192.24 | Q22: 0 | R22: 0 | S22: 34192.24 | T22: 3.054 | U22: 34189.87 | V22: 10762.94 | W22: 0 | X22: 0 | Y22: 10762.94 | Z22: 0.961 | AA22: 10758.5
A23: 38 | B23: 1 | C23: 1 | D23: 0 | E23: 0 | F23: 0 | G23: 0 | H23: 0 | I23: 0 | J23: 17.4 | K23: 0 | L23: 0 | M23: 17.4 | N23: 0.106 | O23: 17.01 | P23: 576.62 | Q23: 0 | R23: 0 | S23: 576.62 | T23: 3.589 | U23: 575.93 | V23: 156.7 | W23: 0 | X23: 0 | Y23: 156.7 | Z23: 0.978 | AA23: 156.94
A24: 47 | B24: 1 | C24: 1 | D24: 0 | E24: 0 | F24: 0 | G24: 0 | H24: 0 | I24: 0 | J24: 24818.79 | K24: 0 | L24: 0 | M24: 24818.79 | N24: 0.141 | O24: 24832.75 | P24: 1248399.9 | Q24: 0 | R24: 0 | S24: 1248399.9 | T24: 7.088 | U24: 1248329.98 | V24: 258089.54 | W24: 0 | X24: 0 | Y24: 258089.54 | Z24: 1.465 | AA24: 258014.03
A25: 51 | B25: 1 | C25: 1 | D25: 0 | E25: 0 | F25: 0 | G25: 0 | H25: 0 | I25: 0 | J25: 10152.78 | K25: 0 | L25: 0 | M25: 10152.78 | N25: 0.142 | O25: 10122.07 | P25: 256515.04 | Q25: 0 | R25: 0 | S25: 256515.04 | T25: 3.599 | U25: 256544.57 | V25: 92420.66 | W25: 0 | X25: 0 | Y25: 92420.66 | Z25: 1.297 | AA25: 92452.99
A26: 55 | B26: 1 | C26: 0 | D26: 0 | E26: 0 | F26: 0 | G26: 0 | H26: 0 | I26: 0 | J26: 0 | K26: 0 | L26: 0 | M26: 0 | N26: 0 | O26: 0 | P26: 0 | Q26: 0 | R26: 0 | S26: 0 | T26: 0 | U26: 0 | V26: 0 | W26: 0 | X26: 0 | Y26: 0 | Z26: 0 | AA26: 0
A27: 57 | B27: 1 | C27: 0 | D27: 0 | E27: 0 | F27: 0 | G27: 0 | H27: 0 | I27: 0 | J27: 0 | K27: 0 | L27: 0 | M27: 0 | N27: 0 | O27: 0 | P27: 0 | Q27: 0 | R27: 0 | S27: 0 | T27: 0 | U27: 0 | V27: 0 | W27: 0 | X27: 0 | Y27: 0 | Z27: 0 | AA27: 0
A28: 58 | B28: 1 | C28: 0 | D28: 0 | E28: 0 | F28: 0 | G28: 0 | H28: 0 | I28: 0 | J28: 0 | K28: 0 | L28: 0 | M28: 0 | N28: 0 | O28: 0 | P28: 0 | Q28: 0 | R28: 0 | S28: 0 | T28: 0 | U28: 0 | V28: 0 | W28: 0 | X28: 0 | Y28: 0 | Z28: 0 | AA28: 0
A29: 60 | B29: 1 | C29: 0 | D29: 0 | E29: 0 | F29: 0 | G29: 0 | H29: 0 | I29: 0 | J29: 0 | K29: 0 | L29: 0 | M29: 0 | N29: 0 | O29: 0 | P29: 0 | Q29: 0 | R29: 0 | S29: 0 | T29: 0 | U29: 0 | V29: 0 | W29: 0 | X29: 0 | Y29: 0 | Z29: 0 | AA29: 0
A30: 62 | B30: 1 | C30: 0 | D30: 0 | E30: 0 | F30: 0 | G30: 0 | H30: 0 | I30: 0 | J30: 0 | K30: 0 | L30: 0 | M30: 0 | N30: 0 | O30: 0 | P30: 0 | Q30: 0 | R30: 0 | S30: 0 | T30: 0 | U30: 0 | V30: 0 | W30: 0 | X30: 0 | Y30: 0 | Z30: 0 | AA30: 0
A31: 70 | B31: 1 | C31: 0 | D31: 0 | E31: 0 | F31: 0 | G31: 0 | H31: 0 | I31: 0 | J31: 0 | K31: 0 | L31: 0 | M31: 0 | N31: 0 | O31: 0 | P31: 0 | Q31: 0 | R31: 0 | S31: 0 | T31: 0 | U31: 0 | V31: 0 | W31: 0 | X31: 0 | Y31: 0 | Z31: 0 | AA31: 0
A32: 72 | B32: 1 | C32: 0 | D32: 0 | E32: 0 | F32: 0 | G32: 0 | H32: 0 | I32: 0 | J32: 0 | K32: 0 | L32: 0 | M32: 0 | N32: 0 | O32: 0 | P32: 0 | Q32: 0 | R32: 0 | S32: 0 | T32: 0 | U32: 0 | V32: 0 | W32: 0 | X32: 0 | Y32: 0 | Z32: 0 | AA32: 0
A33: 75 | B33: 1 | C33: 1 | D33: 0 | E33: 0 | F33: 0 | G33: 0 | H33: 0 | I33: 0 | J33: 6511.64 | K33: 0 | L33: 0 | M33: 6511.64 | N33: 0.152 | O33: 6512.4 | P33: 187991.4 | Q33: 0 | R33: 0 | S33: 187991.4 | T33: 4.373 | U33: 187991.42 | V33: 34495.1 | W33: 0 | X33: 0 | Y33: 34495.1 | Z33: 0.803 | AA33: 34496.4
A34: 77 | B34: 1 | C34: 1 | D34: 500000 | E34: 0 | F34: 0 | G34: 500000 | H34: 0.768 | I34: 499800.49 | J34: 92722.45 | K34: 0 | L34: 0 | M34: 92722.45 | N34: 0.142 | O34: 92707.55 | P34: 4111826.21 | Q34: 0 | R34: 0 | S34: 4111826.21 | T34: 6.313 | U34: 4109926.43 | V34: 786459.58 | W34: 0 | X34: 0 | Y34: 786459.58 | Z34: 1.208 | AA34: 786126.21
A35: 78 | B35: 1 | C35: 0 | D35: 0 | E35: 0 | F35: 0 | G35: 0 | H35: 0 | I35: 0 | J35: 0 | K35: 0 | L35: 0 | M35: 0 | N35: 0 | O35: 0 | P35: 0 | Q35: 0 | R35: 0 | S35: 0 | T35: 0 | U35: 0 | V35: 0 | W35: 0 | X35: 0 | Y35: 0 | Z35: 0 | AA35: 0
A36: 79 | B36: 1 | C36: 0 | D36: 0 | E36: 0 | F36: 0 | G36: 0 | H36: 0 | I36: 0 | J36: 0 | K36: 0 | L36: 0 | M36: 0 | N36: 0 | O36: 0 | P36: 0 | Q36: 0 | R36: 0 | S36: 0 | T36: 0 | U36: 0 | V36: 0 | W36: 0 | X36: 0 | Y36: 0 | Z36: 0 | AA36: 0
A37: 81 | B37: 1 | C37: 1 | D37: 0 | E37: 0 | F37: 0 | G37: 0 | H37: 0 | I37: 0 | J37: 5988.42 | K37: 0 | L37: 0 | M37: 5988.42 | N37: 0.134 | O37: 5969.2 | P37: 121575.73 | Q37: 0 | R37: 0 | S37: 121575.73 | T37: 2.729 | U37: 121566.74 | V37: 26145.84 | W37: 0 | X37: 0 | Y37: 26145.84 | Z37: 0.587 | AA37: 26148.65
A38: 84 | B38: 1 | C38: 1 | D38: 0 | E38: 0 | F38: 0 | G38: 0 | H38: 0 | I38: 0 | J38: 12663.13 | K38: 0 | L38: 0 | M38: 12663.13 | N38: 0.137 | O38: 12702.47 | P38: 440774.74 | Q38: 0 | R38: 0 | S38: 440774.74 | T38: 4.754 | U38: 440784.84 | V38: 75995.85 | W38: 0 | X38: 0 | Y38: 75995.85 | Z38: 0.82 | AA38: 76029.36
A39: 85 | B39: 1 | C39: 1 | D39: 0 | E39: 0 | F39: 0 | G39: 0 | H39: 0 | I39: 0 | J39: 8898.2 | K39: 0 | L39: 0 | M39: 8898.2 | N39: 0.136 | O39: 8885.08 | P39: 346599.38 | Q39: 0 | R39: 0 | S39: 346599.38 | T39: 5.305 | U39: 346583.5 | V39: 46667 | W39: 0 | X39: 0 | Y39: 46667 | Z39: 0.714 | AA39: 46646.68
A40: 88 | B40: 1 | C40: 1 | D40: 0 | E40: 0 | F40: 0 | G40: 0 | H40: 0 | I40: 0 | J40: 31117.19 | K40: 0 | L40: 0 | M40: 31117.19 | N40: 0.142 | O40: 31043.86 | P40: 1531834.83 | Q40: 0 | R40: 0 | S40: 1531834.83 | T40: 7.007 | U40: 1531861.65 | V40: 224275.07 | W40: 0 | X40: 0 | Y40: 224275.07 | Z40: 1.026 | AA40: 224302.85
A41: 91 | B41: 1 | C41: 1 | D41: 0 | E41: 0 | F41: 0 | G41: 0 | H41: 0 | I41: 0 | J41: 4448.65 | K41: 0 | L41: 0 | M41: 4448.65 | N41: 0.143 | O41: 4461.48 | P41: 138000.62 | Q41: 0 | R41: 0 | S41: 138000.62 | T41: 4.423 | U41: 137993.93 | V41: 48431.7 | W41: 0 | X41: 0 | Y41: 48431.7 | Z41: 1.552 | AA41: 48421.11
A42: 93 | B42: 1 | C42: 1 | D42: 0 | E42: 0 | F42: 0 | G42: 0 | H42: 0 | I42: 0 | J42: 6584.1 | K42: 0 | L42: 0 | M42: 6584.1 | N42: 0.141 | O42: 6594.27 | P42: 111811.47 | Q42: 0 | R42: 0 | S42: 111811.47 | T42: 2.391 | U42: 111822 | V42: 51549.99 | W42: 0 | X42: 0 | Y42: 51549.99 | Z42: 1.102 | AA42: 51538.2
A43: 94 | B43: 1 | C43: 1 | D43: 0 | E43: 0 | F43: 0 | G43: 0 | H43: 0 | I43: 0 | J43: 14621.08 | K43: 0 | L43: 0 | M43: 14621.08 | N43: 0.141 | O43: 14572.05 | P43: 849095.14 | Q43: 0 | R43: 0 | S43: 849095.14 | T43: 8.216 | U43: 849105.94 | V43: 250247.3 | W43: 0 | X43: 0 | Y43: 250247.3 | Z43: 2.421 | AA43: 250205.14
A44: 95 | B44: 1 | C44: 1 | D44: 0 | E44: 0 | F44: 0 | G44: 0 | H44: 0 | I44: 0 | J44: 2656.4 | K44: 0 | L44: 0 | M44: 2656.4 | N44: 0.131 | O44: 2652.39 | P44: 156538.5 | Q44: 0 | R44: 0 | S44: 156538.5 | T44: 7.731 | U44: 156531.49 | V44: 21179.02 | W44: 0 | X44: 0 | Y44: 21179.02 | Z44: 1.046 | AA44: 21178.62
A45: 97 | B45: 1 | C45: 1 | D45: 0 | E45: 0 | F45: 0 | G45: 0 | H45: 0 | I45: 0 | J45: 5999.69 | K45: 0 | L45: 0 | M45: 5999.69 | N45: 0.141 | O45: 6010.43 | P45: 238852.99 | Q45: 0 | R45: 0 | S45: 238852.99 | T45: 5.603 | U45: 238839.87 | V45: 54496.14 | W45: 0 | X45: 0 | Y45: 54496.14 | Z45: 1.278 | AA45: 54477.48
A46: 99 | B46: 1 | C46: 1 | D46: 0 | E46: 0 | F46: 0 | G46: 0 | H46: 0 | I46: 0 | J46: 7322.39 | K46: 0 | L46: 0 | M46: 7322.39 | N46: 0.139 | O46: 7317.97 | P46: 292871.21 | Q46: 0 | R46: 0 | S46: 292871.21 | T46: 5.563 | U46: 292876.71 | V46: 61604.68 | W46: 0 | X46: 0 | Y46: 61604.68 | Z46: 1.17 | AA46: 61597.29
A47: 100 | B47: 1 | C47: 1 | D47: 0 | E47: 0 | F47: 0 | G47: 0 | H47: 0 | I47: 0 | J47: 4527.19 | K47: 0 | L47: 0 | M47: 4527.19 | N47: 0.137 | O47: 4542.71 | P47: 180691.38 | Q47: 0 | R47: 0 | S47: 180691.38 | T47: 5.449 | U47: 180680.67 | V47: 25838.19 | W47: 0 | X47: 0 | Y47: 25838.19 | Z47: 0.779 | AA47: 25830.47
A48: 108 | B48: 1 | C48: 1 | D48: 0 | E48: 0 | F48: 0 | G48: 0 | H48: 0 | I48: 0 | J48: 13686 | K48: 0 | L48: -1654 | M48: 12032 | N48: 0.139 | O48: 12032 | P48: 687341 | Q48: 0 | R48: -83046 | S48: 604295 | T48: 6.973 | U48: 604295 | V48: 124378 | W48: 0 | X48: -15028 | Y48: 109350 | Z48: 1.262 | AA48: 109350
A49: 110 | B49: 1 | C49: 1 | D49: 0 | E49: 0 | F49: 0 | G49: 0 | H49: 0 | I49: 0 | J49: 36233 | K49: 0 | L49: -3396 | M49: 32837 | N49: 0.138 | O49: 32837 | P49: 707441 | Q49: 0 | R49: -66304 | S49: 641137 | T49: 2.694 | U49: 641137 | V49: 253576 | W49: 0 | X49: -23767 | Y49: 229809 | Z49: 0.966 | AA49: 229809
A50: 111 | B50: 1 | C50: 1 | D50: 0 | E50: 0 | F50: 0 | G50: 0 | H50: 0 | I50: 0 | J50: 16596 | K50: 0 | L50: -1954 | M50: 14642 | N50: 0.138 | O50: 14642 | P50: 377320 | Q50: 0 | R50: -44406 | S50: 332914 | T50: 3.135 | U50: 332914 | V50: 292471 | W50: 0 | X50: -34420 | Y50: 258051 | Z50: 2.43 | AA50: 258051
A51: 112 | B51: 1 | C51: 1 | D51: 3644140 | E51: 0 | F51: -292962 | G51: 3351178 | H51: 4.758 | I51: 3351179 | J51: 109303 | K51: 0 | L51: -8787 | M51: 100516 | N51: 0.143 | O51: 100516 | P51: 6076030 | Q51: 0 | R51: -488467 | S51: 5587563 | T51: 7.934 | U51: 5587563 | V51: 858974 | W51: 0 | X51: -69055 | Y51: 789919 | Z51: 1.122 | AA51: 789919
A52: 113 | B52: 1 | C52: 1 | D52: 0 | E52: 0 | F52: 0 | G52: 0 | H52: 0 | I52: 0 | J52: 27831.46 | K52: 0 | L52: 0 | M52: 27831.46 | N52: 0.141 | O52: 27760.68 | P52: 519314.31 | Q52: 0 | R52: 0 | S52: 519314.31 | T52: 2.638 | U52: 519380.76 | V52: 97840.95 | W52: 0 | X52: 0 | Y52: 97840.95 | Z52: 0.497 | AA52: 97851.49
A53: 114 | B53: 1 | C53: 0 | D53: 0 | E53: 0 | F53: 0 | G53: 0 | H53: 0 | I53: 0 | J53: 0 | K53: 0 | L53: 0 | M53: 0 | N53: 0 | O53: 0 | P53: 0 | Q53: 0 | R53: 0 | S53: 0 | T53: 0 | U53: 0 | V53: 0 | W53: 0 | X53: 0 | Y53: 0 | Z53: 0 | AA53: 0
A54: 115 | B54: 1 | C54: 1 | D54: 0 | E54: 0 | F54: 0 | G54: 0 | H54: 0 | I54: 0 | J54: 11419.96 | K54: 0 | L54: 0 | M54: 11419.96 | N54: 0.134 | O54: 11449.09 | P54: 202866.41 | Q54: 0 | R54: 0 | S54: 202866.41 | T54: 2.374 | U54: 202836.89 | V54: 63589.14 | W54: 0 | X54: 0 | Y54: 63589.14 | Z54: 0.744 | AA54: 63568.09
A55: 116 | B55: 1 | C55: 1 | D55: 0 | E55: 0 | F55: 0 | G55: 0 | H55: 0 | I55: 0 | J55: 14522.67 | K55: 0 | L55: 0 | M55: 14522.67 | N55: 0.145 | O55: 14477.06 | P55: 371707.69 | Q55: 0 | R55: 0 | S55: 371707.69 | T55: 3.723 | U55: 371710.87 | V55: 107931.62 | W55: 0 | X55: 0 | Y55: 107931.62 | Z55: 1.081 | AA55: 107928.94
A56: 117 | B56: 1 | C56: 0 | D56: 0 | E56: 0 | F56: 0 | G56: 0 | H56: 0 | I56: 0 | J56: 0 | K56: 0 | L56: 0 | M56: 0 | N56: 0 | O56: 0 | P56: 0 | Q56: 0 | R56: 0 | S56: 0 | T56: 0 | U56: 0 | V56: 0 | W56: 0 | X56: 0 | Y56: 0 | Z56: 0 | AA56: 0
A57: 118 | B57: 1 | C57: 1 | D57: 0 | E57: 0 | F57: 0 | G57: 0 | H57: 0 | I57: 0 | J57: 22165.92 | K57: 0 | L57: 0 | M57: 22165.92 | N57: 0.145 | O57: 22092.99 | P57: 97716.06 | Q57: 0 | R57: 0 | S57: 97716.06 | T57: 0.641 | U57: 97666.25 | V57: 70938.53 | W57: 0 | X57: 0 | Y57: 70938.53 | Z57: 0.466 | AA57: 71002.3
A58: 119 | B58: 1 | C58: 0 | D58: 0 | E58: 0 | F58: 0 | G58: 0 | H58: 0 | I58: 0 | J58: 0 | K58: 0 | L58: 0 | M58: 0 | N58: 0 | O58: 0 | P58: 0 | Q58: 0 | R58: 0 | S58: 0 | T58: 0 | U58: 0 | V58: 0 | W58: 0 | X58: 0 | Y58: 0 | Z58: 0 | AA58: 0
A59: 126 | B59: 1 | C59: 0 | D59: 0 | E59: 0 | F59: 0 | G59: 0 | H59: 0 | I59: 0 | J59: 0 | K59: 0 | L59: 0 | M59: 0 | N59: 0 | O59: 0 | P59: 0 | Q59: 0 | R59: 0 | S59: 0 | T59: 0 | U59: 0 | V59: 0 | W59: 0 | X59: 0 | Y59: 0 | Z59: 0 | AA59: 0
A60: 127 | B60: 1 | C60: 0 | D60: 0 | E60: 0 | F60: 0 | G60: 0 | H60: 0 | I60: 0 | J60: 0 | K60: 0 | L60: 0 | M60: 0 | N60: 0 | O60: 0 | P60: 0 | Q60: 0 | R60: 0 | S60: 0 | T60: 0 | U60: 0 | V60: 0 | W60: 0 | X60: 0 | Y60: 0 | Z60: 0 | AA60: 0
A61: 128 | B61: 1 | C61: 0 | D61: 0 | E61: 0 | F61: 0 | G61: 0 | H61: 0 | I61: 0 | J61: 0 | K61: 0 | L61: 0 | M61: 0 | N61: 0 | O61: 0 | P61: 0 | Q61: 0 | R61: 0 | S61: 0 | T61: 0 | U61: 0 | V61: 0 | W61: 0 | X61: 0 | Y61: 0 | Z61: 0 | AA61: 0
A62: 129 | B62: 1 | C62: 1 | D62: 0 | E62: 0 | F62: 0 | G62: 0 | H62: 0 | I62: 0 | J62: 11953.41 | K62: 0 | L62: 0 | M62: 11953.41 | N62: 0.144 | O62: 11989.05 | P62: 667284.97 | Q62: 0 | R62: 0 | S62: 667284.97 | T62: 8.015 | U62: 667307.34 | V62: 105036.6 | W62: 0 | X62: 0 | Y62: 105036.6 | Z62: 1.262 | AA62: 105070.73
A63: 138 | B63: 1 | C63: 1 | D63: 0 | E63: 0 | F63: 0 | G63: 0 | H63: 0 | I63: 0 | J63: 23369.84 | K63: 0 | L63: 0 | M63: 23369.84 | N63: 0.142 | O63: 23370 | P63: 1284155.1 | Q63: 0 | R63: 0 | S63: 1284155.1 | T63: 7.799 | U63: 1284155 | V63: 211672.53 | W63: 0 | X63: 0 | Y63: 211672.53 | Z63: 1.286 | AA63: 211673
A64: 139 | B64: 1 | C64: 1 | D64: 0 | E64: 0 | F64: 0 | G64: 0 | H64: 0 | I64: 0 | J64: 6571.06 | K64: 0 | L64: 0 | M64: 6571.06 | N64: 0.14 | O64: 6571 | P64: 248858.1 | Q64: 0 | R64: 0 | S64: 248858.1 | T64: 5.305 | U64: 248859 | V64: 59501.46 | W64: 0 | X64: 0 | Y64: 59501.46 | Z64: 1.268 | AA64: 59501
A65: 140 | B65: 1 | C65: 0 | D65: 0 | E65: 0 | F65: 0 | G65: 0 | H65: 0 | I65: 0 | J65: 0 | K65: 0 | L65: 0 | M65: 0 | N65: 0 | O65: 0 | P65: 0 | Q65: 0 | R65: 0 | S65: 0 | T65: 0 | U65: 0 | V65: 0 | W65: 0 | X65: 0 | Y65: 0 | Z65: 0 | AA65: 0
A66: 141 | B66: 1 | C66: 0 | D66: 0 | E66: 0 | F66: 0 | G66: 0 | H66: 0 | I66: 0 | J66: 0 | K66: 0 | L66: 0 | M66: 0 | N66: 0 | O66: 0 | P66: 0 | Q66: 0 | R66: 0 | S66: 0 | T66: 0 | U66: 0 | V66: 0 | W66: 0 | X66: 0 | Y66: 0 | Z66: 0 | AA66: 0
A67: 145 | B67: 1 | C67: 0 | D67: 0 | E67: 0 | F67: 0 | G67: 0 | H67: 0 | I67: 0 | J67: 0 | K67: 0 | L67: 0 | M67: 0 | N67: 0 | O67: 0 | P67: 0 | Q67: 0 | R67: 0 | S67: 0 | T67: 0 | U67: 0 | V67: 0 | W67: 0 | X67: 0 | Y67: 0 | Z67: 0 | AA67: 0
A68: 146 | B68: 1 | C68: 1 | D68: 0 | E68: 0 | F68: 0 | G68: 0 | H68: 0 | I68: 0 | J68: 12605.38 | K68: 0 | L68: 0 | M68: 12605.38 | N68: 0.153 | O68: 12605 | P68: 400181.49 | Q68: 0 | R68: 0 | S68: 400181.49 | T68: 4.855 | U68: 400181 | V68: 64025.6 | W68: 0 | X68: 0 | Y68: 64025.6 | Z68: 0.777 | AA68: 64026
A69: 147 | B69: 1 | C69: 0 | D69: 0 | E69: 0 | F69: 0 | G69: 0 | H69: 0 | I69: 0 | J69: 0 | K69: 0 | L69: 0 | M69: 0 | N69: 0 | O69: 0 | P69: 0 | Q69: 0 | R69: 0 | S69: 0 | T69: 0 | U69: 0 | V69: 0 | W69: 0 | X69: 0 | Y69: 0 | Z69: 0 | AA69: 0
A70: 150 | B70: 1 | C70: 1 | D70: 0 | E70: 0 | F70: 0 | G70: 0 | H70: 0 | I70: 0 | J70: 7333.86 | K70: 0 | L70: 0 | M70: 7333.86 | N70: 0.147 | O70: 7334 | P70: 257884.32 | Q70: 0 | R70: 0 | S70: 257884.32 | T70: 5.18 | U70: 257884 | V70: 51149.15 | W70: 0 | X70: 0 | Y70: 51149.15 | Z70: 1.028 | AA70: 51149
A71: 152 | B71: 1 | C71: 1 | D71: 0 | E71: 0 | F71: 0 | G71: 0 | H71: 0 | I71: 0 | J71: 53930.28 | K71: 0 | L71: 0 | M71: 53930.28 | N71: 0.138 | O71: 53930 | P71: 2966237.03 | Q71: 0 | R71: 0 | S71: 2966237.03 | T71: 7.587 | U71: 2966237 | V71: 465166.09 | W71: 0 | X71: 0 | Y71: 465166.09 | Z71: 1.19 | AA71: 465166
A72: 158 | B72: 1 | C72: 0 | D72: 0 | E72: 0 | F72: 0 | G72: 0 | H72: 0 | I72: 0 | J72: 0 | K72: 0 | L72: 0 | M72: 0 | N72: 0 | O72: 0 | P72: 0 | Q72: 0 | R72: 0 | S72: 0 | T72: 0 | U72: 0 | V72: 0 | W72: 0 | X72: 0 | Y72: 0 | Z72: 0 | AA72: 0
A73: 161 | B73: 1 | C73: 0 | D73: 0 | E73: 0 | F73: 0 | G73: 0 | H73: 0 | I73: 0 | J73: 0 | K73: 0 | L73: 0 | M73: 0 | N73: 0 | O73: 0 | P73: 0 | Q73: 0 | R73: 0 | S73: 0 | T73: 0 | U73: 0 | V73: 0 | W73: 0 | X73: 0 | Y73: 0 | Z73: 0 | AA73: 0
A74: 162 | B74: 1 | C74: 1 | D74: 0 | E74: 0 | F74: 0 | G74: 0 | H74: 0 | I74: 0 | J74: 6729 | K74: 0 | L74: 0 | M74: 6729 | N74: 0.143 | O74: 6728.12 | P74: 787240 | Q74: 0 | R74: 0 | S74: 787240 | T74: 16.72 | U74: 787241.74 | V74: 61263 | W74: 0 | X74: 0 | Y74: 61263 | Z74: 1.301 | AA74: 61264.02
A75: 166 | B75: 1 | C75: 1 | D75: 0 | E75: 0 | F75: 0 | G75: 0 | H75: 0 | I75: 0 | J75: 22992.46 | K75: 0 | L75: -153.01 | M75: 22839.45 | N75: 0.142 | O75: 22784 | P75: 104545.88 | Q75: 0 | R75: -695.74 | S75: 103850.14 | T75: 0.647 | U75: 103811.62 | V75: 0 | W75: 0 | X75: 0 | Y75: 0 | Z75: 0 | AA75: 0
A76: 173 | B76: 1 | C76: 1 | D76: 0 | E76: 0 | F76: 0 | G76: 0 | H76: 0 | I76: 0 | J76: 9412.02 | K76: -0.02 | L76: 0 | M76: 9412 | N76: 0.134 | O76: 9426.25 | P76: 316566.56 | Q76: 0.44 | R76: 0 | S76: 316567 | T76: 4.501 | U76: 316623.52 | V76: 43446.42 | W76: -0.42 | X76: 0 | Y76: 43446 | Z76: 0.618 | AA76: 43473.3
A77: 175 | B77: 1 | C77: 0 | D77: 0 | E77: 0 | F77: 0 | G77: 0 | H77: 0 | I77: 0 | J77: 0 | K77: 0 | L77: 0 | M77: 0 | N77: 0 | O77: 0 | P77: 0 | Q77: 0 | R77: 0 | S77: 0 | T77: 0 | U77: 0 | V77: 0 | W77: 0 | X77: 0 | Y77: 0 | Z77: 0 | AA77: 0
A78: 177 | B78: 1 | C78: 1 | D78: 0 | E78: 0 | F78: 0 | G78: 0 | H78: 0 | I78: 0 | J78: 13723.2 | K78: -0.2 | L78: 0 | M78: 13723 | N78: 0.136 | O78: 13743.29 | P78: 587378.66 | Q78: 0.34 | R78: 0 | S78: 587379 | T78: 5.813 | U78: 587424.4 | V78: 82406.11 | W78: -0.11 | X78: 0 | Y78: 82406 | Z78: 0.816 | AA78: 82459.71
A79: 178 | B79: 1 | C79: 0 | D79: 0 | E79: 0 | F79: 0 | G79: 0 | H79: 0 | I79: 0 | J79: 0 | K79: 0 | L79: 0 | M79: 0 | N79: 0 | O79: 0 | P79: 0 | Q79: 0 | R79: 0 | S79: 0 | T79: 0 | U79: 0 | V79: 0 | W79: 0 | X79: 0 | Y79: 0 | Z79: 0 | AA79: 0
A80: 181 | B80: 1 | C80: 1 | D80: 0 | E80: 0 | F80: 0 | G80: 0 | H80: 0 | I80: 0 | J80: 78762.42 | K80: 0 | L80: 0 | M80: 78762.42 | N80: 0.141 | O80: 79088.49 | P80: 4107160.62 | Q80: 0 | R80: 0 | S80: 4107160.62 | T80: 7.323 | U80: 4107553.16 | V80: 571614.09 | W80: 0 | X80: 0 | Y80: 571614.09 | Z80: 1.02 | AA80: 572129.49
A81: 182 | B81: 1 | C81: 1 | D81: 0 | E81: 0 | F81: 0 | G81: 0 | H81: 0 | I81: 0 | J81: 27673.53 | K81: 0 | L81: -912.85 | M81: 26760.68 | N81: 0.141 | O81: 26825.6 | P81: 647190.83 | Q81: 0 | R81: -21348.39 | S81: 625842.44 | T81: 3.29 | U81: 625930.73 | V81: 0 | W81: 0 | X81: 0 | Y81: 0 | Z81: 0 | AA81: 0
A82: 186 | B82: 1 | C82: 1 | D82: 0 | E82: 0 | F82: 0 | G82: 0 | H82: 0 | I82: 0 | J82: 44759.22 | K82: 0 | L82: 0 | M82: 44759.22 | N82: 0.141 | O82: 44764.64 | P82: 853638.97 | Q82: 0 | R82: 0 | S82: 853638.97 | T82: 2.689 | U82: 853702.99 | V82: 201854.53 | W82: 0 | X82: 0 | Y82: 201854.53 | Z82: 0.636 | AA82: 201917.11
A83: 191 | B83: 1 | C83: 1 | D83: 2544339 | E83: 0 | F83: -319342 | G83: 2224997 | H83: 3.418 | I83: 2225467.59 | J83: 101874 | K83: 0 | L83: -12788 | M83: 89086 | N83: 0.137 | O83: 89201.01 | P83: 5806561 | Q83: 0 | R83: -728788 | S83: 5077773 | T83: 7.799 | U83: 5077946.68 | V83: 1556452 | W83: 0 | X83: -195350 | Y83: 1361102 | Z83: 2.09 | AA83: 1360803.77
A84: 192 | B84: 1 | C84: 1 | D84: 0 | E84: 0 | F84: 0 | G84: 0 | H84: 0 | I84: 0 | J84: 47116 | K84: 0 | L84: -6824 | M84: 40292 | N84: 0.139 | O84: 40217.93 | P84: 2506121 | Q84: 0 | R84: -363002 | S84: 2143119 | T84: 7.407 | U84: 2143123.75 | V84: 659878 | W84: 0 | X84: -95580 | Y84: 564298 | Z84: 1.951 | AA84: 564497.7
A85: 194 | B85: 1 | C85: 1 | D85: 2102255 | E85: 0 | F85: -210489 | G85: 1891766 | H85: 2.8 | I85: 1891953.48 | J85: 103120 | K85: 0 | L85: -10326 | M85: 92794 | N85: 0.137 | O85: 92570.58 | P85: 5415765 | Q85: 0 | R85: -542257 | S85: 4873508 | T85: 7.213 | U85: 4873807.29 | V85: 1057814 | W85: 0 | X85: -105915 | Y85: 951899 | Z85: 1.409 | AA85: 952058.02
A86: 195 | B86: 1 | C86: 1 | D86: 0 | E86: 0 | F86: 0 | G86: 0 | H86: 0 | I86: 0 | J86: 6955 | K86: 0 | L86: -260 | M86: 6695 | N86: 0.134 | O86: 6670.42 | P86: 267227 | Q86: 0 | R86: -9971 | S86: 257256 | T86: 5.168 | U86: 257259.11 | V86: 44933 | W86: 0 | X86: -1677 | Y86: 43256 | Z86: 0.869 | AA86: 43258.16
A87: 196 | B87: 1 | C87: 1 | D87: 5049218 | E87: 0 | F87: -577878 | G87: 4471340 | H87: 2.872 | I87: 4471695.79 | J87: 251612 | K87: 0 | L87: -28798 | M87: 222814 | N87: 0.143 | O87: 222650.59 | P87: 17268485 | Q87: 0 | R87: -1976367 | S87: 15292118 | T87: 9.822 | U87: 15292825.91 | V87: 1671936 | W87: 0 | X87: -191354 | Y87: 1480582 | Z87: 0.951 | AA87: 1480704.28
A88: 197 | B88: 1 | C88: 1 | D88: 1348799 | E88: 0 | F88: -116051 | G88: 1232748 | H88: 2.138 | I88: 1232972.56 | J88: 91312 | K88: 0 | L88: -7856 | M88: 83456 | N88: 0.145 | O88: 83620.68 | P88: 4111915 | Q88: 0 | R88: -353790 | S88: 3758125 | T88: 6.517 | U88: 3758317.21 | V88: 1128722 | W88: 0 | X88: -97116 | Y88: 1031606 | Z88: 1.789 | AA88: 1031706.23
A89: 199 | B89: 1 | C89: 1 | D89: 0 | E89: 0 | F89: 0 | G89: 0 | H89: 0 | I89: 0 | J89: 41720 | K89: 0 | L89: -5192 | M89: 36528 | N89: 0.141 | O89: 36495.08 | P89: 2844642 | Q89: 0 | R89: -354065 | S89: 2490577 | T89: 9.623 | U89: 2490724.75 | V89: 451061 | W89: 0 | X89: -56142 | Y89: 394919 | Z89: 1.526 | AA89: 394975.16
A90: 200 | B90: 1 | C90: 1 | D90: 0 | E90: 0 | F90: 0 | G90: 0 | H90: 0 | I90: 0 | J90: 51627 | K90: 0 | L90: -6869 | M90: 44758 | N90: 0.141 | O90: 44660.15 | P90: 2360042 | Q90: 0 | R90: -313981 | S90: 2046061 | T90: 6.46 | U90: 2046131.49 | V90: 460392 | W90: 0 | X90: -61251 | Y90: 399141 | Z90: 1.26 | AA90: 399090.66
A91: 201 | B91: 1 | C91: 0 | D91: 0 | E91: 0 | F91: 0 | G91: 0 | H91: 0 | I91: 0 | J91: 0 | K91: 0 | L91: 0 | M91: 0 | N91: 0 | O91: 0 | P91: 0 | Q91: 0 | R91: 0 | S91: 0 | T91: 0 | U91: 0 | V91: 0 | W91: 0 | X91: 0 | Y91: 0 | Z91: 0 | AA91: 0
A92: 202 | B92: 1 | C92: 0 | D92: 0 | E92: 0 | F92: 0 | G92: 0 | H92: 0 | I92: 0 | J92: 0 | K92: 0 | L92: 0 | M92: 0 | N92: 0 | O92: 0 | P92: 0 | Q92: 0 | R92: 0 | S92: 0 | T92: 0 | U92: 0 | V92: 0 | W92: 0 | X92: 0 | Y92: 0 | Z92: 0 | AA92: 0
A93: 203 | B93: 1 | C93: 1 | D93: 0 | E93: 0 | F93: 0 | G93: 0 | H93: 0 | I93: 0 | J93: 13193 | K93: 0 | L93: 0 | M93: 13193 | N93: 0.147 | O93: 13195.94 | P93: 596464 | Q93: 0 | R93: 0 | S93: 596464 | T93: 6.644 | U93: 596420.65 | V93: 38548 | W93: 0 | X93: 0 | Y93: 38548 | Z93: 0.429 | AA93: 38510.6
A94: 204 | B94: 1 | C94: 1 | D94: 0 | E94: 0 | F94: 0 | G94: 0 | H94: 0 | I94: 0 | J94: 12388 | K94: 0 | L94: 0 | M94: 12388 | N94: 0.14 | O94: 12358.4 | P94: 542335 | Q94: 0 | R94: 0 | S94: 542335 | T94: 6.144 | U94: 542357.36 | V94: 115966 | W94: 0 | X94: 0 | Y94: 115966 | Z94: 1.314 | AA94: 115992.44
A95: 205 | B95: 1 | C95: 0 | D95: 0 | E95: 0 | F95: 0 | G95: 0 | H95: 0 | I95: 0 | J95: 0 | K95: 0 | L95: 0 | M95: 0 | N95: 0 | O95: 0 | P95: 0 | Q95: 0 | R95: 0 | S95: 0 | T95: 0 | U95: 0 | V95: 0 | W95: 0 | X95: 0 | Y95: 0 | Z95: 0 | AA95: 0
A96: 206 | B96: 1 | C96: 1 | D96: 0 | E96: 0 | F96: 0 | G96: 0 | H96: 0 | I96: 0 | J96: 60815.2 | K96: 0 | L96: 0 | M96: 60815.2 | N96: 0.139 | O96: 60961.48 | P96: 1759892.21 | Q96: 0 | R96: 0 | S96: 1759892.21 | T96: 4.013 | U96: 1759988.51 | V96: 494369.8 | W96: 0 | X96: 0 | Y96: 494369.8 | Z96: 1.128 | AA96: 494708.96
A97: 207 | B97: 1 | C97: 0 | D97: 0 | E97: 0 | F97: 0 | G97: 0 | H97: 0 | I97: 0 | J97: 0 | K97: 0 | L97: 0 | M97: 0 | N97: 0 | O97: 0 | P97: 0 | Q97: 0 | R97: 0 | S97: 0 | T97: 0 | U97: 0 | V97: 0 | W97: 0 | X97: 0 | Y97: 0 | Z97: 0 | AA97: 0
A98: 208 | B98: 1 | C98: 0 | D98: 0 | E98: 0 | F98: 0 | G98: 0 | H98: 0 | I98: 0 | J98: 0 | K98: 0 | L98: 0 | M98: 0 | N98: 0 | O98: 0 | P98: 0 | Q98: 0 | R98: 0 | S98: 0 | T98: 0 | U98: 0 | V98: 0 | W98: 0 | X98: 0 | Y98: 0 | Z98: 0 | AA98: 0
A99: 209 | B99: 1 | C99: 0 | D99: 0 | E99: 0 | F99: 0 | G99: 0 | H99: 0 | I99: 0 | J99: 0 | K99: 0 | L99: 0 | M99: 0 | N99: 0 | O99: 0 | P99: 0 | Q99: 0 | R99: 0 | S99: 0 | T99: 0 | U99: 0 | V99: 0 | W99: 0 | X99: 0 | Y99: 0 | Z99: 0 | AA99: 0
A100: 213 | B100: 1 | C100: 1 | D100: 0 | E100: 0 | F100: 0 | G100: 0 | H100: 0 | I100: 0 | J100: 6898.42 | K100: 0 | L100: 0 | M100: 6898.42 | N100: 0.15 | O100: 6937.83 | P100: 223753.85 | Q100: 0 | R100: 0 | S100: 223753.85 | T100: 4.838 | U100: 223768.24 | V100: 49195.48 | W100: 0 | X100: 0 | Y100: 49195.48 | Z100: 1.064 | AA100: 49212.36
A101: 217 | B101: 1 | C101: 0 | D101: 0 | E101: 0 | F101: 0 | G101: 0 | H101: 0 | I101: 0 | J101: 0 | K101: 0 | L101: 0 | M101: 0 | N101: 0 | O101: 0 | P101: 0 | Q101: 0 | R101: 0 | S101: 0 | T101: 0 | U101: 0 | V101: 0 | W101: 0 | X101: 0 | Y101: 0 | Z101: 0 | AA101: 0
A102: 218 | B102: 1 | C102: 0 | D102: 0 | E102: 0 | F102: 0 | G102: 0 | H102: 0 | I102: 0 | J102: 0 | K102: 0 | L102: 0 | M102: 0 | N102: 0 | O102: 0 | P102: 0 | Q102: 0 | R102: 0 | S102: 0 | T102: 0 | U102: 0 | V102: 0 | W102: 0 | X102: 0 | Y102: 0 | Z102: 0 | AA102: 0
A103: 219 | B103: 1 | C103: 0 | D103: 0 | E103: 0 | F103: 0 | G103: 0 | H103: 0 | I103: 0 | J103: 0 | K103: 0 | L103: 0 | M103: 0 | N103: 0 | O103: 0 | P103: 0 | Q103: 0 | R103: 0 | S103: 0 | T103: 0 | U103: 0 | V103: 0 | W103: 0 | X103: 0 | Y103: 0 | Z103: 0 | AA103: 0
A104: 222 | B104: 1 | C104: 0 | D104: 0 | E104: 0 | F104: 0 | G104: 0 | H104: 0 | I104: 0 | J104: 0 | K104: 0 | L104: 0 | M104: 0 | N104: 0 | O104: 0 | P104: 0 | Q104: 0 | R104: 0 | S104: 0 | T104: 0 | U104: 0 | V104: 0 | W104: 0 | X104: 0 | Y104: 0 | Z104: 0 | AA104: 0
A105: 223 | B105: 1 | C105: 0 | D105: 0 | E105: 0 | F105: 0 | G105: 0 | H105: 0 | I105: 0 | J105: 0 | K105: 0 | L105: 0 | M105: 0 | N105: 0 | O105: 0 | P105: 0 | Q105: 0 | R105: 0 | S105: 0 | T105: 0 | U105: 0 | V105: 0 | W105: 0 | X105: 0 | Y105: 0 | Z105: 0 | AA105: 0
A106: 224 | B106: 1 | C106: 0 | D106: 0 | E106: 0 | F106: 0 | G106: 0 | H106: 0 | I106: 0 | J106: 0 | K106: 0 | L106: 0 | M106: 0 | N106: 0 | O106: 0 | P106: 0 | Q106: 0 | R106: 0 | S106: 0 | T106: 0 | U106: 0 | V106: 0 | W106: 0 | X106: 0 | Y106: 0 | Z106: 0 | AA106: 0
A107: 225 | B107: 1 | C107: 0 | D107: 0 | E107: 0 | F107: 0 | G107: 0 | H107: 0 | I107: 0 | J107: 0 | K107: 0 | L107: 0 | M107: 0 | N107: 0 | O107: 0 | P107: 0 | Q107: 0 | R107: 0 | S107: 0 | T107: 0 | U107: 0 | V107: 0 | W107: 0 | X107: 0 | Y107: 0 | Z107: 0 | AA107: 0
A108: 227 | B108: 1 | C108: 1 | D108: 0 | E108: 0 | F108: 0 | G108: 0 | H108: 0 | I108: 0 | J108: 10167 | K108: 0 | L108: 0 | M108: 10167 | N108: 0.149 | O108: 10047.61 | P108: 355884 | Q108: 0 | R108: 0 | S108: 355884 | T108: 5.221 | U108: 352070.93 | V108: 89834 | W108: 0 | X108: 0 | Y108: 89834 | Z108: 1.318 | AA108: 88877.51
A109: 228 | B109: 1 | C109: 0 | D109: 0 | E109: 0 | F109: 0 | G109: 0 | H109: 0 | I109: 0 | J109: 0 | K109: 0 | L109: 0 | M109: 0 | N109: 0 | O109: 0 | P109: 0 | Q109: 0 | R109: 0 | S109: 0 | T109: 0 | U109: 0 | V109: 0 | W109: 0 | X109: 0 | Y109: 0 | Z109: 0 | AA109: 0
A110: 229 | B110: 1 | C110: 1 | D110: 0 | E110: 0 | F110: 0 | G110: 0 | H110: 0 | I110: 0 | J110: 4584.28 | K110: 0 | L110: 0 | M110: 4584.28 | N110: 0.155 | O110: 4589.2 | P110: 145493.72 | Q110: 0 | R110: 0 | S110: 145493.72 | T110: 4.914 | U110: 145492.29 | V110: 21663.47 | W110: 0 | X110: 0 | Y110: 21663.47 | Z110: 0.732 | AA110: 21672.84
A111: 232 | B111: 1 | C111: 0 | D111: 0 | E111: 0 | F111: 0 | G111: 0 | H111: 0 | I111: 0 | J111: 0 | K111: 0 | L111: 0 | M111: 0 | N111: 0 | O111: 0 | P111: 0 | Q111: 0 | R111: 0 | S111: 0 | T111: 0 | U111: 0 | V111: 0 | W111: 0 | X111: 0 | Y111: 0 | Z111: 0 | AA111: 0
A112: 233 | B112: 1 | C112: 0 | D112: 0 | E112: 0 | F112: 0 | G112: 0 | H112: 0 | I112: 0 | J112: 0 | K112: 0 | L112: 0 | M112: 0 | N112: 0 | O112: 0 | P112: 0 | Q112: 0 | R112: 0 | S112: 0 | T112: 0 | U112: 0 | V112: 0 | W112: 0 | X112: 0 | Y112: 0 | Z112: 0 | AA112: 0
A113: 234 | B113: 1 | C113: 0 | D113: 0 | E113: 0 | F113: 0 | G113: 0 | H113: 0 | I113: 0 | J113: 0 | K113: 0 | L113: 0 | M113: 0 | N113: 0 | O113: 0 | P113: 0 | Q113: 0 | R113: 0 | S113: 0 | T113: 0 | U113: 0 | V113: 0 | W113: 0 | X113: 0 | Y113: 0 | Z113: 0 | AA113: 0
A114: 236 | B114: 1 | C114: 0 | D114: 0 | E114: 0 | F114: 0 | G114: 0 | H114: 0 | I114: 0 | J114: 0 | K114: 0 | L114: 0 | M114: 0 | N114: 0 | O114: 0 | P114: 0 | Q114: 0 | R114: 0 | S114: 0 | T114: 0 | U114: 0 | V114: 0 | W114: 0 | X114: 0 | Y114: 0 | Z114: 0 | AA114: 0
A115: 237 | B115: 1 | C115: 0 | D115: 0 | E115: 0 | F115: 0 | G115: 0 | H115: 0 | I115: 0 | J115: 0 | K115: 0 | L115: 0 | M115: 0 | N115: 0 | O115: 0 | P115: 0 | Q115: 0 | R115: 0 | S115: 0 | T115: 0 | U115: 0 | V115: 0 | W115: 0 | X115: 0 | Y115: 0 | Z115: 0 | AA115: 0
A116: 238 | B116: 1 | C116: 1 | D116: 0 | E116: 0 | F116: 0 | G116: 0 | H116: 0 | I116: 0 | J116: 4934.8 | K116: 0 | L116: 0 | M116: 4934.8 | N116: 0.141 | O116: 4951.71 | P116: 98408.34 | Q116: 0 | R116: 0 | S116: 98408.34 | T116: 2.802 | U116: 98402.04 | V116: 45135.05 | W116: 0 | X116: 0 | Y116: 45135.05 | Z116: 1.285 | AA116: 45127.27
A117: 239 | B117: 1 | C117: 1 | D117: 0 | E117: 0 | F117: 0 | G117: 0 | H117: 0 | I117: 0 | J117: 8337.08 | K117: 0 | L117: 0 | M117: 8337.08 | N117: 0.161 | O117: 8331.36 | P117: 194694.01 | Q117: 0 | R117: 0 | S117: 194694.01 | T117: 3.762 | U117: 194674.47 | V117: 79595.63 | W117: 0 | X117: 0 | Y117: 79595.63 | Z117: 1.538 | AA117: 79587.81
A118: 240 | B118: 1 | C118: 0 | D118: 0 | E118: 0 | F118: 0 | G118: 0 | H118: 0 | I118: 0 | J118: 0 | K118: 0 | L118: 0 | M118: 0 | N118: 0 | O118: 0 | P118: 0 | Q118: 0 | R118: 0 | S118: 0 | T118: 0 | U118: 0 | V118: 0 | W118: 0 | X118: 0 | Y118: 0 | Z118: 0 | AA118: 0
A119: 241 | B119: 1 | C119: 1 | D119: 0 | E119: 0 | F119: 0 | G119: 0 | H119: 0 | I119: 0 | J119: 26224.74 | K119: 0 | L119: 0 | M119: 26224.74 | N119: 0.135 | O119: 26279.18 | P119: 1485641.07 | Q119: 0 | R119: 0 | S119: 1485641.07 | T119: 7.632 | U119: 1485649.7 | V119: 237032.09 | W119: 0 | X119: 0 | Y119: 237032.09 | Z119: 1.218 | AA119: 237096.61
A120: 242 | B120: 1 | C120: 1 | D120: 0 | E120: 0 | F120: 0 | G120: 0 | H120: 0 | I120: 0 | J120: 4678.31 | K120: 0 | L120: 0 | M120: 4678.31 | N120: 0.138 | O120: 4676.25 | P120: 315895.06 | Q120: 0 | R120: 0 | S120: 315895.06 | T120: 9.322 | U120: 315883.89 | V120: 19448.62 | W120: 0 | X120: 0 | Y120: 19448.62 | Z120: 0.574 | AA120: 19450.48
A121: 243 | B121: 1 | C121: 0 | D121: 0 | E121: 0 | F121: 0 | G121: 0 | H121: 0 | I121: 0 | J121: 0 | K121: 0 | L121: 0 | M121: 0 | N121: 0 | O121: 0 | P121: 0 | Q121: 0 | R121: 0 | S121: 0 | T121: 0 | U121: 0 | V121: 0 | W121: 0 | X121: 0 | Y121: 0 | Z121: 0 | AA121: 0
A122: 244 | B122: 1 | C122: 0 | D122: 0 | E122: 0 | F122: 0 | G122: 0 | H122: 0 | I122: 0 | J122: 0 | K122: 0 | L122: 0 | M122: 0 | N122: 0 | O122: 0 | P122: 0 | Q122: 0 | R122: 0 | S122: 0 | T122: 0 | U122: 0 | V122: 0 | W122: 0 | X122: 0 | Y122: 0 | Z122: 0 | AA122: 0
A123: 245 | B123: 1 | C123: 0 | D123: 0 | E123: 0 | F123: 0 | G123: 0 | H123: 0 | I123: 0 | J123: 0 | K123: 0 | L123: 0 | M123: 0 | N123: 0 | O123: 0 | P123: 0 | Q123: 0 | R123: 0 | S123: 0 | T123: 0 | U123: 0 | V123: 0 | W123: 0 | X123: 0 | Y123: 0 | Z123: 0 | AA123: 0
A124: 252 | B124: 1 | C124: 1 | D124: 0 | E124: 0 | F124: 0 | G124: 0 | H124: 0 | I124: 0 | J124: 14028.58 | K124: 0.42 | L124: -14.23 | M124: 14014.77 | N124: 0.136 | O124: 14048.41 | P124: 263927.5 | Q124: 0.5 | R124: -267.67 | S124: 263660.33 | T124: 2.552 | U124: 263614.33 | V124: 125590.36 | W124: -0.36 | X124: -127.37 | Y124: 125462.63 | Z124: 1.215 | AA124: 125506.04
A125: 253 | B125: 1 | C125: 1 | D125: 0 | E125: 0 | F125: 0 | G125: 0 | H125: 0 | I125: 0 | J125: 6705.54 | K125: -0.54 | L125: 0 | M125: 6705 | N125: 0.143 | O125: 6702.18 | P125: 268443.58 | Q125: 0.42 | R125: 0 | S125: 268444 | T125: 5.728 | U125: 268461.97 | V125: 41072.06 | W125: -0.06 | X125: 0 | Y125: 41072 | Z125: 0.876 | AA125: 41056.68
A126: 254 | B126: 1 | C126: 0 | D126: 0 | E126: 0 | F126: 0 | G126: 0 | H126: 0 | I126: 0 | J126: 0 | K126: 0 | L126: 0 | M126: 0 | N126: 0 | O126: 0 | P126: 0 | Q126: 0 | R126: 0 | S126: 0 | T126: 0 | U126: 0 | V126: 0 | W126: 0 | X126: 0 | Y126: 0 | Z126: 0 | AA126: 0
A127: 255 | B127: 1 | C127: 1 | D127: 0 | E127: 0 | F127: 0 | G127: 0 | H127: 0 | I127: 0 | J127: 9897.08 | K127: -0.08 | L127: 0 | M127: 9897 | N127: 0.13 | O127: 9930.18 | P127: 429191.91 | Q127: 0.09 | R127: 0 | S127: 429192 | T127: 5.619 | U127: 429212.88 | V127: 117716.74 | W127: 0.26 | X127: 0 | Y127: 117717 | Z127: 1.541 | AA127: 117710.81
A128: 256 | B128: 1 | C128: 1 | D128: 0 | E128: 0 | F128: 0 | G128: 0 | H128: 0 | I128: 0 | J128: 49128.13 | K128: -0.13 | L128: 0 | M128: 49128 | N128: 0.134 | O128: 49308.78 | P128: 1917875 | Q128: 0 | R128: 0 | S128: 1917875 | T128: 5.212 | U128: 1917890.86 | V128: 327770.13 | W128: -0.13 | X128: 0 | Y128: 327770 | Z128: 0.891 | AA128: 327866.61
A129: 258 | B129: 1 | C129: 0 | D129: 0 | E129: 0 | F129: 0 | G129: 0 | H129: 0 | I129: 0 | J129: 0 | K129: 0 | L129: 0 | M129: 0 | N129: 0 | O129: 0 | P129: 0 | Q129: 0 | R129: 0 | S129: 0 | T129: 0 | U129: 0 | V129: 0 | W129: 0 | X129: 0 | Y129: 0 | Z129: 0 | AA129: 0
A130: 260 | B130: 1 | C130: 0 | D130: 0 | E130: 0 | F130: 0 | G130: 0 | H130: 0 | I130: 0 | J130: 0 | K130: 0 | L130: 0 | M130: 0 | N130: 0 | O130: 0 | P130: 0 | Q130: 0 | R130: 0 | S130: 0 | T130: 0 | U130: 0 | V130: 0 | W130: 0 | X130: 0 | Y130: 0 | Z130: 0 | AA130: 0
A131: 261 | B131: 1 | C131: 1 | D131: 0 | E131: 0 | F131: 0 | G131: 0 | H131: 0 | I131: 0 | J131: 3539.97 | K131: 0 | L131: 0 | M131: 3539.97 | N131: 0.146 | O131: 3558.95 | P131: 102456 | Q131: 0 | R131: 0 | S131: 102456 | T131: 4.204 | U131: 102478.18 | V131: 18725.51 | W131: 0 | X131: 0 | Y131: 18725.51 | Z131: 0.769 | AA131: 18745.41
A132: 262 | B132: 1 | C132: 0 | D132: 0 | E132: 0 | F132: 0 | G132: 0 | H132: 0 | I132: 0 | J132: 0 | K132: 0 | L132: 0 | M132: 0 | N132: 0 | O132: 0 | P132: 0 | Q132: 0 | R132: 0 | S132: 0 | T132: 0 | U132: 0 | V132: 0 | W132: 0 | X132: 0 | Y132: 0 | Z132: 0 | AA132: 0
A133: 263 | B133: 1 | C133: 0 | D133: 0 | E133: 0 | F133: 0 | G133: 0 | H133: 0 | I133: 0 | J133: 0 | K133: 0 | L133: 0 | M133: 0 | N133: 0 | O133: 0 | P133: 0 | Q133: 0 | R133: 0 | S133: 0 | T133: 0 | U133: 0 | V133: 0 | W133: 0 | X133: 0 | Y133: 0 | Z133: 0 | AA133: 0
A134: 264 | B134: 1 | C134: 1 | D134: 72659.92 | E134: 0 | F134: 0 | G134: 72659.92 | H134: 1.417 | I134: 72744.91 | J134: 8961.44 | K134: 0 | L134: 0 | M134: 8961.44 | N134: 0.175 | O134: 8984.02 | P134: 72039 | Q134: 0 | R134: 0 | S134: 72039 | T134: 1.404 | U134: 72077.53 | V134: 30773.31 | W134: 0 | X134: 0 | Y134: 30773.31 | Z134: 0.6 | AA134: 30802.36
A135: 265 | B135: 1 | C135: 0 | D135: 0 | E135: 0 | F135: 0 | G135: 0 | H135: 0 | I135: 0 | J135: 0 | K135: 0 | L135: 0 | M135: 0 | N135: 0 | O135: 0 | P135: 0 | Q135: 0 | R135: 0 | S135: 0 | T135: 0 | U135: 0 | V135: 0 | W135: 0 | X135: 0 | Y135: 0 | Z135: 0 | AA135: 0
A136: 270 | B136: 1 | C136: 1 | D136: 9056555.46 | E136: 0 | F136: -549236.87 | G136: 8507318.59 | H136: 7.9 | I136: 8508155.9 | J136: 164978.58 | K136: 0 | L136: -10008.16 | M136: 154970.42 | N136: 0.144 | O136: 155085.37 | P136: 3526724.68 | Q136: 0 | R136: -213877.54 | S136: 3312847.14 | T136: 3.077 | U136: 3313872.88 | V136: 1425018.38 | W136: 0 | X136: -86420.57 | Y136: 1338597.81 | Z136: 1.243 | AA136: 1338688.33
A137: 271 | B137: 1 | C137: 1 | D137: 6864949.6 | E137: 0 | F137: -478331.14 | G137: 6386618.46 | H137: 5.08 | I137: 6387478.51 | J137: 183078.16 | K137: 0 | L137: -12753.53 | M137: 170324.63 | N137: 0.136 | O137: 171003.36 | P137: 9340180.63 | Q137: 0 | R137: -650800.15 | S137: 8689380.48 | T137: 6.911 | U137: 8689737.01 | V137: 1760191.76 | W137: 0 | X137: -122643.67 | Y137: 1637548.09 | Z137: 1.303 | AA137: 1638363.09
A138: 272 | B138: 1 | C138: 1 | D138: 6442623.68 | E138: 0 | F138: -312721.61 | G138: 6129902.07 | H138: 6.381 | I138: 6130207.37 | J138: 149117.85 | K138: 0 | L138: -7240.1 | M138: 141877.75 | N138: 0.148 | O138: 142183.15 | P138: 6634114.33 | Q138: 0 | R138: -322017.65 | S138: 6312096.68 | T138: 6.571 | U138: 6312739.79 | V138: 851482.89 | W138: 0 | X138: -41329.78 | Y138: 810153.11 | Z138: 0.844 | AA138: 810828.24
A139: 273 | B139: 1 | C139: 1 | D139: 5344774.47 | E139: 0 | F139: -139462.61 | G139: 5205311.86 | H139: 5.366 | I139: 5205842.72 | J139: 147221.73 | K139: 0 | L139: -3843.32 | M139: 143378.41 | N139: 0.148 | O139: 143582.69 | P139: 12652234.23 | Q139: 0 | R139: -330137.89 | S139: 12322096.34 | T139: 12.702 | U139: 12322887.47 | V139: 1119656.28 | W139: 0 | X139: -29214.96 | Y139: 1090441.32 | Z139: 1.124 | AA139: 1090452.33
A140: 276 | B140: 1 | C140: 1 | D140: 5653426.33 | E140: 0 | F140: -182591.52 | G140: 5470834.81 | H140: 6.317 | I140: 5471173.47 | J140: 131379.2 | K140: 0 | L140: -4241.87 | M140: 127137.33 | N140: 0.147 | O140: 127317.16 | P140: 5942132.7 | Q140: 0 | R140: -191915 | S140: 5750217.7 | T140: 6.64 | U140: 5750924.78 | V140: 921516.52 | W140: 0 | X140: -29762.09 | Y140: 891754.43 | Z140: 1.03 | AA140: 892086.22
A141: 277 | B141: 1 | C141: 1 | D141: 1166779.77 | E141: 0 | F141: -42389.12 | G141: 1124390.65 | H141: 3.077 | I141: 1124675.53 | J141: 51577.71 | K141: 0 | L141: -1873.55 | M141: 49704.16 | N141: 0.136 | O141: 49709.42 | P141: 2246789.54 | Q141: 0 | R141: -81626.09 | S141: 2165163.45 | T141: 5.924 | U141: 2165283.67 | V141: 561726.02 | W141: 0 | X141: -20407.58 | Y141: 541318.44 | Z141: 1.481 | AA141: 541320.92
A142: 278 | B142: 1 | C142: 1 | D142: 912334.54 | E142: 0 | F142: -19055.74 | G142: 893278.8 | H142: 2.369 | I142: 893529.33 | J142: 53754.54 | K142: 0 | L142: -1122.65 | M142: 52631.89 | N142: 0.14 | O142: 52804.6 | P142: 2154390.7 | Q142: 0 | R142: -44998.1 | S142: 2109392.6 | T142: 5.593 | U142: 2109543.91 | V142: 268118.12 | W142: 0 | X142: -5600.16 | Y142: 262517.96 | Z142: 0.697 | AA142: 262891.49
A143: 279 | B143: 1 | C143: 1 | D143: 5785886.59 | E143: 0 | F143: -674767.73 | G143: 5111118.86 | H143: 3.454 | I143: 5112110.94 | J143: 232203.89 | K143: 0 | L143: -27093.58 | M143: 205110.31 | N143: 0.139 | O143: 205727.68 | P143: 18100278.37 | Q143: 0 | R143: -2110927.07 | S143: 15989351.3 | T143: 10.804 | U143: 15990517.25 | V143: 2522118.5 | W143: 0 | X143: -294134.91 | Y143: 2227983.59 | Z143: 1.506 | AA143: 2228963.25
A144: 280 | B144: 1 | C144: 1 | D144: 2771333.1 | E144: 0 | F144: -400542.65 | G144: 2370790.45 | H144: 5.922 | I144: 2370957.62 | J144: 65505.38 | K144: 0 | L144: -9468.36 | M144: 56037.02 | N144: 0.14 | O144: 56051.01 | P144: 4177010.15 | Q144: 0 | R144: -603705.95 | S144: 3573304.2 | T144: 8.926 | U144: 3573652.1 | V144: 454681.76 | W144: 0 | X144: -65714.65 | Y144: 388967.11 | Z144: 0.972 | AA144: 389154.14
A145: 281 | B145: 1 | C145: 1 | D145: 3925855.91 | E145: 0 | F145: -674644.66 | G145: 3251211.25 | H145: 3.87 | I145: 3251473.65 | J145: 138566.36 | K145: 0 | L145: -23816.58 | M145: 114749.78 | N145: 0.137 | O145: 115103.85 | P145: 6094216.31 | Q145: 0 | R145: -1047265.68 | S145: 5046950.63 | T145: 6.008 | U145: 5047765.81 | V145: 1849286.65 | W145: 0 | X145: -317792.33 | Y145: 1531494.32 | Z145: 1.823 | AA145: 1531637.33
A146: 282 | B146: 1 | C146: 1 | D146: 634127.23 | E146: 0 | F146: -85104.43 | G146: 549022.8 | H146: 5.862 | I146: 549056.32 | J146: 15587.06 | K146: 0 | L146: -2093 | M146: 13494.06 | N146: 0.145 | O146: 13581.23 | P146: 1124248.28 | Q146: 0 | R146: -150882.19 | S146: 973366.09 | T146: 10.393 | U146: 973446.31 | V146: 175178.33 | W146: 0 | X146: -23509.85 | Y146: 151668.48 | Z146: 1.62 | AA146: 151735.11
A147: 283 | B147: 1 | C147: 1 | D147: 2226967.2 | E147: 0 | F147: -187751.27 | G147: 2039215.93 | H147: 3.568 | I147: 2039529.92 | J147: 86883 | K147: 0 | L147: -7326.99 | M147: 79556.01 | N147: 0.14 | O147: 80026.4 | P147: 3326586.09 | Q147: 0 | R147: -280456.84 | S147: 3046129.25 | T147: 5.329 | U147: 3046147.69 | V147: 952961.35 | W147: 0 | X147: -80343.21 | Y147: 872618.14 | Z147: 1.527 | AA147: 872859.36
A148: 284 | B148: 1 | C148: 1 | D148: 6424402.64 | E148: 0 | F148: -290978.18 | G148: 6133424.46 | H148: 4.682 | I148: 6134541.81 | J148: 194386.21 | K148: 0 | L148: -8805.49 | M148: 185580.72 | N148: 0.142 | O148: 186054.02 | P148: 20056927.01 | Q148: 0 | R148: -908434.96 | S148: 19148492.05 | T148: 14.615 | U148: 19149151.75 | V148: 1004744.72 | W148: 0 | X148: -45507.9 | Y148: 959236.82 | Z148: 0.733 | AA148: 960405.63
A149: 286 | B149: 1 | C149: 1 | D149: 0 | E149: 0 | F149: 0 | G149: 0 | H149: 0 | I149: 0 | J149: 10476.52 | K149: 0 | L149: -3558.78 | M149: 6917.74 | N149: 0.133 | O149: 6922.78 | P149: 936506.35 | Q149: 0 | R149: -318085.88 | S149: 618420.47 | T149: 11.882 | U149: 618469.51 | V149: 140840.69 | W149: 0 | X149: -47837.36 | Y149: 93003.33 | Z149: 1.787 | AA149: 93015.07
A150: 287 | B150: 6 | C150: 0 | D150: 0 | E150: 0 | F150: 0 | G150: 0 | H150: 0 | I150: 0 | J150: 0 | K150: 0 | L150: 0 | M150: 0 | N150: 0 | O150: 0 | P150: 0 | Q150: 0 | R150: 0 | S150: 0 | T150: 0 | U150: 0 | V150: 0 | W150: 0 | X150: 0 | Y150: 0 | Z150: 0 | AA150: 0
A151: 288 | B151: 6 | C151: 0 | D151: 0 | E151: 0 | F151: 0 | G151: 0 | H151: 0 | I151: 0 | J151: 0 | K151: 0 | L151: 0 | M151: 0 | N151: 0 | O151: 0 | P151: 0 | Q151: 0 | R151: 0 | S151: 0 | T151: 0 | U151: 0 | V151: 0 | W151: 0 | X151: 0 | Y151: 0 | Z151: 0 | AA151: 0
A152: 294 | B152: 1 | C152: 1 | D152: 0 | E152: 0 | F152: 0 | G152: 0 | H152: 0 | I152: 0 | J152: 4673 | K152: 0 | L152: 0 | M152: 4673 | N152: 0.146 | O152: 4681.74 | P152: 78810 | Q152: 0 | R152: 0 | S152: 78810 | T152: 2.458 | U152: 78819.95 | V152: 35630 | W152: 0 | X152: 0 | Y152: 35630 | Z152: 1.111 | AA152: 35626.1
A153: 297 | B153: 1 | C153: 1 | D153: 0 | E153: 0 | F153: 0 | G153: 0 | H153: 0 | I153: 0 | J153: 3631 | K153: 0 | L153: 0 | M153: 3631 | N153: 0.151 | O153: 3634.26 | P153: 118334 | Q153: 0 | R153: 0 | S153: 118334 | T153: 4.917 | U153: 118342.11 | V153: 27070 | W153: 0 | X153: 0 | Y153: 27070 | Z153: 1.125 | AA153: 27076.44
A154: 299 | B154: 1 | C154: 1 | D154: 0 | E154: 0 | F154: 0 | G154: 0 | H154: 0 | I154: 0 | J154: 8577 | K154: 0 | L154: 0 | M154: 8577 | N154: 0.15 | O154: 8574.8 | P154: 561459 | Q154: 0 | R154: 0 | S154: 561459 | T154: 9.822 | U154: 561477.87 | V154: 73838 | W154: 0 | X154: 0 | Y154: 73838 | Z154: 1.292 | AA154: 73857.61
A155: 300 | B155: 1 | C155: 1 | D155: 0 | E155: 0 | F155: 0 | G155: 0 | H155: 0 | I155: 0 | J155: 10245 | K155: 0 | L155: 0 | M155: 10245 | N155: 0.142 | O155: 10228.31 | P155: 451814 | Q155: 0 | R155: 0 | S155: 451814 | T155: 6.273 | U155: 451846.2 | V155: 168775 | W155: 0 | X155: 0 | Y155: 168775 | Z155: 2.343 | AA155: 168767.04
A156: 301 | B156: 1 | C156: 0 | D156: 0 | E156: 0 | F156: 0 | G156: 0 | H156: 0 | I156: 0 | J156: 0 | K156: 0 | L156: 0 | M156: 0 | N156: 0 | O156: 0 | P156: 0 | Q156: 0 | R156: 0 | S156: 0 | T156: 0 | U156: 0 | V156: 0 | W156: 0 | X156: 0 | Y156: 0 | Z156: 0 | AA156: 0
A157: 306 | B157: 1 | C157: 1 | D157: 0 | E157: 0 | F157: 0 | G157: 0 | H157: 0 | I157: 0 | J157: 3349 | K157: 0 | L157: 0 | M157: 3349 | N157: 0.131 | O157: 3339.91 | P157: 142995 | Q157: 0 | R157: 0 | S157: 142995 | T157: 5.609 | U157: 143004.43 | V157: 17500 | W157: 0 | X157: 0 | Y157: 17500 | Z157: 0.686 | AA157: 17489.93
A158: 308 | B158: 1 | C158: 1 | D158: 0 | E158: 0 | F158: 0 | G158: 0 | H158: 0 | I158: 0 | J158: 8125 | K158: 0 | L158: 0 | M158: 8125 | N158: 0.136 | O158: 8135.98 | P158: 202888 | Q158: 0 | R158: 0 | S158: 202888 | T158: 3.391 | U158: 202861.01 | V158: 37350 | W158: 0 | X158: 0 | Y158: 37350 | Z158: 0.624 | AA158: 37329.78
A159: 309 | B159: 1 | C159: 1 | D159: 0 | E159: 0 | F159: 0 | G159: 0 | H159: 0 | I159: 0 | J159: 30588 | K159: 0 | L159: 0 | M159: 30588 | N159: 0.146 | O159: 30687.89 | P159: 716223 | Q159: 0 | R159: 0 | S159: 716223 | T159: 3.407 | U159: 716120.81 | V159: 197745 | W159: 0 | X159: 0 | Y159: 197745 | Z159: 0.941 | AA159: 197789.75
A160: 314 | B160: 1 | C160: 1 | D160: 0 | E160: 0 | F160: 0 | G160: 0 | H160: 0 | I160: 0 | J160: 5699 | K160: 0 | L160: 0 | M160: 5699 | N160: 0.139 | O160: 5699 | P160: 259156 | Q160: 0 | R160: 0 | S160: 259156 | T160: 6.333 | U160: 259155.97 | V160: 51861 | W160: 0 | X160: 0 | Y160: 51861 | Z160: 1.267 | AA160: 51861
A161: 316 | B161: 1 | C161: 1 | D161: 0 | E161: 0 | F161: 0 | G161: 0 | H161: 0 | I161: 0 | J161: 9262.76 | K161: 0 | L161: -826.27 | M161: 8436.49 | N161: 0.132 | O161: 8459.66 | P161: 114407.85 | Q161: 0 | R161: -10201.59 | S161: 104206.26 | T161: 1.626 | U161: 104207.69 | V161: 0 | W161: 0 | X161: 0 | Y161: 0 | Z161: 0 | AA161: 0
A162: 317 | B162: 1 | C162: 1 | D162: 0 | E162: 0 | F162: 0 | G162: 0 | H162: 0 | I162: 0 | J162: 11548.22 | K162: 0 | L162: 0 | M162: 11548.22 | N162: 0.138 | O162: 11534.46 | P162: 42147.15 | Q162: 0 | R162: 0 | S162: 42147.15 | T162: 0.504 | U162: 42125.86 | V162: 0 | W162: 0 | X162: 0 | Y162: 0 | Z162: 0 | AA162: 0
A163: 318 | B163: 1 | C163: 1 | D163: 0 | E163: 0 | F163: 0 | G163: 0 | H163: 0 | I163: 0 | J163: 61829.82 | K163: 0 | L163: -1606.9 | M163: 60222.92 | N163: 0.143 | O163: 60423.9 | P163: 2543812.96 | Q163: 0 | R163: -66111.48 | S163: 2477701.48 | T163: 5.864 | U163: 2477802.47 | V163: 0 | W163: 0 | X163: 0 | Y163: 0 | Z163: 0 | AA163: 0
A164: 319 | B164: 1 | C164: 1 | D164: 0 | E164: 0 | F164: 0 | G164: 0 | H164: 0 | I164: 0 | J164: 5343.42 | K164: 0 | L164: -321.35 | M164: 5022.07 | N164: 0.145 | O164: 5029.73 | P164: 73050.41 | Q164: 0 | R164: -4393.27 | S164: 68657.14 | T164: 1.979 | U164: 68647.1 | V164: 0 | W164: 0 | X164: 0 | Y164: 0 | Z164: 0 | AA164: 0
A165: 323 | B165: 2 | C165: 1 | D165: 0 | E165: 0 | F165: 0 | G165: 0 | H165: 0 | I165: 0 | J165: 410.72 | K165: 0 | L165: 0 | M165: 410.72 | N165: 0.137 | O165: 411 | P165: 3161.28 | Q165: 0 | R165: 0 | S165: 3161.28 | T165: 1.05 | U165: 3161 | V165: 0 | W165: 0 | X165: 0 | Y165: 0 | Z165: 0 | AA165: 0
A166: 324 | B166: 1 | C166: 0 | D166: 0 | E166: 0 | F166: 0 | G166: 0 | H166: 0 | I166: 0 | J166: 0 | K166: 0 | L166: 0 | M166: 0 | N166: 0 | O166: 0 | P166: 0 | Q166: 0 | R166: 0 | S166: 0 | T166: 0 | U166: 0 | V166: 0 | W166: 0 | X166: 0 | Y166: 0 | Z166: 0 | AA166: 0
A167: 325 | B167: 1 | C167: 0 | D167: 0 | E167: 0 | F167: 0 | G167: 0 | H167: 0 | I167: 0 | J167: 0 | K167: 0 | L167: 0 | M167: 0 | N167: 0 | O167: 0 | P167: 0 | Q167: 0 | R167: 0 | S167: 0 | T167: 0 | U167: 0 | V167: 0 | W167: 0 | X167: 0 | Y167: 0 | Z167: 0 | AA167: 0
A168: 328 | B168: 1 | C168: 0 | D168: 0 | E168: 0 | F168: 0 | G168: 0 | H168: 0 | I168: 0 | J168: 0 | K168: 0 | L168: 0 | M168: 0 | N168: 0 | O168: 0 | P168: 0 | Q168: 0 | R168: 0 | S168: 0 | T168: 0 | U168: 0 | V168: 0 | W168: 0 | X168: 0 | Y168: 0 | Z168: 0 | AA168: 0
A169: 330 | B169: 1 | C169: 1 | D169: 0 | E169: 0 | F169: 0 | G169: 0 | H169: 0 | I169: 0 | J169: 8700.44 | K169: -0.44 | L169: 0 | M169: 8700 | N169: 0.134 | O169: 8673 | P169: 254565.98 | Q169: 0.02 | R169: 0 | S169: 254566 | T169: 3.933 | U169: 254559.06 | V169: 29535.65 | W169: 0.35 | X169: 0 | Y169: 29536 | Z169: 0.456 | AA169: 29514.09
A170: 332 | B170: 1 | C170: 1 | D170: 0 | E170: 0 | F170: 0 | G170: 0 | H170: 0 | I170: 0 | J170: 10129.14 | K170: 0 | L170: 0 | M170: 10129.14 | N170: 0.143 | O170: 10140.73 | P170: 572291.29 | Q170: 0 | R170: 0 | S170: 572291.29 | T170: 8.07 | U170: 572277.67 | V170: 96085.46 | W170: 0 | X170: 0 | Y170: 96085.46 | Z170: 1.355 | AA170: 96088.75
A171: 333 | B171: 1 | C171: 1 | D171: 0 | E171: 0 | F171: 0 | G171: 0 | H171: 0 | I171: 0 | J171: 3223.57 | K171: 0 | L171: 0 | M171: 3223.57 | N171: 0.149 | O171: 3225.48 | P171: 99172 | Q171: 0 | R171: 0 | S171: 99172 | T171: 4.581 | U171: 99167.2 | V171: 29332.23 | W171: 0 | X171: 0 | Y171: 29332.23 | Z171: 1.355 | AA171: 29332.36
A172: 341 | B172: 1 | C172: 0 | D172: 0 | E172: 0 | F172: 0 | G172: 0 | H172: 0 | I172: 0 | J172: 0 | K172: 0 | L172: 0 | M172: 0 | N172: 0 | O172: 0 | P172: 0 | Q172: 0 | R172: 0 | S172: 0 | T172: 0 | U172: 0 | V172: 0 | W172: 0 | X172: 0 | Y172: 0 | Z172: 0 | AA172: 0
A173: 345 | B173: 1 | C173: 1 | D173: 0 | E173: 0 | F173: 0 | G173: 0 | H173: 0 | I173: 0 | J173: 20323.45 | K173: 0 | L173: 0 | M173: 20323.45 | N173: 0.147 | O173: 20371.72 | P173: 818889.99 | Q173: 0 | R173: 0 | S173: 818889.99 | T173: 5.91 | U173: 819026.42 | V173: 141593.97 | W173: 0 | X173: 0 | Y173: 141593.97 | Z173: 1.022 | AA173: 141631.98
A174: 346 | B174: 1 | C174: 0 | D174: 0 | E174: 0 | F174: 0 | G174: 0 | H174: 0 | I174: 0 | J174: 0 | K174: 0 | L174: 0 | M174: 0 | N174: 0 | O174: 0 | P174: 0 | Q174: 0 | R174: 0 | S174: 0 | T174: 0 | U174: 0 | V174: 0 | W174: 0 | X174: 0 | Y174: 0 | Z174: 0 | AA174: 0
A175: 347 | B175: 1 | C175: 1 | D175: 0 | E175: 0 | F175: 0 | G175: 0 | H175: 0 | I175: 0 | J175: 34523.41 | K175: 0 | L175: 0 | M175: 34523.41 | N175: 0.146 | O175: 34536.04 | P175: 2397162.72 | Q175: 0 | R175: 0 | S175: 2397162.72 | T175: 10.135 | U175: 2397416.51 | V175: 407745.08 | W175: 0 | X175: 0 | Y175: 407745.08 | Z175: 1.724 | AA175: 407809.18
A176: 351 | B176: 1 | C176: 0 | D176: 0 | E176: 0 | F176: 0 | G176: 0 | H176: 0 | I176: 0 | J176: 0 | K176: 0 | L176: 0 | M176: 0 | N176: 0 | O176: 0 | P176: 0 | Q176: 0 | R176: 0 | S176: 0 | T176: 0 | U176: 0 | V176: 0 | W176: 0 | X176: 0 | Y176: 0 | Z176: 0 | AA176: 0
A177: 352 | B177: 1 | C177: 0 | D177: 0 | E177: 0 | F177: 0 | G177: 0 | H177: 0 | I177: 0 | J177: 0 | K177: 0 | L177: 0 | M177: 0 | N177: 0 | O177: 0 | P177: 0 | Q177: 0 | R177: 0 | S177: 0 | T177: 0 | U177: 0 | V177: 0 | W177: 0 | X177: 0 | Y177: 0 | Z177: 0 | AA177: 0
A178: 353 | B178: 1 | C178: 0 | D178: 0 | E178: 0 | F178: 0 | G178: 0 | H178: 0 | I178: 0 | J178: 0 | K178: 0 | L178: 0 | M178: 0 | N178: 0 | O178: 0 | P178: 0 | Q178: 0 | R178: 0 | S178: 0 | T178: 0 | U178: 0 | V178: 0 | W178: 0 | X178: 0 | Y178: 0 | Z178: 0 | AA178: 0
A179: 354 | B179: 1 | C179: 0 | D179: 0 | E179: 0 | F179: 0 | G179: 0 | H179: 0 | I179: 0 | J179: 0 | K179: 0 | L179: 0 | M179: 0 | N179: 0 | O179: 0 | P179: 0 | Q179: 0 | R179: 0 | S179: 0 | T179: 0 | U179: 0 | V179: 0 | W179: 0 | X179: 0 | Y179: 0 | Z179: 0 | AA179: 0
A180: 356 | B180: 1 | C180: 1 | D180: 0 | E180: 0 | F180: 0 | G180: 0 | H180: 0 | I180: 0 | J180: 1917 | K180: 0 | L180: 0 | M180: 1917 | N180: 0.145 | O180: 1915.29 | P180: 95944 | Q180: 0 | R180: 0 | S180: 95944 | T180: 7.264 | U180: 95949.45 | V180: 11722 | W180: 0 | X180: 0 | Y180: 11722 | Z180: 0.887 | AA180: 11716.29
A181: 361 | B181: 1 | C181: 1 | D181: 0 | E181: 0 | F181: 0 | G181: 0 | H181: 0 | I181: 0 | J181: 10301.35 | K181: 0 | L181: 0 | M181: 10301.35 | N181: 0.138 | O181: 10337.26 | P181: 1010007.16 | Q181: 0 | R181: 0 | S181: 1010007.16 | T181: 13.484 | U181: 1010055.02 | V181: 115461.1 | W181: 0 | X181: 0 | Y181: 115461.1 | Z181: 1.541 | AA181: 115432.72
A182: 362 | B182: 1 | C182: 1 | D182: 0 | E182: 0 | F182: 0 | G182: 0 | H182: 0 | I182: 0 | J182: 2046.35 | K182: 0 | L182: 0 | M182: 2046.35 | N182: 0.152 | O182: 2051.94 | P182: 86552.33 | Q182: 0 | R182: 0 | S182: 86552.33 | T182: 6.411 | U182: 86545.94 | V182: 18506.5 | W182: 0 | X182: 0 | Y182: 18506.5 | Z182: 1.371 | AA182: 18507.95
A183: 363 | B183: 1 | C183: 1 | D183: 0 | E183: 0 | F183: 0 | G183: 0 | H183: 0 | I183: 0 | J183: 2527.49 | K183: 0 | L183: 0 | M183: 2527.49 | N183: 0.155 | O183: 2527.2 | P183: 176533.14 | Q183: 0 | R183: 0 | S183: 176533.14 | T183: 10.827 | U183: 176528.71 | V183: 15655.92 | W183: 0 | X183: 0 | Y183: 15655.92 | Z183: 0.96 | AA183: 15652.31
A184: 371 | B184: 1 | C184: 0 | D184: 0 | E184: 0 | F184: 0 | G184: 0 | H184: 0 | I184: 0 | J184: 0 | K184: 0 | L184: 0 | M184: 0 | N184: 0 | O184: 0 | P184: 0 | Q184: 0 | R184: 0 | S184: 0 | T184: 0 | U184: 0 | V184: 0 | W184: 0 | X184: 0 | Y184: 0 | Z184: 0 | AA184: 0
A185: 376 | B185: 1 | C185: 0 | D185: 0 | E185: 0 | F185: 0 | G185: 0 | H185: 0 | I185: 0 | J185: 0 | K185: 0 | L185: 0 | M185: 0 | N185: 0 | O185: 0 | P185: 0 | Q185: 0 | R185: 0 | S185: 0 | T185: 0 | U185: 0 | V185: 0 | W185: 0 | X185: 0 | Y185: 0 | Z185: 0 | AA185: 0
A186: 377 | B186: 1 | C186: 0 | D186: 0 | E186: 0 | F186: 0 | G186: 0 | H186: 0 | I186: 0 | J186: 0 | K186: 0 | L186: 0 | M186: 0 | N186: 0 | O186: 0 | P186: 0 | Q186: 0 | R186: 0 | S186: 0 | T186: 0 | U186: 0 | V186: 0 | W186: 0 | X186: 0 | Y186: 0 | Z186: 0 | AA186: 0
A187: 378 | B187: 1 | C187: 1 | D187: 0 | E187: 0 | F187: 0 | G187: 0 | H187: 0 | I187: 0 | J187: 10559 | K187: 0 | L187: 0 | M187: 10559 | N187: 0.141 | O187: 10530.37 | P187: 433537 | Q187: 0 | R187: 0 | S187: 433537 | T187: 5.805 | U187: 433537.43 | V187: 75894 | W187: 0 | X187: 0 | Y187: 75894 | Z187: 1.016 | AA187: 75878.39
A188: 381 | B188: 1 | C188: 1 | D188: 0 | E188: 0 | F188: 0 | G188: 0 | H188: 0 | I188: 0 | J188: 29726.58 | K188: 0 | L188: -896.29 | M188: 28830.29 | N188: 0.135 | O188: 28549.15 | P188: 213376.67 | Q188: 0 | R188: -7490.01 | S188: 205886.66 | T188: 0.972 | U188: 205553.87 | V188: 0 | W188: 0 | X188: 0 | Y188: 0 | Z188: 0 | AA188: 0
A189: 390 | B189: 1 | C189: 1 | D189: 0 | E189: 0 | F189: 0 | G189: 0 | H189: 0 | I189: 0 | J189: 6940 | K189: 0 | L189: 0 | M189: 6940 | N189: 0.145 | O189: 6987.68 | P189: 422457 | Q189: 0 | R189: 0 | S189: 422457 | T189: 8.767 | U189: 422489.8 | V189: 43176 | W189: 0 | X189: 0 | Y189: 43176 | Z189: 0.896 | AA189: 43179.06
A190: 391 | B190: 1 | C190: 1 | D190: 0 | E190: 0 | F190: 0 | G190: 0 | H190: 0 | I190: 0 | J190: 7567.74 | K190: 0 | L190: 0 | M190: 7567.74 | N190: 0.153 | O190: 7587.96 | P190: 287680.16 | Q190: 0 | R190: 0 | S190: 287680.16 | T190: 5.801 | U190: 287697.81 | V190: 37967.94 | W190: 0 | X190: 0 | Y190: 37967.94 | Z190: 0.766 | AA190: 37989.4
A191: 392 | B191: 1 | C191: 0 | D191: 0 | E191: 0 | F191: 0 | G191: 0 | H191: 0 | I191: 0 | J191: 0 | K191: 0 | L191: 0 | M191: 0 | N191: 0 | O191: 0 | P191: 0 | Q191: 0 | R191: 0 | S191: 0 | T191: 0 | U191: 0 | V191: 0 | W191: 0 | X191: 0 | Y191: 0 | Z191: 0 | AA191: 0
A192: 393 | B192: 1 | C192: 0 | D192: 0 | E192: 0 | F192: 0 | G192: 0 | H192: 0 | I192: 0 | J192: 0 | K192: 0 | L192: 0 | M192: 0 | N192: 0 | O192: 0 | P192: 0 | Q192: 0 | R192: 0 | S192: 0 | T192: 0 | U192: 0 | V192: 0 | W192: 0 | X192: 0 | Y192: 0 | Z192: 0 | AA192: 0
A193: 394 | B193: 1 | C193: 0 | D193: 0 | E193: 0 | F193: 0 | G193: 0 | H193: 0 | I193: 0 | J193: 0 | K193: 0 | L193: 0 | M193: 0 | N193: 0 | O193: 0 | P193: 0 | Q193: 0 | R193: 0 | S193: 0 | T193: 0 | U193: 0 | V193: 0 | W193: 0 | X193: 0 | Y193: 0 | Z193: 0 | AA193: 0
A194: 395 | B194: 1 | C194: 0 | D194: 0 | E194: 0 | F194: 0 | G194: 0 | H194: 0 | I194: 0 | J194: 0 | K194: 0 | L194: 0 | M194: 0 | N194: 0 | O194: 0 | P194: 0 | Q194: 0 | R194: 0 | S194: 0 | T194: 0 | U194: 0 | V194: 0 | W194: 0 | X194: 0 | Y194: 0 | Z194: 0 | AA194: 0
A195: 402 | B195: 1 | C195: 1 | D195: 0 | E195: 0 | F195: 0 | G195: 0 | H195: 0 | I195: 0 | J195: 4241 | K195: 0 | L195: 0 | M195: 4241 | N195: 0.147 | O195: 4259.71 | P195: 72641 | Q195: 0 | R195: 0 | S195: 72641 | T195: 2.507 | U195: 72646.84 | V195: 38426 | W195: 0 | X195: 0 | Y195: 38426 | Z195: 1.327 | AA195: 38453.28
A196: 403 | B196: 1 | C196: 1 | D196: 0 | E196: 0 | F196: 0 | G196: 0 | H196: 0 | I196: 0 | J196: 6112 | K196: 0 | L196: 0 | M196: 6112 | N196: 0.142 | O196: 6112.58 | P196: 77166 | Q196: 0 | R196: 0 | S196: 77166 | T196: 1.793 | U196: 77182.05 | V196: 25594 | W196: 0 | X196: 0 | Y196: 25594 | Z196: 0.595 | AA196: 25612.56
A197: 404 | B197: 1 | C197: 1 | D197: 0 | E197: 0 | F197: 0 | G197: 0 | H197: 0 | I197: 0 | J197: 7717 | K197: 0 | L197: 0 | M197: 7717 | N197: 0.145 | O197: 7718.72 | P197: 120073 | Q197: 0 | R197: 0 | S197: 120073 | T197: 2.256 | U197: 120092.59 | V197: 28392 | W197: 0 | X197: 0 | Y197: 28392 | Z197: 0.534 | AA197: 28426.17
A198: 408 | B198: 1 | C198: 0 | D198: 0 | E198: 0 | F198: 0 | G198: 0 | H198: 0 | I198: 0 | J198: 0 | K198: 0 | L198: 0 | M198: 0 | N198: 0 | O198: 0 | P198: 0 | Q198: 0 | R198: 0 | S198: 0 | T198: 0 | U198: 0 | V198: 0 | W198: 0 | X198: 0 | Y198: 0 | Z198: 0 | AA198: 0
A199: 409 | B199: 1 | C199: 0 | D199: 0 | E199: 0 | F199: 0 | G199: 0 | H199: 0 | I199: 0 | J199: 0 | K199: 0 | L199: 0 | M199: 0 | N199: 0 | O199: 0 | P199: 0 | Q199: 0 | R199: 0 | S199: 0 | T199: 0 | U199: 0 | V199: 0 | W199: 0 | X199: 0 | Y199: 0 | Z199: 0 | AA199: 0
A200: 411 | B200: 1 | C200: 0 | D200: 0 | E200: 0 | F200: 0 | G200: 0 | H200: 0 | I200: 0 | J200: 0 | K200: 0 | L200: 0 | M200: 0 | N200: 0 | O200: 0 | P200: 0 | Q200: 0 | R200: 0 | S200: 0 | T200: 0 | U200: 0 | V200: 0 | W200: 0 | X200: 0 | Y200: 0 | Z200: 0 | AA200: 0
... 328 more rows

Sheet Page 2 Bottom (hidden)
A1: 1 | B1: 2 | C1: 3 | D1: 4 | E1: 5 | F1: 6 | G1: 7 | H1: 8 | I1: 9 | J1: 10 | K1: 11 | L1: 12 | M1: 13 | N1: 14 | O1: 15 | P1: 16 | Q1: 17 | R1: 18 | S1: 19 | T1: 20 | U1: 21 | V1: 22 | W1: 23
D2: 21-7 | E2: 22-7 | F2: 23-7 | G2: 24-7 | H2: 25-7 | I2: 26-7 | J2: 21-8 | K2: 22-8 | L2: 23-8 | M2: 24-8 | N2: 25-8 | O2: 26-8 | P2: 21-NTC sub | Q2: 22-NTC sub | R2: 23-NTC sub | S2: 24-NTC sub | T2: 25-NTC sub | U2: 26-NTC sub
A3: dst_num | B3: dst_tye | C3: dst_act_sts | D3: gds_crt_tax_lvy | E3: gds_cua_tax_adj | F3: gds_fid_tax_adj | G3: gds_adj_tax_lvy | H3: gds_tax_mil_rat | I3: gds_spd_tax_lvy | J3: gds_crt_tax_lvy_2 | K3: gds_cua_tax_adj_2 | L3: gds_fid_tax_adj_2 | M3: gds_adj_tax_lvy_2 | N3: gds_tax_rat_2 | O3: gds_spd_tax_lvy_2 | P3: tot_aud_crt_lvy | Q3: tot_aud_cou_adj | R3: tot_aud_fiy_dip | S3: tot_aud_adj_lvy | T3: tot_aud_tax_rat | U3: tot_aud_spr_lvy | V3: dip_aid_aud | W3: tot_spr_lvy
A4: 1 | B4: 1 | C4: 1 | D4: 0 | E4: 0 | F4: 0 | G4: 0 | H4: 0 | I4: 0 | J4: 124968.79 | K4: 0 | L4: -4854.52 | M4: 120114.27 | N4: 0.742 | O4: 120130.73 | P4: 678797.39 | Q4: 0 | R4: -26368.42 | S4: 652428.97 | T4: 4.03 | U4: 652462.05 | V4: 28 | W4: 1147936.88
A5: 1.2 | B5: 3 | C5: 1 | D5: 0 | E5: 0 | F5: 0 | G5: 0 | H5: 0 | I5: 0 | J5: 63425842.92 | K5: 0 | L5: -7065350.67 | M5: 56360492.25 | N5: 12.783 | O5: 56364272.24 | P5: 102105299.1 | Q5: 0 | R5: -11374060.85 | S5: 90731238.27 | T5: 20.58 | U5: 90743700.44 | V5: 430047 | W5: 169231009.7
A6: 2 | B6: 1 | C6: 1 | D6: 205425.8 | E6: 0 | F6: 0 | G6: 205425.8 | H6: 14.755 | I6: 205424.13 | J6: 0 | K6: 0 | L6: 0 | M6: 0 | N6: 0 | O6: 0 | P6: 292237.44 | Q6: 0 | R6: 0 | S6: 292237.44 | T6: 20.991 | U6: 292243.84 | V6: 6156 | W6: 389260.58
A7: 4 | B7: 1 | C7: 1 | D7: 691037.39 | E7: 0 | F7: 0 | G7: 691037.39 | H7: 8.16 | I7: 691044.29 | J7: 120133.73 | K7: 0 | L7: 0 | M7: 120133.73 | N7: 1.419 | O7: 120170.57 | P7: 1315618.93 | Q7: 0 | R7: 0 | S7: 1315618.93 | T7: 15.537 | U7: 1315778.82 | V7: 5722 | W7: 1431546.11
A8: 6 | B8: 3 | C8: 1 | D8: 2348997 | E8: 0 | F8: -575440 | G8: 1773557 | H8: 14.402 | I8: 1773539.19 | J8: 178125 | K8: 0 | L8: -43636 | M8: 134489 | N8: 1.092 | O8: 134474.71 | P8: 5849927 | Q8: 0 | R8: -1433074 | S8: 4416853 | T8: 35.868 | U8: 4416977.06 | V8: 0 | W8: 6471061.02
A9: 11 | B9: 1 | C9: 1 | D9: 7494315.29 | E9: 0 | F9: -1395790 | G9: 6098525.29 | H9: 3.274 | I9: 6098847.73 | J9: 0 | K9: 0 | L9: 0 | M9: 0 | N9: 0 | O9: 0 | P9: 42420922.26 | Q9: 0 | R9: -7796491 | S9: 34624431.26 | T9: 18.59 | U9: 34629682.14 | V9: 0 | W9: 75873726.73
A10: 12 | B10: 1 | C10: 1 | D10: 4678003.76 | E10: 0 | F10: -920703 | G10: 3757300.76 | H10: 13.246 | I10: 3757388.18 | J10: 395281.11 | K10: 0 | L10: -66427 | M10: 328854.11 | N10: 1.16 | O10: 329048.04 | P10: 10003448.39 | Q10: 0 | R10: -1750849 | S10: 8252599.39 | T10: 29.097 | U10: 8253716.14 | V10: 0 | W10: 13293254.29
A11: 13 | B11: 1 | C11: 1 | D11: 2073368.45 | E11: 0 | F11: -561851 | G11: 1511517.45 | H11: 9.633 | I11: 1511611.03 | J11: 85254.77 | K11: 0 | L11: -24581 | M11: 60673.77 | N11: 0.387 | O11: 60728.07 | P11: 6034162.75 | Q11: 0 | R11: -1698682 | S11: 4335480.75 | T11: 27.633 | U11: 4336172.29 | V11: 161 | W11: 6715378.54
A12: 14 | B12: 1 | C12: 1 | D12: 2074591.33 | E12: 0 | F12: -506428 | G12: 1568163.33 | H12: 13.71 | I12: 1568251.67 | J12: 1229215.02 | K12: 0 | L12: -357557 | M12: 871658.02 | N12: 7.621 | O12: 871746.6 | P12: 7218859.79 | Q12: 0 | R12: -1567656 | S12: 5651203.79 | T12: 49.408 | U12: 5651654.14 | V12: 0 | W12: 7670124.64
A13: 15 | B13: 1 | C13: 1 | D13: 5005250.4 | E13: 0 | F13: -874880 | G13: 4130370.4 | H13: 16.507 | I13: 4130382.53 | J13: 1041436.19 | K13: 0 | L13: -179000 | M13: 862436.19 | N13: 3.447 | O13: 862508.55 | P13: 8600650.37 | Q13: 0 | R13: -1371263 | S13: 7229387.37 | T13: 28.893 | U13: 7229608.2 | V13: 0 | W13: 9857951.42
A14: 16 | B14: 1 | C14: 1 | D14: 10165243.44 | E14: 0 | F14: -1191011 | G14: 8974232.44 | H14: 25.761 | I14: 8974473.95 | J14: 483352.82 | K14: 0 | L14: -69193 | M14: 414159.82 | N14: 1.189 | O14: 414217.21 | P14: 16081531.61 | Q14: 0 | R14: -2068432 | S14: 14013099.61 | T14: 40.229 | U14: 14014755.34 | V14: 0 | W14: 19391281.01
A15: 21 | B15: 1 | C15: 0 | D15: 0 | E15: 0 | F15: 0 | G15: 0 | H15: 0 | I15: 0 | J15: 0 | K15: 0 | L15: 0 | M15: 0 | N15: 0 | O15: 0 | P15: 0 | Q15: 0 | R15: 0 | S15: 0 | T15: 0 | U15: 0 | V15: 0 | W15: 0
A16: 22 | B16: 1 | C16: 1 | D16: 0 | E16: 0 | F16: 0 | G16: 0 | H16: 0 | I16: 0 | J16: 0 | K16: 0 | L16: 0 | M16: 0 | N16: 0 | O16: 0 | P16: 2145955.5 | Q16: 0 | R16: 0 | S16: 2145955.5 | T16: 9.112 | U16: 2145955.99 | V16: 728 | W16: 4526064.33
A17: 23 | B17: 1 | C17: 1 | D17: 54297.77 | E17: 0 | F17: 0 | G17: 54297.77 | H17: 0.709 | I17: 54298.26 | J17: 842766.31 | K17: 0 | L17: 0 | M17: 842766.31 | N17: 10.999 | O17: 842766.2 | P17: 1441636.63 | Q17: 0 | R17: 0 | S17: 1441636.63 | T17: 18.816 | U17: 1441636.93 | V17: 0 | W17: 2087177.16
A18: 24 | B18: 1 | C18: 0 | D18: 0 | E18: 0 | F18: 0 | G18: 0 | H18: 0 | I18: 0 | J18: 0 | K18: 0 | L18: 0 | M18: 0 | N18: 0 | O18: 0 | P18: 0 | Q18: 0 | R18: 0 | S18: 0 | T18: 0 | U18: 0 | V18: 0 | W18: 0
A19: 25 | B19: 1 | C19: 1 | D19: 0 | E19: 0 | F19: 0 | G19: 0 | H19: 0 | I19: 0 | J19: 0 | K19: 0 | L19: 0 | M19: 0 | N19: 0 | O19: 0 | P19: 0 | Q19: 0 | R19: 0 | S19: 0 | T19: 0 | U19: 0 | V19: 0 | W19: 0
A20: 31 | B20: 1 | C20: 1 | D20: 3229810.6 | E20: 0 | F20: 0 | G20: 3229810.6 | H20: 9.761 | I20: 3236240.91 | J20: 0 | K20: 0 | L20: 0 | M20: 0 | N20: 0 | O20: 0 | P20: 6798991.89 | Q20: 0 | R20: 0 | S20: 6798991.89 | T20: 20.546 | U20: 6811987.06 | V20: 0 | W20: 10858951.27
A21: 32 | B21: 1 | C21: 1 | D21: 125278.53 | E21: 0 | F21: 0 | G21: 125278.53 | H21: 4.088 | I21: 125283.67 | J21: 151777.59 | K21: 0 | L21: 0 | M21: 151777.59 | N21: 4.953 | O21: 151793.06 | P21: 567258.04 | Q21: 0 | R21: 0 | S21: 567258.04 | T21: 18.51 | U21: 567270.24 | V21: 6620 | W21: 822606.3
A22: 36 | B22: 1 | C22: 1 | D22: 339575.59 | E22: 0 | F22: 0 | G22: 339575.59 | H22: 30.333 | I22: 339581.27 | J22: 0 | K22: 0 | L22: 0 | M22: 0 | N22: 0 | O22: 0 | P22: 386037.8 | Q22: 0 | R22: 0 | S22: 386037.8 | T22: 34.483 | U22: 386040.98 | V22: 0 | W22: 427788.42
A23: 38 | B23: 1 | C23: 1 | D23: 4166.53 | E23: 0 | F23: 0 | G23: 4166.53 | H23: 25.967 | I23: 4166.92 | J23: 0 | K23: 0 | L23: 0 | M23: 0 | N23: 0 | O23: 0 | P23: 4917.25 | Q23: 0 | R23: 0 | S23: 4917.25 | T23: 30.64 | U23: 4916.8 | V23: 0 | W23: 7513.88
A24: 47 | B24: 1 | C24: 1 | D24: 4582311.12 | E24: 0 | F24: 0 | G24: 4582311.12 | H24: 26.018 | I24: 4582258.68 | J24: 0 | K24: 0 | L24: 0 | M24: 0 | N24: 0 | O24: 0 | P24: 6113619.35 | Q24: 0 | R24: 0 | S24: 6113619.35 | T24: 34.712 | U24: 6113435.44 | V24: 2001 | W24: 8512264.3
A25: 51 | B25: 1 | C25: 1 | D25: 3684955.87 | E25: 0 | F25: 0 | G25: 3684955.87 | H25: 51.695 | I25: 3684932.3 | J25: 0 | K25: 0 | L25: 0 | M25: 0 | N25: 0 | O25: 0 | P25: 4044044.35 | Q25: 0 | R25: 0 | S25: 4044044.35 | T25: 56.733 | U25: 4044051.93 | V25: 365 | W25: 4596751.28
A26: 55 | B26: 1 | C26: 0 | D26: 0 | E26: 0 | F26: 0 | G26: 0 | H26: 0 | I26: 0 | J26: 0 | K26: 0 | L26: 0 | M26: 0 | N26: 0 | O26: 0 | P26: 0 | Q26: 0 | R26: 0 | S26: 0 | T26: 0 | U26: 0 | V26: 0 | W26: 0
A27: 57 | B27: 1 | C27: 0 | D27: 0 | E27: 0 | F27: 0 | G27: 0 | H27: 0 | I27: 0 | J27: 0 | K27: 0 | L27: 0 | M27: 0 | N27: 0 | O27: 0 | P27: 0 | Q27: 0 | R27: 0 | S27: 0 | T27: 0 | U27: 0 | V27: 0 | W27: 0
A28: 58 | B28: 1 | C28: 0 | D28: 0 | E28: 0 | F28: 0 | G28: 0 | H28: 0 | I28: 0 | J28: 0 | K28: 0 | L28: 0 | M28: 0 | N28: 0 | O28: 0 | P28: 0 | Q28: 0 | R28: 0 | S28: 0 | T28: 0 | U28: 0 | V28: 0 | W28: 0
A29: 60 | B29: 1 | C29: 0 | D29: 0 | E29: 0 | F29: 0 | G29: 0 | H29: 0 | I29: 0 | J29: 0 | K29: 0 | L29: 0 | M29: 0 | N29: 0 | O29: 0 | P29: 0 | Q29: 0 | R29: 0 | S29: 0 | T29: 0 | U29: 0 | V29: 0 | W29: 0
A30: 62 | B30: 1 | C30: 0 | D30: 0 | E30: 0 | F30: 0 | G30: 0 | H30: 0 | I30: 0 | J30: 0 | K30: 0 | L30: 0 | M30: 0 | N30: 0 | O30: 0 | P30: 0 | Q30: 0 | R30: 0 | S30: 0 | T30: 0 | U30: 0 | V30: 0 | W30: 0
A31: 70 | B31: 1 | C31: 0 | D31: 0 | E31: 0 | F31: 0 | G31: 0 | H31: 0 | I31: 0 | J31: 0 | K31: 0 | L31: 0 | M31: 0 | N31: 0 | O31: 0 | P31: 0 | Q31: 0 | R31: 0 | S31: 0 | T31: 0 | U31: 0 | V31: 0 | W31: 0
A32: 72 | B32: 1 | C32: 0 | D32: 0 | E32: 0 | F32: 0 | G32: 0 | H32: 0 | I32: 0 | J32: 0 | K32: 0 | L32: 0 | M32: 0 | N32: 0 | O32: 0 | P32: 0 | Q32: 0 | R32: 0 | S32: 0 | T32: 0 | U32: 0 | V32: 0 | W32: 0
A33: 75 | B33: 1 | C33: 1 | D33: 755225.11 | E33: 0 | F33: 0 | G33: 755225.11 | H33: 17.569 | I33: 755224.02 | J33: 0 | K33: 0 | L33: 0 | M33: 0 | N33: 0 | O33: 0 | P33: 984223.25 | Q33: 0 | R33: 0 | S33: 984223.25 | T33: 22.897 | U33: 984224.24 | V33: 42 | W33: 1451926.85
A34: 77 | B34: 1 | C34: 1 | D34: 8170480.89 | E34: 0 | F34: 0 | G34: 8170480.89 | H34: 12.544 | I34: 8166663.2 | J34: 0 | K34: 0 | L34: 0 | M34: 0 | N34: 0 | O34: 0 | P34: 14653508.75 | Q34: 0 | R34: 0 | S34: 14653508.75 | T34: 22.498 | U34: 14646817.12 | V34: 53784 | W34: 22806351.54
A35: 78 | B35: 1 | C35: 0 | D35: 0 | E35: 0 | F35: 0 | G35: 0 | H35: 0 | I35: 0 | J35: 0 | K35: 0 | L35: 0 | M35: 0 | N35: 0 | O35: 0 | P35: 0 | Q35: 0 | R35: 0 | S35: 0 | T35: 0 | U35: 0 | V35: 0 | W35: 0
A36: 79 | B36: 1 | C36: 0 | D36: 0 | E36: 0 | F36: 0 | G36: 0 | H36: 0 | I36: 0 | J36: 0 | K36: 0 | L36: 0 | M36: 0 | N36: 0 | O36: 0 | P36: 0 | Q36: 0 | R36: 0 | S36: 0 | T36: 0 | U36: 0 | V36: 0 | W36: 0
A37: 81 | B37: 1 | C37: 1 | D37: 0 | E37: 0 | F37: 0 | G37: 0 | H37: 0 | I37: 0 | J37: 0 | K37: 0 | L37: 0 | M37: 0 | N37: 0 | O37: 0 | P37: 153709.99 | Q37: 0 | R37: 0 | S37: 153709.99 | T37: 3.45 | U37: 153684.59 | V37: 4829 | W37: 307871.9
A38: 84 | B38: 1 | C38: 1 | D38: 0 | E38: 0 | F38: 0 | G38: 0 | H38: 0 | I38: 0 | J38: 338667.29 | K38: 0 | L38: 0 | M38: 338667.29 | N38: 3.653 | O38: 338701.52 | P38: 868101.01 | Q38: 0 | R38: 0 | S38: 868101.01 | T38: 9.364 | U38: 868218.19 | V38: 3873 | W38: 1250548.59
A39: 85 | B39: 1 | C39: 1 | D39: 0 | E39: 0 | F39: 0 | G39: 0 | H39: 0 | I39: 0 | J39: 0 | K39: 0 | L39: 0 | M39: 0 | N39: 0 | O39: 0 | P39: 402164.58 | Q39: 0 | R39: 0 | S39: 402164.58 | T39: 6.155 | U39: 402115.26 | V39: 6147 | W39: 612939.2
A40: 88 | B40: 1 | C40: 1 | D40: 2137161.49 | E40: 0 | F40: 0 | G40: 2137161.49 | H40: 9.776 | I40: 2137217 | J40: 518434.4 | K40: 0 | L40: 0 | M40: 518434.4 | N40: 2.371 | O40: 518345.08 | P40: 4442822.98 | Q40: 0 | R40: 0 | S40: 4442822.98 | T40: 20.322 | U40: 4442770.44 | V40: 27378 | W40: 7891394.34
A41: 91 | B41: 1 | C41: 1 | D41: 278756 | E41: 0 | F41: 0 | G41: 278756 | H41: 8.935 | I41: 278764.58 | J41: 164504.51 | K41: 0 | L41: 0 | M41: 164504.51 | N41: 5.273 | O41: 164513.22 | P41: 634141.48 | Q41: 0 | R41: 0 | S41: 634141.48 | T41: 20.326 | U41: 634154.32 | V41: 5945 | W41: 986721.13
A42: 93 | B42: 1 | C42: 1 | D42: 0 | E42: 0 | F42: 0 | G42: 0 | H42: 0 | I42: 0 | J42: 62623.18 | K42: 0 | L42: 0 | M42: 62623.18 | N42: 1.339 | O42: 62622.19 | P42: 457876.32 | Q42: 0 | R42: 0 | S42: 457876.32 | T42: 9.791 | U42: 457904.31 | V42: 28283 | W42: 1180726.33
A43: 94 | B43: 1 | C43: 1 | D43: 2869645.95 | E43: 0 | F43: 0 | G43: 2869645.95 | H43: 27.767 | I43: 2869659.75 | J43: 428191.49 | K43: 0 | L43: 0 | M43: 428191.49 | N43: 4.143 | O43: 428170.14 | P43: 4881082.92 | Q43: 0 | R43: 0 | S43: 4881082.92 | T43: 47.229 | U43: 4881015.61 | V43: 185621 | W43: 6125357.36
A44: 95 | B44: 1 | C44: 1 | D44: 478705.06 | E44: 0 | F44: 0 | G44: 478705.06 | H44: 23.643 | I44: 478705.73 | J44: 0 | K44: 0 | L44: 0 | M44: 0 | N44: 0 | O44: 0 | P44: 659078.98 | Q44: 0 | R44: 0 | S44: 659078.98 | T44: 32.551 | U44: 659068.23 | V44: 2425 | W44: 832181.45
A45: 97 | B45: 1 | C45: 1 | D45: 925022.6 | E45: 0 | F45: 0 | G45: 925022.6 | H45: 21.7 | I45: 925008.94 | J45: 0 | K45: 0 | L45: 0 | M45: 0 | N45: 0 | O45: 0 | P45: 1224371.42 | Q45: 0 | R45: 0 | S45: 1224371.42 | T45: 28.722 | U45: 1224336.72 | V45: 28013 | W45: 1457147.38
A46: 99 | B46: 1 | C46: 1 | D46: 110704.41 | E46: 0 | F46: 0 | G46: 110704.41 | H46: 2.103 | I46: 110717.19 | J46: 46873.38 | K46: 0 | L46: 0 | M46: 46873.38 | N46: 0.89 | O46: 46856.06 | P46: 1630372.29 | Q46: 0 | R46: 0 | S46: 1630372.29 | T46: 30.968 | U46: 1630380.35 | V46: 20408 | W46: 2383848.06
A47: 100 | B47: 1 | C47: 1 | D47: 342368.2 | E47: 0 | F47: 0 | G47: 342368.2 | H47: 10.325 | I47: 342361.51 | J47: 0 | K47: 0 | L47: 0 | M47: 0 | N47: 0 | O47: 0 | P47: 553424.96 | Q47: 0 | R47: 0 | S47: 553424.96 | T47: 16.69 | U47: 553415.36 | V47: 2310 | W47: 874756.91
A48: 108 | B48: 1 | C48: 1 | D48: 987341 | E48: 0 | F48: -119293 | G48: 868048 | H48: 10.016 | I48: 868048 | J48: 43105 | K48: 0 | L48: -5208 | M48: 37897 | N48: 0.437 | O48: 37897 | P48: 1855851 | Q48: 0 | R48: -224229 | S48: 1631622 | T48: 18.827 | U48: 1631622 | V48: 972 | W48: 2293016.98
A49: 110 | B49: 1 | C49: 1 | D49: 6547230 | E49: 0 | F49: -613637 | G49: 5933593 | H49: 24.933 | I49: 5933593 | J49: 311996 | K49: 0 | L49: -29242 | M49: 282754 | N49: 1.188 | O49: 282754 | P49: 8201976 | Q49: 0 | R49: -768727 | S49: 7433249 | T49: 31.235 | U49: 7433249 | V49: 431 | W49: 10226993.88
A50: 111 | B50: 1 | C50: 1 | D50: 4170271 | E50: 0 | F50: -490788 | G50: 3679483 | H50: 34.648 | I50: 3679483 | J50: 381963 | K50: 0 | L50: -44952 | M50: 337011 | N50: 3.173 | O50: 337011 | P50: 5238621 | Q50: 0 | R50: -616520 | S50: 4622101 | T50: 43.524 | U50: 4622101 | V50: 917 | W50: 5700567.93
A51: 112 | B51: 1 | C51: 1 | D51: 16759369 | E51: 0 | F51: -1347326 | G51: 15412043 | H51: 21.883 | I51: 15412042 | J51: 893414 | K51: 0 | L51: -71824 | M51: 821590 | N51: 1.167 | O51: 821589.99 | P51: 28341230 | Q51: 0 | R51: -2278421 | S51: 26062809 | T51: 37.007 | U51: 26062808.99 | V51: 523 | W51: 42300682.45
A52: 113 | B52: 1 | C52: 1 | D52: 970738.93 | E52: 0 | F52: 0 | G52: 970738.93 | H52: 4.93 | I52: 970639.55 | J52: 257261.27 | K52: 0 | L52: 0 | M52: 257261.27 | N52: 1.307 | O52: 257327.77 | P52: 1872986.92 | Q52: 0 | R52: 0 | S52: 1872986.92 | T52: 9.513 | U52: 1872960.25 | V52: 2441 | W52: 2555137.86
A53: 114 | B53: 1 | C53: 0 | D53: 0 | E53: 0 | F53: 0 | G53: 0 | H53: 0 | I53: 0 | J53: 0 | K53: 0 | L53: 0 | M53: 0 | N53: 0 | O53: 0 | P53: 0 | Q53: 0 | R53: 0 | S53: 0 | T53: 0 | U53: 0 | V53: 0 | W53: 0
A54: 115 | B54: 1 | C54: 1 | D54: 1942127.5 | E54: 0 | F54: 0 | G54: 1942127.5 | H54: 22.731 | I54: 1942158.92 | J54: 152615.16 | K54: 0 | L54: 0 | M54: 152615.16 | N54: 1.786 | O54: 152597.59 | P54: 2372618.17 | Q54: 0 | R54: 0 | S54: 2372618.17 | T54: 27.769 | U54: 2372610.58 | V54: 4661 | W54: 3092204.61
A55: 116 | B55: 1 | C55: 1 | D55: 1064026.7 | E55: 0 | F55: 0 | G55: 1064026.7 | H55: 10.657 | I55: 1064013.64 | J55: 0 | K55: 0 | L55: 0 | M55: 0 | N55: 0 | O55: 0 | P55: 1764843.54 | Q55: 0 | R55: 0 | S55: 1764843.54 | T55: 17.676 | U55: 1764802.95 | V55: 370 | W55: 2549305.04
A56: 117 | B56: 1 | C56: 0 | D56: 0 | E56: 0 | F56: 0 | G56: 0 | H56: 0 | I56: 0 | J56: 0 | K56: 0 | L56: 0 | M56: 0 | N56: 0 | O56: 0 | P56: 0 | Q56: 0 | R56: 0 | S56: 0 | T56: 0 | U56: 0 | V56: 0 | W56: 0
A57: 118 | B57: 1 | C57: 1 | D57: 1721273.8 | E57: 0 | F57: 0 | G57: 1721273.8 | H57: 11.297 | I57: 1721272.38 | J57: 0 | K57: 0 | L57: 0 | M57: 0 | N57: 0 | O57: 0 | P57: 1912094.31 | Q57: 0 | R57: 0 | S57: 1912094.31 | T57: 12.549 | U57: 1912033.92 | V57: 131 | W57: 2277900.24
A58: 119 | B58: 1 | C58: 0 | D58: 0 | E58: 0 | F58: 0 | G58: 0 | H58: 0 | I58: 0 | J58: 0 | K58: 0 | L58: 0 | M58: 0 | N58: 0 | O58: 0 | P58: 0 | Q58: 0 | R58: 0 | S58: 0 | T58: 0 | U58: 0 | V58: 0 | W58: 0
A59: 126 | B59: 1 | C59: 0 | D59: 0 | E59: 0 | F59: 0 | G59: 0 | H59: 0 | I59: 0 | J59: 0 | K59: 0 | L59: 0 | M59: 0 | N59: 0 | O59: 0 | P59: 0 | Q59: 0 | R59: 0 | S59: 0 | T59: 0 | U59: 0 | V59: 0 | W59: 0
A60: 127 | B60: 1 | C60: 0 | D60: 0 | E60: 0 | F60: 0 | G60: 0 | H60: 0 | I60: 0 | J60: 0 | K60: 0 | L60: 0 | M60: 0 | N60: 0 | O60: 0 | P60: 0 | Q60: 0 | R60: 0 | S60: 0 | T60: 0 | U60: 0 | V60: 0 | W60: 0
A61: 128 | B61: 1 | C61: 0 | D61: 0 | E61: 0 | F61: 0 | G61: 0 | H61: 0 | I61: 0 | J61: 0 | K61: 0 | L61: 0 | M61: 0 | N61: 0 | O61: 0 | P61: 0 | Q61: 0 | R61: 0 | S61: 0 | T61: 0 | U61: 0 | V61: 0 | W61: 0
A62: 129 | B62: 1 | C62: 1 | D62: 0 | E62: 0 | F62: 0 | G62: 0 | H62: 0 | I62: 0 | J62: 1024377.82 | K62: 0 | L62: 0 | M62: 1024377.82 | N62: 12.304 | O62: 1024397.94 | P62: 1808652.8 | Q62: 0 | R62: 0 | S62: 1808652.8 | T62: 21.725 | U62: 1808765.06 | V62: 58048 | W62: 2456702.37
A63: 138 | B63: 1 | C63: 1 | D63: 3655624.42 | E63: 0 | F63: 0 | G63: 3655624.42 | H63: 22.201 | I63: 3655624 | J63: 0 | K63: 0 | L63: 0 | M63: 0 | N63: 0 | O63: 0 | P63: 5593648 | Q63: 0 | R63: 0 | S63: 5593648 | T63: 33.972 | U63: 5593648 | V63: 3972 | W63: 7437947.07
A64: 139 | B64: 1 | C64: 1 | D64: 1182915.22 | E64: 0 | F64: 0 | G64: 1182915.22 | H64: 25.217 | I64: 1182915 | J64: 28592.23 | K64: 0 | L64: 0 | M64: 28592.23 | N64: 0.61 | O64: 28592 | P64: 1526438.07 | Q64: 0 | R64: 0 | S64: 1526438.07 | T64: 32.54 | U64: 1526438 | V64: 654 | W64: 2033297.01
A65: 140 | B65: 1 | C65: 0 | D65: 0 | E65: 0 | F65: 0 | G65: 0 | H65: 0 | I65: 0 | J65: 0 | K65: 0 | L65: 0 | M65: 0 | N65: 0 | O65: 0 | P65: 0 | Q65: 0 | R65: 0 | S65: 0 | T65: 0 | U65: 0 | V65: 0 | W65: 0
A66: 141 | B66: 1 | C66: 0 | D66: 0 | E66: 0 | F66: 0 | G66: 0 | H66: 0 | I66: 0 | J66: 0 | K66: 0 | L66: 0 | M66: 0 | N66: 0 | O66: 0 | P66: 0 | Q66: 0 | R66: 0 | S66: 0 | T66: 0 | U66: 0 | V66: 0 | W66: 0
A67: 145 | B67: 1 | C67: 0 | D67: 0 | E67: 0 | F67: 0 | G67: 0 | H67: 0 | I67: 0 | J67: 0 | K67: 0 | L67: 0 | M67: 0 | N67: 0 | O67: 0 | P67: 0 | Q67: 0 | R67: 0 | S67: 0 | T67: 0 | U67: 0 | V67: 0 | W67: 0
A68: 146 | B68: 1 | C68: 1 | D68: 0 | E68: 0 | F68: 0 | G68: 0 | H68: 0 | I68: 0 | J68: 0 | K68: 0 | L68: 0 | M68: 0 | N68: 0 | O68: 0 | P68: 476812.47 | Q68: 0 | R68: 0 | S68: 476812.47 | T68: 5.785 | U68: 476812 | V68: 1452 | W68: 1111877.95
A69: 147 | B69: 1 | C69: 0 | D69: 0 | E69: 0 | F69: 0 | G69: 0 | H69: 0 | I69: 0 | J69: 0 | K69: 0 | L69: 0 | M69: 0 | N69: 0 | O69: 0 | P69: 0 | Q69: 0 | R69: 0 | S69: 0 | T69: 0 | U69: 0 | V69: 0 | W69: 0
A70: 150 | B70: 1 | C70: 1 | D70: 838670.23 | E70: 0 | F70: 0 | G70: 838670.23 | H70: 16.848 | I70: 838670 | J70: 0 | K70: 0 | L70: 0 | M70: 0 | N70: 0 | O70: 0 | P70: 1155037.56 | Q70: 0 | R70: 0 | S70: 1155037.56 | T70: 23.203 | U70: 1155037 | V70: 0 | W70: 1472135.96
A71: 152 | B71: 1 | C71: 1 | D71: 6912994.65 | E71: 0 | F71: 0 | G71: 6912994.65 | H71: 17.681 | I71: 6912995 | J71: 0 | K71: 0 | L71: 0 | M71: 0 | N71: 0 | O71: 0 | P71: 11901273.58 | Q71: 0 | R71: 0 | S71: 11901273.58 | T71: 30.44 | U71: 11901274 | V71: 5056 | W71: 17656613.64
A72: 158 | B72: 1 | C72: 0 | D72: 0 | E72: 0 | F72: 0 | G72: 0 | H72: 0 | I72: 0 | J72: 0 | K72: 0 | L72: 0 | M72: 0 | N72: 0 | O72: 0 | P72: 0 | Q72: 0 | R72: 0 | S72: 0 | T72: 0 | U72: 0 | V72: 0 | W72: 0
A73: 161 | B73: 1 | C73: 0 | D73: 0 | E73: 0 | F73: 0 | G73: 0 | H73: 0 | I73: 0 | J73: 0 | K73: 0 | L73: 0 | M73: 0 | N73: 0 | O73: 0 | P73: 0 | Q73: 0 | R73: 0 | S73: 0 | T73: 0 | U73: 0 | V73: 0 | W73: 0
A74: 162 | B74: 1 | C74: 1 | D74: 0 | E74: 0 | F74: 0 | G74: 0 | H74: 0 | I74: 0 | J74: 263098 | K74: 0 | L74: 0 | M74: 263098 | N74: 5.588 | O74: 263098.18 | P74: 1118330 | Q74: 0 | R74: 0 | S74: 1118330 | T74: 23.752 | U74: 1118332.06 | V74: 38622 | W74: 1497745.6
A75: 166 | B75: 1 | C75: 1 | D75: 249677.6 | E75: 0 | F75: -1661.59 | G75: 248016.01 | H75: 1.546 | I75: 248056.81 | J75: 532061.27 | K75: 0 | L75: -3540.81 | M75: 528520.46 | N75: 3.294 | O75: 528524.67 | P75: 909277.21 | Q75: 0 | R75: -6051.15 | S75: 903226.06 | T75: 5.629 | U75: 903177.1 | V75: 2481 | W75: 1734284.65
A76: 173 | B76: 1 | C76: 1 | D76: 0 | E76: 0 | F76: 0 | G76: 0 | H76: 0 | I76: 0 | J76: 0 | K76: 0 | L76: 0 | M76: 0 | N76: 0 | O76: 0 | P76: 369425 | Q76: 0 | R76: 0 | S76: 369425 | T76: 5.253 | U76: 369523.07 | V76: 19032 | W76: 861077.42
A77: 175 | B77: 1 | C77: 0 | D77: 0 | E77: 0 | F77: 0 | G77: 0 | H77: 0 | I77: 0 | J77: 0 | K77: 0 | L77: 0 | M77: 0 | N77: 0 | O77: 0 | P77: 0 | Q77: 0 | R77: 0 | S77: 0 | T77: 0 | U77: 0 | V77: 0 | W77: 0
A78: 177 | B78: 1 | C78: 1 | D78: 1026985.19 | E78: -0.19 | F78: 0 | G78: 1026985 | H78: 10.163 | I78: 1027007.43 | J78: 0 | K78: 0 | L78: 0 | M78: 0 | N78: 0 | O78: 0 | P78: 1710493.16 | Q78: -0.16 | R78: 0 | S78: 1710493 | T78: 16.928 | U78: 1710634.83 | V78: 35689 | W78: 2714768.33
A79: 178 | B79: 1 | C79: 0 | D79: 0 | E79: 0 | F79: 0 | G79: 0 | H79: 0 | I79: 0 | J79: 0 | K79: 0 | L79: 0 | M79: 0 | N79: 0 | O79: 0 | P79: 0 | Q79: 0 | R79: 0 | S79: 0 | T79: 0 | U79: 0 | V79: 0 | W79: 0
A80: 181 | B80: 1 | C80: 1 | D80: 6287623.65 | E80: 0 | F80: 0 | G80: 6287623.65 | H80: 11.21 | I80: 6287815.22 | J80: 175860.53 | K80: 0 | L80: 0 | M80: 175860.53 | N80: 0.314 | O80: 176126.14 | P80: 13874596.48 | Q80: 0 | R80: 0 | S80: 13874596.48 | T80: 24.739 | U80: 13876383.67 | V80: 13430 | W80: 18954735.39
A81: 182 | B81: 1 | C81: 1 | D81: 1614226.51 | E81: 0 | F81: -53247.26 | G81: 1560979.25 | H81: 8.205 | I81: 1561021.76 | J81: 0 | K81: 0 | L81: 0 | M81: 0 | N81: 0 | O81: 0 | P81: 2967899.44 | Q81: 0 | R81: -97899.84 | S81: 2869999.6 | T81: 15.087 | U81: 2870339.47 | V81: 6865 | W81: 3739941.11
A82: 186 | B82: 1 | C82: 1 | D82: 3012124.16 | E82: 0 | F82: 0 | G82: 3012124.16 | H82: 9.488 | I82: 3012247.68 | J82: 0 | K82: 0 | L82: 0 | M82: 0 | N82: 0 | O82: 0 | P82: 4112376.88 | Q82: 0 | R82: 0 | S82: 4112376.88 | T82: 12.954 | U82: 4112632.42 | V82: 0 | W82: 5439190.65
A83: 191 | B83: 1 | C83: 1 | D83: 3446830 | E83: 0 | F83: -432613 | G83: 3014217 | H83: 4.629 | I83: 3013952.45 | J83: 5658050 | K83: 0 | L83: -710145 | M83: 4947905 | N83: 7.6 | O83: 4948377.33 | P83: 20495692 | Q83: 0 | R83: -2572431 | S83: 17923261 | T83: 27.529 | U83: 17924194.66 | V83: 0 | W83: 33375778.91
A84: 192 | B84: 1 | C84: 1 | D84: 14154747 | E84: 0 | F84: -2050260 | G84: 12104487 | H84: 41.835 | I84: 12104439.33 | J84: 89839 | K84: 0 | L84: -13013 | M84: 76826 | N84: 0.266 | O84: 76963.81 | P84: 18361354 | Q84: 0 | R84: -2659570 | S84: 15701784 | T84: 54.269 | U84: 15702063.3 | V84: 0 | W84: 20868535.62
A85: 194 | B85: 1 | C85: 1 | D85: 15296412 | E85: 0 | F85: -1531560 | G85: 13764852 | H85: 20.372 | I85: 13765312.93 | J85: 737829 | K85: 0 | L85: -73876 | M85: 663953 | N85: 0.983 | O85: 664210.81 | P85: 24713195 | Q85: 0 | R85: -2474423 | S85: 22238772 | T85: 32.914 | U85: 22239913.11 | V85: 0 | W85: 38885727.2
A86: 195 | B86: 1 | C86: 1 | D86: 555874 | E86: 0 | F86: -20741 | G86: 535133 | H86: 10.75 | I86: 535126.83 | J86: 7419 | K86: 0 | L86: -277 | M86: 7142 | N86: 0.144 | O86: 7168.21 | P86: 882408 | Q86: 0 | R86: -32926 | S86: 849482 | T86: 17.065 | U86: 849482.73 | V86: 0 | W86: 1272289.71
A87: 196 | B87: 1 | C87: 1 | D87: 6559095 | E87: 0 | F87: -750685 | G87: 5808410 | H87: 3.731 | I87: 5809156.33 | J87: 223107 | K87: 0 | L87: -25534 | M87: 197573 | N87: 0.127 | O87: 197738.64 | P87: 41027401 | Q87: 0 | R87: -4695564 | S87: 36331837 | T87: 23.336 | U87: 36334085.27 | V87: 0 | W87: 79027934.12
A88: 197 | B88: 1 | C88: 1 | D88: 3632329 | E88: 0 | F88: -312527 | G88: 3319802 | H88: 5.757 | I88: 3320029.49 | J88: 388862 | K88: 0 | L88: -33458 | M88: 355404 | N88: 0.616 | O88: 355243.73 | P88: 14066817 | Q88: 0 | R88: -1210314 | S88: 12856503 | T88: 22.295 | U88: 12857400.98 | V88: 0 | W88: 22195833.53
